{"text_format":"1","workbook":"xlsx","n_sheets":9,"sheets":["入力","record","入力補助","品類補助","マクロ補助","鉄道駅補助","港湾補助","空港補助","IC補助"],"not_rendered":{"charts":0,"images":12,"macros":1,"external_links":0,"defined_names":5,"comments":0,"pivot_tables":0},"unopened":[],"bounds":{"document_bytes":16777216,"sheet_cells":100000,"rows_first":2000,"rows_last":500,"rows_between":2000,"halvings":0,"cell_chars":16384,"cell_head_chars":4096},"cells_cut":0,"cells_raw":0,"read":"whole","date_system":"1900"}

{"sheet":"入力","index":0,"n_rows":52,"n_cols":42,"rows_kept":52,"cut":false,"hidden":false,"merged":[[30,26,31,26],[30,27,31,27],[30,32,31,33],[29,32,29,33],[30,30,31,30],[30,31,31,31],[16,30,18,31],[16,26,18,27],[16,28,18,29],[27,32,27,33],[3,40,3,42],[24,2,24,3],[7,1,8,2],[9,1,11,2],[24,7,24,9],[15,8,15,14],[7,3,8,9],[9,3,10,9],[23,4,23,6],[22,12,22,13],[23,18,23,19],[7,10,8,13],[9,10,11,13],[3,36,3,37],[3,38,3,39],[15,2,15,6],[15,18,15,20],[7,29,8,30],[9,29,11,30],[7,31,8,32],[9,31,11,32],[9,28,11,28],[7,25,8,28],[4,35,5,35],[4,36,5,37],[14,26,15,40],[4,38,5,39],[9,23,9,27],[10,23,11,27],[4,40,5,42],[25,37,25,38],[23,37,24,38],[24,32,24,33],[25,32,25,33],[13,1,14,25],[7,33,8,42],[11,6,11,7],[9,19,11,22],[7,19,8,24],[20,10,21,24],[7,18,8,18],[9,18,11,18],[7,14,8,17],[9,14,11,17],[23,2,23,3],[22,21,22,22],[22,23,22,24],[32,32,32,33],[9,33,11,42],[42,27,43,27],[29,2,29,3],[26,4,26,6],[27,4,27,6],[28,4,28,6],[16,1,19,18],[23,7,23,9],[24,4,24,6],[25,4,25,6],[24,18,24,19],[25,18,25,19],[22,10,22,11],[22,14,22,15],[22,16,22,17],[22,18,22,20],[26,18,26,19],[25,2,25,3],[26,2,26,3],[27,2,27,3],[29,7,29,9],[41,1,44,20],[31,1,39,1],[39,7,39,9],[37,2,37,3],[31,2,31,3],[38,4,38,6],[35,7,35,9],[20,4,22,6],[22,7,22,9],[20,7,21,9],[36,4,36,6],[36,7,36,9],[31,7,31,9],[32,7,32,9],[33,7,33,9],[34,7,34,9],[31,4,32,6],[27,7,27,9],[28,7,28,9],[28,2,28,3],[32,2,32,3],[35,4,35,6],[49,7,50,9],[49,10,50,12],[27,18,27,19],[25,7,25,9],[28,18,28,19],[45,1,46,4],[45,14,46,19],[39,4,39,6],[39,2,39,3],[37,4,37,6],[37,7,37,9],[38,7,38,9],[33,2,33,3],[34,2,34,3],[35,2,35,3],[36,2,36,3],[33,4,33,6],[29,4,29,6],[34,4,34,6],[38,2,38,3],[26,7,26,9],[20,1,29,1],[22,2,22,3],[20,2,21,3],[34,32,34,33],[35,32,35,33],[17,36,22,43],[19,26,21,26],[19,27,21,27],[19,30,21,30],[19,31,21,31],[35,39,35,40],[27,37,27,38],[26,37,26,38],[35,37,35,38],[34,37,34,38],[33,37,33,38],[30,29,31,29],[30,28,31,28],[19,28,21,28],[34,39,34,40],[19,32,21,33],[27,39,27,40],[28,37,28,38],[28,39,28,40],[29,39,29,40],[19,29,21,29],[26,32,26,33],[40,28,41,28],[42,28,43,28],[36,39,36,40],[37,37,37,38],[37,39,37,40],[38,37,38,38],[38,39,38,40],[39,32,39,33],[36,32,36,33],[37,32,37,33],[36,37,36,38],[38,32,38,33],[47,4,48,6],[47,7,48,9],[47,10,48,12],[46,26,47,26],[46,27,47,27],[46,30,47,30],[46,31,47,31],[46,32,47,33],[47,14,48,15],[47,16,48,20],[47,21,48,24],[40,26,41,26],[48,26,49,26],[48,27,49,27],[40,27,41,27],[40,30,41,30],[40,31,41,31],[40,32,41,33],[42,26,43,26],[48,30,49,30],[48,31,49,31],[48,32,49,33],[44,28,45,28],[46,28,47,28],[40,29,41,29],[42,29,43,29],[44,29,45,29],[46,29,47,29],[44,26,45,26],[44,27,45,27],[44,30,45,30],[44,31,45,31],[44,32,45,33],[42,30,43,30],[42,31,43,31],[51,1,52,2],[51,3,52,3],[51,4,52,6],[51,7,52,9],[51,10,52,12],[50,26,51,26],[50,27,51,27],[50,30,51,31],[50,32,51,33],[49,1,50,2],[49,3,50,3],[49,4,50,6],[49,14,50,15],[51,14,52,15],[49,16,50,20],[51,16,52,20],[49,21,50,24],[51,21,52,24],[48,28,49,28],[50,28,51,28],[48,29,49,29],[50,29,51,29],[47,1,48,2],[47,3,48,3],[50,34,51,34],[23,39,24,41],[30,41,31,41],[16,32,18,34],[19,34,21,34],[30,34,31,34],[40,34,41,34],[42,34,43,34],[44,34,45,34],[46,34,47,34],[48,34,49,34],[32,37,32,38],[33,39,33,40],[29,37,29,38],[25,39,25,40],[26,39,26,40],[30,39,31,40],[32,39,32,40],[22,32,22,33],[28,32,28,33],[23,32,23,33],[42,32,43,33],[30,37,31,38],[33,32,33,33]]}
[]
[]
[]
[null,null,null,null,null,null,null,null,null,null,null,null,null,null,null,null,null,null,null,null,null,null,null,null,null,null,null,null,null,null,null,null,null,null,"※","県No","業種No",null,"事業所No"]
[]
[]
[null,"問１-１．貴事業所に関してご記入下さい。",null,null,null,null,null,null,null,null,null,null,null,null,null,null,null,null,null,null,null,null,null,null,null,null,null,null,null,null,null,null,null,null,null,null,null,null,"(※印は記入しないで下さい)"]
[null,"事業所名",null,null,null,null,null,null,null,null,"従　業　者　数\n(令和7年9月末日現在)",null,null,null,null,null,null,null,"人","売上(収入)金額\n(令和6年4月～令和7年3月)\n製造業と卸売業が該当します。\n消費税抜きでご記入下さい。",null,null,null,null,null,null,null,null,null,"百万円",null,"物流関係\n担当部門"]
[]
[null,"所 在 地",null,null,null,null,null,null,null,null,"敷　地　面　積\n(令和7年9月末日現在)",null,null,null,null,null,null,null,"㎡","現在の所在地\nで操業を開始\nした年",null,null,null,"元号をこちらで選択してください",null,null,null,null,null,"年",null,"ご回答者\n氏 　 名"]
[null,null,null,null,null,null,null,null,null,null,null,null,null,null,null,null,null,null,null,null,null,null,null,"（昭和34年以前の場合は具体的な\n年の記入の必要はありません）"]
[null,null,null,"Tel.　(市外局番",null,")-(",null,null,")-"]
[]
[null,"問１-２. 令和6年度中に貴事業所では、事業所所在地において貨物の出荷・入荷を行いましたか。該当する番号を右の黄色セルに入力してください。\n　　　　　なお、「２」に該当する場合には、以下の項目にお答えいただかなくて結構です。"]
[null,null,null,null,null,null,null,null,null,null,null,null,null,null,null,null,null,null,null,null,null,null,null,null,null,null,"問４. 問２. の出荷合計重量を100とした場合の貨物の出荷先地別\n     　重量割合（％ ： 小数点以下四捨五入）をご記入下さい。"]
[null,"１"," 貨物の出荷・入荷を行った。",null,null,null,null,"２"," 貨物の出荷・入荷を行っていない。"]
[null,"問２. 令和6年度における貨物の出荷・入荷について、品類別にそれぞれの重量(実重量)をご記入下さい。\n       次に、出荷については、品類ごとの輸送機関別重量割合(%・・・・・小数点以下四捨五入)をご記入下さい。\n       また、品類ごとの輸出トン数、輸入トン数をご記入下さい。",null,null,null,null,null,null,null,null,null,null,null,null,null,null,null,null,null,null,null,null,null,null,null,null,"出荷先地",null,"重量\n割合",null,"出荷先地",null,"重量\n割合"]
[null,null,null,null,null,null,null,null,null,null,null,null,null,null,null,null,null,null,null,null,null,null,null,null,null,null,null,null,null,null,null,null,null,null,null,null,"問５. 問２．の出荷合計重量を100\n　     とした場合の貨物の月別重量\n　     割合（％：小数点以下四捨\n　     五入） をご記入下さい"]
[]
[null,null,null,null,null,null,null,null,null,null,null,null,null,null,null,null,null,null,null,null,null,null,null,null,null,null,"1","北海道",null,"％","25","滋　賀",null,null,"％"]
[null,"出　　　　荷","品　　　　類",null,"重　　　　量\n（トン）",null,null,null,null,null,"輸　送　機　関　利　用　状　況（％）"]
[]
[null,null,"「品類・品目分類表」の品\n類を参考にして下さい。",null,null,null,null,"うち輸出（トン）",null,null,"合　　計",null,"鉄　　道",null,"自 家 用\nトラック",null,"営 業 用\nトラック",null,"海　　運",null,null,"航　　空",null,"そ の 他",null,null,"2","青　森",null,"％","26","京　都",null,null,"％"]
[null,null,null,null,null,null,null,null,null,null,0,"％",null,"％",null,"％",null,"％",null,null,"％",null,"％",null,"％",null,"3","岩　手",null,"％","27","大　阪",null,null,"％",null,null,"月",null,"重量\n割合"]
[null,null,null,null,null,null,null,null,null,null,0,"％",null,"％",null,"％",null,"％",null,null,"％",null,"％",null,"％",null,"4","宮　城",null,"％","28","兵　庫",null,null,"％"]
[null,null,null,null,null,null,null,null,null,null,0,"％",null,"％",null,"％",null,"％",null,null,"％",null,"％",null,"％",null,"5","秋　田",null,"％","29","奈　良",null,null,"％",null,null,"４月",null,null,null,"％"]
[null,null,null,null,null,null,null,null,null,null,0,"％",null,"％",null,"％",null,"％",null,null,"％",null,"％",null,"％",null,"6","山　形",null,"％","30","和歌山",null,null,"％",null,null,"５月",null,null,null,"％"]
[null,null,null,null,null,null,null,null,null,null,0,"％",null,"％",null,"％",null,"％",null,null,"％",null,"％",null,"％",null,"7","福　島",null,"％","31","鳥　取",null,null,"％",null,null,"６月",null,null,null,"％"]
[null,null,null,null,null,null,null,null,null,null,0,"％",null,"％",null,"％",null,"％",null,null,"％",null,"％",null,"％",null,"8","茨　城",null,"％","32","島　根",null,null,"％",null,null,"７月",null,null,null,"％"]
[null,null,"合　　　　計",null,{"$f":"SUM(E24:G29)","v":0},null,null,{"$f":"SUM(H24:J29)","v":0},null,null,null,null,null,null,null,null,null,null,null,null,null,null,null,null,null,null,"9","栃　木",null,"％","33","岡　山",null,null,"％",null,null,"８月",null,null,null,"％"]
[null,null,null,null,null,null,null,null,null,null,null,null,null,null,null,null,null,null,null,null,null,null,null,null,null,null,"10","群　馬",null,"％","34","広　島",null,null,"％",null,null,"９月",null,null,null,"％"]
[null,"入　　　　荷","品　　　　類",null,"重　　　　量\n（トン）"]
[null,null,"「品類・品目分類表」の品\n類を参考にして下さい。",null,null,null,null,"うち輸入（トン）",null,null,null,null,null,null,null,null,null,null,null,null,null,null,null,null,null,null,"11","埼　玉",null,"％","35","山　口",null,null,"％",null,null,"10月",null,null,null,"％"]
[null,null,null,null,null,null,null,null,null,null,null,null,null,null,null,null,null,null,null,null,null,null,null,null,null,null,"12","千　葉",null,"％","36","徳　島",null,null,"％",null,null,"11月",null,null,null,"％"]
[null,null,null,null,null,null,null,null,null,null,null,null,null,null,null,null,null,null,null,null,null,null,null,null,null,null,"13","東　京",null,"％","37","香　川",null,null,"％",null,null,"12月",null,null,null,"％"]
[null,null,null,null,null,null,null,null,null,null,null,null,null,null,null,null,null,null,null,null,null,null,null,null,null,null,"14","神奈川",null,"％","38","愛　媛",null,null,"％",null,null,"１月",null,null,null,"％"]
[null,null,null,null,null,null,null,null,null,null,null,null,null,null,null,null,null,null,null,null,null,null,null,null,null,null,"15","新　潟",null,"％","39","高　知",null,null,"％",null,null,"２月",null,null,null,"％"]
[null,null,null,null,null,null,null,null,null,null,null,null,null,null,null,null,null,null,null,null,null,null,null,null,null,null,"16","富　山",null,"％","40","福　岡",null,null,"％",null,null,"３月",null,null,null,"％"]
[null,null,null,null,null,null,null,null,null,null,null,null,null,null,null,null,null,null,null,null,null,null,null,null,null,null,"17","石　川",null,"％","41","佐　賀",null,null,"％",null,null,"合計",null,0,null,"％"]
[null,null,"合　　　　計",null,{"$f":"SUM(E34:G39)","v":0},null,null,{"$f":"SUM(H34:J39)","v":0},null,null,null,null,null,null,null,null,null,null,null,null,null,null,null,null,null,null,"18","福　井",null,"％","42","長　崎",null,null,"％"]
[null,null,null,null,null,null,null,null,null,null,null,null,null,null,null,null,null,null,null,null,null,null,null,null,null,null,"19","山　梨",null,"％","43","熊　本",null,null,"％"]
[null,"問３. 出荷・入荷（国内輸送）に際して、鉄道・海運・航空および高速道路を利用している場合、\n　　   その主な利用鉄道貨物駅、港湾、空港、インターチェンジ名を右の\"問3を入力する\"ボタンを押してご記入下さい。\n　     また、輸出入を行っている場合も、同様にその主な輸出（入）港、輸出（入）空港名を右のボタンを押してご記入下さい。"]
[null,null,null,null,null,null,null,null,null,null,null,null,null,null,null,null,null,null,null,null,null,null,null,null,null,null,"20","長　野",null,"％","44","大　分",null,null,"％"]
[]
[null,null,null,null,null,null,null,null,null,null,null,null,null,null,null,null,null,null,null,null,null,null,null,null,null,null,"21","岐　阜",null,"％","45","宮　崎",null,null,"％"]
[null,"①出荷・入荷（国内輸送）に伴う利用施設",null,null,null,null,null,null,null,null,null,null,null,null,"②輸出入に伴う利用施設"]
[null,null,null,null,null,null,null,null,null,null,null,null,null,null,null,null,null,null,null,null,null,null,null,null,null,null,"22","静　岡",null,"％","46","鹿児島",null,null,"％"]
[null,"　　　 　 施設\n区分",null,"鉄道貨物駅","港　　湾",null,null,"空　　港",null,null,"高速道路\nインターチェンジ",null,null,null,"　　　　 施設\n区分",null,"港　　湾",null,null,null,null,"空　　港"]
[null,null,null,null,null,null,null,null,null,null,null,null,null,null,null,null,null,null,null,null,null,null,null,null,null,null,"23","愛　知",null,"％","47","沖　縄",null,null,"％"]
[null,"出　荷",null,null,null,null,null,null,null,null,null,null,null,null,"輸　出"]
[null,null,null,null,null,null,null,null,null,null,null,null,null,null,null,null,null,null,null,null,null,null,null,null,null,null,"24","三　重",null,"％","合 　計",null,0,null,"％"]
[null,"入　荷",null,null,null,null,null,null,null,null,null,null,null,null,"輸　入"]

{"sheet":"record","index":1,"n_rows":6,"n_cols":186,"rows_kept":6,"cut":false,"hidden":true,"merged":[[1,4,3,13],[1,14,3,14],[2,15,2,94],[3,15,3,22],[3,23,3,30],[3,31,3,38],[3,39,3,46],[3,47,3,54],[3,55,3,62],[3,63,3,70],[3,71,3,78],[3,79,3,86],[3,87,3,94],[1,15,1,114],[3,95,3,96],[3,97,3,98],[1,174,3,185],[3,109,3,110],[3,111,3,112],[3,113,3,114],[1,115,2,126],[3,115,3,118],[3,119,3,122],[3,123,3,124],[3,125,3,126],[1,127,3,173],[2,95,2,114],[3,99,3,100],[3,101,3,102],[3,103,3,104],[3,105,3,106],[3,107,3,108]]}
[1,2,3,4,5,6,7,8,9,10,11,12,13,14,15,16,17,18,19,20,21,22,23,24,25,26,27,28,29,30,31,32,33,34,35,36,37,38,39,40,41,42,43,44,45,46,47,48,49,50,51,52,53,54,55,56,57,58,59,60,61,62,63,64,65,66,67,68,69,70,71,72,73,74,75,76,77,78,79,80,81,82,83,84,85,86,87,88,89,90,91,92,93,94,95,96,97,98,99,100,101,102,103,104,105,106,107,108,109,110,111,112,113,114,115,116,117,118,119,120,121,122,123,124,125,126,127,128,129,130,131,132,133,134,135,136,137,138,139,140,141,142,143,144,145,146,147,148,149,150,151,152,153,154,155,156,157,158,159,160,161,162,163,164,165,166,167,168,169,170,171,172,173,174,175,176,177,178,179,180,181,182,183,184,185,186]
[null,null,null,null,"問1-1",null,null,null,null,null,null,null,null,null,"問1-2","問2",null,null,null,null,null,null,null,null,null,null,null,null,null,null,null,null,null,null,null,null,null,null,null,null,null,null,null,null,null,null,null,null,null,null,null,null,null,null,null,null,null,null,null,null,null,null,null,null,null,null,null,null,null,null,null,null,null,null,null,null,null,null,null,null,null,null,null,null,null,null,null,null,null,null,null,null,null,null,null,null,null,null,null,null,null,null,null,null,null,null,null,null,null,null,null,null,null,null,null,"問3",null,null,null,null,null,null,null,null,null,null,null,"問4",null,null,null,null,null,null,null,null,null,null,null,null,null,null,null,null,null,null,null,null,null,null,null,null,null,null,null,null,null,null,null,null,null,null,null,null,null,null,null,null,null,null,null,null,null,null,"問5"]
[null,null,null,null,null,null,null,null,null,null,null,null,null,null,null,"出荷",null,null,null,null,null,null,null,null,null,null,null,null,null,null,null,null,null,null,null,null,null,null,null,null,null,null,null,null,null,null,null,null,null,null,null,null,null,null,null,null,null,null,null,null,null,null,null,null,null,null,null,null,null,null,null,null,null,null,null,null,null,null,null,null,null,null,null,null,null,null,null,null,null,null,null,null,null,null,null,"入荷"]
[null,null,null,null,null,null,null,null,null,null,null,null,null,null,null,"農水産品",null,null,null,null,null,null,null,"林産品",null,null,null,null,null,null,null,"鉱産品",null,null,null,null,null,null,null,"金属機械工業品",null,null,null,null,null,null,null,"化学工業品",null,null,null,null,null,null,null,"軽工業品",null,null,null,null,null,null,null,"雑工業品",null,null,null,null,null,null,null,"排出物",null,null,null,null,null,null,null,"特殊品",null,null,null,null,null,null,null,"全品類",null,null,null,null,null,null,null,"農水産品",null,"林産品",null,"鉱産品",null,"金属機械工業品",null,"化学工業品",null,"軽工業品",null,"雑工業品",null,"排出物",null,"特殊品",null,"全品類",null,"出荷",null,null,null,"入荷",null,null,null,"輸出",null,"輸入"]
["県No","業種No","事業所No","その他No","事業所名","事業所所在地","電話番号","従業者数","敷地面積","操業開始元号","操業開始年","回答者名","売上金額","担当部門","出荷・入荷有無","重量","うち輸出","鉄道","自家用トラック","営業用トラック","海運","航空","その他","重量","うち輸出","鉄道","自家用トラック","営業用トラック","海運","航空","その他","重量","うち輸出","鉄道","自家用トラック","営業用トラック","海運","航空","その他","重量","うち輸出","鉄道","自家用トラック","営業用トラック","海運","航空","その他","重量","うち輸出","鉄道","自家用トラック","営業用トラック","海運","航空","その他","重量","うち輸出","鉄道","自家用トラック","営業用トラック","海運","航空","その他","重量","うち輸出","鉄道","自家用トラック","営業用トラック","海運","航空","その他","重量","うち輸出","鉄道","自家用トラック","営業用トラック","海運","航空","その他","重量","うち輸出","鉄道","自家用トラック","営業用トラック","海運","航空","その他","重量","うち輸出","鉄道","自家用トラック","営業用トラック","海運","航空","その他","重量","うち輸出","重量","うち輸出","重量","うち輸出","重量","うち輸出","重量","うち輸出","重量","うち輸出","重量","うち輸出","重量","うち輸出","重量","うち輸出","重量","うち輸出","鉄道駅","港湾","空港","IC","鉄道駅","港湾","空港","IC","港湾","空港","港湾","空港","北海道","青森","岩　手","宮　城","秋　田","山　形","福　島","茨　城","栃　木","群　馬","埼　玉","千　葉","東　京","神奈川","新　潟","富　山","石　川","福　井","山　梨","長　野","岐　阜","静　岡","愛　知","三　重","滋　賀","京　都","大　阪","兵　庫","奈　良","和歌山","鳥　取","島　根","岡　山","広　島","山　口","徳　島","香　川","愛　媛","高　知","福　岡","佐　賀","長　崎","熊　本","大　分","宮　崎","鹿児島","沖　縄","4月","5月","6月","7月","8月","9月","10月","11月","12月","1月","2月","3月"]
[{"$f":"IF(入力!AJ5 = \"\",\"\",入力!AJ5)","v":""},{"$f":"IF(入力!AK5 = \"\",\"\",入力!AK5)","v":""},{"$f":"IF(入力!AM5 = \"\",\"\",入力!AM5)","v":""},{"$f":"IF(入力!AO5 = \"\",\"\",入力!AO5)","v":""},{"$f":"IF(入力!D8 = \"\",\"\",入力!D8)","v":""},{"$f":"IF(入力!D10 = \"\",\"\",入力!D10)","v":""},{"$f":"IF(入力!E12 = \"\",\"\",入力!E12) & IF(入力!G12 = \"\",\"\",入力!G12) & IF(入力!J12 = \"\",\"\",入力!J12)","v":""},{"$f":"IF(入力!O8 = \"\",\"\",入力!O8)","v":""},{"$f":"IF(入力!O10 = \"\",\"\",入力!O10)","v":""},{"$f":"IF(入力!X10 = \"元号をこちらで選択してください\",\"\",入力!X10)","v":""},{"$f":"IF(入力!AC10 = \"\",\"\",入力!AC10)","v":""},{"$f":"IF(入力!AH10 = \"\",\"\",入力!AH10)","v":""},{"$f":"IF(入力!Z8 = \"\",\"\",入力!Z8)","v":""},{"$f":"IF(入力!AH8 = \"\",\"\",入力!AH8)","v":""},{"$f":"IF(入力!S16 = \"\",\"\",入力!S16)","v":""},{"$f":"IF(P7=\"\",\"\",IF(INDIRECT(\"入力!\"&P7)=\"\",\"\",INDIRECT(\"入力!\"&P7)))","v":""},{"$f":"IF(Q7=\"\",\"\",IF(INDIRECT(\"入力!\"&Q7)=\"\",\"\",INDIRECT(\"入力!\"&Q7)))","v":""},{"$f":"IF(R7=\"\",\"\",IF(INDIRECT(\"入力!\"&R7)=\"\",\"\",INDIRECT(\"入力!\"&R7)))","v":""},{"$f":"IF(S7=\"\",\"\",IF(INDIRECT(\"入力!\"&S7)=\"\",\"\",INDIRECT(\"入力!\"&S7)))","v":""},{"$f":"IF(T7=\"\",\"\",IF(INDIRECT(\"入力!\"&T7)=\"\",\"\",INDIRECT(\"入力!\"&T7)))","v":""},{"$f":"IF(U7=\"\",\"\",IF(INDIRECT(\"入力!\"&U7)=\"\",\"\",INDIRECT(\"入力!\"&U7)))","v":""},{"$f":"IF(V7=\"\",\"\",IF(INDIRECT(\"入力!\"&V7)=\"\",\"\",INDIRECT(\"入力!\"&V7)))","v":""},{"$f":"IF(W7=\"\",\"\",IF(INDIRECT(\"入力!\"&W7)=\"\",\"\",INDIRECT(\"入力!\"&W7)))","v":""},{"$f":"IF(X7=\"\",\"\",IF(INDIRECT(\"入力!\"&X7)=\"\",\"\",INDIRECT(\"入力!\"&X7)))","v":""},{"$f":"IF(Y7=\"\",\"\",IF(INDIRECT(\"入力!\"&Y7)=\"\",\"\",INDIRECT(\"入力!\"&Y7)))","v":""},{"$f":"IF(Z7=\"\",\"\",IF(INDIRECT(\"入力!\"&Z7)=\"\",\"\",INDIRECT(\"入力!\"&Z7)))","v":""},{"$f":"IF(AA7=\"\",\"\",IF(INDIRECT(\"入力!\"&AA7)=\"\",\"\",INDIRECT(\"入力!\"&AA7)))","v":""},{"$f":"IF(AB7=\"\",\"\",IF(INDIRECT(\"入力!\"&AB7)=\"\",\"\",INDIRECT(\"入力!\"&AB7)))","v":""},{"$f":"IF(AC7=\"\",\"\",IF(INDIRECT(\"入力!\"&AC7)=\"\",\"\",INDIRECT(\"入力!\"&AC7)))","v":""},{"$f":"IF(AD7=\"\",\"\",IF(INDIRECT(\"入力!\"&AD7)=\"\",\"\",INDIRECT(\"入力!\"&AD7)))","v":""},{"$f":"IF(AE7=\"\",\"\",IF(INDIRECT(\"入力!\"&AE7)=\"\",\"\",INDIRECT(\"入力!\"&AE7)))","v":""},{"$f":"IF(AF7=\"\",\"\",IF(INDIRECT(\"入力!\"&AF7)=\"\",\"\",INDIRECT(\"入力!\"&AF7)))","v":""},{"$f":"IF(AG7=\"\",\"\",IF(INDIRECT(\"入力!\"&AG7)=\"\",\"\",INDIRECT(\"入力!\"&AG7)))","v":""},{"$f":"IF(AH7=\"\",\"\",IF(INDIRECT(\"入力!\"&AH7)=\"\",\"\",INDIRECT(\"入力!\"&AH7)))","v":""},{"$f":"IF(AI7=\"\",\"\",IF(INDIRECT(\"入力!\"&AI7)=\"\",\"\",INDIRECT(\"入力!\"&AI7)))","v":""},{"$f":"IF(AJ7=\"\",\"\",IF(INDIRECT(\"入力!\"&AJ7)=\"\",\"\",INDIRECT(\"入力!\"&AJ7)))","v":""},{"$f":"IF(AK7=\"\",\"\",IF(INDIRECT(\"入力!\"&AK7)=\"\",\"\",INDIRECT(\"入力!\"&AK7)))","v":""},{"$f":"IF(AL7=\"\",\"\",IF(INDIRECT(\"入力!\"&AL7)=\"\",\"\",INDIRECT(\"入力!\"&AL7)))","v":""},{"$f":"IF(AM7=\"\",\"\",IF(INDIRECT(\"入力!\"&AM7)=\"\",\"\",INDIRECT(\"入力!\"&AM7)))","v":""},{"$f":"IF(AN7=\"\",\"\",IF(INDIRECT(\"入力!\"&AN7)=\"\",\"\",INDIRECT(\"入力!\"&AN7)))","v":""},{"$f":"IF(AO7=\"\",\"\",IF(INDIRECT(\"入力!\"&AO7)=\"\",\"\",INDIRECT(\"入力!\"&AO7)))","v":""},{"$f":"IF(AP7=\"\",\"\",IF(INDIRECT(\"入力!\"&AP7)=\"\",\"\",INDIRECT(\"入力!\"&AP7)))","v":""},{"$f":"IF(AQ7=\"\",\"\",IF(INDIRECT(\"入力!\"&AQ7)=\"\",\"\",INDIRECT(\"入力!\"&AQ7)))","v":""},{"$f":"IF(AR7=\"\",\"\",IF(INDIRECT(\"入力!\"&AR7)=\"\",\"\",INDIRECT(\"入力!\"&AR7)))","v":""},{"$f":"IF(AS7=\"\",\"\",IF(INDIRECT(\"入力!\"&AS7)=\"\",\"\",INDIRECT(\"入力!\"&AS7)))","v":""},{"$f":"IF(AT7=\"\",\"\",IF(INDIRECT(\"入力!\"&AT7)=\"\",\"\",INDIRECT(\"入力!\"&AT7)))","v":""},{"$f":"IF(AU7=\"\",\"\",IF(INDIRECT(\"入力!\"&AU7)=\"\",\"\",INDIRECT(\"入力!\"&AU7)))","v":""},{"$f":"IF(AV7=\"\",\"\",IF(INDIRECT(\"入力!\"&AV7)=\"\",\"\",INDIRECT(\"入力!\"&AV7)))","v":""},{"$f":"IF(AW7=\"\",\"\",IF(INDIRECT(\"入力!\"&AW7)=\"\",\"\",INDIRECT(\"入力!\"&AW7)))","v":""},{"$f":"IF(AX7=\"\",\"\",IF(INDIRECT(\"入力!\"&AX7)=\"\",\"\",INDIRECT(\"入力!\"&AX7)))","v":""},{"$f":"IF(AY7=\"\",\"\",IF(INDIRECT(\"入力!\"&AY7)=\"\",\"\",INDIRECT(\"入力!\"&AY7)))","v":""},{"$f":"IF(AZ7=\"\",\"\",IF(INDIRECT(\"入力!\"&AZ7)=\"\",\"\",INDIRECT(\"入力!\"&AZ7)))","v":""},{"$f":"IF(BA7=\"\",\"\",IF(INDIRECT(\"入力!\"&BA7)=\"\",\"\",INDIRECT(\"入力!\"&BA7)))","v":""},{"$f":"IF(BB7=\"\",\"\",IF(INDIRECT(\"入力!\"&BB7)=\"\",\"\",INDIRECT(\"入力!\"&BB7)))","v":""},{"$f":"IF(BC7=\"\",\"\",IF(INDIRECT(\"入力!\"&BC7)=\"\",\"\",INDIRECT(\"入力!\"&BC7)))","v":""},{"$f":"IF(BD7=\"\",\"\",IF(INDIRECT(\"入力!\"&BD7)=\"\",\"\",INDIRECT(\"入力!\"&BD7)))","v":""},{"$f":"IF(BE7=\"\",\"\",IF(INDIRECT(\"入力!\"&BE7)=\"\",\"\",INDIRECT(\"入力!\"&BE7)))","v":""},{"$f":"IF(BF7=\"\",\"\",IF(INDIRECT(\"入力!\"&BF7)=\"\",\"\",INDIRECT(\"入力!\"&BF7)))","v":""},{"$f":"IF(BG7=\"\",\"\",IF(INDIRECT(\"入力!\"&BG7)=\"\",\"\",INDIRECT(\"入力!\"&BG7)))","v":""},{"$f":"IF(BH7=\"\",\"\",IF(INDIRECT(\"入力!\"&BH7)=\"\",\"\",INDIRECT(\"入力!\"&BH7)))","v":""},{"$f":"IF(BI7=\"\",\"\",IF(INDIRECT(\"入力!\"&BI7)=\"\",\"\",INDIRECT(\"入力!\"&BI7)))","v":""},{"$f":"IF(BJ7=\"\",\"\",IF(INDIRECT(\"入力!\"&BJ7)=\"\",\"\",INDIRECT(\"入力!\"&BJ7)))","v":""},{"$f":"IF(BK7=\"\",\"\",IF(INDIRECT(\"入力!\"&BK7)=\"\",\"\",INDIRECT(\"入力!\"&BK7)))","v":""},{"$f":"IF(BL7=\"\",\"\",IF(INDIRECT(\"入力!\"&BL7)=\"\",\"\",INDIRECT(\"入力!\"&BL7)))","v":""},{"$f":"IF(BM7=\"\",\"\",IF(INDIRECT(\"入力!\"&BM7)=\"\",\"\",INDIRECT(\"入力!\"&BM7)))","v":""},{"$f":"IF(BN7=\"\",\"\",IF(INDIRECT(\"入力!\"&BN7)=\"\",\"\",INDIRECT(\"入力!\"&BN7)))","v":""},{"$f":"IF(BO7=\"\",\"\",IF(INDIRECT(\"入力!\"&BO7)=\"\",\"\",INDIRECT(\"入力!\"&BO7)))","v":""},{"$f":"IF(BP7=\"\",\"\",IF(INDIRECT(\"入力!\"&BP7)=\"\",\"\",INDIRECT(\"入力!\"&BP7)))","v":""},{"$f":"IF(BQ7=\"\",\"\",IF(INDIRECT(\"入力!\"&BQ7)=\"\",\"\",INDIRECT(\"入力!\"&BQ7)))","v":""},{"$f":"IF(BR7=\"\",\"\",IF(INDIRECT(\"入力!\"&BR7)=\"\",\"\",INDIRECT(\"入力!\"&BR7)))","v":""},{"$f":"IF(BS7=\"\",\"\",IF(INDIRECT(\"入力!\"&BS7)=\"\",\"\",INDIRECT(\"入力!\"&BS7)))","v":""},{"$f":"IF(BT7=\"\",\"\",IF(INDIRECT(\"入力!\"&BT7)=\"\",\"\",INDIRECT(\"入力!\"&BT7)))","v":""},{"$f":"IF(BU7=\"\",\"\",IF(INDIRECT(\"入力!\"&BU7)=\"\",\"\",INDIRECT(\"入力!\"&BU7)))","v":""},{"$f":"IF(BV7=\"\",\"\",IF(INDIRECT(\"入力!\"&BV7)=\"\",\"\",INDIRECT(\"入力!\"&BV7)))","v":""},{"$f":"IF(BW7=\"\",\"\",IF(INDIRECT(\"入力!\"&BW7)=\"\",\"\",INDIRECT(\"入力!\"&BW7)))","v":""},{"$f":"IF(BX7=\"\",\"\",IF(INDIRECT(\"入力!\"&BX7)=\"\",\"\",INDIRECT(\"入力!\"&BX7)))","v":""},{"$f":"IF(BY7=\"\",\"\",IF(INDIRECT(\"入力!\"&BY7)=\"\",\"\",INDIRECT(\"入力!\"&BY7)))","v":""},{"$f":"IF(BZ7=\"\",\"\",IF(INDIRECT(\"入力!\"&BZ7)=\"\",\"\",INDIRECT(\"入力!\"&BZ7)))","v":""},{"$f":"IF(CA7=\"\",\"\",IF(INDIRECT(\"入力!\"&CA7)=\"\",\"\",INDIRECT(\"入力!\"&CA7)))","v":""},{"$f":"IF(CB7=\"\",\"\",IF(INDIRECT(\"入力!\"&CB7)=\"\",\"\",INDIRECT(\"入力!\"&CB7)))","v":""},{"$f":"IF(CC7=\"\",\"\",IF(INDIRECT(\"入力!\"&CC7)=\"\",\"\",INDIRECT(\"入力!\"&CC7)))","v":""},{"$f":"IF(CD7=\"\",\"\",IF(INDIRECT(\"入力!\"&CD7)=\"\",\"\",INDIRECT(\"入力!\"&CD7)))","v":""},{"$f":"IF(CE7=\"\",\"\",IF(INDIRECT(\"入力!\"&CE7)=\"\",\"\",INDIRECT(\"入力!\"&CE7)))","v":""},{"$f":"IF(CF7=\"\",\"\",IF(INDIRECT(\"入力!\"&CF7)=\"\",\"\",INDIRECT(\"入力!\"&CF7)))","v":""},{"$f":"IF(CG7=\"\",\"\",IF(INDIRECT(\"入力!\"&CG7)=\"\",\"\",INDIRECT(\"入力!\"&CG7)))","v":""},{"$f":"IF(CH7=\"\",\"\",IF(INDIRECT(\"入力!\"&CH7)=\"\",\"\",INDIRECT(\"入力!\"&CH7)))","v":""},{"$f":"IF(CI7=\"\",\"\",IF(INDIRECT(\"入力!\"&CI7)=\"\",\"\",INDIRECT(\"入力!\"&CI7)))","v":""},{"$f":"IF(CJ7=\"\",\"\",IF(INDIRECT(\"入力!\"&CJ7)=\"\",\"\",INDIRECT(\"入力!\"&CJ7)))","v":""},{"$f":"IF(CK7=\"\",\"\",IF(INDIRECT(\"入力!\"&CK7)=\"\",\"\",INDIRECT(\"入力!\"&CK7)))","v":""},{"$f":"IF(CL7=\"\",\"\",IF(INDIRECT(\"入力!\"&CL7)=\"\",\"\",INDIRECT(\"入力!\"&CL7)))","v":""},{"$f":"IF(CM7=\"\",\"\",IF(INDIRECT(\"入力!\"&CM7)=\"\",\"\",INDIRECT(\"入力!\"&CM7)))","v":""},{"$f":"IF(CN7=\"\",\"\",IF(INDIRECT(\"入力!\"&CN7)=\"\",\"\",INDIRECT(\"入力!\"&CN7)))","v":""},{"$f":"IF(CO7=\"\",\"\",IF(INDIRECT(\"入力!\"&CO7)=\"\",\"\",INDIRECT(\"入力!\"&CO7)))","v":""},{"$f":"IF(CP7=\"\",\"\",IF(INDIRECT(\"入力!\"&CP7)=\"\",\"\",INDIRECT(\"入力!\"&CP7)))","v":""},{"$f":"IF(CQ7=\"\",\"\",IF(INDIRECT(\"入力!\"&CQ7)=\"\",\"\",INDIRECT(\"入力!\"&CQ7)))","v":""},{"$f":"IF(CR7=\"\",\"\",IF(INDIRECT(\"入力!\"&CR7)=\"\",\"\",INDIRECT(\"入力!\"&CR7)))","v":""},{"$f":"IF(CS7=\"\",\"\",IF(INDIRECT(\"入力!\"&CS7)=\"\",\"\",INDIRECT(\"入力!\"&CS7)))","v":""},{"$f":"IF(CT7=\"\",\"\",IF(INDIRECT(\"入力!\"&CT7)=\"\",\"\",INDIRECT(\"入力!\"&CT7)))","v":""},{"$f":"IF(CU7=\"\",\"\",IF(INDIRECT(\"入力!\"&CU7)=\"\",\"\",INDIRECT(\"入力!\"&CU7)))","v":""},{"$f":"IF(CV7=\"\",\"\",IF(INDIRECT(\"入力!\"&CV7)=\"\",\"\",INDIRECT(\"入力!\"&CV7)))","v":""},{"$f":"IF(CW7=\"\",\"\",IF(INDIRECT(\"入力!\"&CW7)=\"\",\"\",INDIRECT(\"入力!\"&CW7)))","v":""},{"$f":"IF(CX7=\"\",\"\",IF(INDIRECT(\"入力!\"&CX7)=\"\",\"\",INDIRECT(\"入力!\"&CX7)))","v":""},{"$f":"IF(CY7=\"\",\"\",IF(INDIRECT(\"入力!\"&CY7)=\"\",\"\",INDIRECT(\"入力!\"&CY7)))","v":""},{"$f":"IF(CZ7=\"\",\"\",IF(INDIRECT(\"入力!\"&CZ7)=\"\",\"\",INDIRECT(\"入力!\"&CZ7)))","v":""},{"$f":"IF(DA7=\"\",\"\",IF(INDIRECT(\"入力!\"&DA7)=\"\",\"\",INDIRECT(\"入力!\"&DA7)))","v":""},{"$f":"IF(DB7=\"\",\"\",IF(INDIRECT(\"入力!\"&DB7)=\"\",\"\",INDIRECT(\"入力!\"&DB7)))","v":""},{"$f":"IF(DC7=\"\",\"\",IF(INDIRECT(\"入力!\"&DC7)=\"\",\"\",INDIRECT(\"入力!\"&DC7)))","v":""},{"$f":"IF(DD7=\"\",\"\",IF(INDIRECT(\"入力!\"&DD7)=\"\",\"\",INDIRECT(\"入力!\"&DD7)))","v":""},{"$f":"IF(DE7=\"\",\"\",IF(INDIRECT(\"入力!\"&DE7)=\"\",\"\",INDIRECT(\"入力!\"&DE7)))","v":""},{"$f":"IF(DF7=\"\",\"\",IF(INDIRECT(\"入力!\"&DF7)=\"\",\"\",INDIRECT(\"入力!\"&DF7)))","v":""},{"$f":"IF(DG7=\"\",\"\",IF(INDIRECT(\"入力!\"&DG7)=\"\",\"\",INDIRECT(\"入力!\"&DG7)))","v":""},{"$f":"IF(DH7=\"\",\"\",IF(INDIRECT(\"入力!\"&DH7)=\"\",\"\",INDIRECT(\"入力!\"&DH7)))","v":""},{"$f":"IF(DI7=\"\",\"\",IF(INDIRECT(\"入力!\"&DI7)=\"\",\"\",INDIRECT(\"入力!\"&DI7)))","v":""},{"$f":"IF(DJ7=\"\",\"\",IF(INDIRECT(\"入力!\"&DJ7)=\"\",\"\",INDIRECT(\"入力!\"&DJ7)))","v":""},{"$f":"IF(DK7=\"\",\"\",IF(INDIRECT(\"入力!\"&DK7)=\"\",\"\",INDIRECT(\"入力!\"&DK7)))","v":""},null,null,null,null,null,null,null,null,null,null,null,null,{"$f":"IF(入力!AC20 = \"\",\"\",入力!AC20)","v":""},{"$f":"IF(入力!AC23 = \"\",\"\",入力!AC23)","v":""},{"$f":"IF(入力!AC24 = \"\",\"\",入力!AC24)","v":""},{"$f":"IF(入力!AC25 = \"\",\"\",入力!AC25)","v":""},{"$f":"IF(入力!AC26 = \"\",\"\",入力!AC26)","v":""},{"$f":"IF(入力!AC27 = \"\",\"\",入力!AC27)","v":""},{"$f":"IF(入力!AC28 = \"\",\"\",入力!AC28)","v":""},{"$f":"IF(入力!AC29 = \"\",\"\",入力!AC29)","v":""},{"$f":"IF(入力!AC30 = \"\",\"\",入力!AC30)","v":""},{"$f":"IF(入力!AC31 = \"\",\"\",入力!AC31)","v":""},{"$f":"IF(入力!AC33 = \"\",\"\",入力!AC33)","v":""},{"$f":"IF(入力!AC34 = \"\",\"\",入力!AC34)","v":""},{"$f":"IF(入力!AC35 = \"\",\"\",入力!AC35)","v":""},{"$f":"IF(入力!AC36 = \"\",\"\",入力!AC36)","v":""},{"$f":"IF(入力!AC37 = \"\",\"\",入力!AC37)","v":""},{"$f":"IF(入力!AC38 = \"\",\"\",入力!AC38)","v":""},{"$f":"IF(入力!AC39 = \"\",\"\",入力!AC39)","v":""},{"$f":"IF(入力!AC40 = \"\",\"\",入力!AC40)","v":""},{"$f":"IF(入力!AC41 = \"\",\"\",入力!AC41)","v":""},{"$f":"IF(入力!AC43 = \"\",\"\",入力!AC43)","v":""},{"$f":"IF(入力!AC45 = \"\",\"\",入力!AC45)","v":""},{"$f":"IF(入力!AC47 = \"\",\"\",入力!AC47)","v":""},{"$f":"IF(入力!AC49 = \"\",\"\",入力!AC49)","v":""},{"$f":"IF(入力!AC51 = \"\",\"\",入力!AC51)","v":""},{"$f":"IF(入力!AG20 = \"\",\"\",入力!AG20)","v":""},{"$f":"IF(入力!AG23 = \"\",\"\",入力!AG23)","v":""},{"$f":"IF(入力!AG24 = \"\",\"\",入力!AG24)","v":""},{"$f":"IF(入力!AG25 = \"\",\"\",入力!AG25)","v":""},{"$f":"IF(入力!AG26 = \"\",\"\",入力!AG26)","v":""},{"$f":"IF(入力!AG27 = \"\",\"\",入力!AG27)","v":""},{"$f":"IF(入力!AG28 = \"\",\"\",入力!AG28)","v":""},{"$f":"IF(入力!AG29 = \"\",\"\",入力!AG29)","v":""},{"$f":"IF(入力!AG30 = \"\",\"\",入力!AG30)","v":""},{"$f":"IF(入力!AG31 = \"\",\"\",入力!AG31)","v":""},{"$f":"IF(入力!AG33 = \"\",\"\",入力!AG33)","v":""},{"$f":"IF(入力!AG34 = \"\",\"\",入力!AG34)","v":""},{"$f":"IF(入力!AG35 = \"\",\"\",入力!AG35)","v":""},{"$f":"IF(入力!AG36 = \"\",\"\",入力!AG36)","v":""},{"$f":"IF(入力!AG37 = \"\",\"\",入力!AG37)","v":""},{"$f":"IF(入力!AG38 = \"\",\"\",入力!AG38)","v":""},{"$f":"IF(入力!AG39 = \"\",\"\",入力!AG39)","v":""},{"$f":"IF(入力!AG40 = \"\",\"\",入力!AG40)","v":""},{"$f":"IF(入力!AG41 = \"\",\"\",入力!AG41)","v":""},{"$f":"IF(入力!AG43 = \"\",\"\",入力!AG43)","v":""},{"$f":"IF(入力!AG45 = \"\",\"\",入力!AG45)","v":""},{"$f":"IF(入力!AG47 = \"\",\"\",入力!AG47)","v":""},{"$f":"IF(入力!AG49 = \"\",\"\",入力!AG49)","v":""},{"$f":"IF(入力!AN26 = \"\",\"\",入力!AN26)","v":""},{"$f":"IF(入力!AN27 = \"\",\"\",入力!AN27)","v":""},{"$f":"IF(入力!AN28 = \"\",\"\",入力!AN28)","v":""},{"$f":"IF(入力!AN29 = \"\",\"\",入力!AN29)","v":""},{"$f":"IF(入力!AN30 = \"\",\"\",入力!AN30)","v":""},{"$f":"IF(入力!AN31 = \"\",\"\",入力!AN31)","v":""},{"$f":"IF(入力!AN33 = \"\",\"\",入力!AN33)","v":""},{"$f":"IF(入力!AN34 = \"\",\"\",入力!AN34)","v":""},{"$f":"IF(入力!AN35 = \"\",\"\",入力!AN35)","v":""},{"$f":"IF(入力!AN36 = \"\",\"\",入力!AN36)","v":""},{"$f":"IF(入力!AN37 = \"\",\"\",入力!AN37)","v":""},{"$f":"IF(入力!AN38 = \"\",\"\",入力!AN38)","v":""}]

{"sheet":"入力補助","index":2,"n_rows":12,"n_cols":3,"rows_kept":12,"cut":false,"hidden":true,"merged":[]}
["年号","番号選択","品類"]
[]
["昭和34年以前",1,"農水産品"]
["昭和",2,"林産品"]
["平成",null,"鉱産品"]
["令和",null,"金属機械工業品"]
[null,null,"化学工業品"]
[null,null,"軽工業品"]
[null,null,"雑工業品"]
[null,null,"排出物"]
[null,null,"特殊品"]
[null,null,"全品類"]

{"sheet":"品類補助","index":3,"n_rows":11,"n_cols":15,"rows_kept":11,"cut":false,"hidden":true,"merged":[]}
["CODE","品　　　類","出荷(入力)","入荷(入力)","出荷(出力)","入荷(出力)",null,"E","H","M","O","Q","S","V","X"]
[1,"農水産品","C24","C34","P7:W7","CR7:CS7"]
[2,"林産品","C25","C35","X7:AE7","CT7:CU7"]
[3,"鉱産品","C26","C36","AF7:AM7","CV7:CW7"]
[4,"金属機械工業品","C27","C37","AN7:AU7","CX7:CY7"]
[5,"化学工業品","C28","C38","AV7:BC7","CZ7:DA7"]
[6,"軽工業品","C29","C39","BD7:BK7","DB7:DC7"]
[7,"雑工業品",null,null,"BL7:BS7","DD7:DE7"]
[8,"排出物",null,null,"BT7:CA7","DF7:DG7"]
[9,"特殊品",null,null,"CB7:CI7","DH7:DI7"]
[0,"全品類",null,null,"CJ7:CQ7","DJ7:DK7"]

{"sheet":"マクロ補助","index":4,"n_rows":33,"n_cols":11,"rows_kept":33,"cut":false,"hidden":true,"merged":[[0,0,1,0],[0,1,1,1]]}
[null,"操業開始年","問4","問5","問2"]
[null,null,null,null,"1行目","2行目","3行目","4行目","5行目","6行目"]
["トリガーセル","B10","I10:I33,J10:J32","K10:K21","C15:C20","D15:D20","E15:E20","F15:F20","G15:G20","H15:H20"]
["操作セル","B11","J33","K22","B15","B16","B17","B18","B19","B20"]
[]
["※トリガーセル:ダブルクリックをした際に対応したマクロが実行されるセル"]
["※操作セル:マクロを実行したのちに何らかの操作が行われるセル"]
[]
["○入力シート 対象セル"]
[null,"X10",null,null,null,null,null,null,"AC20","AG20","AN26"]
[null,"AC10",null,null,null,null,null,null,"AC23","AG23","AN27"]
[null,null,null,null,null,null,null,null,"AC24","AG24","AN28"]
[null,null,null,null,null,null,null,null,"AC25","AG25","AN29"]
[null,null,null,null,null,null,null,null,"AC26","AG26","AN30"]
[null,"K24","M24","M25","M26","M27","M28","M29","AC27","AG27","AN31"]
[null,"K25","O24","O25","O26","O27","O28","O29","AC28","AG28","AN33"]
[null,"K26","Q24","Q25","Q26","Q27","Q28","Q29","AC29","AG29","AN34"]
[null,"K27","S24","S25","S26","S27","S28","S29","AC30","AG30","AN35"]
[null,"K28","V24","V25","V26","V27","V28","V29","AC31","AG31","AN36"]
[null,"K29","X24","X25","X26","X27","X28","X29","AC33","AG33","AN37"]
[null,null,null,null,null,null,null,null,"AC34","AG34","AN38"]
[null,null,null,null,null,null,null,null,"AC35","AG35","AN39"]
[null,null,null,null,null,null,null,null,"AC36","AG36"]
[null,null,null,null,null,null,null,null,"AC37","AG37"]
[null,null,null,null,null,null,null,null,"AC38","AG38"]
[null,null,null,null,null,null,null,null,"AC39","AG39"]
[null,null,null,null,null,null,null,null,"AC40","AG40"]
[null,null,null,null,null,null,null,null,"AC41","AG41"]
[null,null,null,null,null,null,null,null,"AC43","AG43"]
[null,null,null,null,null,null,null,null,"AC45","AG45"]
[null,null,null,null,null,null,null,null,"AC47","AG47"]
[null,null,null,null,null,null,null,null,"AC49","AG49"]
[null,null,null,null,null,null,null,null,"AC51","AG51"]

{"sheet":"鉄道駅補助","index":5,"n_rows":321,"n_cols":51,"rows_kept":321,"cut":false,"hidden":true,"merged":[]}
["都道府県",null,"北海道","青森","岩手","宮城","秋田","山形","福島","茨城","栃木","群馬","埼玉","千葉","東京","神奈川","新潟","富山","石川","福井","山梨","長野","岐阜","静岡","愛知","三重","滋賀","京都","大阪","兵庫","和歌山","鳥取","島根","岡山","広島","山口","徳島","香川","愛媛","高知","福岡","佐賀","長崎","熊本","大分","宮崎","鹿児島","鉄道その他駅",null,"CODE","駅　名"]
["北海道",null,"帯広","八戸","一関","岩沼","羽後本荘ORS","山形ORS","郡山貨物ターミナル","土浦","小山","倉賀野","吹上","蘇我","越中島貨物","川崎貨物","二本木","越中大門","松任","敦賀","初狩","西上田","岐阜貨物ターミナル","伊東","豊橋ORS","富田","近江長岡","京都貨物","吹田貨物ターミナル","神戸貨物ターミナル","和歌山新営業所","湖山ORS","東松江新営業所","岡山貨物ターミナル","東福山","岩国","徳島ORS","高松","伊予三島","高知ORS","北九州貨物ターミナル","鳥栖貨物ターミナル","長崎ORS","熊本","西大分","延岡","川内","鉄道その他駅",null,"51012","帯広"]
["青森",null,"音別","八戸貨物","水沢","名取","横手新営業所","羽前水沢ORS","郡山","神立","宇都宮貨物ターミナル","高崎","熊谷貨物ターミナル","京葉臨海鉄道","新小岩信号場","神奈川臨海鉄道(川崎)","新井","富山貨物","金沢貨物ターミナル","南福井","石和温泉","坂城","穂積","沼津","豊川","東藤原","高月","日向町","大阪貨物ターミナル","兵庫",null,"伯耆大山","岡見","水島臨海鉄道","福山","下松",null,"高松貨物ターミナル","新居浜",null,"東小倉","鍋島","有田ORS","八代","鶴崎","南延岡","鹿児島貨物ターミナル",null,null,"51021","音別"]
["岩手",null,"釧路貨物","八戸臨海鉄道","六原ORS","仙台貨物ターミナル","秋田貨物","酒田港","東福島ORS","友部","宇都宮","八木原","岡部","千葉貨物","田端信号場","千鳥町","黒井","魚津",null,"芦原温泉","竜王","屋代","樽見鉄道","原","刈谷ORS","四日市","米原","福知山ORS","梅田","宝殿",null,"米子",null,"水島","糸崎","新南陽",null,"多度津","松山貨物",null,"浜小倉",null,null,null,null,"佐土原ORS",null,null,null,"51025","釧路貨物"]
["宮城",null,"中斜里ORS","北沼","北上","仙台臨海鉄道","秋田港",null,"広田","内原","宝積寺","渋川","新町","京葉市原","北王子","末広町","柏崎ORS","二塚",null,"敦賀港営業所",null,"川中島","美濃赤坂","吉原","笠寺","塩浜","守山",null,"徳庵","御着",null,null,null,"倉敷貨物ターミナル","広島貨物ターミナル","防府貨物新営業所",null,null,null,null,"黒崎",null,null,null,null,"都城ORS",null,null,null,"51120","中斜里ORS"]
["秋田",null,"近文","東青森","花巻空港","仙台港","秋田臨海鉄道",null,"会津若松ORS","水戸ORS","矢板ORS","安中","秩父鉄道","浜五井","隅田川","浮島町","南長岡","能町",null,null,null,"長野","乙女坂","岳南鉄道","名古屋臨海鉄道","南四日市","石山",null,"安治川口","姫路貨物",null,null,null,"東水島","大竹","宇部",null,null,null,null,"福岡貨物ターミナル",null,null,null,null,null,null,null,null,"51205","近文"]
["山形",null,"新旭川","弘前新営業所","盛岡貨物ターミナル","仙台北港","東能代",null,"塩川","勝田",null,null,"大宮","玉前","綾瀬","浜川崎","東三条","伏木",null,null,null,"北長野","多治見","富士","東港","鵜殿","膳所",null,"百済貨物ターミナル","西浜",null,null,null,null,null,"厚狭",null,null,null,null,"久留米",null,null,null,null,null,null,null,null,"51301","新旭川"]
["福島",null,"北旭川",null,"岩手開発鉄道","仙台埠頭","大館",null,"福島臨海鉄道","常陸多賀",null,null,"東鷲宮","甲子","金町","扇町","新津","高岡貨物",null,null,null,"岡谷新営業所",null,"静岡貨物","名古屋南貨物",null,null,null,null,null,null,null,null,null,null,"新下関",null,null,null,null,"苅田港",null,null,null,null,null,null,null,null,"51302","北旭川"]
["茨城",null,"名寄ORS",null,null,"仙台西港","小坂",null,"小名浜","日立",null,null,"羽生","前川","品川","安善","沼垂","速星",null,null,null,"辰野",null,"島田","知多",null,null,null,null,null,null,null,null,null,null,"下関",null,null,null,null,"大牟田ORS",null,null,null,null,null,null,null,null,"51310","名寄ORS"]
["栃木",null,"北見",null,null,"古川ORS",null,null,"新白河","川島",null,null,"羽生ORS","椎津","東京貨物ターミナル","大川","焼島","西富山",null,null,null,"塩尻",null,"磐田","昭和町",null,null,null,null,null,null,null,null,null,null,"宇部岬",null,null,null,null,null,null,null,null,null,null,null,null,null,"51420","北見"]
["群馬",null,"小樽築港ORS",null,null,"石巻港",null,null,null,"下館",null,null,"越谷貨物ターミナル","北袖","武蔵境","新芝浦","東新潟港",null,null,null,null,"村井",null,"西浜松","名古屋鉄道",null,null,null,null,null,null,null,null,null,null,"美祢",null,null,null,null,null,null,null,null,null,null,null,null,null,"51514","小樽築港ORS"]
["埼玉",null,"苗穂",null,null,null,null,null,null,"鹿島臨海鉄道",null,null,"新座貨物ターミナル","京葉久保田","中野","新興","新潟貨物ターミナル",null,null,null,null,"南松本",null,null,"名古屋貨物ターミナル",null,null,null,null,null,null,null,null,null,null,"重安",null,null,null,null,null,null,null,null,null,null,null,null,null,"51523","苗穂"]
["千葉",null,"札幌貨物ターミナル",null,null,null,null,null,null,"神栖",null,null,null,null,"八王子ORS","東高島","新崎",null,null,null,null,"元善光寺",null,null,"名古屋港",null,null,null,null,null,null,null,null,null,null,null,null,null,null,null,null,null,null,null,null,null,null,null,null,"51525","札幌貨物ターミナル"]
["東京",null,"茶志内",null,null,null,null,null,null,"奥野谷浜",null,null,null,null,"拝島","根岸","黒山",null,null,null,null,"沢渡",null,null,"清洲",null,null,null,null,null,null,null,null,null,null,null,null,null,null,null,null,null,null,null,null,null,null,null,null,"51537","茶志内"]
["神奈川",null,"滝川",null,null,null,null,null,null,null,null,null,null,null,null,"神奈川臨海鉄道(横浜)","新発田",null,null,null,null,null,null,null,"稲沢",null,null,null,null,null,null,null,null,null,null,null,null,null,null,null,null,null,null,null,null,null,null,null,null,"51543","滝川"]
["新潟",null,"島松",null,null,null,null,null,null,null,null,null,null,null,null,"横浜本牧","中条ORS",null,null,null,null,null,null,null,"半田埠頭",null,null,null,null,null,null,null,null,null,null,null,null,null,null,null,null,null,null,null,null,null,null,null,null,"51552","島松"]
["富山",null,"本輪西",null,null,null,null,null,null,null,null,null,null,null,null,"本牧埠頭","五日町",null,null,null,null,null,null,null,"東浦",null,null,null,null,null,null,null,null,null,null,null,null,null,null,null,null,null,null,null,null,null,null,null,null,"51607","本輪西"]
["石川",null,"東室蘭",null,null,null,null,null,null,null,null,null,null,null,null,"横浜羽沢","青海ORS",null,null,null,null,null,null,null,"東成岩（接続衣浦臨海鉄道）",null,null,null,null,null,null,null,null,null,null,null,null,null,null,null,null,null,null,null,null,null,null,null,null,"51608","東室蘭"]
["福井",null,"萩野",null,null,null,null,null,null,null,null,null,null,null,null,"逗子","糸魚川",null,null,null,null,null,null,null,"碧南市",null,null,null,null,null,null,null,null,null,null,null,null,null,null,null,null,null,null,null,null,null,null,null,null,"51614","萩野"]
["山梨",null,"苫小牧貨物",null,null,null,null,null,null,null,null,null,null,null,null,"相模貨物",null,null,null,null,null,null,null,null,"新守山",null,null,null,null,null,null,null,null,null,null,null,null,null,null,null,null,null,null,null,null,null,null,null,null,"51617","苫小牧貨物"]
["長野",null,"赤平",null,null,null,null,null,null,null,null,null,null,null,null,"西湘貨物",null,null,null,null,null,null,null,null,"春日井",null,null,null,null,null,null,null,null,null,null,null,null,null,null,null,null,null,null,null,null,null,null,null,null,"51701","赤平"]
["岐阜",null,"富良野",null,null,null,null,null,null,null,null,null,null,null,null,"鴨宮",null,null,null,null,null,null,null,null,null,null,null,null,null,null,null,null,null,null,null,null,null,null,null,null,null,null,null,null,null,null,null,null,null,"51708","富良野"]
["静岡",null,"函館貨物",null,null,null,null,null,null,null,null,null,null,null,null,"小田原",null,null,null,null,null,null,null,null,null,null,null,null,null,null,null,null,null,null,null,null,null,null,null,null,null,null,null,null,null,null,null,null,null,"51803","函館貨物"]
["愛知",null,"太平洋石炭販売輸送",null,null,null,null,null,null,null,null,null,null,null,null,"長津田",null,null,null,null,null,null,null,null,null,null,null,null,null,null,null,null,null,null,null,null,null,null,null,null,null,null,null,null,null,null,null,null,null,"51900","太平洋石炭販売輸送"]
["三重",null,null,null,null,null,null,null,null,null,null,null,null,null,null,"梶ヶ谷貨物ターミナル",null,null,null,null,null,null,null,null,null,null,null,null,null,null,null,null,null,null,null,null,null,null,null,null,null,null,null,null,null,null,null,null,null,"52004","一関"]
["滋賀",null,null,null,null,null,null,null,null,null,null,null,null,null,null,"下曽我",null,null,null,null,null,null,null,null,null,null,null,null,null,null,null,null,null,null,null,null,null,null,null,null,null,null,null,null,null,null,null,null,null,"52007","水沢"]
["京都",null,null,null,null,null,null,null,null,null,null,null,null,null,null,"松田",null,null,null,null,null,null,null,null,null,null,null,null,null,null,null,null,null,null,null,null,null,null,null,null,null,null,null,null,null,null,null,null,null,"52010","六原ORS"]
["大阪",null,null,null,null,null,null,null,null,null,null,null,null,null,null,null,null,null,null,null,null,null,null,null,null,null,null,null,null,null,null,null,null,null,null,null,null,null,null,null,null,null,null,null,null,null,null,null,null,"52012","北上"]
["兵庫",null,null,null,null,null,null,null,null,null,null,null,null,null,null,null,null,null,null,null,null,null,null,null,null,null,null,null,null,null,null,null,null,null,null,null,null,null,null,null,null,null,null,null,null,null,null,null,null,"52015","花巻空港"]
["和歌山",null,null,null,null,null,null,null,null,null,null,null,null,null,null,null,null,null,null,null,null,null,null,null,null,null,null,null,null,null,null,null,null,null,null,null,null,null,null,null,null,null,null,null,null,null,null,null,null,"52018","盛岡貨物ターミナル"]
["鳥取",null,null,null,null,null,null,null,null,null,null,null,null,null,null,null,null,null,null,null,null,null,null,null,null,null,null,null,null,null,null,null,null,null,null,null,null,null,null,null,null,null,null,null,null,null,null,null,null,"52057","岩手開発鉄道"]
["島根",null,null,null,null,null,null,null,null,null,null,null,null,null,null,null,null,null,null,null,null,null,null,null,null,null,null,null,null,null,null,null,null,null,null,null,null,null,null,null,null,null,null,null,null,null,null,null,null,"52033","八戸"]
["岡山",null,null,null,null,null,null,null,null,null,null,null,null,null,null,null,null,null,null,null,null,null,null,null,null,null,null,null,null,null,null,null,null,null,null,null,null,null,null,null,null,null,null,null,null,null,null,null,null,"52034","八戸貨物"]
["広島",null,null,null,null,null,null,null,null,null,null,null,null,null,null,null,null,null,null,null,null,null,null,null,null,null,null,null,null,null,null,null,null,null,null,null,null,null,null,null,null,null,null,null,null,null,null,null,null,"52035","八戸臨海鉄道"]
["山口",null,null,null,null,null,null,null,null,null,null,null,null,null,null,null,null,null,null,null,null,null,null,null,null,null,null,null,null,null,null,null,null,null,null,null,null,null,null,null,null,null,null,null,null,null,null,null,null,"52036","北沼"]
["徳島",null,null,null,null,null,null,null,null,null,null,null,null,null,null,null,null,null,null,null,null,null,null,null,null,null,null,null,null,null,null,null,null,null,null,null,null,null,null,null,null,null,null,null,null,null,null,null,null,"52043","東青森"]
["香川",null,null,null,null,null,null,null,null,null,null,null,null,null,null,null,null,null,null,null,null,null,null,null,null,null,null,null,null,null,null,null,null,null,null,null,null,null,null,null,null,null,null,null,null,null,null,null,null,"52259","弘前新営業所"]
["愛媛",null,null,null,null,null,null,null,null,null,null,null,null,null,null,null,null,null,null,null,null,null,null,null,null,null,null,null,null,null,null,null,null,null,null,null,null,null,null,null,null,null,null,null,null,null,null,null,null,"52207","山形ORS"]
["高知",null,null,null,null,null,null,null,null,null,null,null,null,null,null,null,null,null,null,null,null,null,null,null,null,null,null,null,null,null,null,null,null,null,null,null,null,null,null,null,null,null,null,null,null,null,null,null,null,"52314","羽後本荘ORS"]
["福岡",null,null,null,null,null,null,null,null,null,null,null,null,null,null,null,null,null,null,null,null,null,null,null,null,null,null,null,null,null,null,null,null,null,null,null,null,null,null,null,null,null,null,null,null,null,null,null,null,"52227","横手新営業所"]
["佐賀",null,null,null,null,null,null,null,null,null,null,null,null,null,null,null,null,null,null,null,null,null,null,null,null,null,null,null,null,null,null,null,null,null,null,null,null,null,null,null,null,null,null,null,null,null,null,null,null,"52241","秋田貨物"]
["長崎",null,null,null,null,null,null,null,null,null,null,null,null,null,null,null,null,null,null,null,null,null,null,null,null,null,null,null,null,null,null,null,null,null,null,null,null,null,null,null,null,null,null,null,null,null,null,null,null,"52243","秋田港"]
["熊本",null,null,null,null,null,null,null,null,null,null,null,null,null,null,null,null,null,null,null,null,null,null,null,null,null,null,null,null,null,null,null,null,null,null,null,null,null,null,null,null,null,null,null,null,null,null,null,null,"52244","秋田臨海鉄道"]
["大分",null,null,null,null,null,null,null,null,null,null,null,null,null,null,null,null,null,null,null,null,null,null,null,null,null,null,null,null,null,null,null,null,null,null,null,null,null,null,null,null,null,null,null,null,null,null,null,null,"52250","東能代"]
["宮崎",null,null,null,null,null,null,null,null,null,null,null,null,null,null,null,null,null,null,null,null,null,null,null,null,null,null,null,null,null,null,null,null,null,null,null,null,null,null,null,null,null,null,null,null,null,null,null,null,"52254","大館"]
["鹿児島",null,null,null,null,null,null,null,null,null,null,null,null,null,null,null,null,null,null,null,null,null,null,null,null,null,null,null,null,null,null,null,null,null,null,null,null,null,null,null,null,null,null,null,null,null,null,null,null,"52255","小坂"]
["鉄道その他駅",null,null,null,null,null,null,null,null,null,null,null,null,null,null,null,null,null,null,null,null,null,null,null,null,null,null,null,null,null,null,null,null,null,null,null,null,null,null,null,null,null,null,null,null,null,null,null,null,"52405","郡山貨物ターミナル"]
[null,null,null,null,null,null,null,null,null,null,null,null,null,null,null,null,null,null,null,null,null,null,null,null,null,null,null,null,null,null,null,null,null,null,null,null,null,null,null,null,null,null,null,null,null,null,null,null,null,"52407","郡山"]
[null,null,null,null,null,null,null,null,null,null,null,null,null,null,null,null,null,null,null,null,null,null,null,null,null,null,null,null,null,null,null,null,null,null,null,null,null,null,null,null,null,null,null,null,null,null,null,null,null,"52415","東福島ORS"]
[null,null,null,null,null,null,null,null,null,null,null,null,null,null,null,null,null,null,null,null,null,null,null,null,null,null,null,null,null,null,null,null,null,null,null,null,null,null,null,null,null,null,null,null,null,null,null,null,null,"52424","岩沼"]
[null,null,null,null,null,null,null,null,null,null,null,null,null,null,null,null,null,null,null,null,null,null,null,null,null,null,null,null,null,null,null,null,null,null,null,null,null,null,null,null,null,null,null,null,null,null,null,null,null,"52425","名取"]
[null,null,null,null,null,null,null,null,null,null,null,null,null,null,null,null,null,null,null,null,null,null,null,null,null,null,null,null,null,null,null,null,null,null,null,null,null,null,null,null,null,null,null,null,null,null,null,null,null,"52428","仙台貨物ターミナル"]
[null,null,null,null,null,null,null,null,null,null,null,null,null,null,null,null,null,null,null,null,null,null,null,null,null,null,null,null,null,null,null,null,null,null,null,null,null,null,null,null,null,null,null,null,null,null,null,null,null,"52432","仙台臨海鉄道"]
[null,null,null,null,null,null,null,null,null,null,null,null,null,null,null,null,null,null,null,null,null,null,null,null,null,null,null,null,null,null,null,null,null,null,null,null,null,null,null,null,null,null,null,null,null,null,null,null,null,"52433","仙台港"]
[null,null,null,null,null,null,null,null,null,null,null,null,null,null,null,null,null,null,null,null,null,null,null,null,null,null,null,null,null,null,null,null,null,null,null,null,null,null,null,null,null,null,null,null,null,null,null,null,null,"52434","仙台北港"]
[null,null,null,null,null,null,null,null,null,null,null,null,null,null,null,null,null,null,null,null,null,null,null,null,null,null,null,null,null,null,null,null,null,null,null,null,null,null,null,null,null,null,null,null,null,null,null,null,null,"52435","仙台埠頭"]
[null,null,null,null,null,null,null,null,null,null,null,null,null,null,null,null,null,null,null,null,null,null,null,null,null,null,null,null,null,null,null,null,null,null,null,null,null,null,null,null,null,null,null,null,null,null,null,null,null,"52436","仙台西港"]
[null,null,null,null,null,null,null,null,null,null,null,null,null,null,null,null,null,null,null,null,null,null,null,null,null,null,null,null,null,null,null,null,null,null,null,null,null,null,null,null,null,null,null,null,null,null,null,null,null,"52474","広田"]
[null,null,null,null,null,null,null,null,null,null,null,null,null,null,null,null,null,null,null,null,null,null,null,null,null,null,null,null,null,null,null,null,null,null,null,null,null,null,null,null,null,null,null,null,null,null,null,null,null,"52475","会津若松ORS"]
[null,null,null,null,null,null,null,null,null,null,null,null,null,null,null,null,null,null,null,null,null,null,null,null,null,null,null,null,null,null,null,null,null,null,null,null,null,null,null,null,null,null,null,null,null,null,null,null,null,"52476","塩川"]
[null,null,null,null,null,null,null,null,null,null,null,null,null,null,null,null,null,null,null,null,null,null,null,null,null,null,null,null,null,null,null,null,null,null,null,null,null,null,null,null,null,null,null,null,null,null,null,null,null,"52540","古川ORS"]
[null,null,null,null,null,null,null,null,null,null,null,null,null,null,null,null,null,null,null,null,null,null,null,null,null,null,null,null,null,null,null,null,null,null,null,null,null,null,null,null,null,null,null,null,null,null,null,null,null,"52551","石巻港"]
[null,null,null,null,null,null,null,null,null,null,null,null,null,null,null,null,null,null,null,null,null,null,null,null,null,null,null,null,null,null,null,null,null,null,null,null,null,null,null,null,null,null,null,null,null,null,null,null,null,"53002","二本木"]
[null,null,null,null,null,null,null,null,null,null,null,null,null,null,null,null,null,null,null,null,null,null,null,null,null,null,null,null,null,null,null,null,null,null,null,null,null,null,null,null,null,null,null,null,null,null,null,null,null,"53003","新井"]
[null,null,null,null,null,null,null,null,null,null,null,null,null,null,null,null,null,null,null,null,null,null,null,null,null,null,null,null,null,null,null,null,null,null,null,null,null,null,null,null,null,null,null,null,null,null,null,null,null,"53010","黒井"]
[null,null,null,null,null,null,null,null,null,null,null,null,null,null,null,null,null,null,null,null,null,null,null,null,null,null,null,null,null,null,null,null,null,null,null,null,null,null,null,null,null,null,null,null,null,null,null,null,null,"53014","柏崎ORS"]
[null,null,null,null,null,null,null,null,null,null,null,null,null,null,null,null,null,null,null,null,null,null,null,null,null,null,null,null,null,null,null,null,null,null,null,null,null,null,null,null,null,null,null,null,null,null,null,null,null,"53019","南長岡"]
[null,null,null,null,null,null,null,null,null,null,null,null,null,null,null,null,null,null,null,null,null,null,null,null,null,null,null,null,null,null,null,null,null,null,null,null,null,null,null,null,null,null,null,null,null,null,null,null,null,"53023","東三条"]
[null,null,null,null,null,null,null,null,null,null,null,null,null,null,null,null,null,null,null,null,null,null,null,null,null,null,null,null,null,null,null,null,null,null,null,null,null,null,null,null,null,null,null,null,null,null,null,null,null,"53027","新津"]
[null,null,null,null,null,null,null,null,null,null,null,null,null,null,null,null,null,null,null,null,null,null,null,null,null,null,null,null,null,null,null,null,null,null,null,null,null,null,null,null,null,null,null,null,null,null,null,null,null,"53032","沼垂"]
[null,null,null,null,null,null,null,null,null,null,null,null,null,null,null,null,null,null,null,null,null,null,null,null,null,null,null,null,null,null,null,null,null,null,null,null,null,null,null,null,null,null,null,null,null,null,null,null,null,"53036","焼島"]
[null,null,null,null,null,null,null,null,null,null,null,null,null,null,null,null,null,null,null,null,null,null,null,null,null,null,null,null,null,null,null,null,null,null,null,null,null,null,null,null,null,null,null,null,null,null,null,null,null,"53037","東新潟港"]
[null,null,null,null,null,null,null,null,null,null,null,null,null,null,null,null,null,null,null,null,null,null,null,null,null,null,null,null,null,null,null,null,null,null,null,null,null,null,null,null,null,null,null,null,null,null,null,null,null,"53040","新潟貨物ターミナル"]
[null,null,null,null,null,null,null,null,null,null,null,null,null,null,null,null,null,null,null,null,null,null,null,null,null,null,null,null,null,null,null,null,null,null,null,null,null,null,null,null,null,null,null,null,null,null,null,null,null,"53041","新崎"]
[null,null,null,null,null,null,null,null,null,null,null,null,null,null,null,null,null,null,null,null,null,null,null,null,null,null,null,null,null,null,null,null,null,null,null,null,null,null,null,null,null,null,null,null,null,null,null,null,null,"53042","黒山"]
[null,null,null,null,null,null,null,null,null,null,null,null,null,null,null,null,null,null,null,null,null,null,null,null,null,null,null,null,null,null,null,null,null,null,null,null,null,null,null,null,null,null,null,null,null,null,null,null,null,"53051","新発田"]
[null,null,null,null,null,null,null,null,null,null,null,null,null,null,null,null,null,null,null,null,null,null,null,null,null,null,null,null,null,null,null,null,null,null,null,null,null,null,null,null,null,null,null,null,null,null,null,null,null,"53052","中条ORS"]
[null,null,null,null,null,null,null,null,null,null,null,null,null,null,null,null,null,null,null,null,null,null,null,null,null,null,null,null,null,null,null,null,null,null,null,null,null,null,null,null,null,null,null,null,null,null,null,null,null,"53056","羽前水沢ORS"]
[null,null,null,null,null,null,null,null,null,null,null,null,null,null,null,null,null,null,null,null,null,null,null,null,null,null,null,null,null,null,null,null,null,null,null,null,null,null,null,null,null,null,null,null,null,null,null,null,null,"53061","酒田港"]
[null,null,null,null,null,null,null,null,null,null,null,null,null,null,null,null,null,null,null,null,null,null,null,null,null,null,null,null,null,null,null,null,null,null,null,null,null,null,null,null,null,null,null,null,null,null,null,null,null,"53074","五日町"]
[null,null,null,null,null,null,null,null,null,null,null,null,null,null,null,null,null,null,null,null,null,null,null,null,null,null,null,null,null,null,null,null,null,null,null,null,null,null,null,null,null,null,null,null,null,null,null,null,null,"54104","吹上"]
[null,null,null,null,null,null,null,null,null,null,null,null,null,null,null,null,null,null,null,null,null,null,null,null,null,null,null,null,null,null,null,null,null,null,null,null,null,null,null,null,null,null,null,null,null,null,null,null,null,"54105","熊谷貨物ターミナル"]
[null,null,null,null,null,null,null,null,null,null,null,null,null,null,null,null,null,null,null,null,null,null,null,null,null,null,null,null,null,null,null,null,null,null,null,null,null,null,null,null,null,null,null,null,null,null,null,null,null,"54109","岡部"]
[null,null,null,null,null,null,null,null,null,null,null,null,null,null,null,null,null,null,null,null,null,null,null,null,null,null,null,null,null,null,null,null,null,null,null,null,null,null,null,null,null,null,null,null,null,null,null,null,null,"54112","新町"]
[null,null,null,null,null,null,null,null,null,null,null,null,null,null,null,null,null,null,null,null,null,null,null,null,null,null,null,null,null,null,null,null,null,null,null,null,null,null,null,null,null,null,null,null,null,null,null,null,null,"54113","倉賀野"]
[null,null,null,null,null,null,null,null,null,null,null,null,null,null,null,null,null,null,null,null,null,null,null,null,null,null,null,null,null,null,null,null,null,null,null,null,null,null,null,null,null,null,null,null,null,null,null,null,null,"54115","高崎"]
[null,null,null,null,null,null,null,null,null,null,null,null,null,null,null,null,null,null,null,null,null,null,null,null,null,null,null,null,null,null,null,null,null,null,null,null,null,null,null,null,null,null,null,null,null,null,null,null,null,"54119","八木原"]
[null,null,null,null,null,null,null,null,null,null,null,null,null,null,null,null,null,null,null,null,null,null,null,null,null,null,null,null,null,null,null,null,null,null,null,null,null,null,null,null,null,null,null,null,null,null,null,null,null,"54120","渋川"]
[null,null,null,null,null,null,null,null,null,null,null,null,null,null,null,null,null,null,null,null,null,null,null,null,null,null,null,null,null,null,null,null,null,null,null,null,null,null,null,null,null,null,null,null,null,null,null,null,null,"54135","秩父鉄道"]
[null,null,null,null,null,null,null,null,null,null,null,null,null,null,null,null,null,null,null,null,null,null,null,null,null,null,null,null,null,null,null,null,null,null,null,null,null,null,null,null,null,null,null,null,null,null,null,null,null,"54192","安中"]
[null,null,null,null,null,null,null,null,null,null,null,null,null,null,null,null,null,null,null,null,null,null,null,null,null,null,null,null,null,null,null,null,null,null,null,null,null,null,null,null,null,null,null,null,null,null,null,null,null,"54203","土浦"]
[null,null,null,null,null,null,null,null,null,null,null,null,null,null,null,null,null,null,null,null,null,null,null,null,null,null,null,null,null,null,null,null,null,null,null,null,null,null,null,null,null,null,null,null,null,null,null,null,null,"54206","神立"]
[null,null,null,null,null,null,null,null,null,null,null,null,null,null,null,null,null,null,null,null,null,null,null,null,null,null,null,null,null,null,null,null,null,null,null,null,null,null,null,null,null,null,null,null,null,null,null,null,null,"54210","友部"]
[null,null,null,null,null,null,null,null,null,null,null,null,null,null,null,null,null,null,null,null,null,null,null,null,null,null,null,null,null,null,null,null,null,null,null,null,null,null,null,null,null,null,null,null,null,null,null,null,null,"54211","内原"]
[null,null,null,null,null,null,null,null,null,null,null,null,null,null,null,null,null,null,null,null,null,null,null,null,null,null,null,null,null,null,null,null,null,null,null,null,null,null,null,null,null,null,null,null,null,null,null,null,null,"54213","水戸ORS"]
[null,null,null,null,null,null,null,null,null,null,null,null,null,null,null,null,null,null,null,null,null,null,null,null,null,null,null,null,null,null,null,null,null,null,null,null,null,null,null,null,null,null,null,null,null,null,null,null,null,"54215","勝田"]
[null,null,null,null,null,null,null,null,null,null,null,null,null,null,null,null,null,null,null,null,null,null,null,null,null,null,null,null,null,null,null,null,null,null,null,null,null,null,null,null,null,null,null,null,null,null,null,null,null,"54219","常陸多賀"]
[null,null,null,null,null,null,null,null,null,null,null,null,null,null,null,null,null,null,null,null,null,null,null,null,null,null,null,null,null,null,null,null,null,null,null,null,null,null,null,null,null,null,null,null,null,null,null,null,null,"54220","日立"]
[null,null,null,null,null,null,null,null,null,null,null,null,null,null,null,null,null,null,null,null,null,null,null,null,null,null,null,null,null,null,null,null,null,null,null,null,null,null,null,null,null,null,null,null,null,null,null,null,null,"54229","福島臨海鉄道"]
[null,null,null,null,null,null,null,null,null,null,null,null,null,null,null,null,null,null,null,null,null,null,null,null,null,null,null,null,null,null,null,null,null,null,null,null,null,null,null,null,null,null,null,null,null,null,null,null,null,"54230","小名浜"]
[null,null,null,null,null,null,null,null,null,null,null,null,null,null,null,null,null,null,null,null,null,null,null,null,null,null,null,null,null,null,null,null,null,null,null,null,null,null,null,null,null,null,null,null,null,null,null,null,null,"54251","川島"]
[null,null,null,null,null,null,null,null,null,null,null,null,null,null,null,null,null,null,null,null,null,null,null,null,null,null,null,null,null,null,null,null,null,null,null,null,null,null,null,null,null,null,null,null,null,null,null,null,null,"54252","下館"]
[null,null,null,null,null,null,null,null,null,null,null,null,null,null,null,null,null,null,null,null,null,null,null,null,null,null,null,null,null,null,null,null,null,null,null,null,null,null,null,null,null,null,null,null,null,null,null,null,null,"54301","越中島貨物"]
[null,null,null,null,null,null,null,null,null,null,null,null,null,null,null,null,null,null,null,null,null,null,null,null,null,null,null,null,null,null,null,null,null,null,null,null,null,null,null,null,null,null,null,null,null,null,null,null,null,"54303","新小岩信号場"]
[null,null,null,null,null,null,null,null,null,null,null,null,null,null,null,null,null,null,null,null,null,null,null,null,null,null,null,null,null,null,null,null,null,null,null,null,null,null,null,null,null,null,null,null,null,null,null,null,null,"54340","蘇我"]
[null,null,null,null,null,null,null,null,null,null,null,null,null,null,null,null,null,null,null,null,null,null,null,null,null,null,null,null,null,null,null,null,null,null,null,null,null,null,null,null,null,null,null,null,null,null,null,null,null,"54341","京葉臨海鉄道"]
[null,null,null,null,null,null,null,null,null,null,null,null,null,null,null,null,null,null,null,null,null,null,null,null,null,null,null,null,null,null,null,null,null,null,null,null,null,null,null,null,null,null,null,null,null,null,null,null,null,"54343","千葉貨物"]
[null,null,null,null,null,null,null,null,null,null,null,null,null,null,null,null,null,null,null,null,null,null,null,null,null,null,null,null,null,null,null,null,null,null,null,null,null,null,null,null,null,null,null,null,null,null,null,null,null,"54345","京葉市原"]
[null,null,null,null,null,null,null,null,null,null,null,null,null,null,null,null,null,null,null,null,null,null,null,null,null,null,null,null,null,null,null,null,null,null,null,null,null,null,null,null,null,null,null,null,null,null,null,null,null,"54347","浜五井"]
[null,null,null,null,null,null,null,null,null,null,null,null,null,null,null,null,null,null,null,null,null,null,null,null,null,null,null,null,null,null,null,null,null,null,null,null,null,null,null,null,null,null,null,null,null,null,null,null,null,"54349","玉前"]
[null,null,null,null,null,null,null,null,null,null,null,null,null,null,null,null,null,null,null,null,null,null,null,null,null,null,null,null,null,null,null,null,null,null,null,null,null,null,null,null,null,null,null,null,null,null,null,null,null,"54351","甲子"]
[null,null,null,null,null,null,null,null,null,null,null,null,null,null,null,null,null,null,null,null,null,null,null,null,null,null,null,null,null,null,null,null,null,null,null,null,null,null,null,null,null,null,null,null,null,null,null,null,null,"54353","前川"]
[null,null,null,null,null,null,null,null,null,null,null,null,null,null,null,null,null,null,null,null,null,null,null,null,null,null,null,null,null,null,null,null,null,null,null,null,null,null,null,null,null,null,null,null,null,null,null,null,null,"54355","椎津"]
[null,null,null,null,null,null,null,null,null,null,null,null,null,null,null,null,null,null,null,null,null,null,null,null,null,null,null,null,null,null,null,null,null,null,null,null,null,null,null,null,null,null,null,null,null,null,null,null,null,"54357","北袖"]
[null,null,null,null,null,null,null,null,null,null,null,null,null,null,null,null,null,null,null,null,null,null,null,null,null,null,null,null,null,null,null,null,null,null,null,null,null,null,null,null,null,null,null,null,null,null,null,null,null,"54359","京葉久保田"]
[null,null,null,null,null,null,null,null,null,null,null,null,null,null,null,null,null,null,null,null,null,null,null,null,null,null,null,null,null,null,null,null,null,null,null,null,null,null,null,null,null,null,null,null,null,null,null,null,null,"54363","鹿島臨海鉄道"]
[null,null,null,null,null,null,null,null,null,null,null,null,null,null,null,null,null,null,null,null,null,null,null,null,null,null,null,null,null,null,null,null,null,null,null,null,null,null,null,null,null,null,null,null,null,null,null,null,null,"54370","神栖"]
[null,null,null,null,null,null,null,null,null,null,null,null,null,null,null,null,null,null,null,null,null,null,null,null,null,null,null,null,null,null,null,null,null,null,null,null,null,null,null,null,null,null,null,null,null,null,null,null,null,"54373","奥野谷浜"]
[null,null,null,null,null,null,null,null,null,null,null,null,null,null,null,null,null,null,null,null,null,null,null,null,null,null,null,null,null,null,null,null,null,null,null,null,null,null,null,null,null,null,null,null,null,null,null,null,null,"54403","田端信号場"]
[null,null,null,null,null,null,null,null,null,null,null,null,null,null,null,null,null,null,null,null,null,null,null,null,null,null,null,null,null,null,null,null,null,null,null,null,null,null,null,null,null,null,null,null,null,null,null,null,null,"54409","大宮"]
[null,null,null,null,null,null,null,null,null,null,null,null,null,null,null,null,null,null,null,null,null,null,null,null,null,null,null,null,null,null,null,null,null,null,null,null,null,null,null,null,null,null,null,null,null,null,null,null,null,"54414","東鷲宮"]
[null,null,null,null,null,null,null,null,null,null,null,null,null,null,null,null,null,null,null,null,null,null,null,null,null,null,null,null,null,null,null,null,null,null,null,null,null,null,null,null,null,null,null,null,null,null,null,null,null,"54100","羽生"]
[null,null,null,null,null,null,null,null,null,null,null,null,null,null,null,null,null,null,null,null,null,null,null,null,null,null,null,null,null,null,null,null,null,null,null,null,null,null,null,null,null,null,null,null,null,null,null,null,null,"54405","北王子"]
[null,null,null,null,null,null,null,null,null,null,null,null,null,null,null,null,null,null,null,null,null,null,null,null,null,null,null,null,null,null,null,null,null,null,null,null,null,null,null,null,null,null,null,null,null,null,null,null,null,"54418","羽生ORS"]
[null,null,null,null,null,null,null,null,null,null,null,null,null,null,null,null,null,null,null,null,null,null,null,null,null,null,null,null,null,null,null,null,null,null,null,null,null,null,null,null,null,null,null,null,null,null,null,null,null,"54422","小山"]
[null,null,null,null,null,null,null,null,null,null,null,null,null,null,null,null,null,null,null,null,null,null,null,null,null,null,null,null,null,null,null,null,null,null,null,null,null,null,null,null,null,null,null,null,null,null,null,null,null,"54425","宇都宮貨物ターミナル"]
[null,null,null,null,null,null,null,null,null,null,null,null,null,null,null,null,null,null,null,null,null,null,null,null,null,null,null,null,null,null,null,null,null,null,null,null,null,null,null,null,null,null,null,null,null,null,null,null,null,"54427","宇都宮"]
[null,null,null,null,null,null,null,null,null,null,null,null,null,null,null,null,null,null,null,null,null,null,null,null,null,null,null,null,null,null,null,null,null,null,null,null,null,null,null,null,null,null,null,null,null,null,null,null,null,"54433","宝積寺"]
[null,null,null,null,null,null,null,null,null,null,null,null,null,null,null,null,null,null,null,null,null,null,null,null,null,null,null,null,null,null,null,null,null,null,null,null,null,null,null,null,null,null,null,null,null,null,null,null,null,"54439","矢板ORS"]
[null,null,null,null,null,null,null,null,null,null,null,null,null,null,null,null,null,null,null,null,null,null,null,null,null,null,null,null,null,null,null,null,null,null,null,null,null,null,null,null,null,null,null,null,null,null,null,null,null,"54444","新白河"]
[null,null,null,null,null,null,null,null,null,null,null,null,null,null,null,null,null,null,null,null,null,null,null,null,null,null,null,null,null,null,null,null,null,null,null,null,null,null,null,null,null,null,null,null,null,null,null,null,null,"54450","隅田川"]
[null,null,null,null,null,null,null,null,null,null,null,null,null,null,null,null,null,null,null,null,null,null,null,null,null,null,null,null,null,null,null,null,null,null,null,null,null,null,null,null,null,null,null,null,null,null,null,null,null,"54453","綾瀬"]
[null,null,null,null,null,null,null,null,null,null,null,null,null,null,null,null,null,null,null,null,null,null,null,null,null,null,null,null,null,null,null,null,null,null,null,null,null,null,null,null,null,null,null,null,null,null,null,null,null,"54455","金町"]
[null,null,null,null,null,null,null,null,null,null,null,null,null,null,null,null,null,null,null,null,null,null,null,null,null,null,null,null,null,null,null,null,null,null,null,null,null,null,null,null,null,null,null,null,null,null,null,null,null,"54475","越谷貨物ターミナル"]
[null,null,null,null,null,null,null,null,null,null,null,null,null,null,null,null,null,null,null,null,null,null,null,null,null,null,null,null,null,null,null,null,null,null,null,null,null,null,null,null,null,null,null,null,null,null,null,null,null,"54504","品川"]
[null,null,null,null,null,null,null,null,null,null,null,null,null,null,null,null,null,null,null,null,null,null,null,null,null,null,null,null,null,null,null,null,null,null,null,null,null,null,null,null,null,null,null,null,null,null,null,null,null,"54505","東京貨物ターミナル"]
[null,null,null,null,null,null,null,null,null,null,null,null,null,null,null,null,null,null,null,null,null,null,null,null,null,null,null,null,null,null,null,null,null,null,null,null,null,null,null,null,null,null,null,null,null,null,null,null,null,"54506","川崎貨物"]
[null,null,null,null,null,null,null,null,null,null,null,null,null,null,null,null,null,null,null,null,null,null,null,null,null,null,null,null,null,null,null,null,null,null,null,null,null,null,null,null,null,null,null,null,null,null,null,null,null,"54507","神奈川臨海鉄道(川崎)"]
[null,null,null,null,null,null,null,null,null,null,null,null,null,null,null,null,null,null,null,null,null,null,null,null,null,null,null,null,null,null,null,null,null,null,null,null,null,null,null,null,null,null,null,null,null,null,null,null,null,"54508","千鳥町"]
[null,null,null,null,null,null,null,null,null,null,null,null,null,null,null,null,null,null,null,null,null,null,null,null,null,null,null,null,null,null,null,null,null,null,null,null,null,null,null,null,null,null,null,null,null,null,null,null,null,"54509","末広町"]
[null,null,null,null,null,null,null,null,null,null,null,null,null,null,null,null,null,null,null,null,null,null,null,null,null,null,null,null,null,null,null,null,null,null,null,null,null,null,null,null,null,null,null,null,null,null,null,null,null,"54513","浮島町"]
[null,null,null,null,null,null,null,null,null,null,null,null,null,null,null,null,null,null,null,null,null,null,null,null,null,null,null,null,null,null,null,null,null,null,null,null,null,null,null,null,null,null,null,null,null,null,null,null,null,"54510","浜川崎"]
[null,null,null,null,null,null,null,null,null,null,null,null,null,null,null,null,null,null,null,null,null,null,null,null,null,null,null,null,null,null,null,null,null,null,null,null,null,null,null,null,null,null,null,null,null,null,null,null,null,"54511","扇町"]
[null,null,null,null,null,null,null,null,null,null,null,null,null,null,null,null,null,null,null,null,null,null,null,null,null,null,null,null,null,null,null,null,null,null,null,null,null,null,null,null,null,null,null,null,null,null,null,null,null,"54512","安善"]
[null,null,null,null,null,null,null,null,null,null,null,null,null,null,null,null,null,null,null,null,null,null,null,null,null,null,null,null,null,null,null,null,null,null,null,null,null,null,null,null,null,null,null,null,null,null,null,null,null,"54314","大川"]
[null,null,null,null,null,null,null,null,null,null,null,null,null,null,null,null,null,null,null,null,null,null,null,null,null,null,null,null,null,null,null,null,null,null,null,null,null,null,null,null,null,null,null,null,null,null,null,null,null,"54516","新芝浦"]
[null,null,null,null,null,null,null,null,null,null,null,null,null,null,null,null,null,null,null,null,null,null,null,null,null,null,null,null,null,null,null,null,null,null,null,null,null,null,null,null,null,null,null,null,null,null,null,null,null,"54524","新興"]
[null,null,null,null,null,null,null,null,null,null,null,null,null,null,null,null,null,null,null,null,null,null,null,null,null,null,null,null,null,null,null,null,null,null,null,null,null,null,null,null,null,null,null,null,null,null,null,null,null,"54525","東高島"]
[null,null,null,null,null,null,null,null,null,null,null,null,null,null,null,null,null,null,null,null,null,null,null,null,null,null,null,null,null,null,null,null,null,null,null,null,null,null,null,null,null,null,null,null,null,null,null,null,null,"54532","根岸"]
[null,null,null,null,null,null,null,null,null,null,null,null,null,null,null,null,null,null,null,null,null,null,null,null,null,null,null,null,null,null,null,null,null,null,null,null,null,null,null,null,null,null,null,null,null,null,null,null,null,"54533","神奈川臨海鉄道(横浜)"]
[null,null,null,null,null,null,null,null,null,null,null,null,null,null,null,null,null,null,null,null,null,null,null,null,null,null,null,null,null,null,null,null,null,null,null,null,null,null,null,null,null,null,null,null,null,null,null,null,null,"54535","横浜本牧"]
[null,null,null,null,null,null,null,null,null,null,null,null,null,null,null,null,null,null,null,null,null,null,null,null,null,null,null,null,null,null,null,null,null,null,null,null,null,null,null,null,null,null,null,null,null,null,null,null,null,"54537","本牧埠頭"]
[null,null,null,null,null,null,null,null,null,null,null,null,null,null,null,null,null,null,null,null,null,null,null,null,null,null,null,null,null,null,null,null,null,null,null,null,null,null,null,null,null,null,null,null,null,null,null,null,null,"54538","横浜羽沢"]
[null,null,null,null,null,null,null,null,null,null,null,null,null,null,null,null,null,null,null,null,null,null,null,null,null,null,null,null,null,null,null,null,null,null,null,null,null,null,null,null,null,null,null,null,null,null,null,null,null,"54542","逗子"]
[null,null,null,null,null,null,null,null,null,null,null,null,null,null,null,null,null,null,null,null,null,null,null,null,null,null,null,null,null,null,null,null,null,null,null,null,null,null,null,null,null,null,null,null,null,null,null,null,null,"54548","相模貨物"]
[null,null,null,null,null,null,null,null,null,null,null,null,null,null,null,null,null,null,null,null,null,null,null,null,null,null,null,null,null,null,null,null,null,null,null,null,null,null,null,null,null,null,null,null,null,null,null,null,null,"54550","西湘貨物"]
[null,null,null,null,null,null,null,null,null,null,null,null,null,null,null,null,null,null,null,null,null,null,null,null,null,null,null,null,null,null,null,null,null,null,null,null,null,null,null,null,null,null,null,null,null,null,null,null,null,"54551","鴨宮"]
[null,null,null,null,null,null,null,null,null,null,null,null,null,null,null,null,null,null,null,null,null,null,null,null,null,null,null,null,null,null,null,null,null,null,null,null,null,null,null,null,null,null,null,null,null,null,null,null,null,"54552","小田原"]
[null,null,null,null,null,null,null,null,null,null,null,null,null,null,null,null,null,null,null,null,null,null,null,null,null,null,null,null,null,null,null,null,null,null,null,null,null,null,null,null,null,null,null,null,null,null,null,null,null,"54560","伊東"]
[null,null,null,null,null,null,null,null,null,null,null,null,null,null,null,null,null,null,null,null,null,null,null,null,null,null,null,null,null,null,null,null,null,null,null,null,null,null,null,null,null,null,null,null,null,null,null,null,null,"54603","武蔵境"]
[null,null,null,null,null,null,null,null,null,null,null,null,null,null,null,null,null,null,null,null,null,null,null,null,null,null,null,null,null,null,null,null,null,null,null,null,null,null,null,null,null,null,null,null,null,null,null,null,null,"54604","中野"]
[null,null,null,null,null,null,null,null,null,null,null,null,null,null,null,null,null,null,null,null,null,null,null,null,null,null,null,null,null,null,null,null,null,null,null,null,null,null,null,null,null,null,null,null,null,null,null,null,null,"54610","八王子ORS"]
[null,null,null,null,null,null,null,null,null,null,null,null,null,null,null,null,null,null,null,null,null,null,null,null,null,null,null,null,null,null,null,null,null,null,null,null,null,null,null,null,null,null,null,null,null,null,null,null,null,"54614","初狩"]
[null,null,null,null,null,null,null,null,null,null,null,null,null,null,null,null,null,null,null,null,null,null,null,null,null,null,null,null,null,null,null,null,null,null,null,null,null,null,null,null,null,null,null,null,null,null,null,null,null,"54617","石和温泉"]
[null,null,null,null,null,null,null,null,null,null,null,null,null,null,null,null,null,null,null,null,null,null,null,null,null,null,null,null,null,null,null,null,null,null,null,null,null,null,null,null,null,null,null,null,null,null,null,null,null,"54620","竜王"]
[null,null,null,null,null,null,null,null,null,null,null,null,null,null,null,null,null,null,null,null,null,null,null,null,null,null,null,null,null,null,null,null,null,null,null,null,null,null,null,null,null,null,null,null,null,null,null,null,null,"54640","長津田"]
[null,null,null,null,null,null,null,null,null,null,null,null,null,null,null,null,null,null,null,null,null,null,null,null,null,null,null,null,null,null,null,null,null,null,null,null,null,null,null,null,null,null,null,null,null,null,null,null,null,"54661","拝島"]
[null,null,null,null,null,null,null,null,null,null,null,null,null,null,null,null,null,null,null,null,null,null,null,null,null,null,null,null,null,null,null,null,null,null,null,null,null,null,null,null,null,null,null,null,null,null,null,null,null,"54670","梶ヶ谷貨物ターミナル"]
[null,null,null,null,null,null,null,null,null,null,null,null,null,null,null,null,null,null,null,null,null,null,null,null,null,null,null,null,null,null,null,null,null,null,null,null,null,null,null,null,null,null,null,null,null,null,null,null,null,"54674","新座貨物ターミナル"]
[null,null,null,null,null,null,null,null,null,null,null,null,null,null,null,null,null,null,null,null,null,null,null,null,null,null,null,null,null,null,null,null,null,null,null,null,null,null,null,null,null,null,null,null,null,null,null,null,null,"55008","西上田"]
[null,null,null,null,null,null,null,null,null,null,null,null,null,null,null,null,null,null,null,null,null,null,null,null,null,null,null,null,null,null,null,null,null,null,null,null,null,null,null,null,null,null,null,null,null,null,null,null,null,"55009","坂城"]
[null,null,null,null,null,null,null,null,null,null,null,null,null,null,null,null,null,null,null,null,null,null,null,null,null,null,null,null,null,null,null,null,null,null,null,null,null,null,null,null,null,null,null,null,null,null,null,null,null,"55011","屋代"]
[null,null,null,null,null,null,null,null,null,null,null,null,null,null,null,null,null,null,null,null,null,null,null,null,null,null,null,null,null,null,null,null,null,null,null,null,null,null,null,null,null,null,null,null,null,null,null,null,null,"55014","川中島"]
[null,null,null,null,null,null,null,null,null,null,null,null,null,null,null,null,null,null,null,null,null,null,null,null,null,null,null,null,null,null,null,null,null,null,null,null,null,null,null,null,null,null,null,null,null,null,null,null,null,"55015","長野"]
[null,null,null,null,null,null,null,null,null,null,null,null,null,null,null,null,null,null,null,null,null,null,null,null,null,null,null,null,null,null,null,null,null,null,null,null,null,null,null,null,null,null,null,null,null,null,null,null,null,"55016","北長野"]
[null,null,null,null,null,null,null,null,null,null,null,null,null,null,null,null,null,null,null,null,null,null,null,null,null,null,null,null,null,null,null,null,null,null,null,null,null,null,null,null,null,null,null,null,null,null,null,null,null,"55106","岡谷新営業所"]
[null,null,null,null,null,null,null,null,null,null,null,null,null,null,null,null,null,null,null,null,null,null,null,null,null,null,null,null,null,null,null,null,null,null,null,null,null,null,null,null,null,null,null,null,null,null,null,null,null,"55107","辰野"]
[null,null,null,null,null,null,null,null,null,null,null,null,null,null,null,null,null,null,null,null,null,null,null,null,null,null,null,null,null,null,null,null,null,null,null,null,null,null,null,null,null,null,null,null,null,null,null,null,null,"55112","塩尻"]
[null,null,null,null,null,null,null,null,null,null,null,null,null,null,null,null,null,null,null,null,null,null,null,null,null,null,null,null,null,null,null,null,null,null,null,null,null,null,null,null,null,null,null,null,null,null,null,null,null,"55140","村井"]
[null,null,null,null,null,null,null,null,null,null,null,null,null,null,null,null,null,null,null,null,null,null,null,null,null,null,null,null,null,null,null,null,null,null,null,null,null,null,null,null,null,null,null,null,null,null,null,null,null,"55141","南松本"]
[null,null,null,null,null,null,null,null,null,null,null,null,null,null,null,null,null,null,null,null,null,null,null,null,null,null,null,null,null,null,null,null,null,null,null,null,null,null,null,null,null,null,null,null,null,null,null,null,null,"55203","沼津"]
[null,null,null,null,null,null,null,null,null,null,null,null,null,null,null,null,null,null,null,null,null,null,null,null,null,null,null,null,null,null,null,null,null,null,null,null,null,null,null,null,null,null,null,null,null,null,null,null,null,"55206","原"]
[null,null,null,null,null,null,null,null,null,null,null,null,null,null,null,null,null,null,null,null,null,null,null,null,null,null,null,null,null,null,null,null,null,null,null,null,null,null,null,null,null,null,null,null,null,null,null,null,null,"55207","吉原"]
[null,null,null,null,null,null,null,null,null,null,null,null,null,null,null,null,null,null,null,null,null,null,null,null,null,null,null,null,null,null,null,null,null,null,null,null,null,null,null,null,null,null,null,null,null,null,null,null,null,"55208","岳南鉄道"]
[null,null,null,null,null,null,null,null,null,null,null,null,null,null,null,null,null,null,null,null,null,null,null,null,null,null,null,null,null,null,null,null,null,null,null,null,null,null,null,null,null,null,null,null,null,null,null,null,null,"55209","富士"]
[null,null,null,null,null,null,null,null,null,null,null,null,null,null,null,null,null,null,null,null,null,null,null,null,null,null,null,null,null,null,null,null,null,null,null,null,null,null,null,null,null,null,null,null,null,null,null,null,null,"55213","静岡貨物"]
[null,null,null,null,null,null,null,null,null,null,null,null,null,null,null,null,null,null,null,null,null,null,null,null,null,null,null,null,null,null,null,null,null,null,null,null,null,null,null,null,null,null,null,null,null,null,null,null,null,"55219","島田"]
[null,null,null,null,null,null,null,null,null,null,null,null,null,null,null,null,null,null,null,null,null,null,null,null,null,null,null,null,null,null,null,null,null,null,null,null,null,null,null,null,null,null,null,null,null,null,null,null,null,"55225","磐田"]
[null,null,null,null,null,null,null,null,null,null,null,null,null,null,null,null,null,null,null,null,null,null,null,null,null,null,null,null,null,null,null,null,null,null,null,null,null,null,null,null,null,null,null,null,null,null,null,null,null,"55229","西浜松"]
[null,null,null,null,null,null,null,null,null,null,null,null,null,null,null,null,null,null,null,null,null,null,null,null,null,null,null,null,null,null,null,null,null,null,null,null,null,null,null,null,null,null,null,null,null,null,null,null,null,"55233","豊橋ORS"]
[null,null,null,null,null,null,null,null,null,null,null,null,null,null,null,null,null,null,null,null,null,null,null,null,null,null,null,null,null,null,null,null,null,null,null,null,null,null,null,null,null,null,null,null,null,null,null,null,null,"55301","下曽我"]
[null,null,null,null,null,null,null,null,null,null,null,null,null,null,null,null,null,null,null,null,null,null,null,null,null,null,null,null,null,null,null,null,null,null,null,null,null,null,null,null,null,null,null,null,null,null,null,null,null,"55302","松田"]
[null,null,null,null,null,null,null,null,null,null,null,null,null,null,null,null,null,null,null,null,null,null,null,null,null,null,null,null,null,null,null,null,null,null,null,null,null,null,null,null,null,null,null,null,null,null,null,null,null,"55321","豊川"]
[null,null,null,null,null,null,null,null,null,null,null,null,null,null,null,null,null,null,null,null,null,null,null,null,null,null,null,null,null,null,null,null,null,null,null,null,null,null,null,null,null,null,null,null,null,null,null,null,null,"55332","元善光寺"]
[null,null,null,null,null,null,null,null,null,null,null,null,null,null,null,null,null,null,null,null,null,null,null,null,null,null,null,null,null,null,null,null,null,null,null,null,null,null,null,null,null,null,null,null,null,null,null,null,null,"55338","沢渡"]
[null,null,null,null,null,null,null,null,null,null,null,null,null,null,null,null,null,null,null,null,null,null,null,null,null,null,null,null,null,null,null,null,null,null,null,null,null,null,null,null,null,null,null,null,null,null,null,null,null,"55404","刈谷ORS"]
[null,null,null,null,null,null,null,null,null,null,null,null,null,null,null,null,null,null,null,null,null,null,null,null,null,null,null,null,null,null,null,null,null,null,null,null,null,null,null,null,null,null,null,null,null,null,null,null,null,"55407","笠寺"]
[null,null,null,null,null,null,null,null,null,null,null,null,null,null,null,null,null,null,null,null,null,null,null,null,null,null,null,null,null,null,null,null,null,null,null,null,null,null,null,null,null,null,null,null,null,null,null,null,null,"55408","名古屋臨海鉄道"]
[null,null,null,null,null,null,null,null,null,null,null,null,null,null,null,null,null,null,null,null,null,null,null,null,null,null,null,null,null,null,null,null,null,null,null,null,null,null,null,null,null,null,null,null,null,null,null,null,null,"55401","東港"]
[null,null,null,null,null,null,null,null,null,null,null,null,null,null,null,null,null,null,null,null,null,null,null,null,null,null,null,null,null,null,null,null,null,null,null,null,null,null,null,null,null,null,null,null,null,null,null,null,null,"55402","名古屋南貨物"]
[null,null,null,null,null,null,null,null,null,null,null,null,null,null,null,null,null,null,null,null,null,null,null,null,null,null,null,null,null,null,null,null,null,null,null,null,null,null,null,null,null,null,null,null,null,null,null,null,null,"55403","知多"]
[null,null,null,null,null,null,null,null,null,null,null,null,null,null,null,null,null,null,null,null,null,null,null,null,null,null,null,null,null,null,null,null,null,null,null,null,null,null,null,null,null,null,null,null,null,null,null,null,null,"55405","昭和町"]
[null,null,null,null,null,null,null,null,null,null,null,null,null,null,null,null,null,null,null,null,null,null,null,null,null,null,null,null,null,null,null,null,null,null,null,null,null,null,null,null,null,null,null,null,null,null,null,null,null,"55409","名古屋鉄道"]
[null,null,null,null,null,null,null,null,null,null,null,null,null,null,null,null,null,null,null,null,null,null,null,null,null,null,null,null,null,null,null,null,null,null,null,null,null,null,null,null,null,null,null,null,null,null,null,null,null,"55410","名古屋貨物ターミナル"]
[null,null,null,null,null,null,null,null,null,null,null,null,null,null,null,null,null,null,null,null,null,null,null,null,null,null,null,null,null,null,null,null,null,null,null,null,null,null,null,null,null,null,null,null,null,null,null,null,null,"55412","名古屋港"]
[null,null,null,null,null,null,null,null,null,null,null,null,null,null,null,null,null,null,null,null,null,null,null,null,null,null,null,null,null,null,null,null,null,null,null,null,null,null,null,null,null,null,null,null,null,null,null,null,null,"55420","清洲"]
[null,null,null,null,null,null,null,null,null,null,null,null,null,null,null,null,null,null,null,null,null,null,null,null,null,null,null,null,null,null,null,null,null,null,null,null,null,null,null,null,null,null,null,null,null,null,null,null,null,"55421","稲沢"]
[null,null,null,null,null,null,null,null,null,null,null,null,null,null,null,null,null,null,null,null,null,null,null,null,null,null,null,null,null,null,null,null,null,null,null,null,null,null,null,null,null,null,null,null,null,null,null,null,null,"55423","岐阜貨物ターミナル"]
[null,null,null,null,null,null,null,null,null,null,null,null,null,null,null,null,null,null,null,null,null,null,null,null,null,null,null,null,null,null,null,null,null,null,null,null,null,null,null,null,null,null,null,null,null,null,null,null,null,"55424","穂積"]
[null,null,null,null,null,null,null,null,null,null,null,null,null,null,null,null,null,null,null,null,null,null,null,null,null,null,null,null,null,null,null,null,null,null,null,null,null,null,null,null,null,null,null,null,null,null,null,null,null,"55428","近江長岡"]
[null,null,null,null,null,null,null,null,null,null,null,null,null,null,null,null,null,null,null,null,null,null,null,null,null,null,null,null,null,null,null,null,null,null,null,null,null,null,null,null,null,null,null,null,null,null,null,null,null,"55465","半田埠頭"]
[null,null,null,null,null,null,null,null,null,null,null,null,null,null,null,null,null,null,null,null,null,null,null,null,null,null,null,null,null,null,null,null,null,null,null,null,null,null,null,null,null,null,null,null,null,null,null,null,null,"55467","東浦"]
[null,null,null,null,null,null,null,null,null,null,null,null,null,null,null,null,null,null,null,null,null,null,null,null,null,null,null,null,null,null,null,null,null,null,null,null,null,null,null,null,null,null,null,null,null,null,null,null,null,"55427","樽見鉄道"]
[null,null,null,null,null,null,null,null,null,null,null,null,null,null,null,null,null,null,null,null,null,null,null,null,null,null,null,null,null,null,null,null,null,null,null,null,null,null,null,null,null,null,null,null,null,null,null,null,null,"55466","東成岩（接続衣浦臨海鉄道）"]
[null,null,null,null,null,null,null,null,null,null,null,null,null,null,null,null,null,null,null,null,null,null,null,null,null,null,null,null,null,null,null,null,null,null,null,null,null,null,null,null,null,null,null,null,null,null,null,null,null,"55470","美濃赤坂"]
[null,null,null,null,null,null,null,null,null,null,null,null,null,null,null,null,null,null,null,null,null,null,null,null,null,null,null,null,null,null,null,null,null,null,null,null,null,null,null,null,null,null,null,null,null,null,null,null,null,"55472","碧南市"]
[null,null,null,null,null,null,null,null,null,null,null,null,null,null,null,null,null,null,null,null,null,null,null,null,null,null,null,null,null,null,null,null,null,null,null,null,null,null,null,null,null,null,null,null,null,null,null,null,null,"55473","乙女坂"]
[null,null,null,null,null,null,null,null,null,null,null,null,null,null,null,null,null,null,null,null,null,null,null,null,null,null,null,null,null,null,null,null,null,null,null,null,null,null,null,null,null,null,null,null,null,null,null,null,null,"55507","富田"]
[null,null,null,null,null,null,null,null,null,null,null,null,null,null,null,null,null,null,null,null,null,null,null,null,null,null,null,null,null,null,null,null,null,null,null,null,null,null,null,null,null,null,null,null,null,null,null,null,null,"55508","東藤原"]
[null,null,null,null,null,null,null,null,null,null,null,null,null,null,null,null,null,null,null,null,null,null,null,null,null,null,null,null,null,null,null,null,null,null,null,null,null,null,null,null,null,null,null,null,null,null,null,null,null,"55510","四日市"]
[null,null,null,null,null,null,null,null,null,null,null,null,null,null,null,null,null,null,null,null,null,null,null,null,null,null,null,null,null,null,null,null,null,null,null,null,null,null,null,null,null,null,null,null,null,null,null,null,null,"55512","塩浜"]
[null,null,null,null,null,null,null,null,null,null,null,null,null,null,null,null,null,null,null,null,null,null,null,null,null,null,null,null,null,null,null,null,null,null,null,null,null,null,null,null,null,null,null,null,null,null,null,null,null,"55513","南四日市"]
[null,null,null,null,null,null,null,null,null,null,null,null,null,null,null,null,null,null,null,null,null,null,null,null,null,null,null,null,null,null,null,null,null,null,null,null,null,null,null,null,null,null,null,null,null,null,null,null,null,"55604","新守山"]
[null,null,null,null,null,null,null,null,null,null,null,null,null,null,null,null,null,null,null,null,null,null,null,null,null,null,null,null,null,null,null,null,null,null,null,null,null,null,null,null,null,null,null,null,null,null,null,null,null,"55605","春日井"]
[null,null,null,null,null,null,null,null,null,null,null,null,null,null,null,null,null,null,null,null,null,null,null,null,null,null,null,null,null,null,null,null,null,null,null,null,null,null,null,null,null,null,null,null,null,null,null,null,null,"55608","多治見"]
[null,null,null,null,null,null,null,null,null,null,null,null,null,null,null,null,null,null,null,null,null,null,null,null,null,null,null,null,null,null,null,null,null,null,null,null,null,null,null,null,null,null,null,null,null,null,null,null,null,"55702","高月"]
[null,null,null,null,null,null,null,null,null,null,null,null,null,null,null,null,null,null,null,null,null,null,null,null,null,null,null,null,null,null,null,null,null,null,null,null,null,null,null,null,null,null,null,null,null,null,null,null,null,"55704","敦賀"]
[null,null,null,null,null,null,null,null,null,null,null,null,null,null,null,null,null,null,null,null,null,null,null,null,null,null,null,null,null,null,null,null,null,null,null,null,null,null,null,null,null,null,null,null,null,null,null,null,null,"55710","南福井"]
[null,null,null,null,null,null,null,null,null,null,null,null,null,null,null,null,null,null,null,null,null,null,null,null,null,null,null,null,null,null,null,null,null,null,null,null,null,null,null,null,null,null,null,null,null,null,null,null,null,"55716","芦原温泉"]
[null,null,null,null,null,null,null,null,null,null,null,null,null,null,null,null,null,null,null,null,null,null,null,null,null,null,null,null,null,null,null,null,null,null,null,null,null,null,null,null,null,null,null,null,null,null,null,null,null,"55722","松任"]
[null,null,null,null,null,null,null,null,null,null,null,null,null,null,null,null,null,null,null,null,null,null,null,null,null,null,null,null,null,null,null,null,null,null,null,null,null,null,null,null,null,null,null,null,null,null,null,null,null,"55725","金沢貨物ターミナル"]
[null,null,null,null,null,null,null,null,null,null,null,null,null,null,null,null,null,null,null,null,null,null,null,null,null,null,null,null,null,null,null,null,null,null,null,null,null,null,null,null,null,null,null,null,null,null,null,null,null,"55732","越中大門"]
[null,null,null,null,null,null,null,null,null,null,null,null,null,null,null,null,null,null,null,null,null,null,null,null,null,null,null,null,null,null,null,null,null,null,null,null,null,null,null,null,null,null,null,null,null,null,null,null,null,"55737","富山貨物"]
[null,null,null,null,null,null,null,null,null,null,null,null,null,null,null,null,null,null,null,null,null,null,null,null,null,null,null,null,null,null,null,null,null,null,null,null,null,null,null,null,null,null,null,null,null,null,null,null,null,"55740","魚津"]
[null,null,null,null,null,null,null,null,null,null,null,null,null,null,null,null,null,null,null,null,null,null,null,null,null,null,null,null,null,null,null,null,null,null,null,null,null,null,null,null,null,null,null,null,null,null,null,null,null,"55744","青海ORS"]
[null,null,null,null,null,null,null,null,null,null,null,null,null,null,null,null,null,null,null,null,null,null,null,null,null,null,null,null,null,null,null,null,null,null,null,null,null,null,null,null,null,null,null,null,null,null,null,null,null,"55745","糸魚川"]
[null,null,null,null,null,null,null,null,null,null,null,null,null,null,null,null,null,null,null,null,null,null,null,null,null,null,null,null,null,null,null,null,null,null,null,null,null,null,null,null,null,null,null,null,null,null,null,null,null,"55760","敦賀港営業所"]
[null,null,null,null,null,null,null,null,null,null,null,null,null,null,null,null,null,null,null,null,null,null,null,null,null,null,null,null,null,null,null,null,null,null,null,null,null,null,null,null,null,null,null,null,null,null,null,null,null,"55790","二塚"]
[null,null,null,null,null,null,null,null,null,null,null,null,null,null,null,null,null,null,null,null,null,null,null,null,null,null,null,null,null,null,null,null,null,null,null,null,null,null,null,null,null,null,null,null,null,null,null,null,null,"55820","能町"]
[null,null,null,null,null,null,null,null,null,null,null,null,null,null,null,null,null,null,null,null,null,null,null,null,null,null,null,null,null,null,null,null,null,null,null,null,null,null,null,null,null,null,null,null,null,null,null,null,null,"55821","伏木"]
[null,null,null,null,null,null,null,null,null,null,null,null,null,null,null,null,null,null,null,null,null,null,null,null,null,null,null,null,null,null,null,null,null,null,null,null,null,null,null,null,null,null,null,null,null,null,null,null,null,"55823","高岡貨物"]
[null,null,null,null,null,null,null,null,null,null,null,null,null,null,null,null,null,null,null,null,null,null,null,null,null,null,null,null,null,null,null,null,null,null,null,null,null,null,null,null,null,null,null,null,null,null,null,null,null,"55843","速星"]
[null,null,null,null,null,null,null,null,null,null,null,null,null,null,null,null,null,null,null,null,null,null,null,null,null,null,null,null,null,null,null,null,null,null,null,null,null,null,null,null,null,null,null,null,null,null,null,null,null,"55844","西富山"]
[null,null,null,null,null,null,null,null,null,null,null,null,null,null,null,null,null,null,null,null,null,null,null,null,null,null,null,null,null,null,null,null,null,null,null,null,null,null,null,null,null,null,null,null,null,null,null,null,null,"56000","米原"]
[null,null,null,null,null,null,null,null,null,null,null,null,null,null,null,null,null,null,null,null,null,null,null,null,null,null,null,null,null,null,null,null,null,null,null,null,null,null,null,null,null,null,null,null,null,null,null,null,null,"56005","守山"]
[null,null,null,null,null,null,null,null,null,null,null,null,null,null,null,null,null,null,null,null,null,null,null,null,null,null,null,null,null,null,null,null,null,null,null,null,null,null,null,null,null,null,null,null,null,null,null,null,null,"56007","石山"]
[null,null,null,null,null,null,null,null,null,null,null,null,null,null,null,null,null,null,null,null,null,null,null,null,null,null,null,null,null,null,null,null,null,null,null,null,null,null,null,null,null,null,null,null,null,null,null,null,null,"56008","膳所"]
[null,null,null,null,null,null,null,null,null,null,null,null,null,null,null,null,null,null,null,null,null,null,null,null,null,null,null,null,null,null,null,null,null,null,null,null,null,null,null,null,null,null,null,null,null,null,null,null,null,"56011","京都貨物"]
[null,null,null,null,null,null,null,null,null,null,null,null,null,null,null,null,null,null,null,null,null,null,null,null,null,null,null,null,null,null,null,null,null,null,null,null,null,null,null,null,null,null,null,null,null,null,null,null,null,"56012","日向町"]
[null,null,null,null,null,null,null,null,null,null,null,null,null,null,null,null,null,null,null,null,null,null,null,null,null,null,null,null,null,null,null,null,null,null,null,null,null,null,null,null,null,null,null,null,null,null,null,null,null,"56017","吹田貨物ターミナル"]
[null,null,null,null,null,null,null,null,null,null,null,null,null,null,null,null,null,null,null,null,null,null,null,null,null,null,null,null,null,null,null,null,null,null,null,null,null,null,null,null,null,null,null,null,null,null,null,null,null,"56020","大阪貨物ターミナル"]
[null,null,null,null,null,null,null,null,null,null,null,null,null,null,null,null,null,null,null,null,null,null,null,null,null,null,null,null,null,null,null,null,null,null,null,null,null,null,null,null,null,null,null,null,null,null,null,null,null,"56021","梅田"]
[null,null,null,null,null,null,null,null,null,null,null,null,null,null,null,null,null,null,null,null,null,null,null,null,null,null,null,null,null,null,null,null,null,null,null,null,null,null,null,null,null,null,null,null,null,null,null,null,null,"56032","神戸貨物ターミナル"]
[null,null,null,null,null,null,null,null,null,null,null,null,null,null,null,null,null,null,null,null,null,null,null,null,null,null,null,null,null,null,null,null,null,null,null,null,null,null,null,null,null,null,null,null,null,null,null,null,null,"56033","兵庫"]
[null,null,null,null,null,null,null,null,null,null,null,null,null,null,null,null,null,null,null,null,null,null,null,null,null,null,null,null,null,null,null,null,null,null,null,null,null,null,null,null,null,null,null,null,null,null,null,null,null,"56046","宝殿"]
[null,null,null,null,null,null,null,null,null,null,null,null,null,null,null,null,null,null,null,null,null,null,null,null,null,null,null,null,null,null,null,null,null,null,null,null,null,null,null,null,null,null,null,null,null,null,null,null,null,"56048","御着"]
[null,null,null,null,null,null,null,null,null,null,null,null,null,null,null,null,null,null,null,null,null,null,null,null,null,null,null,null,null,null,null,null,null,null,null,null,null,null,null,null,null,null,null,null,null,null,null,null,null,"56049","姫路貨物"]
[null,null,null,null,null,null,null,null,null,null,null,null,null,null,null,null,null,null,null,null,null,null,null,null,null,null,null,null,null,null,null,null,null,null,null,null,null,null,null,null,null,null,null,null,null,null,null,null,null,"56111","徳庵"]
[null,null,null,null,null,null,null,null,null,null,null,null,null,null,null,null,null,null,null,null,null,null,null,null,null,null,null,null,null,null,null,null,null,null,null,null,null,null,null,null,null,null,null,null,null,null,null,null,null,"56131","安治川口"]
[null,null,null,null,null,null,null,null,null,null,null,null,null,null,null,null,null,null,null,null,null,null,null,null,null,null,null,null,null,null,null,null,null,null,null,null,null,null,null,null,null,null,null,null,null,null,null,null,null,"56172","西浜"]
[null,null,null,null,null,null,null,null,null,null,null,null,null,null,null,null,null,null,null,null,null,null,null,null,null,null,null,null,null,null,null,null,null,null,null,null,null,null,null,null,null,null,null,null,null,null,null,null,null,"56215","百済貨物ターミナル"]
[null,null,null,null,null,null,null,null,null,null,null,null,null,null,null,null,null,null,null,null,null,null,null,null,null,null,null,null,null,null,null,null,null,null,null,null,null,null,null,null,null,null,null,null,null,null,null,null,null,"56419","鵜殿"]
[null,null,null,null,null,null,null,null,null,null,null,null,null,null,null,null,null,null,null,null,null,null,null,null,null,null,null,null,null,null,null,null,null,null,null,null,null,null,null,null,null,null,null,null,null,null,null,null,null,"56444","和歌山新営業所"]
[null,null,null,null,null,null,null,null,null,null,null,null,null,null,null,null,null,null,null,null,null,null,null,null,null,null,null,null,null,null,null,null,null,null,null,null,null,null,null,null,null,null,null,null,null,null,null,null,null,"56505","福知山ORS"]
[null,null,null,null,null,null,null,null,null,null,null,null,null,null,null,null,null,null,null,null,null,null,null,null,null,null,null,null,null,null,null,null,null,null,null,null,null,null,null,null,null,null,null,null,null,null,null,null,null,"56609","湖山ORS"]
[null,null,null,null,null,null,null,null,null,null,null,null,null,null,null,null,null,null,null,null,null,null,null,null,null,null,null,null,null,null,null,null,null,null,null,null,null,null,null,null,null,null,null,null,null,null,null,null,null,"56616","伯耆大山"]
[null,null,null,null,null,null,null,null,null,null,null,null,null,null,null,null,null,null,null,null,null,null,null,null,null,null,null,null,null,null,null,null,null,null,null,null,null,null,null,null,null,null,null,null,null,null,null,null,null,"56617","米子"]
[null,null,null,null,null,null,null,null,null,null,null,null,null,null,null,null,null,null,null,null,null,null,null,null,null,null,null,null,null,null,null,null,null,null,null,null,null,null,null,null,null,null,null,null,null,null,null,null,null,"56624","東松江新営業所"]
[null,null,null,null,null,null,null,null,null,null,null,null,null,null,null,null,null,null,null,null,null,null,null,null,null,null,null,null,null,null,null,null,null,null,null,null,null,null,null,null,null,null,null,null,null,null,null,null,null,"56654","岡見"]
[null,null,null,null,null,null,null,null,null,null,null,null,null,null,null,null,null,null,null,null,null,null,null,null,null,null,null,null,null,null,null,null,null,null,null,null,null,null,null,null,null,null,null,null,null,null,null,null,null,"56708","岡山貨物ターミナル"]
[null,null,null,null,null,null,null,null,null,null,null,null,null,null,null,null,null,null,null,null,null,null,null,null,null,null,null,null,null,null,null,null,null,null,null,null,null,null,null,null,null,null,null,null,null,null,null,null,null,"56710","水島臨海鉄道"]
[null,null,null,null,null,null,null,null,null,null,null,null,null,null,null,null,null,null,null,null,null,null,null,null,null,null,null,null,null,null,null,null,null,null,null,null,null,null,null,null,null,null,null,null,null,null,null,null,null,"56716","水島"]
[null,null,null,null,null,null,null,null,null,null,null,null,null,null,null,null,null,null,null,null,null,null,null,null,null,null,null,null,null,null,null,null,null,null,null,null,null,null,null,null,null,null,null,null,null,null,null,null,null,"56712","倉敷貨物ターミナル"]
[null,null,null,null,null,null,null,null,null,null,null,null,null,null,null,null,null,null,null,null,null,null,null,null,null,null,null,null,null,null,null,null,null,null,null,null,null,null,null,null,null,null,null,null,null,null,null,null,null,"56714","東水島"]
[null,null,null,null,null,null,null,null,null,null,null,null,null,null,null,null,null,null,null,null,null,null,null,null,null,null,null,null,null,null,null,null,null,null,null,null,null,null,null,null,null,null,null,null,null,null,null,null,null,"56713","東福山"]
[null,null,null,null,null,null,null,null,null,null,null,null,null,null,null,null,null,null,null,null,null,null,null,null,null,null,null,null,null,null,null,null,null,null,null,null,null,null,null,null,null,null,null,null,null,null,null,null,null,"56715","福山"]
[null,null,null,null,null,null,null,null,null,null,null,null,null,null,null,null,null,null,null,null,null,null,null,null,null,null,null,null,null,null,null,null,null,null,null,null,null,null,null,null,null,null,null,null,null,null,null,null,null,"56717","糸崎"]
[null,null,null,null,null,null,null,null,null,null,null,null,null,null,null,null,null,null,null,null,null,null,null,null,null,null,null,null,null,null,null,null,null,null,null,null,null,null,null,null,null,null,null,null,null,null,null,null,null,"57000","高松"]
[null,null,null,null,null,null,null,null,null,null,null,null,null,null,null,null,null,null,null,null,null,null,null,null,null,null,null,null,null,null,null,null,null,null,null,null,null,null,null,null,null,null,null,null,null,null,null,null,null,"57001","高松貨物ターミナル"]
[null,null,null,null,null,null,null,null,null,null,null,null,null,null,null,null,null,null,null,null,null,null,null,null,null,null,null,null,null,null,null,null,null,null,null,null,null,null,null,null,null,null,null,null,null,null,null,null,null,"57006","多度津"]
[null,null,null,null,null,null,null,null,null,null,null,null,null,null,null,null,null,null,null,null,null,null,null,null,null,null,null,null,null,null,null,null,null,null,null,null,null,null,null,null,null,null,null,null,null,null,null,null,null,"57011","伊予三島"]
[null,null,null,null,null,null,null,null,null,null,null,null,null,null,null,null,null,null,null,null,null,null,null,null,null,null,null,null,null,null,null,null,null,null,null,null,null,null,null,null,null,null,null,null,null,null,null,null,null,"57012","新居浜"]
[null,null,null,null,null,null,null,null,null,null,null,null,null,null,null,null,null,null,null,null,null,null,null,null,null,null,null,null,null,null,null,null,null,null,null,null,null,null,null,null,null,null,null,null,null,null,null,null,null,"57019","松山貨物"]
[null,null,null,null,null,null,null,null,null,null,null,null,null,null,null,null,null,null,null,null,null,null,null,null,null,null,null,null,null,null,null,null,null,null,null,null,null,null,null,null,null,null,null,null,null,null,null,null,null,"57045","高知ORS"]
[null,null,null,null,null,null,null,null,null,null,null,null,null,null,null,null,null,null,null,null,null,null,null,null,null,null,null,null,null,null,null,null,null,null,null,null,null,null,null,null,null,null,null,null,null,null,null,null,null,"57080","徳島ORS"]
[null,null,null,null,null,null,null,null,null,null,null,null,null,null,null,null,null,null,null,null,null,null,null,null,null,null,null,null,null,null,null,null,null,null,null,null,null,null,null,null,null,null,null,null,null,null,null,null,null,"58010","広島貨物ターミナル"]
[null,null,null,null,null,null,null,null,null,null,null,null,null,null,null,null,null,null,null,null,null,null,null,null,null,null,null,null,null,null,null,null,null,null,null,null,null,null,null,null,null,null,null,null,null,null,null,null,null,"58016","大竹"]
[null,null,null,null,null,null,null,null,null,null,null,null,null,null,null,null,null,null,null,null,null,null,null,null,null,null,null,null,null,null,null,null,null,null,null,null,null,null,null,null,null,null,null,null,null,null,null,null,null,"58020","岩国"]
[null,null,null,null,null,null,null,null,null,null,null,null,null,null,null,null,null,null,null,null,null,null,null,null,null,null,null,null,null,null,null,null,null,null,null,null,null,null,null,null,null,null,null,null,null,null,null,null,null,"58027","下松"]
[null,null,null,null,null,null,null,null,null,null,null,null,null,null,null,null,null,null,null,null,null,null,null,null,null,null,null,null,null,null,null,null,null,null,null,null,null,null,null,null,null,null,null,null,null,null,null,null,null,"58030","新南陽"]
[null,null,null,null,null,null,null,null,null,null,null,null,null,null,null,null,null,null,null,null,null,null,null,null,null,null,null,null,null,null,null,null,null,null,null,null,null,null,null,null,null,null,null,null,null,null,null,null,null,"58032","防府貨物新営業所"]
[null,null,null,null,null,null,null,null,null,null,null,null,null,null,null,null,null,null,null,null,null,null,null,null,null,null,null,null,null,null,null,null,null,null,null,null,null,null,null,null,null,null,null,null,null,null,null,null,null,"58041","宇部"]
[null,null,null,null,null,null,null,null,null,null,null,null,null,null,null,null,null,null,null,null,null,null,null,null,null,null,null,null,null,null,null,null,null,null,null,null,null,null,null,null,null,null,null,null,null,null,null,null,null,"58043","厚狭"]
[null,null,null,null,null,null,null,null,null,null,null,null,null,null,null,null,null,null,null,null,null,null,null,null,null,null,null,null,null,null,null,null,null,null,null,null,null,null,null,null,null,null,null,null,null,null,null,null,null,"58048","新下関"]
[null,null,null,null,null,null,null,null,null,null,null,null,null,null,null,null,null,null,null,null,null,null,null,null,null,null,null,null,null,null,null,null,null,null,null,null,null,null,null,null,null,null,null,null,null,null,null,null,null,"58051","下関"]
[null,null,null,null,null,null,null,null,null,null,null,null,null,null,null,null,null,null,null,null,null,null,null,null,null,null,null,null,null,null,null,null,null,null,null,null,null,null,null,null,null,null,null,null,null,null,null,null,null,"58104","宇部岬"]
[null,null,null,null,null,null,null,null,null,null,null,null,null,null,null,null,null,null,null,null,null,null,null,null,null,null,null,null,null,null,null,null,null,null,null,null,null,null,null,null,null,null,null,null,null,null,null,null,null,"58122","美祢"]
[null,null,null,null,null,null,null,null,null,null,null,null,null,null,null,null,null,null,null,null,null,null,null,null,null,null,null,null,null,null,null,null,null,null,null,null,null,null,null,null,null,null,null,null,null,null,null,null,null,"58123","重安"]
[null,null,null,null,null,null,null,null,null,null,null,null,null,null,null,null,null,null,null,null,null,null,null,null,null,null,null,null,null,null,null,null,null,null,null,null,null,null,null,null,null,null,null,null,null,null,null,null,null,"59005","北九州貨物ターミナル"]
[null,null,null,null,null,null,null,null,null,null,null,null,null,null,null,null,null,null,null,null,null,null,null,null,null,null,null,null,null,null,null,null,null,null,null,null,null,null,null,null,null,null,null,null,null,null,null,null,null,"59006","東小倉"]
[null,null,null,null,null,null,null,null,null,null,null,null,null,null,null,null,null,null,null,null,null,null,null,null,null,null,null,null,null,null,null,null,null,null,null,null,null,null,null,null,null,null,null,null,null,null,null,null,null,"59007","浜小倉"]
[null,null,null,null,null,null,null,null,null,null,null,null,null,null,null,null,null,null,null,null,null,null,null,null,null,null,null,null,null,null,null,null,null,null,null,null,null,null,null,null,null,null,null,null,null,null,null,null,null,"59012","黒崎"]
[null,null,null,null,null,null,null,null,null,null,null,null,null,null,null,null,null,null,null,null,null,null,null,null,null,null,null,null,null,null,null,null,null,null,null,null,null,null,null,null,null,null,null,null,null,null,null,null,null,"59019","福岡貨物ターミナル"]
[null,null,null,null,null,null,null,null,null,null,null,null,null,null,null,null,null,null,null,null,null,null,null,null,null,null,null,null,null,null,null,null,null,null,null,null,null,null,null,null,null,null,null,null,null,null,null,null,null,"59032","鳥栖貨物ターミナル"]
[null,null,null,null,null,null,null,null,null,null,null,null,null,null,null,null,null,null,null,null,null,null,null,null,null,null,null,null,null,null,null,null,null,null,null,null,null,null,null,null,null,null,null,null,null,null,null,null,null,"59033","久留米"]
[null,null,null,null,null,null,null,null,null,null,null,null,null,null,null,null,null,null,null,null,null,null,null,null,null,null,null,null,null,null,null,null,null,null,null,null,null,null,null,null,null,null,null,null,null,null,null,null,null,"59103","鍋島"]
[null,null,null,null,null,null,null,null,null,null,null,null,null,null,null,null,null,null,null,null,null,null,null,null,null,null,null,null,null,null,null,null,null,null,null,null,null,null,null,null,null,null,null,null,null,null,null,null,null,"59118","長崎ORS"]
[null,null,null,null,null,null,null,null,null,null,null,null,null,null,null,null,null,null,null,null,null,null,null,null,null,null,null,null,null,null,null,null,null,null,null,null,null,null,null,null,null,null,null,null,null,null,null,null,null,"59144","有田ORS"]
[null,null,null,null,null,null,null,null,null,null,null,null,null,null,null,null,null,null,null,null,null,null,null,null,null,null,null,null,null,null,null,null,null,null,null,null,null,null,null,null,null,null,null,null,null,null,null,null,null,"59204","苅田港"]
[null,null,null,null,null,null,null,null,null,null,null,null,null,null,null,null,null,null,null,null,null,null,null,null,null,null,null,null,null,null,null,null,null,null,null,null,null,null,null,null,null,null,null,null,null,null,null,null,null,"59410","西大分"]
[null,null,null,null,null,null,null,null,null,null,null,null,null,null,null,null,null,null,null,null,null,null,null,null,null,null,null,null,null,null,null,null,null,null,null,null,null,null,null,null,null,null,null,null,null,null,null,null,null,"59413","鶴崎"]
[null,null,null,null,null,null,null,null,null,null,null,null,null,null,null,null,null,null,null,null,null,null,null,null,null,null,null,null,null,null,null,null,null,null,null,null,null,null,null,null,null,null,null,null,null,null,null,null,null,"59420","延岡"]
[null,null,null,null,null,null,null,null,null,null,null,null,null,null,null,null,null,null,null,null,null,null,null,null,null,null,null,null,null,null,null,null,null,null,null,null,null,null,null,null,null,null,null,null,null,null,null,null,null,"59423","南延岡"]
[null,null,null,null,null,null,null,null,null,null,null,null,null,null,null,null,null,null,null,null,null,null,null,null,null,null,null,null,null,null,null,null,null,null,null,null,null,null,null,null,null,null,null,null,null,null,null,null,null,"59508","大牟田ORS"]
[null,null,null,null,null,null,null,null,null,null,null,null,null,null,null,null,null,null,null,null,null,null,null,null,null,null,null,null,null,null,null,null,null,null,null,null,null,null,null,null,null,null,null,null,null,null,null,null,null,"59516","熊本"]
[null,null,null,null,null,null,null,null,null,null,null,null,null,null,null,null,null,null,null,null,null,null,null,null,null,null,null,null,null,null,null,null,null,null,null,null,null,null,null,null,null,null,null,null,null,null,null,null,null,"59530","八代"]
[null,null,null,null,null,null,null,null,null,null,null,null,null,null,null,null,null,null,null,null,null,null,null,null,null,null,null,null,null,null,null,null,null,null,null,null,null,null,null,null,null,null,null,null,null,null,null,null,null,"59603","川内"]
[null,null,null,null,null,null,null,null,null,null,null,null,null,null,null,null,null,null,null,null,null,null,null,null,null,null,null,null,null,null,null,null,null,null,null,null,null,null,null,null,null,null,null,null,null,null,null,null,null,"59606","鹿児島貨物ターミナル"]
[null,null,null,null,null,null,null,null,null,null,null,null,null,null,null,null,null,null,null,null,null,null,null,null,null,null,null,null,null,null,null,null,null,null,null,null,null,null,null,null,null,null,null,null,null,null,null,null,null,"59650","佐土原ORS"]
[null,null,null,null,null,null,null,null,null,null,null,null,null,null,null,null,null,null,null,null,null,null,null,null,null,null,null,null,null,null,null,null,null,null,null,null,null,null,null,null,null,null,null,null,null,null,null,null,null,"59654","都城ORS"]
[null,null,null,null,null,null,null,null,null,null,null,null,null,null,null,null,null,null,null,null,null,null,null,null,null,null,null,null,null,null,null,null,null,null,null,null,null,null,null,null,null,null,null,null,null,null,null,null,null,"59990","鉄道その他駅"]

{"sheet":"港湾補助","index":6,"n_rows":510,"n_cols":45,"rows_kept":510,"cut":false,"hidden":true,"merged":[]}
["都道府県",null,"北海道","青森","岩手","宮城","秋田","山形","福島","茨城","千葉","東京","神奈川","新潟","富山","石川","福井","静岡","愛知","三重","京都","大阪","兵庫","和歌山","鳥取","島根","岡山","広島","山口","徳島","香川","愛媛","高知","福岡","佐賀","長崎","熊本","大分","宮崎","鹿児島","沖縄","港湾不明",null,"CODE","港湾名"]
["北海道",null,"室蘭","青森","宮古","仙台塩釜","秋田","酒田","小名浜","鹿島","千葉","東京","横浜","新潟","伏木富山","七尾","敦賀","清水","名古屋","四日市","舞鶴","大阪","神戸","和歌山下津","米子","浜田","宇野","福山","下関","徳島小松島","高松","松山","高知","北九州","唐津","長崎","三角","大分","細島","鹿児島","那覇","港湾不明",null,"01001","室蘭"]
["青森",null,"稚内","八戸","大船渡","石巻","船川","鼠ヶ関","久ノ浜","茨城","木更津","元町","川崎","両津","魚津","金沢","福井","田子の浦","衣浦","尾鷲","久美浜","堺泉北","姫路","文里","赤碕","西郷","水島","尾道糸崎","徳山下松","橘","坂出","宇和島","須崎","博多","伊万里","厳原","八代","津久見","油津","西之表","運天",null,null,"01002","稚内"]
["岩手",null,"苫小牧","大間","釜石","女川","能代","飛島","相馬","那珂湊","館山","岡田","横須賀","直江津","富山その他","飯田","内浦","沼津","三河","桑名","宮津","阪南","尼崎西宮芦屋","由良(和歌山)","鳥取","松江","岡山","広島","岩国","撫養","引田","新居浜","甲浦","苅田","住江","郷ノ浦","水俣","別府(大分)","内海(宮崎)","名瀬","平良",null,null,"01003","苫小牧"]
["宮城",null,"函館","大湊","八木","気仙沼","本荘","山形その他","福島その他","茨城その他","興津","波浮","大磯(神奈川)","柏崎",null,"輪島","福井その他","土肥","師崎","津松阪","京都その他","深日","東播磨","加太","境","益田","東備","呉","三田尻中関","今切","津田","今治","奈半利","大島(福岡)","呼子","福江","佐敷","臼杵","延岡","米ノ津","石垣",null,null,"01004","函館"]
["秋田",null,"小樽","野辺地","久慈","浦ノ浜","秋田その他",null,null,null,"浜金谷","新島","三崎(神奈川)","寺泊",null,"石川その他",null,"松崎","常滑","吉津",null,"泉佐野","明石","湯浅広","鳥取その他","七類","牛窓","瀬戸田","宇部","富岡(徳島)","直島","八幡浜","手結","宇島","仮屋","佐世保","長洲","姫島","延岡新","宮之浦","渡久地",null,null,"01005","小樽"]
["山形",null,"釧路","尻屋岬","岩手その他","宮城その他",null,null,null,null,"銚子","神津島","神奈川その他","岩船",null,null,null,"伊東","伊良湖","鳥羽",null,"大阪その他","岩屋","宇久井",null,"江津","山田","重井","小野田","日和佐","丸亀","東予","土佐清水","大牟田","佐賀その他","島原","富岡(熊本)","国東","宮崎","川内","伊江",null,null,"01006","釧路"]
["福島",null,"留萌","むつ小川原",null,null,null,null,null,null,"千葉その他","大久保",null,"赤泊",null,null,null,"熱海","東幡豆","鵜殿",null,null,"津名","日置",null,"安来","北木島","土生","柳井","粟津","多度津","三島川之江","足摺","三池(福岡)",null,"比田勝","鬼池","日出","土々呂","指宿","本部",null,null,"01007","留萌"]
["茨城",null,"江差","大畑",null,null,null,null,null,null,null,"八重根",null,"姫川",null,null,null,"下田","河和","三重その他",null,null,"洲本","日高",null,"別府(島根)","下津井","大西","萩","徳島その他","詫間","伯方","宿毛湾","福岡その他",null,"茂木","本渡","佐賀関","宮崎その他","加治木","伊平屋島",null,null,"01009","江差"]
["千葉",null,"瀬棚","青森その他",null,null,null,null,null,null,null,"利島",null,"小木",null,null,null,"大井川","日間賀",null,null,null,"相生","大島(和歌山)",null,"来居","笠岡","忠海","山口",null,"仁尾","菊間","高知その他",null,null,"有川","赤崎","佐伯",null,"垂水","仲田",null,null,"01010","瀬棚"]
["東京",null,"奥尻",null,null,null,null,null,null,null,null,"御蔵島",null,"相川",null,null,null,"御前崎","篠島",null,null,null,"赤穂","新宮",null,"温泉津","児島","竹原","平生",null,"池田","中島",null,null,null,"崎戸","中田","中津",null,"桜島","北大東島",null,null,"01011","奥尻"]
["神奈川",null,"岩内",null,null,null,null,null,null,null,null,"三池(東京)",null,"新潟その他",null,null,null,"焼津","西浦",null,null,null,"由良(兵庫)","田辺",null,"海士","寒河","木江","仙崎",null,"土庄","松前(愛媛)",null,null,null,"田平","大道","伊美",null,"鹿屋","南大東島",null,null,"01014","岩内"]
["新潟",null,"浦河",null,null,null,null,null,null,null,null,"青ヶ島",null,null,null,null,null,"静浦","愛知その他",null,null,null,"福良","串本",null,"三隅","玉津","御手洗","須佐",null,"坂手","伊予",null,null,null,"伊王島","牛深","熊毛",null,"根占","粟国島",null,null,"01015","浦河"]
["富山",null,"根室",null,null,null,null,null,null,null,null,"式根島",null,null,null,null,null,"静岡その他",null,null,null,null,"湊","和歌山その他",null,"隠岐諸","前島","安芸津","山口その他",null,"大部","長浜(愛媛)",null,null,null,"須川","田浦","守江",null,"志布志","兼城",null,null,"01017","根室"]
["石川",null,"羽幌",null,null,null,null,null,null,null,null,"二見",null,null,null,null,null,null,null,null,null,null,"家島",null,null,"菱浦","豊浦","蒲刈",null,null,"内海(香川)","御荘",null,null,null,"口之津","熊本","竹田津",null,"島間","渡嘉敷島",null,null,"01019","羽幌"]
["福井",null,"焼尻",null,null,null,null,null,null,null,null,"沖",null,null,null,null,null,null,null,null,null,null,"大磯(兵庫)",null,null,"美保関","白石島","川尻",null,null,"観音寺","弓削",null,null,null,"馬込","松島(熊本)","大分その他",null,"平土野","座間味島",null,null,"01020","焼尻"]
["静岡",null,"天売",null,null,null,null,null,null,null,null,"八丈島",null,null,null,null,null,null,null,null,null,null,"兵庫その他",null,null,"島根その他","金風呂","大柿",null,null,"土庄東","波止浜",null,null,null,"高島","熊本その他",null,null,"湾","長山",null,null,"01021","天売"]
["愛知",null,"鴛泊",null,null,null,null,null,null,null,null,"東京その他",null,null,null,null,null,null,null,null,null,null,null,null,null,null,"岡山その他","厳島",null,null,"家浦","波方",null,null,null,"小長井",null,null,null,"亀徳","前泊",null,null,"01024","鴛泊"]
["三重",null,"枝幸",null,null,null,null,null,null,null,null,null,null,null,null,null,null,null,null,null,null,null,null,null,null,null,null,"大竹",null,null,"宮浦(香川)","三崎(愛媛)",null,null,null,"勝本",null,null,null,"和泊","小浜島",null,null,"01026","枝幸"]
["京都",null,"香深",null,null,null,null,null,null,null,null,null,null,null,null,null,null,null,null,null,null,null,null,null,null,null,null,"佐木",null,null,"青木","宮浦(愛媛)",null,null,null,"平戸",null,null,null,"与論","黒島",null,null,"01028","香深"]
["大阪",null,"沓形",null,null,null,null,null,null,null,null,null,null,null,null,null,null,null,null,null,null,null,null,null,null,null,null,"小用",null,null,"手島","大見",null,null,null,"印通寺",null,null,null,"古仁屋","白浜",null,null,"01029","沓形"]
["兵庫",null,"網走",null,null,null,null,null,null,null,null,null,null,null,null,null,null,null,null,null,null,null,null,null,null,null,null,"生口",null,null,"女木島","井口",null,null,null,"大村",null,null,null,"竹島","船浦",null,null,"01030","網走"]
["和歌山",null,"松前(北海道)",null,null,null,null,null,null,null,null,null,null,null,null,null,null,null,null,null,null,null,null,null,null,null,null,"三高",null,null,"男木島","岡村島",null,null,null,"岐宿",null,null,null,"岩屋泊","鳩間島",null,null,"01032","松前(北海道)"]
["鳥取",null,"十勝",null,null,null,null,null,null,null,null,null,null,null,null,null,null,null,null,null,null,null,null,null,null,null,null,"大須",null,null,"江浦","大下",null,null,null,"若松",null,null,null,"長浜(鹿児島)","祖納",null,null,"01035","十勝"]
["島根",null,"石狩湾新",null,null,null,null,null,null,null,null,null,null,null,null,null,null,null,null,null,null,null,null,null,null,null,null,"福田(広島)",null,null,"本島","小漕",null,null,null,"池島",null,null,null,"片側","金武湾",null,null,"01046","石狩湾新"]
["岡山",null,"紋別",null,null,null,null,null,null,null,null,null,null,null,null,null,null,null,null,null,null,null,null,null,null,null,null,"須波",null,null,"小豆島","長江",null,null,null,"調川",null,null,null,"里","中城湾",null,null,"01048","紋別"]
["広島",null,"白老",null,null,null,null,null,null,null,null,null,null,null,null,null,null,null,null,null,null,null,null,null,null,null,null,"契島",null,null,"福田(香川)","生名島",null,null,null,"青方",null,null,null,"喜入","宜野湾",null,null,"01049","白老"]
["山口",null,"様似",null,null,null,null,null,null,null,null,null,null,null,null,null,null,null,null,null,null,null,null,null,null,null,null,"因島",null,null,"香川その他","堀江",null,null,null,"松島(長崎)",null,null,null,"諸浦","沖縄その他",null,null,"01203","様似"]
["徳島",null,"北海道その他",null,null,null,null,null,null,null,null,null,null,null,null,null,null,null,null,null,null,null,null,null,null,null,null,"江田島",null,null,null,"岩城",null,null,null,"川棚",null,null,null,"串木野新",null,null,null,"01998","北海道その他"]
["香川",null,null,null,null,null,null,null,null,null,null,null,null,null,null,null,null,null,null,null,null,null,null,null,null,null,null,"広島その他",null,null,null,"九島",null,null,null,"多比良",null,null,null,"知名",null,null,null,"02001","青森"]
["愛媛",null,null,null,null,null,null,null,null,null,null,null,null,null,null,null,null,null,null,null,null,null,null,null,null,null,null,null,null,null,null,"下田水",null,null,null,"太田和",null,null,null,"阿久根",null,null,null,"02002","八戸"]
["高知",null,null,null,null,null,null,null,null,null,null,null,null,null,null,null,null,null,null,null,null,null,null,null,null,null,null,null,null,null,null,"大三島",null,null,null,"奈留島",null,null,null,"山川",null,null,null,"02003","大間"]
["福岡",null,null,null,null,null,null,null,null,null,null,null,null,null,null,null,null,null,null,null,null,null,null,null,null,null,null,null,null,null,null,"愛媛その他",null,null,null,"相浦",null,null,null,"蔵之元",null,null,null,"02005","大湊"]
["佐賀",null,null,null,null,null,null,null,null,null,null,null,null,null,null,null,null,null,null,null,null,null,null,null,null,null,null,null,null,null,null,null,null,null,null,"福島",null,null,null,"枕崎",null,null,null,"02006","野辺地"]
["長崎",null,null,null,null,null,null,null,null,null,null,null,null,null,null,null,null,null,null,null,null,null,null,null,null,null,null,null,null,null,null,null,null,null,null,"松浦",null,null,null,"手打",null,null,null,"02009","尻屋岬"]
["熊本",null,null,null,null,null,null,null,null,null,null,null,null,null,null,null,null,null,null,null,null,null,null,null,null,null,null,null,null,null,null,null,null,null,null,"大瀬戸柳",null,null,null,"鹿児島その他",null,null,null,"02012","むつ小川原"]
["大分",null,null,null,null,null,null,null,null,null,null,null,null,null,null,null,null,null,null,null,null,null,null,null,null,null,null,null,null,null,null,null,null,null,null,"床浪",null,null,null,null,null,null,null,"02202","大畑"]
["宮崎",null,null,null,null,null,null,null,null,null,null,null,null,null,null,null,null,null,null,null,null,null,null,null,null,null,null,null,null,null,null,null,null,null,null,"面高",null,null,null,null,null,null,null,"02998","青森その他"]
["鹿児島",null,null,null,null,null,null,null,null,null,null,null,null,null,null,null,null,null,null,null,null,null,null,null,null,null,null,null,null,null,null,null,null,null,null,"榎津",null,null,null,null,null,null,null,"03001","宮古"]
["沖縄",null,null,null,null,null,null,null,null,null,null,null,null,null,null,null,null,null,null,null,null,null,null,null,null,null,null,null,null,null,null,null,null,null,null,"郷ノ首",null,null,null,null,null,null,null,"03002","大船渡"]
["港湾不明",null,null,null,null,null,null,null,null,null,null,null,null,null,null,null,null,null,null,null,null,null,null,null,null,null,null,null,null,null,null,null,null,null,null,"神ノ浦",null,null,null,null,null,null,null,"03003","釜石"]
[null,null,null,null,null,null,null,null,null,null,null,null,null,null,null,null,null,null,null,null,null,null,null,null,null,null,null,null,null,null,null,null,null,null,null,"小値賀",null,null,null,null,null,null,null,"03005","八木"]
[null,null,null,null,null,null,null,null,null,null,null,null,null,null,null,null,null,null,null,null,null,null,null,null,null,null,null,null,null,null,null,null,null,null,null,"生月島",null,null,null,null,null,null,null,"03006","久慈"]
[null,null,null,null,null,null,null,null,null,null,null,null,null,null,null,null,null,null,null,null,null,null,null,null,null,null,null,null,null,null,null,null,null,null,null,"芦辺",null,null,null,null,null,null,null,"03998","岩手その他"]
[null,null,null,null,null,null,null,null,null,null,null,null,null,null,null,null,null,null,null,null,null,null,null,null,null,null,null,null,null,null,null,null,null,null,null,"奈良尾",null,null,null,null,null,null,null,"04001","仙台塩釜"]
[null,null,null,null,null,null,null,null,null,null,null,null,null,null,null,null,null,null,null,null,null,null,null,null,null,null,null,null,null,null,null,null,null,null,null,"宇久島",null,null,null,null,null,null,null,"04002","石巻"]
[null,null,null,null,null,null,null,null,null,null,null,null,null,null,null,null,null,null,null,null,null,null,null,null,null,null,null,null,null,null,null,null,null,null,null,"長崎その他",null,null,null,null,null,null,null,"04006","女川"]
[null,null,null,null,null,null,null,null,null,null,null,null,null,null,null,null,null,null,null,null,null,null,null,null,null,null,null,null,null,null,null,null,null,null,null,null,null,null,null,null,null,null,null,"04008","気仙沼"]
[null,null,null,null,null,null,null,null,null,null,null,null,null,null,null,null,null,null,null,null,null,null,null,null,null,null,null,null,null,null,null,null,null,null,null,null,null,null,null,null,null,null,null,"04203","浦ノ浜"]
[null,null,null,null,null,null,null,null,null,null,null,null,null,null,null,null,null,null,null,null,null,null,null,null,null,null,null,null,null,null,null,null,null,null,null,null,null,null,null,null,null,null,null,"04998","宮城その他"]
[null,null,null,null,null,null,null,null,null,null,null,null,null,null,null,null,null,null,null,null,null,null,null,null,null,null,null,null,null,null,null,null,null,null,null,null,null,null,null,null,null,null,null,"05001","秋田"]
[null,null,null,null,null,null,null,null,null,null,null,null,null,null,null,null,null,null,null,null,null,null,null,null,null,null,null,null,null,null,null,null,null,null,null,null,null,null,null,null,null,null,null,"05002","船川"]
[null,null,null,null,null,null,null,null,null,null,null,null,null,null,null,null,null,null,null,null,null,null,null,null,null,null,null,null,null,null,null,null,null,null,null,null,null,null,null,null,null,null,null,"05003","能代"]
[null,null,null,null,null,null,null,null,null,null,null,null,null,null,null,null,null,null,null,null,null,null,null,null,null,null,null,null,null,null,null,null,null,null,null,null,null,null,null,null,null,null,null,"05004","本荘"]
[null,null,null,null,null,null,null,null,null,null,null,null,null,null,null,null,null,null,null,null,null,null,null,null,null,null,null,null,null,null,null,null,null,null,null,null,null,null,null,null,null,null,null,"05998","秋田その他"]
[null,null,null,null,null,null,null,null,null,null,null,null,null,null,null,null,null,null,null,null,null,null,null,null,null,null,null,null,null,null,null,null,null,null,null,null,null,null,null,null,null,null,null,"06001","酒田"]
[null,null,null,null,null,null,null,null,null,null,null,null,null,null,null,null,null,null,null,null,null,null,null,null,null,null,null,null,null,null,null,null,null,null,null,null,null,null,null,null,null,null,null,"06002","鼠ヶ関"]
[null,null,null,null,null,null,null,null,null,null,null,null,null,null,null,null,null,null,null,null,null,null,null,null,null,null,null,null,null,null,null,null,null,null,null,null,null,null,null,null,null,null,null,"06201","飛島"]
[null,null,null,null,null,null,null,null,null,null,null,null,null,null,null,null,null,null,null,null,null,null,null,null,null,null,null,null,null,null,null,null,null,null,null,null,null,null,null,null,null,null,null,"06998","山形その他"]
[null,null,null,null,null,null,null,null,null,null,null,null,null,null,null,null,null,null,null,null,null,null,null,null,null,null,null,null,null,null,null,null,null,null,null,null,null,null,null,null,null,null,null,"07001","小名浜"]
[null,null,null,null,null,null,null,null,null,null,null,null,null,null,null,null,null,null,null,null,null,null,null,null,null,null,null,null,null,null,null,null,null,null,null,null,null,null,null,null,null,null,null,"07003","久ノ浜"]
[null,null,null,null,null,null,null,null,null,null,null,null,null,null,null,null,null,null,null,null,null,null,null,null,null,null,null,null,null,null,null,null,null,null,null,null,null,null,null,null,null,null,null,"07008","相馬"]
[null,null,null,null,null,null,null,null,null,null,null,null,null,null,null,null,null,null,null,null,null,null,null,null,null,null,null,null,null,null,null,null,null,null,null,null,null,null,null,null,null,null,null,"07998","福島その他"]
[null,null,null,null,null,null,null,null,null,null,null,null,null,null,null,null,null,null,null,null,null,null,null,null,null,null,null,null,null,null,null,null,null,null,null,null,null,null,null,null,null,null,null,"08001","鹿島"]
[null,null,null,null,null,null,null,null,null,null,null,null,null,null,null,null,null,null,null,null,null,null,null,null,null,null,null,null,null,null,null,null,null,null,null,null,null,null,null,null,null,null,null,"08099","茨城"]
[null,null,null,null,null,null,null,null,null,null,null,null,null,null,null,null,null,null,null,null,null,null,null,null,null,null,null,null,null,null,null,null,null,null,null,null,null,null,null,null,null,null,null,"08201","那珂湊"]
[null,null,null,null,null,null,null,null,null,null,null,null,null,null,null,null,null,null,null,null,null,null,null,null,null,null,null,null,null,null,null,null,null,null,null,null,null,null,null,null,null,null,null,"08998","茨城その他"]
[null,null,null,null,null,null,null,null,null,null,null,null,null,null,null,null,null,null,null,null,null,null,null,null,null,null,null,null,null,null,null,null,null,null,null,null,null,null,null,null,null,null,null,"12001","千葉"]
[null,null,null,null,null,null,null,null,null,null,null,null,null,null,null,null,null,null,null,null,null,null,null,null,null,null,null,null,null,null,null,null,null,null,null,null,null,null,null,null,null,null,null,"12002","木更津"]
[null,null,null,null,null,null,null,null,null,null,null,null,null,null,null,null,null,null,null,null,null,null,null,null,null,null,null,null,null,null,null,null,null,null,null,null,null,null,null,null,null,null,null,"12003","館山"]
[null,null,null,null,null,null,null,null,null,null,null,null,null,null,null,null,null,null,null,null,null,null,null,null,null,null,null,null,null,null,null,null,null,null,null,null,null,null,null,null,null,null,null,"12004","興津"]
[null,null,null,null,null,null,null,null,null,null,null,null,null,null,null,null,null,null,null,null,null,null,null,null,null,null,null,null,null,null,null,null,null,null,null,null,null,null,null,null,null,null,null,"12008","浜金谷"]
[null,null,null,null,null,null,null,null,null,null,null,null,null,null,null,null,null,null,null,null,null,null,null,null,null,null,null,null,null,null,null,null,null,null,null,null,null,null,null,null,null,null,null,"12202","銚子"]
[null,null,null,null,null,null,null,null,null,null,null,null,null,null,null,null,null,null,null,null,null,null,null,null,null,null,null,null,null,null,null,null,null,null,null,null,null,null,null,null,null,null,null,"12998","千葉その他"]
[null,null,null,null,null,null,null,null,null,null,null,null,null,null,null,null,null,null,null,null,null,null,null,null,null,null,null,null,null,null,null,null,null,null,null,null,null,null,null,null,null,null,null,"13001","東京"]
[null,null,null,null,null,null,null,null,null,null,null,null,null,null,null,null,null,null,null,null,null,null,null,null,null,null,null,null,null,null,null,null,null,null,null,null,null,null,null,null,null,null,null,"13002","元町"]
[null,null,null,null,null,null,null,null,null,null,null,null,null,null,null,null,null,null,null,null,null,null,null,null,null,null,null,null,null,null,null,null,null,null,null,null,null,null,null,null,null,null,null,"13003","岡田"]
[null,null,null,null,null,null,null,null,null,null,null,null,null,null,null,null,null,null,null,null,null,null,null,null,null,null,null,null,null,null,null,null,null,null,null,null,null,null,null,null,null,null,null,"13004","波浮"]
[null,null,null,null,null,null,null,null,null,null,null,null,null,null,null,null,null,null,null,null,null,null,null,null,null,null,null,null,null,null,null,null,null,null,null,null,null,null,null,null,null,null,null,"13005","新島"]
[null,null,null,null,null,null,null,null,null,null,null,null,null,null,null,null,null,null,null,null,null,null,null,null,null,null,null,null,null,null,null,null,null,null,null,null,null,null,null,null,null,null,null,"13006","神津島"]
[null,null,null,null,null,null,null,null,null,null,null,null,null,null,null,null,null,null,null,null,null,null,null,null,null,null,null,null,null,null,null,null,null,null,null,null,null,null,null,null,null,null,null,"13007","大久保"]
[null,null,null,null,null,null,null,null,null,null,null,null,null,null,null,null,null,null,null,null,null,null,null,null,null,null,null,null,null,null,null,null,null,null,null,null,null,null,null,null,null,null,null,"13008","八重根"]
[null,null,null,null,null,null,null,null,null,null,null,null,null,null,null,null,null,null,null,null,null,null,null,null,null,null,null,null,null,null,null,null,null,null,null,null,null,null,null,null,null,null,null,"13010","利島"]
[null,null,null,null,null,null,null,null,null,null,null,null,null,null,null,null,null,null,null,null,null,null,null,null,null,null,null,null,null,null,null,null,null,null,null,null,null,null,null,null,null,null,null,"13011","御蔵島"]
[null,null,null,null,null,null,null,null,null,null,null,null,null,null,null,null,null,null,null,null,null,null,null,null,null,null,null,null,null,null,null,null,null,null,null,null,null,null,null,null,null,null,null,"13012","三池(東京)"]
[null,null,null,null,null,null,null,null,null,null,null,null,null,null,null,null,null,null,null,null,null,null,null,null,null,null,null,null,null,null,null,null,null,null,null,null,null,null,null,null,null,null,null,"13013","青ヶ島"]
[null,null,null,null,null,null,null,null,null,null,null,null,null,null,null,null,null,null,null,null,null,null,null,null,null,null,null,null,null,null,null,null,null,null,null,null,null,null,null,null,null,null,null,"13014","式根島"]
[null,null,null,null,null,null,null,null,null,null,null,null,null,null,null,null,null,null,null,null,null,null,null,null,null,null,null,null,null,null,null,null,null,null,null,null,null,null,null,null,null,null,null,"13015","二見"]
[null,null,null,null,null,null,null,null,null,null,null,null,null,null,null,null,null,null,null,null,null,null,null,null,null,null,null,null,null,null,null,null,null,null,null,null,null,null,null,null,null,null,null,"13017","沖"]
[null,null,null,null,null,null,null,null,null,null,null,null,null,null,null,null,null,null,null,null,null,null,null,null,null,null,null,null,null,null,null,null,null,null,null,null,null,null,null,null,null,null,null,"13203","八丈島"]
[null,null,null,null,null,null,null,null,null,null,null,null,null,null,null,null,null,null,null,null,null,null,null,null,null,null,null,null,null,null,null,null,null,null,null,null,null,null,null,null,null,null,null,"13998","東京その他"]
[null,null,null,null,null,null,null,null,null,null,null,null,null,null,null,null,null,null,null,null,null,null,null,null,null,null,null,null,null,null,null,null,null,null,null,null,null,null,null,null,null,null,null,"14001","横浜"]
[null,null,null,null,null,null,null,null,null,null,null,null,null,null,null,null,null,null,null,null,null,null,null,null,null,null,null,null,null,null,null,null,null,null,null,null,null,null,null,null,null,null,null,"14002","川崎"]
[null,null,null,null,null,null,null,null,null,null,null,null,null,null,null,null,null,null,null,null,null,null,null,null,null,null,null,null,null,null,null,null,null,null,null,null,null,null,null,null,null,null,null,"14003","横須賀"]
[null,null,null,null,null,null,null,null,null,null,null,null,null,null,null,null,null,null,null,null,null,null,null,null,null,null,null,null,null,null,null,null,null,null,null,null,null,null,null,null,null,null,null,"14004","大磯(神奈川)"]
[null,null,null,null,null,null,null,null,null,null,null,null,null,null,null,null,null,null,null,null,null,null,null,null,null,null,null,null,null,null,null,null,null,null,null,null,null,null,null,null,null,null,null,"14201","三崎(神奈川)"]
[null,null,null,null,null,null,null,null,null,null,null,null,null,null,null,null,null,null,null,null,null,null,null,null,null,null,null,null,null,null,null,null,null,null,null,null,null,null,null,null,null,null,null,"14998","神奈川その他"]
[null,null,null,null,null,null,null,null,null,null,null,null,null,null,null,null,null,null,null,null,null,null,null,null,null,null,null,null,null,null,null,null,null,null,null,null,null,null,null,null,null,null,null,"15001","新潟"]
[null,null,null,null,null,null,null,null,null,null,null,null,null,null,null,null,null,null,null,null,null,null,null,null,null,null,null,null,null,null,null,null,null,null,null,null,null,null,null,null,null,null,null,"15002","両津"]
[null,null,null,null,null,null,null,null,null,null,null,null,null,null,null,null,null,null,null,null,null,null,null,null,null,null,null,null,null,null,null,null,null,null,null,null,null,null,null,null,null,null,null,"15003","直江津"]
[null,null,null,null,null,null,null,null,null,null,null,null,null,null,null,null,null,null,null,null,null,null,null,null,null,null,null,null,null,null,null,null,null,null,null,null,null,null,null,null,null,null,null,"15004","柏崎"]
[null,null,null,null,null,null,null,null,null,null,null,null,null,null,null,null,null,null,null,null,null,null,null,null,null,null,null,null,null,null,null,null,null,null,null,null,null,null,null,null,null,null,null,"15005","寺泊"]
[null,null,null,null,null,null,null,null,null,null,null,null,null,null,null,null,null,null,null,null,null,null,null,null,null,null,null,null,null,null,null,null,null,null,null,null,null,null,null,null,null,null,null,"15007","岩船"]
[null,null,null,null,null,null,null,null,null,null,null,null,null,null,null,null,null,null,null,null,null,null,null,null,null,null,null,null,null,null,null,null,null,null,null,null,null,null,null,null,null,null,null,"15009","赤泊"]
[null,null,null,null,null,null,null,null,null,null,null,null,null,null,null,null,null,null,null,null,null,null,null,null,null,null,null,null,null,null,null,null,null,null,null,null,null,null,null,null,null,null,null,"15010","姫川"]
[null,null,null,null,null,null,null,null,null,null,null,null,null,null,null,null,null,null,null,null,null,null,null,null,null,null,null,null,null,null,null,null,null,null,null,null,null,null,null,null,null,null,null,"15012","小木"]
[null,null,null,null,null,null,null,null,null,null,null,null,null,null,null,null,null,null,null,null,null,null,null,null,null,null,null,null,null,null,null,null,null,null,null,null,null,null,null,null,null,null,null,"15201","相川"]
[null,null,null,null,null,null,null,null,null,null,null,null,null,null,null,null,null,null,null,null,null,null,null,null,null,null,null,null,null,null,null,null,null,null,null,null,null,null,null,null,null,null,null,"15998","新潟その他"]
[null,null,null,null,null,null,null,null,null,null,null,null,null,null,null,null,null,null,null,null,null,null,null,null,null,null,null,null,null,null,null,null,null,null,null,null,null,null,null,null,null,null,null,"16001","伏木富山"]
[null,null,null,null,null,null,null,null,null,null,null,null,null,null,null,null,null,null,null,null,null,null,null,null,null,null,null,null,null,null,null,null,null,null,null,null,null,null,null,null,null,null,null,"16002","魚津"]
[null,null,null,null,null,null,null,null,null,null,null,null,null,null,null,null,null,null,null,null,null,null,null,null,null,null,null,null,null,null,null,null,null,null,null,null,null,null,null,null,null,null,null,"16998","富山その他"]
[null,null,null,null,null,null,null,null,null,null,null,null,null,null,null,null,null,null,null,null,null,null,null,null,null,null,null,null,null,null,null,null,null,null,null,null,null,null,null,null,null,null,null,"17001","七尾"]
[null,null,null,null,null,null,null,null,null,null,null,null,null,null,null,null,null,null,null,null,null,null,null,null,null,null,null,null,null,null,null,null,null,null,null,null,null,null,null,null,null,null,null,"17002","金沢"]
[null,null,null,null,null,null,null,null,null,null,null,null,null,null,null,null,null,null,null,null,null,null,null,null,null,null,null,null,null,null,null,null,null,null,null,null,null,null,null,null,null,null,null,"17006","飯田"]
[null,null,null,null,null,null,null,null,null,null,null,null,null,null,null,null,null,null,null,null,null,null,null,null,null,null,null,null,null,null,null,null,null,null,null,null,null,null,null,null,null,null,null,"17007","輪島"]
[null,null,null,null,null,null,null,null,null,null,null,null,null,null,null,null,null,null,null,null,null,null,null,null,null,null,null,null,null,null,null,null,null,null,null,null,null,null,null,null,null,null,null,"17998","石川その他"]
[null,null,null,null,null,null,null,null,null,null,null,null,null,null,null,null,null,null,null,null,null,null,null,null,null,null,null,null,null,null,null,null,null,null,null,null,null,null,null,null,null,null,null,"18001","敦賀"]
[null,null,null,null,null,null,null,null,null,null,null,null,null,null,null,null,null,null,null,null,null,null,null,null,null,null,null,null,null,null,null,null,null,null,null,null,null,null,null,null,null,null,null,"18005","福井"]
[null,null,null,null,null,null,null,null,null,null,null,null,null,null,null,null,null,null,null,null,null,null,null,null,null,null,null,null,null,null,null,null,null,null,null,null,null,null,null,null,null,null,null,"18006","内浦"]
[null,null,null,null,null,null,null,null,null,null,null,null,null,null,null,null,null,null,null,null,null,null,null,null,null,null,null,null,null,null,null,null,null,null,null,null,null,null,null,null,null,null,null,"18998","福井その他"]
[null,null,null,null,null,null,null,null,null,null,null,null,null,null,null,null,null,null,null,null,null,null,null,null,null,null,null,null,null,null,null,null,null,null,null,null,null,null,null,null,null,null,null,"22001","清水"]
[null,null,null,null,null,null,null,null,null,null,null,null,null,null,null,null,null,null,null,null,null,null,null,null,null,null,null,null,null,null,null,null,null,null,null,null,null,null,null,null,null,null,null,"22002","田子の浦"]
[null,null,null,null,null,null,null,null,null,null,null,null,null,null,null,null,null,null,null,null,null,null,null,null,null,null,null,null,null,null,null,null,null,null,null,null,null,null,null,null,null,null,null,"22003","沼津"]
[null,null,null,null,null,null,null,null,null,null,null,null,null,null,null,null,null,null,null,null,null,null,null,null,null,null,null,null,null,null,null,null,null,null,null,null,null,null,null,null,null,null,null,"22005","土肥"]
[null,null,null,null,null,null,null,null,null,null,null,null,null,null,null,null,null,null,null,null,null,null,null,null,null,null,null,null,null,null,null,null,null,null,null,null,null,null,null,null,null,null,null,"22006","松崎"]
[null,null,null,null,null,null,null,null,null,null,null,null,null,null,null,null,null,null,null,null,null,null,null,null,null,null,null,null,null,null,null,null,null,null,null,null,null,null,null,null,null,null,null,"22007","伊東"]
[null,null,null,null,null,null,null,null,null,null,null,null,null,null,null,null,null,null,null,null,null,null,null,null,null,null,null,null,null,null,null,null,null,null,null,null,null,null,null,null,null,null,null,"22008","熱海"]
[null,null,null,null,null,null,null,null,null,null,null,null,null,null,null,null,null,null,null,null,null,null,null,null,null,null,null,null,null,null,null,null,null,null,null,null,null,null,null,null,null,null,null,"22009","下田"]
[null,null,null,null,null,null,null,null,null,null,null,null,null,null,null,null,null,null,null,null,null,null,null,null,null,null,null,null,null,null,null,null,null,null,null,null,null,null,null,null,null,null,null,"22015","大井川"]
[null,null,null,null,null,null,null,null,null,null,null,null,null,null,null,null,null,null,null,null,null,null,null,null,null,null,null,null,null,null,null,null,null,null,null,null,null,null,null,null,null,null,null,"22016","御前崎"]
[null,null,null,null,null,null,null,null,null,null,null,null,null,null,null,null,null,null,null,null,null,null,null,null,null,null,null,null,null,null,null,null,null,null,null,null,null,null,null,null,null,null,null,"22201","焼津"]
[null,null,null,null,null,null,null,null,null,null,null,null,null,null,null,null,null,null,null,null,null,null,null,null,null,null,null,null,null,null,null,null,null,null,null,null,null,null,null,null,null,null,null,"22202","静浦"]
[null,null,null,null,null,null,null,null,null,null,null,null,null,null,null,null,null,null,null,null,null,null,null,null,null,null,null,null,null,null,null,null,null,null,null,null,null,null,null,null,null,null,null,"22998","静岡その他"]
[null,null,null,null,null,null,null,null,null,null,null,null,null,null,null,null,null,null,null,null,null,null,null,null,null,null,null,null,null,null,null,null,null,null,null,null,null,null,null,null,null,null,null,"23001","名古屋"]
[null,null,null,null,null,null,null,null,null,null,null,null,null,null,null,null,null,null,null,null,null,null,null,null,null,null,null,null,null,null,null,null,null,null,null,null,null,null,null,null,null,null,null,"23002","衣浦"]
[null,null,null,null,null,null,null,null,null,null,null,null,null,null,null,null,null,null,null,null,null,null,null,null,null,null,null,null,null,null,null,null,null,null,null,null,null,null,null,null,null,null,null,"23003","三河"]
[null,null,null,null,null,null,null,null,null,null,null,null,null,null,null,null,null,null,null,null,null,null,null,null,null,null,null,null,null,null,null,null,null,null,null,null,null,null,null,null,null,null,null,"23004","師崎"]
[null,null,null,null,null,null,null,null,null,null,null,null,null,null,null,null,null,null,null,null,null,null,null,null,null,null,null,null,null,null,null,null,null,null,null,null,null,null,null,null,null,null,null,"23005","常滑"]
[null,null,null,null,null,null,null,null,null,null,null,null,null,null,null,null,null,null,null,null,null,null,null,null,null,null,null,null,null,null,null,null,null,null,null,null,null,null,null,null,null,null,null,"23007","伊良湖"]
[null,null,null,null,null,null,null,null,null,null,null,null,null,null,null,null,null,null,null,null,null,null,null,null,null,null,null,null,null,null,null,null,null,null,null,null,null,null,null,null,null,null,null,"23014","東幡豆"]
[null,null,null,null,null,null,null,null,null,null,null,null,null,null,null,null,null,null,null,null,null,null,null,null,null,null,null,null,null,null,null,null,null,null,null,null,null,null,null,null,null,null,null,"23015","河和"]
[null,null,null,null,null,null,null,null,null,null,null,null,null,null,null,null,null,null,null,null,null,null,null,null,null,null,null,null,null,null,null,null,null,null,null,null,null,null,null,null,null,null,null,"23201","日間賀"]
[null,null,null,null,null,null,null,null,null,null,null,null,null,null,null,null,null,null,null,null,null,null,null,null,null,null,null,null,null,null,null,null,null,null,null,null,null,null,null,null,null,null,null,"23202","篠島"]
[null,null,null,null,null,null,null,null,null,null,null,null,null,null,null,null,null,null,null,null,null,null,null,null,null,null,null,null,null,null,null,null,null,null,null,null,null,null,null,null,null,null,null,"23203","西浦"]
[null,null,null,null,null,null,null,null,null,null,null,null,null,null,null,null,null,null,null,null,null,null,null,null,null,null,null,null,null,null,null,null,null,null,null,null,null,null,null,null,null,null,null,"23998","愛知その他"]
[null,null,null,null,null,null,null,null,null,null,null,null,null,null,null,null,null,null,null,null,null,null,null,null,null,null,null,null,null,null,null,null,null,null,null,null,null,null,null,null,null,null,null,"24001","四日市"]
[null,null,null,null,null,null,null,null,null,null,null,null,null,null,null,null,null,null,null,null,null,null,null,null,null,null,null,null,null,null,null,null,null,null,null,null,null,null,null,null,null,null,null,"24002","尾鷲"]
[null,null,null,null,null,null,null,null,null,null,null,null,null,null,null,null,null,null,null,null,null,null,null,null,null,null,null,null,null,null,null,null,null,null,null,null,null,null,null,null,null,null,null,"24003","桑名"]
[null,null,null,null,null,null,null,null,null,null,null,null,null,null,null,null,null,null,null,null,null,null,null,null,null,null,null,null,null,null,null,null,null,null,null,null,null,null,null,null,null,null,null,"24005","津松阪"]
[null,null,null,null,null,null,null,null,null,null,null,null,null,null,null,null,null,null,null,null,null,null,null,null,null,null,null,null,null,null,null,null,null,null,null,null,null,null,null,null,null,null,null,"24010","吉津"]
[null,null,null,null,null,null,null,null,null,null,null,null,null,null,null,null,null,null,null,null,null,null,null,null,null,null,null,null,null,null,null,null,null,null,null,null,null,null,null,null,null,null,null,"24011","鳥羽"]
[null,null,null,null,null,null,null,null,null,null,null,null,null,null,null,null,null,null,null,null,null,null,null,null,null,null,null,null,null,null,null,null,null,null,null,null,null,null,null,null,null,null,null,"24018","鵜殿"]
[null,null,null,null,null,null,null,null,null,null,null,null,null,null,null,null,null,null,null,null,null,null,null,null,null,null,null,null,null,null,null,null,null,null,null,null,null,null,null,null,null,null,null,"24998","三重その他"]
[null,null,null,null,null,null,null,null,null,null,null,null,null,null,null,null,null,null,null,null,null,null,null,null,null,null,null,null,null,null,null,null,null,null,null,null,null,null,null,null,null,null,null,"26001","舞鶴"]
[null,null,null,null,null,null,null,null,null,null,null,null,null,null,null,null,null,null,null,null,null,null,null,null,null,null,null,null,null,null,null,null,null,null,null,null,null,null,null,null,null,null,null,"26002","久美浜"]
[null,null,null,null,null,null,null,null,null,null,null,null,null,null,null,null,null,null,null,null,null,null,null,null,null,null,null,null,null,null,null,null,null,null,null,null,null,null,null,null,null,null,null,"26003","宮津"]
[null,null,null,null,null,null,null,null,null,null,null,null,null,null,null,null,null,null,null,null,null,null,null,null,null,null,null,null,null,null,null,null,null,null,null,null,null,null,null,null,null,null,null,"26998","京都その他"]
[null,null,null,null,null,null,null,null,null,null,null,null,null,null,null,null,null,null,null,null,null,null,null,null,null,null,null,null,null,null,null,null,null,null,null,null,null,null,null,null,null,null,null,"27001","大阪"]
[null,null,null,null,null,null,null,null,null,null,null,null,null,null,null,null,null,null,null,null,null,null,null,null,null,null,null,null,null,null,null,null,null,null,null,null,null,null,null,null,null,null,null,"27002","堺泉北"]
[null,null,null,null,null,null,null,null,null,null,null,null,null,null,null,null,null,null,null,null,null,null,null,null,null,null,null,null,null,null,null,null,null,null,null,null,null,null,null,null,null,null,null,"27003","阪南"]
[null,null,null,null,null,null,null,null,null,null,null,null,null,null,null,null,null,null,null,null,null,null,null,null,null,null,null,null,null,null,null,null,null,null,null,null,null,null,null,null,null,null,null,"27005","深日"]
[null,null,null,null,null,null,null,null,null,null,null,null,null,null,null,null,null,null,null,null,null,null,null,null,null,null,null,null,null,null,null,null,null,null,null,null,null,null,null,null,null,null,null,"27009","泉佐野"]
[null,null,null,null,null,null,null,null,null,null,null,null,null,null,null,null,null,null,null,null,null,null,null,null,null,null,null,null,null,null,null,null,null,null,null,null,null,null,null,null,null,null,null,"27998","大阪その他"]
[null,null,null,null,null,null,null,null,null,null,null,null,null,null,null,null,null,null,null,null,null,null,null,null,null,null,null,null,null,null,null,null,null,null,null,null,null,null,null,null,null,null,null,"28001","神戸"]
[null,null,null,null,null,null,null,null,null,null,null,null,null,null,null,null,null,null,null,null,null,null,null,null,null,null,null,null,null,null,null,null,null,null,null,null,null,null,null,null,null,null,null,"28002","姫路"]
[null,null,null,null,null,null,null,null,null,null,null,null,null,null,null,null,null,null,null,null,null,null,null,null,null,null,null,null,null,null,null,null,null,null,null,null,null,null,null,null,null,null,null,"28003","尼崎西宮芦屋"]
[null,null,null,null,null,null,null,null,null,null,null,null,null,null,null,null,null,null,null,null,null,null,null,null,null,null,null,null,null,null,null,null,null,null,null,null,null,null,null,null,null,null,null,"28004","東播磨"]
[null,null,null,null,null,null,null,null,null,null,null,null,null,null,null,null,null,null,null,null,null,null,null,null,null,null,null,null,null,null,null,null,null,null,null,null,null,null,null,null,null,null,null,"28006","明石"]
[null,null,null,null,null,null,null,null,null,null,null,null,null,null,null,null,null,null,null,null,null,null,null,null,null,null,null,null,null,null,null,null,null,null,null,null,null,null,null,null,null,null,null,"28007","岩屋"]
[null,null,null,null,null,null,null,null,null,null,null,null,null,null,null,null,null,null,null,null,null,null,null,null,null,null,null,null,null,null,null,null,null,null,null,null,null,null,null,null,null,null,null,"28008","津名"]
[null,null,null,null,null,null,null,null,null,null,null,null,null,null,null,null,null,null,null,null,null,null,null,null,null,null,null,null,null,null,null,null,null,null,null,null,null,null,null,null,null,null,null,"28009","洲本"]
[null,null,null,null,null,null,null,null,null,null,null,null,null,null,null,null,null,null,null,null,null,null,null,null,null,null,null,null,null,null,null,null,null,null,null,null,null,null,null,null,null,null,null,"28013","相生"]
[null,null,null,null,null,null,null,null,null,null,null,null,null,null,null,null,null,null,null,null,null,null,null,null,null,null,null,null,null,null,null,null,null,null,null,null,null,null,null,null,null,null,null,"28014","赤穂"]
[null,null,null,null,null,null,null,null,null,null,null,null,null,null,null,null,null,null,null,null,null,null,null,null,null,null,null,null,null,null,null,null,null,null,null,null,null,null,null,null,null,null,null,"28015","由良(兵庫)"]
[null,null,null,null,null,null,null,null,null,null,null,null,null,null,null,null,null,null,null,null,null,null,null,null,null,null,null,null,null,null,null,null,null,null,null,null,null,null,null,null,null,null,null,"28017","福良"]
[null,null,null,null,null,null,null,null,null,null,null,null,null,null,null,null,null,null,null,null,null,null,null,null,null,null,null,null,null,null,null,null,null,null,null,null,null,null,null,null,null,null,null,"28019","湊"]
[null,null,null,null,null,null,null,null,null,null,null,null,null,null,null,null,null,null,null,null,null,null,null,null,null,null,null,null,null,null,null,null,null,null,null,null,null,null,null,null,null,null,null,"28023","家島"]
[null,null,null,null,null,null,null,null,null,null,null,null,null,null,null,null,null,null,null,null,null,null,null,null,null,null,null,null,null,null,null,null,null,null,null,null,null,null,null,null,null,null,null,"28201","大磯(兵庫)"]
[null,null,null,null,null,null,null,null,null,null,null,null,null,null,null,null,null,null,null,null,null,null,null,null,null,null,null,null,null,null,null,null,null,null,null,null,null,null,null,null,null,null,null,"28998","兵庫その他"]
[null,null,null,null,null,null,null,null,null,null,null,null,null,null,null,null,null,null,null,null,null,null,null,null,null,null,null,null,null,null,null,null,null,null,null,null,null,null,null,null,null,null,null,"30001","和歌山下津"]
[null,null,null,null,null,null,null,null,null,null,null,null,null,null,null,null,null,null,null,null,null,null,null,null,null,null,null,null,null,null,null,null,null,null,null,null,null,null,null,null,null,null,null,"30002","文里"]
[null,null,null,null,null,null,null,null,null,null,null,null,null,null,null,null,null,null,null,null,null,null,null,null,null,null,null,null,null,null,null,null,null,null,null,null,null,null,null,null,null,null,null,"30005","由良(和歌山)"]
[null,null,null,null,null,null,null,null,null,null,null,null,null,null,null,null,null,null,null,null,null,null,null,null,null,null,null,null,null,null,null,null,null,null,null,null,null,null,null,null,null,null,null,"30006","加太"]
[null,null,null,null,null,null,null,null,null,null,null,null,null,null,null,null,null,null,null,null,null,null,null,null,null,null,null,null,null,null,null,null,null,null,null,null,null,null,null,null,null,null,null,"30007","湯浅広"]
[null,null,null,null,null,null,null,null,null,null,null,null,null,null,null,null,null,null,null,null,null,null,null,null,null,null,null,null,null,null,null,null,null,null,null,null,null,null,null,null,null,null,null,"30009","宇久井"]
[null,null,null,null,null,null,null,null,null,null,null,null,null,null,null,null,null,null,null,null,null,null,null,null,null,null,null,null,null,null,null,null,null,null,null,null,null,null,null,null,null,null,null,"30011","日置"]
[null,null,null,null,null,null,null,null,null,null,null,null,null,null,null,null,null,null,null,null,null,null,null,null,null,null,null,null,null,null,null,null,null,null,null,null,null,null,null,null,null,null,null,"30013","日高"]
[null,null,null,null,null,null,null,null,null,null,null,null,null,null,null,null,null,null,null,null,null,null,null,null,null,null,null,null,null,null,null,null,null,null,null,null,null,null,null,null,null,null,null,"30014","大島(和歌山)"]
[null,null,null,null,null,null,null,null,null,null,null,null,null,null,null,null,null,null,null,null,null,null,null,null,null,null,null,null,null,null,null,null,null,null,null,null,null,null,null,null,null,null,null,"30015","新宮"]
[null,null,null,null,null,null,null,null,null,null,null,null,null,null,null,null,null,null,null,null,null,null,null,null,null,null,null,null,null,null,null,null,null,null,null,null,null,null,null,null,null,null,null,"30202","田辺"]
[null,null,null,null,null,null,null,null,null,null,null,null,null,null,null,null,null,null,null,null,null,null,null,null,null,null,null,null,null,null,null,null,null,null,null,null,null,null,null,null,null,null,null,"30203","串本"]
[null,null,null,null,null,null,null,null,null,null,null,null,null,null,null,null,null,null,null,null,null,null,null,null,null,null,null,null,null,null,null,null,null,null,null,null,null,null,null,null,null,null,null,"30998","和歌山その他"]
[null,null,null,null,null,null,null,null,null,null,null,null,null,null,null,null,null,null,null,null,null,null,null,null,null,null,null,null,null,null,null,null,null,null,null,null,null,null,null,null,null,null,null,"31001","米子"]
[null,null,null,null,null,null,null,null,null,null,null,null,null,null,null,null,null,null,null,null,null,null,null,null,null,null,null,null,null,null,null,null,null,null,null,null,null,null,null,null,null,null,null,"31002","赤碕"]
[null,null,null,null,null,null,null,null,null,null,null,null,null,null,null,null,null,null,null,null,null,null,null,null,null,null,null,null,null,null,null,null,null,null,null,null,null,null,null,null,null,null,null,"31010","鳥取"]
[null,null,null,null,null,null,null,null,null,null,null,null,null,null,null,null,null,null,null,null,null,null,null,null,null,null,null,null,null,null,null,null,null,null,null,null,null,null,null,null,null,null,null,"31998","鳥取その他"]
[null,null,null,null,null,null,null,null,null,null,null,null,null,null,null,null,null,null,null,null,null,null,null,null,null,null,null,null,null,null,null,null,null,null,null,null,null,null,null,null,null,null,null,"31999","境"]
[null,null,null,null,null,null,null,null,null,null,null,null,null,null,null,null,null,null,null,null,null,null,null,null,null,null,null,null,null,null,null,null,null,null,null,null,null,null,null,null,null,null,null,"32001","浜田"]
[null,null,null,null,null,null,null,null,null,null,null,null,null,null,null,null,null,null,null,null,null,null,null,null,null,null,null,null,null,null,null,null,null,null,null,null,null,null,null,null,null,null,null,"32002","西郷"]
[null,null,null,null,null,null,null,null,null,null,null,null,null,null,null,null,null,null,null,null,null,null,null,null,null,null,null,null,null,null,null,null,null,null,null,null,null,null,null,null,null,null,null,"32003","松江"]
[null,null,null,null,null,null,null,null,null,null,null,null,null,null,null,null,null,null,null,null,null,null,null,null,null,null,null,null,null,null,null,null,null,null,null,null,null,null,null,null,null,null,null,"32004","益田"]
[null,null,null,null,null,null,null,null,null,null,null,null,null,null,null,null,null,null,null,null,null,null,null,null,null,null,null,null,null,null,null,null,null,null,null,null,null,null,null,null,null,null,null,"32007","七類"]
[null,null,null,null,null,null,null,null,null,null,null,null,null,null,null,null,null,null,null,null,null,null,null,null,null,null,null,null,null,null,null,null,null,null,null,null,null,null,null,null,null,null,null,"32008","江津"]
[null,null,null,null,null,null,null,null,null,null,null,null,null,null,null,null,null,null,null,null,null,null,null,null,null,null,null,null,null,null,null,null,null,null,null,null,null,null,null,null,null,null,null,"32009","安来"]
[null,null,null,null,null,null,null,null,null,null,null,null,null,null,null,null,null,null,null,null,null,null,null,null,null,null,null,null,null,null,null,null,null,null,null,null,null,null,null,null,null,null,null,"32012","別府(島根)"]
[null,null,null,null,null,null,null,null,null,null,null,null,null,null,null,null,null,null,null,null,null,null,null,null,null,null,null,null,null,null,null,null,null,null,null,null,null,null,null,null,null,null,null,"32013","来居"]
[null,null,null,null,null,null,null,null,null,null,null,null,null,null,null,null,null,null,null,null,null,null,null,null,null,null,null,null,null,null,null,null,null,null,null,null,null,null,null,null,null,null,null,"32092","温泉津"]
[null,null,null,null,null,null,null,null,null,null,null,null,null,null,null,null,null,null,null,null,null,null,null,null,null,null,null,null,null,null,null,null,null,null,null,null,null,null,null,null,null,null,null,"32093","海士"]
[null,null,null,null,null,null,null,null,null,null,null,null,null,null,null,null,null,null,null,null,null,null,null,null,null,null,null,null,null,null,null,null,null,null,null,null,null,null,null,null,null,null,null,"32096","三隅"]
[null,null,null,null,null,null,null,null,null,null,null,null,null,null,null,null,null,null,null,null,null,null,null,null,null,null,null,null,null,null,null,null,null,null,null,null,null,null,null,null,null,null,null,"32201","隠岐諸"]
[null,null,null,null,null,null,null,null,null,null,null,null,null,null,null,null,null,null,null,null,null,null,null,null,null,null,null,null,null,null,null,null,null,null,null,null,null,null,null,null,null,null,null,"32202","菱浦"]
[null,null,null,null,null,null,null,null,null,null,null,null,null,null,null,null,null,null,null,null,null,null,null,null,null,null,null,null,null,null,null,null,null,null,null,null,null,null,null,null,null,null,null,"32203","美保関"]
[null,null,null,null,null,null,null,null,null,null,null,null,null,null,null,null,null,null,null,null,null,null,null,null,null,null,null,null,null,null,null,null,null,null,null,null,null,null,null,null,null,null,null,"32998","島根その他"]
[null,null,null,null,null,null,null,null,null,null,null,null,null,null,null,null,null,null,null,null,null,null,null,null,null,null,null,null,null,null,null,null,null,null,null,null,null,null,null,null,null,null,null,"33001","宇野"]
[null,null,null,null,null,null,null,null,null,null,null,null,null,null,null,null,null,null,null,null,null,null,null,null,null,null,null,null,null,null,null,null,null,null,null,null,null,null,null,null,null,null,null,"33002","水島"]
[null,null,null,null,null,null,null,null,null,null,null,null,null,null,null,null,null,null,null,null,null,null,null,null,null,null,null,null,null,null,null,null,null,null,null,null,null,null,null,null,null,null,null,"33003","岡山"]
[null,null,null,null,null,null,null,null,null,null,null,null,null,null,null,null,null,null,null,null,null,null,null,null,null,null,null,null,null,null,null,null,null,null,null,null,null,null,null,null,null,null,null,"33004","東備"]
[null,null,null,null,null,null,null,null,null,null,null,null,null,null,null,null,null,null,null,null,null,null,null,null,null,null,null,null,null,null,null,null,null,null,null,null,null,null,null,null,null,null,null,"33007","牛窓"]
[null,null,null,null,null,null,null,null,null,null,null,null,null,null,null,null,null,null,null,null,null,null,null,null,null,null,null,null,null,null,null,null,null,null,null,null,null,null,null,null,null,null,null,"33010","山田"]
[null,null,null,null,null,null,null,null,null,null,null,null,null,null,null,null,null,null,null,null,null,null,null,null,null,null,null,null,null,null,null,null,null,null,null,null,null,null,null,null,null,null,null,"33011","北木島"]
[null,null,null,null,null,null,null,null,null,null,null,null,null,null,null,null,null,null,null,null,null,null,null,null,null,null,null,null,null,null,null,null,null,null,null,null,null,null,null,null,null,null,null,"33012","下津井"]
[null,null,null,null,null,null,null,null,null,null,null,null,null,null,null,null,null,null,null,null,null,null,null,null,null,null,null,null,null,null,null,null,null,null,null,null,null,null,null,null,null,null,null,"33013","笠岡"]
[null,null,null,null,null,null,null,null,null,null,null,null,null,null,null,null,null,null,null,null,null,null,null,null,null,null,null,null,null,null,null,null,null,null,null,null,null,null,null,null,null,null,null,"33015","児島"]
[null,null,null,null,null,null,null,null,null,null,null,null,null,null,null,null,null,null,null,null,null,null,null,null,null,null,null,null,null,null,null,null,null,null,null,null,null,null,null,null,null,null,null,"33016","寒河"]
[null,null,null,null,null,null,null,null,null,null,null,null,null,null,null,null,null,null,null,null,null,null,null,null,null,null,null,null,null,null,null,null,null,null,null,null,null,null,null,null,null,null,null,"33023","玉津"]
[null,null,null,null,null,null,null,null,null,null,null,null,null,null,null,null,null,null,null,null,null,null,null,null,null,null,null,null,null,null,null,null,null,null,null,null,null,null,null,null,null,null,null,"33025","前島"]
[null,null,null,null,null,null,null,null,null,null,null,null,null,null,null,null,null,null,null,null,null,null,null,null,null,null,null,null,null,null,null,null,null,null,null,null,null,null,null,null,null,null,null,"33044","豊浦"]
[null,null,null,null,null,null,null,null,null,null,null,null,null,null,null,null,null,null,null,null,null,null,null,null,null,null,null,null,null,null,null,null,null,null,null,null,null,null,null,null,null,null,null,"33201","白石島"]
[null,null,null,null,null,null,null,null,null,null,null,null,null,null,null,null,null,null,null,null,null,null,null,null,null,null,null,null,null,null,null,null,null,null,null,null,null,null,null,null,null,null,null,"33202","金風呂"]
[null,null,null,null,null,null,null,null,null,null,null,null,null,null,null,null,null,null,null,null,null,null,null,null,null,null,null,null,null,null,null,null,null,null,null,null,null,null,null,null,null,null,null,"33998","岡山その他"]
[null,null,null,null,null,null,null,null,null,null,null,null,null,null,null,null,null,null,null,null,null,null,null,null,null,null,null,null,null,null,null,null,null,null,null,null,null,null,null,null,null,null,null,"34001","福山"]
[null,null,null,null,null,null,null,null,null,null,null,null,null,null,null,null,null,null,null,null,null,null,null,null,null,null,null,null,null,null,null,null,null,null,null,null,null,null,null,null,null,null,null,"34002","尾道糸崎"]
[null,null,null,null,null,null,null,null,null,null,null,null,null,null,null,null,null,null,null,null,null,null,null,null,null,null,null,null,null,null,null,null,null,null,null,null,null,null,null,null,null,null,null,"34003","広島"]
[null,null,null,null,null,null,null,null,null,null,null,null,null,null,null,null,null,null,null,null,null,null,null,null,null,null,null,null,null,null,null,null,null,null,null,null,null,null,null,null,null,null,null,"34004","呉"]
[null,null,null,null,null,null,null,null,null,null,null,null,null,null,null,null,null,null,null,null,null,null,null,null,null,null,null,null,null,null,null,null,null,null,null,null,null,null,null,null,null,null,null,"34007","瀬戸田"]
[null,null,null,null,null,null,null,null,null,null,null,null,null,null,null,null,null,null,null,null,null,null,null,null,null,null,null,null,null,null,null,null,null,null,null,null,null,null,null,null,null,null,null,"34008","重井"]
[null,null,null,null,null,null,null,null,null,null,null,null,null,null,null,null,null,null,null,null,null,null,null,null,null,null,null,null,null,null,null,null,null,null,null,null,null,null,null,null,null,null,null,"34009","土生"]
[null,null,null,null,null,null,null,null,null,null,null,null,null,null,null,null,null,null,null,null,null,null,null,null,null,null,null,null,null,null,null,null,null,null,null,null,null,null,null,null,null,null,null,"34010","大西"]
[null,null,null,null,null,null,null,null,null,null,null,null,null,null,null,null,null,null,null,null,null,null,null,null,null,null,null,null,null,null,null,null,null,null,null,null,null,null,null,null,null,null,null,"34011","忠海"]
[null,null,null,null,null,null,null,null,null,null,null,null,null,null,null,null,null,null,null,null,null,null,null,null,null,null,null,null,null,null,null,null,null,null,null,null,null,null,null,null,null,null,null,"34012","竹原"]
[null,null,null,null,null,null,null,null,null,null,null,null,null,null,null,null,null,null,null,null,null,null,null,null,null,null,null,null,null,null,null,null,null,null,null,null,null,null,null,null,null,null,null,"34013","木江"]
[null,null,null,null,null,null,null,null,null,null,null,null,null,null,null,null,null,null,null,null,null,null,null,null,null,null,null,null,null,null,null,null,null,null,null,null,null,null,null,null,null,null,null,"34015","御手洗"]
[null,null,null,null,null,null,null,null,null,null,null,null,null,null,null,null,null,null,null,null,null,null,null,null,null,null,null,null,null,null,null,null,null,null,null,null,null,null,null,null,null,null,null,"34016","安芸津"]
[null,null,null,null,null,null,null,null,null,null,null,null,null,null,null,null,null,null,null,null,null,null,null,null,null,null,null,null,null,null,null,null,null,null,null,null,null,null,null,null,null,null,null,"34017","蒲刈"]
[null,null,null,null,null,null,null,null,null,null,null,null,null,null,null,null,null,null,null,null,null,null,null,null,null,null,null,null,null,null,null,null,null,null,null,null,null,null,null,null,null,null,null,"34018","川尻"]
[null,null,null,null,null,null,null,null,null,null,null,null,null,null,null,null,null,null,null,null,null,null,null,null,null,null,null,null,null,null,null,null,null,null,null,null,null,null,null,null,null,null,null,"34020","大柿"]
[null,null,null,null,null,null,null,null,null,null,null,null,null,null,null,null,null,null,null,null,null,null,null,null,null,null,null,null,null,null,null,null,null,null,null,null,null,null,null,null,null,null,null,"34023","厳島"]
[null,null,null,null,null,null,null,null,null,null,null,null,null,null,null,null,null,null,null,null,null,null,null,null,null,null,null,null,null,null,null,null,null,null,null,null,null,null,null,null,null,null,null,"34024","大竹"]
[null,null,null,null,null,null,null,null,null,null,null,null,null,null,null,null,null,null,null,null,null,null,null,null,null,null,null,null,null,null,null,null,null,null,null,null,null,null,null,null,null,null,null,"34026","佐木"]
[null,null,null,null,null,null,null,null,null,null,null,null,null,null,null,null,null,null,null,null,null,null,null,null,null,null,null,null,null,null,null,null,null,null,null,null,null,null,null,null,null,null,null,"34028","小用"]
[null,null,null,null,null,null,null,null,null,null,null,null,null,null,null,null,null,null,null,null,null,null,null,null,null,null,null,null,null,null,null,null,null,null,null,null,null,null,null,null,null,null,null,"34029","生口"]
[null,null,null,null,null,null,null,null,null,null,null,null,null,null,null,null,null,null,null,null,null,null,null,null,null,null,null,null,null,null,null,null,null,null,null,null,null,null,null,null,null,null,null,"34030","三高"]
[null,null,null,null,null,null,null,null,null,null,null,null,null,null,null,null,null,null,null,null,null,null,null,null,null,null,null,null,null,null,null,null,null,null,null,null,null,null,null,null,null,null,null,"34032","大須"]
[null,null,null,null,null,null,null,null,null,null,null,null,null,null,null,null,null,null,null,null,null,null,null,null,null,null,null,null,null,null,null,null,null,null,null,null,null,null,null,null,null,null,null,"34042","福田(広島)"]
[null,null,null,null,null,null,null,null,null,null,null,null,null,null,null,null,null,null,null,null,null,null,null,null,null,null,null,null,null,null,null,null,null,null,null,null,null,null,null,null,null,null,null,"34047","須波"]
[null,null,null,null,null,null,null,null,null,null,null,null,null,null,null,null,null,null,null,null,null,null,null,null,null,null,null,null,null,null,null,null,null,null,null,null,null,null,null,null,null,null,null,"34201","契島"]
[null,null,null,null,null,null,null,null,null,null,null,null,null,null,null,null,null,null,null,null,null,null,null,null,null,null,null,null,null,null,null,null,null,null,null,null,null,null,null,null,null,null,null,"34202","因島"]
[null,null,null,null,null,null,null,null,null,null,null,null,null,null,null,null,null,null,null,null,null,null,null,null,null,null,null,null,null,null,null,null,null,null,null,null,null,null,null,null,null,null,null,"34204","江田島"]
[null,null,null,null,null,null,null,null,null,null,null,null,null,null,null,null,null,null,null,null,null,null,null,null,null,null,null,null,null,null,null,null,null,null,null,null,null,null,null,null,null,null,null,"34998","広島その他"]
[null,null,null,null,null,null,null,null,null,null,null,null,null,null,null,null,null,null,null,null,null,null,null,null,null,null,null,null,null,null,null,null,null,null,null,null,null,null,null,null,null,null,null,"35001","下関"]
[null,null,null,null,null,null,null,null,null,null,null,null,null,null,null,null,null,null,null,null,null,null,null,null,null,null,null,null,null,null,null,null,null,null,null,null,null,null,null,null,null,null,null,"35002","徳山下松"]
[null,null,null,null,null,null,null,null,null,null,null,null,null,null,null,null,null,null,null,null,null,null,null,null,null,null,null,null,null,null,null,null,null,null,null,null,null,null,null,null,null,null,null,"35003","岩国"]
[null,null,null,null,null,null,null,null,null,null,null,null,null,null,null,null,null,null,null,null,null,null,null,null,null,null,null,null,null,null,null,null,null,null,null,null,null,null,null,null,null,null,null,"35004","三田尻中関"]
[null,null,null,null,null,null,null,null,null,null,null,null,null,null,null,null,null,null,null,null,null,null,null,null,null,null,null,null,null,null,null,null,null,null,null,null,null,null,null,null,null,null,null,"35005","宇部"]
[null,null,null,null,null,null,null,null,null,null,null,null,null,null,null,null,null,null,null,null,null,null,null,null,null,null,null,null,null,null,null,null,null,null,null,null,null,null,null,null,null,null,null,"35006","小野田"]
[null,null,null,null,null,null,null,null,null,null,null,null,null,null,null,null,null,null,null,null,null,null,null,null,null,null,null,null,null,null,null,null,null,null,null,null,null,null,null,null,null,null,null,"35007","柳井"]
[null,null,null,null,null,null,null,null,null,null,null,null,null,null,null,null,null,null,null,null,null,null,null,null,null,null,null,null,null,null,null,null,null,null,null,null,null,null,null,null,null,null,null,"35013","萩"]
[null,null,null,null,null,null,null,null,null,null,null,null,null,null,null,null,null,null,null,null,null,null,null,null,null,null,null,null,null,null,null,null,null,null,null,null,null,null,null,null,null,null,null,"35019","山口"]
[null,null,null,null,null,null,null,null,null,null,null,null,null,null,null,null,null,null,null,null,null,null,null,null,null,null,null,null,null,null,null,null,null,null,null,null,null,null,null,null,null,null,null,"35020","平生"]
[null,null,null,null,null,null,null,null,null,null,null,null,null,null,null,null,null,null,null,null,null,null,null,null,null,null,null,null,null,null,null,null,null,null,null,null,null,null,null,null,null,null,null,"35032","仙崎"]
[null,null,null,null,null,null,null,null,null,null,null,null,null,null,null,null,null,null,null,null,null,null,null,null,null,null,null,null,null,null,null,null,null,null,null,null,null,null,null,null,null,null,null,"35040","須佐"]
[null,null,null,null,null,null,null,null,null,null,null,null,null,null,null,null,null,null,null,null,null,null,null,null,null,null,null,null,null,null,null,null,null,null,null,null,null,null,null,null,null,null,null,"35998","山口その他"]
[null,null,null,null,null,null,null,null,null,null,null,null,null,null,null,null,null,null,null,null,null,null,null,null,null,null,null,null,null,null,null,null,null,null,null,null,null,null,null,null,null,null,null,"36001","徳島小松島"]
[null,null,null,null,null,null,null,null,null,null,null,null,null,null,null,null,null,null,null,null,null,null,null,null,null,null,null,null,null,null,null,null,null,null,null,null,null,null,null,null,null,null,null,"36002","橘"]
[null,null,null,null,null,null,null,null,null,null,null,null,null,null,null,null,null,null,null,null,null,null,null,null,null,null,null,null,null,null,null,null,null,null,null,null,null,null,null,null,null,null,null,"36004","撫養"]
[null,null,null,null,null,null,null,null,null,null,null,null,null,null,null,null,null,null,null,null,null,null,null,null,null,null,null,null,null,null,null,null,null,null,null,null,null,null,null,null,null,null,null,"36005","今切"]
[null,null,null,null,null,null,null,null,null,null,null,null,null,null,null,null,null,null,null,null,null,null,null,null,null,null,null,null,null,null,null,null,null,null,null,null,null,null,null,null,null,null,null,"36006","富岡(徳島)"]
[null,null,null,null,null,null,null,null,null,null,null,null,null,null,null,null,null,null,null,null,null,null,null,null,null,null,null,null,null,null,null,null,null,null,null,null,null,null,null,null,null,null,null,"36007","日和佐"]
[null,null,null,null,null,null,null,null,null,null,null,null,null,null,null,null,null,null,null,null,null,null,null,null,null,null,null,null,null,null,null,null,null,null,null,null,null,null,null,null,null,null,null,"36012","粟津"]
[null,null,null,null,null,null,null,null,null,null,null,null,null,null,null,null,null,null,null,null,null,null,null,null,null,null,null,null,null,null,null,null,null,null,null,null,null,null,null,null,null,null,null,"36998","徳島その他"]
[null,null,null,null,null,null,null,null,null,null,null,null,null,null,null,null,null,null,null,null,null,null,null,null,null,null,null,null,null,null,null,null,null,null,null,null,null,null,null,null,null,null,null,"37001","高松"]
[null,null,null,null,null,null,null,null,null,null,null,null,null,null,null,null,null,null,null,null,null,null,null,null,null,null,null,null,null,null,null,null,null,null,null,null,null,null,null,null,null,null,null,"37002","坂出"]
[null,null,null,null,null,null,null,null,null,null,null,null,null,null,null,null,null,null,null,null,null,null,null,null,null,null,null,null,null,null,null,null,null,null,null,null,null,null,null,null,null,null,null,"37003","引田"]
[null,null,null,null,null,null,null,null,null,null,null,null,null,null,null,null,null,null,null,null,null,null,null,null,null,null,null,null,null,null,null,null,null,null,null,null,null,null,null,null,null,null,null,"37005","津田"]
[null,null,null,null,null,null,null,null,null,null,null,null,null,null,null,null,null,null,null,null,null,null,null,null,null,null,null,null,null,null,null,null,null,null,null,null,null,null,null,null,null,null,null,"37007","直島"]
[null,null,null,null,null,null,null,null,null,null,null,null,null,null,null,null,null,null,null,null,null,null,null,null,null,null,null,null,null,null,null,null,null,null,null,null,null,null,null,null,null,null,null,"37009","丸亀"]
[null,null,null,null,null,null,null,null,null,null,null,null,null,null,null,null,null,null,null,null,null,null,null,null,null,null,null,null,null,null,null,null,null,null,null,null,null,null,null,null,null,null,null,"37010","多度津"]
[null,null,null,null,null,null,null,null,null,null,null,null,null,null,null,null,null,null,null,null,null,null,null,null,null,null,null,null,null,null,null,null,null,null,null,null,null,null,null,null,null,null,null,"37011","詫間"]
[null,null,null,null,null,null,null,null,null,null,null,null,null,null,null,null,null,null,null,null,null,null,null,null,null,null,null,null,null,null,null,null,null,null,null,null,null,null,null,null,null,null,null,"37012","仁尾"]
[null,null,null,null,null,null,null,null,null,null,null,null,null,null,null,null,null,null,null,null,null,null,null,null,null,null,null,null,null,null,null,null,null,null,null,null,null,null,null,null,null,null,null,"37014","池田"]
[null,null,null,null,null,null,null,null,null,null,null,null,null,null,null,null,null,null,null,null,null,null,null,null,null,null,null,null,null,null,null,null,null,null,null,null,null,null,null,null,null,null,null,"37016","土庄"]
[null,null,null,null,null,null,null,null,null,null,null,null,null,null,null,null,null,null,null,null,null,null,null,null,null,null,null,null,null,null,null,null,null,null,null,null,null,null,null,null,null,null,null,"37017","坂手"]
[null,null,null,null,null,null,null,null,null,null,null,null,null,null,null,null,null,null,null,null,null,null,null,null,null,null,null,null,null,null,null,null,null,null,null,null,null,null,null,null,null,null,null,"37019","大部"]
[null,null,null,null,null,null,null,null,null,null,null,null,null,null,null,null,null,null,null,null,null,null,null,null,null,null,null,null,null,null,null,null,null,null,null,null,null,null,null,null,null,null,null,"37020","内海(香川)"]
[null,null,null,null,null,null,null,null,null,null,null,null,null,null,null,null,null,null,null,null,null,null,null,null,null,null,null,null,null,null,null,null,null,null,null,null,null,null,null,null,null,null,null,"37021","観音寺"]
[null,null,null,null,null,null,null,null,null,null,null,null,null,null,null,null,null,null,null,null,null,null,null,null,null,null,null,null,null,null,null,null,null,null,null,null,null,null,null,null,null,null,null,"37022","土庄東"]
[null,null,null,null,null,null,null,null,null,null,null,null,null,null,null,null,null,null,null,null,null,null,null,null,null,null,null,null,null,null,null,null,null,null,null,null,null,null,null,null,null,null,null,"37023","家浦"]
[null,null,null,null,null,null,null,null,null,null,null,null,null,null,null,null,null,null,null,null,null,null,null,null,null,null,null,null,null,null,null,null,null,null,null,null,null,null,null,null,null,null,null,"37026","宮浦(香川)"]
[null,null,null,null,null,null,null,null,null,null,null,null,null,null,null,null,null,null,null,null,null,null,null,null,null,null,null,null,null,null,null,null,null,null,null,null,null,null,null,null,null,null,null,"37027","青木"]
[null,null,null,null,null,null,null,null,null,null,null,null,null,null,null,null,null,null,null,null,null,null,null,null,null,null,null,null,null,null,null,null,null,null,null,null,null,null,null,null,null,null,null,"37028","手島"]
[null,null,null,null,null,null,null,null,null,null,null,null,null,null,null,null,null,null,null,null,null,null,null,null,null,null,null,null,null,null,null,null,null,null,null,null,null,null,null,null,null,null,null,"37032","女木島"]
[null,null,null,null,null,null,null,null,null,null,null,null,null,null,null,null,null,null,null,null,null,null,null,null,null,null,null,null,null,null,null,null,null,null,null,null,null,null,null,null,null,null,null,"37033","男木島"]
[null,null,null,null,null,null,null,null,null,null,null,null,null,null,null,null,null,null,null,null,null,null,null,null,null,null,null,null,null,null,null,null,null,null,null,null,null,null,null,null,null,null,null,"37049","江浦"]
[null,null,null,null,null,null,null,null,null,null,null,null,null,null,null,null,null,null,null,null,null,null,null,null,null,null,null,null,null,null,null,null,null,null,null,null,null,null,null,null,null,null,null,"37051","本島"]
[null,null,null,null,null,null,null,null,null,null,null,null,null,null,null,null,null,null,null,null,null,null,null,null,null,null,null,null,null,null,null,null,null,null,null,null,null,null,null,null,null,null,null,"37202","小豆島"]
[null,null,null,null,null,null,null,null,null,null,null,null,null,null,null,null,null,null,null,null,null,null,null,null,null,null,null,null,null,null,null,null,null,null,null,null,null,null,null,null,null,null,null,"37208","福田(香川)"]
[null,null,null,null,null,null,null,null,null,null,null,null,null,null,null,null,null,null,null,null,null,null,null,null,null,null,null,null,null,null,null,null,null,null,null,null,null,null,null,null,null,null,null,"37998","香川その他"]
[null,null,null,null,null,null,null,null,null,null,null,null,null,null,null,null,null,null,null,null,null,null,null,null,null,null,null,null,null,null,null,null,null,null,null,null,null,null,null,null,null,null,null,"38001","松山"]
[null,null,null,null,null,null,null,null,null,null,null,null,null,null,null,null,null,null,null,null,null,null,null,null,null,null,null,null,null,null,null,null,null,null,null,null,null,null,null,null,null,null,null,"38002","宇和島"]
[null,null,null,null,null,null,null,null,null,null,null,null,null,null,null,null,null,null,null,null,null,null,null,null,null,null,null,null,null,null,null,null,null,null,null,null,null,null,null,null,null,null,null,"38003","新居浜"]
[null,null,null,null,null,null,null,null,null,null,null,null,null,null,null,null,null,null,null,null,null,null,null,null,null,null,null,null,null,null,null,null,null,null,null,null,null,null,null,null,null,null,null,"38004","今治"]
[null,null,null,null,null,null,null,null,null,null,null,null,null,null,null,null,null,null,null,null,null,null,null,null,null,null,null,null,null,null,null,null,null,null,null,null,null,null,null,null,null,null,null,"38005","八幡浜"]
[null,null,null,null,null,null,null,null,null,null,null,null,null,null,null,null,null,null,null,null,null,null,null,null,null,null,null,null,null,null,null,null,null,null,null,null,null,null,null,null,null,null,null,"38006","東予"]
[null,null,null,null,null,null,null,null,null,null,null,null,null,null,null,null,null,null,null,null,null,null,null,null,null,null,null,null,null,null,null,null,null,null,null,null,null,null,null,null,null,null,null,"38007","三島川之江"]
[null,null,null,null,null,null,null,null,null,null,null,null,null,null,null,null,null,null,null,null,null,null,null,null,null,null,null,null,null,null,null,null,null,null,null,null,null,null,null,null,null,null,null,"38010","伯方"]
[null,null,null,null,null,null,null,null,null,null,null,null,null,null,null,null,null,null,null,null,null,null,null,null,null,null,null,null,null,null,null,null,null,null,null,null,null,null,null,null,null,null,null,"38011","菊間"]
[null,null,null,null,null,null,null,null,null,null,null,null,null,null,null,null,null,null,null,null,null,null,null,null,null,null,null,null,null,null,null,null,null,null,null,null,null,null,null,null,null,null,null,"38013","中島"]
[null,null,null,null,null,null,null,null,null,null,null,null,null,null,null,null,null,null,null,null,null,null,null,null,null,null,null,null,null,null,null,null,null,null,null,null,null,null,null,null,null,null,null,"38014","松前(愛媛)"]
[null,null,null,null,null,null,null,null,null,null,null,null,null,null,null,null,null,null,null,null,null,null,null,null,null,null,null,null,null,null,null,null,null,null,null,null,null,null,null,null,null,null,null,"38015","伊予"]
[null,null,null,null,null,null,null,null,null,null,null,null,null,null,null,null,null,null,null,null,null,null,null,null,null,null,null,null,null,null,null,null,null,null,null,null,null,null,null,null,null,null,null,"38016","長浜(愛媛)"]
[null,null,null,null,null,null,null,null,null,null,null,null,null,null,null,null,null,null,null,null,null,null,null,null,null,null,null,null,null,null,null,null,null,null,null,null,null,null,null,null,null,null,null,"38019","御荘"]
[null,null,null,null,null,null,null,null,null,null,null,null,null,null,null,null,null,null,null,null,null,null,null,null,null,null,null,null,null,null,null,null,null,null,null,null,null,null,null,null,null,null,null,"38020","弓削"]
[null,null,null,null,null,null,null,null,null,null,null,null,null,null,null,null,null,null,null,null,null,null,null,null,null,null,null,null,null,null,null,null,null,null,null,null,null,null,null,null,null,null,null,"38021","波止浜"]
[null,null,null,null,null,null,null,null,null,null,null,null,null,null,null,null,null,null,null,null,null,null,null,null,null,null,null,null,null,null,null,null,null,null,null,null,null,null,null,null,null,null,null,"38023","波方"]
[null,null,null,null,null,null,null,null,null,null,null,null,null,null,null,null,null,null,null,null,null,null,null,null,null,null,null,null,null,null,null,null,null,null,null,null,null,null,null,null,null,null,null,"38024","三崎(愛媛)"]
[null,null,null,null,null,null,null,null,null,null,null,null,null,null,null,null,null,null,null,null,null,null,null,null,null,null,null,null,null,null,null,null,null,null,null,null,null,null,null,null,null,null,null,"38025","宮浦(愛媛)"]
[null,null,null,null,null,null,null,null,null,null,null,null,null,null,null,null,null,null,null,null,null,null,null,null,null,null,null,null,null,null,null,null,null,null,null,null,null,null,null,null,null,null,null,"38027","大見"]
[null,null,null,null,null,null,null,null,null,null,null,null,null,null,null,null,null,null,null,null,null,null,null,null,null,null,null,null,null,null,null,null,null,null,null,null,null,null,null,null,null,null,null,"38030","井口"]
[null,null,null,null,null,null,null,null,null,null,null,null,null,null,null,null,null,null,null,null,null,null,null,null,null,null,null,null,null,null,null,null,null,null,null,null,null,null,null,null,null,null,null,"38031","岡村島"]
[null,null,null,null,null,null,null,null,null,null,null,null,null,null,null,null,null,null,null,null,null,null,null,null,null,null,null,null,null,null,null,null,null,null,null,null,null,null,null,null,null,null,null,"38033","大下"]
[null,null,null,null,null,null,null,null,null,null,null,null,null,null,null,null,null,null,null,null,null,null,null,null,null,null,null,null,null,null,null,null,null,null,null,null,null,null,null,null,null,null,null,"38043","小漕"]
[null,null,null,null,null,null,null,null,null,null,null,null,null,null,null,null,null,null,null,null,null,null,null,null,null,null,null,null,null,null,null,null,null,null,null,null,null,null,null,null,null,null,null,"38045","長江"]
[null,null,null,null,null,null,null,null,null,null,null,null,null,null,null,null,null,null,null,null,null,null,null,null,null,null,null,null,null,null,null,null,null,null,null,null,null,null,null,null,null,null,null,"38046","生名島"]
[null,null,null,null,null,null,null,null,null,null,null,null,null,null,null,null,null,null,null,null,null,null,null,null,null,null,null,null,null,null,null,null,null,null,null,null,null,null,null,null,null,null,null,"38049","堀江"]
[null,null,null,null,null,null,null,null,null,null,null,null,null,null,null,null,null,null,null,null,null,null,null,null,null,null,null,null,null,null,null,null,null,null,null,null,null,null,null,null,null,null,null,"38201","岩城"]
[null,null,null,null,null,null,null,null,null,null,null,null,null,null,null,null,null,null,null,null,null,null,null,null,null,null,null,null,null,null,null,null,null,null,null,null,null,null,null,null,null,null,null,"38202","九島"]
[null,null,null,null,null,null,null,null,null,null,null,null,null,null,null,null,null,null,null,null,null,null,null,null,null,null,null,null,null,null,null,null,null,null,null,null,null,null,null,null,null,null,null,"38203","下田水"]
[null,null,null,null,null,null,null,null,null,null,null,null,null,null,null,null,null,null,null,null,null,null,null,null,null,null,null,null,null,null,null,null,null,null,null,null,null,null,null,null,null,null,null,"38204","大三島"]
[null,null,null,null,null,null,null,null,null,null,null,null,null,null,null,null,null,null,null,null,null,null,null,null,null,null,null,null,null,null,null,null,null,null,null,null,null,null,null,null,null,null,null,"38998","愛媛その他"]
[null,null,null,null,null,null,null,null,null,null,null,null,null,null,null,null,null,null,null,null,null,null,null,null,null,null,null,null,null,null,null,null,null,null,null,null,null,null,null,null,null,null,null,"39001","高知"]
[null,null,null,null,null,null,null,null,null,null,null,null,null,null,null,null,null,null,null,null,null,null,null,null,null,null,null,null,null,null,null,null,null,null,null,null,null,null,null,null,null,null,null,"39002","須崎"]
[null,null,null,null,null,null,null,null,null,null,null,null,null,null,null,null,null,null,null,null,null,null,null,null,null,null,null,null,null,null,null,null,null,null,null,null,null,null,null,null,null,null,null,"39003","甲浦"]
[null,null,null,null,null,null,null,null,null,null,null,null,null,null,null,null,null,null,null,null,null,null,null,null,null,null,null,null,null,null,null,null,null,null,null,null,null,null,null,null,null,null,null,"39006","奈半利"]
[null,null,null,null,null,null,null,null,null,null,null,null,null,null,null,null,null,null,null,null,null,null,null,null,null,null,null,null,null,null,null,null,null,null,null,null,null,null,null,null,null,null,null,"39007","手結"]
[null,null,null,null,null,null,null,null,null,null,null,null,null,null,null,null,null,null,null,null,null,null,null,null,null,null,null,null,null,null,null,null,null,null,null,null,null,null,null,null,null,null,null,"39015","土佐清水"]
[null,null,null,null,null,null,null,null,null,null,null,null,null,null,null,null,null,null,null,null,null,null,null,null,null,null,null,null,null,null,null,null,null,null,null,null,null,null,null,null,null,null,null,"39022","足摺"]
[null,null,null,null,null,null,null,null,null,null,null,null,null,null,null,null,null,null,null,null,null,null,null,null,null,null,null,null,null,null,null,null,null,null,null,null,null,null,null,null,null,null,null,"39023","宿毛湾"]
[null,null,null,null,null,null,null,null,null,null,null,null,null,null,null,null,null,null,null,null,null,null,null,null,null,null,null,null,null,null,null,null,null,null,null,null,null,null,null,null,null,null,null,"39998","高知その他"]
[null,null,null,null,null,null,null,null,null,null,null,null,null,null,null,null,null,null,null,null,null,null,null,null,null,null,null,null,null,null,null,null,null,null,null,null,null,null,null,null,null,null,null,"40001","北九州"]
[null,null,null,null,null,null,null,null,null,null,null,null,null,null,null,null,null,null,null,null,null,null,null,null,null,null,null,null,null,null,null,null,null,null,null,null,null,null,null,null,null,null,null,"40002","博多"]
[null,null,null,null,null,null,null,null,null,null,null,null,null,null,null,null,null,null,null,null,null,null,null,null,null,null,null,null,null,null,null,null,null,null,null,null,null,null,null,null,null,null,null,"40003","苅田"]
[null,null,null,null,null,null,null,null,null,null,null,null,null,null,null,null,null,null,null,null,null,null,null,null,null,null,null,null,null,null,null,null,null,null,null,null,null,null,null,null,null,null,null,"40004","大島(福岡)"]
[null,null,null,null,null,null,null,null,null,null,null,null,null,null,null,null,null,null,null,null,null,null,null,null,null,null,null,null,null,null,null,null,null,null,null,null,null,null,null,null,null,null,null,"40006","宇島"]
[null,null,null,null,null,null,null,null,null,null,null,null,null,null,null,null,null,null,null,null,null,null,null,null,null,null,null,null,null,null,null,null,null,null,null,null,null,null,null,null,null,null,null,"40008","大牟田"]
[null,null,null,null,null,null,null,null,null,null,null,null,null,null,null,null,null,null,null,null,null,null,null,null,null,null,null,null,null,null,null,null,null,null,null,null,null,null,null,null,null,null,null,"40009","三池(福岡)"]
[null,null,null,null,null,null,null,null,null,null,null,null,null,null,null,null,null,null,null,null,null,null,null,null,null,null,null,null,null,null,null,null,null,null,null,null,null,null,null,null,null,null,null,"40998","福岡その他"]
[null,null,null,null,null,null,null,null,null,null,null,null,null,null,null,null,null,null,null,null,null,null,null,null,null,null,null,null,null,null,null,null,null,null,null,null,null,null,null,null,null,null,null,"41001","唐津"]
[null,null,null,null,null,null,null,null,null,null,null,null,null,null,null,null,null,null,null,null,null,null,null,null,null,null,null,null,null,null,null,null,null,null,null,null,null,null,null,null,null,null,null,"41002","伊万里"]
[null,null,null,null,null,null,null,null,null,null,null,null,null,null,null,null,null,null,null,null,null,null,null,null,null,null,null,null,null,null,null,null,null,null,null,null,null,null,null,null,null,null,null,"41003","住江"]
[null,null,null,null,null,null,null,null,null,null,null,null,null,null,null,null,null,null,null,null,null,null,null,null,null,null,null,null,null,null,null,null,null,null,null,null,null,null,null,null,null,null,null,"41006","呼子"]
[null,null,null,null,null,null,null,null,null,null,null,null,null,null,null,null,null,null,null,null,null,null,null,null,null,null,null,null,null,null,null,null,null,null,null,null,null,null,null,null,null,null,null,"41009","仮屋"]
[null,null,null,null,null,null,null,null,null,null,null,null,null,null,null,null,null,null,null,null,null,null,null,null,null,null,null,null,null,null,null,null,null,null,null,null,null,null,null,null,null,null,null,"41998","佐賀その他"]
[null,null,null,null,null,null,null,null,null,null,null,null,null,null,null,null,null,null,null,null,null,null,null,null,null,null,null,null,null,null,null,null,null,null,null,null,null,null,null,null,null,null,null,"42001","長崎"]
[null,null,null,null,null,null,null,null,null,null,null,null,null,null,null,null,null,null,null,null,null,null,null,null,null,null,null,null,null,null,null,null,null,null,null,null,null,null,null,null,null,null,null,"42002","厳原"]
[null,null,null,null,null,null,null,null,null,null,null,null,null,null,null,null,null,null,null,null,null,null,null,null,null,null,null,null,null,null,null,null,null,null,null,null,null,null,null,null,null,null,null,"42003","郷ノ浦"]
[null,null,null,null,null,null,null,null,null,null,null,null,null,null,null,null,null,null,null,null,null,null,null,null,null,null,null,null,null,null,null,null,null,null,null,null,null,null,null,null,null,null,null,"42004","福江"]
[null,null,null,null,null,null,null,null,null,null,null,null,null,null,null,null,null,null,null,null,null,null,null,null,null,null,null,null,null,null,null,null,null,null,null,null,null,null,null,null,null,null,null,"42005","佐世保"]
[null,null,null,null,null,null,null,null,null,null,null,null,null,null,null,null,null,null,null,null,null,null,null,null,null,null,null,null,null,null,null,null,null,null,null,null,null,null,null,null,null,null,null,"42006","島原"]
[null,null,null,null,null,null,null,null,null,null,null,null,null,null,null,null,null,null,null,null,null,null,null,null,null,null,null,null,null,null,null,null,null,null,null,null,null,null,null,null,null,null,null,"42007","比田勝"]
[null,null,null,null,null,null,null,null,null,null,null,null,null,null,null,null,null,null,null,null,null,null,null,null,null,null,null,null,null,null,null,null,null,null,null,null,null,null,null,null,null,null,null,"42008","茂木"]
[null,null,null,null,null,null,null,null,null,null,null,null,null,null,null,null,null,null,null,null,null,null,null,null,null,null,null,null,null,null,null,null,null,null,null,null,null,null,null,null,null,null,null,"42009","有川"]
[null,null,null,null,null,null,null,null,null,null,null,null,null,null,null,null,null,null,null,null,null,null,null,null,null,null,null,null,null,null,null,null,null,null,null,null,null,null,null,null,null,null,null,"42010","崎戸"]
[null,null,null,null,null,null,null,null,null,null,null,null,null,null,null,null,null,null,null,null,null,null,null,null,null,null,null,null,null,null,null,null,null,null,null,null,null,null,null,null,null,null,null,"42012","田平"]
[null,null,null,null,null,null,null,null,null,null,null,null,null,null,null,null,null,null,null,null,null,null,null,null,null,null,null,null,null,null,null,null,null,null,null,null,null,null,null,null,null,null,null,"42016","伊王島"]
[null,null,null,null,null,null,null,null,null,null,null,null,null,null,null,null,null,null,null,null,null,null,null,null,null,null,null,null,null,null,null,null,null,null,null,null,null,null,null,null,null,null,null,"42017","須川"]
[null,null,null,null,null,null,null,null,null,null,null,null,null,null,null,null,null,null,null,null,null,null,null,null,null,null,null,null,null,null,null,null,null,null,null,null,null,null,null,null,null,null,null,"42019","口之津"]
[null,null,null,null,null,null,null,null,null,null,null,null,null,null,null,null,null,null,null,null,null,null,null,null,null,null,null,null,null,null,null,null,null,null,null,null,null,null,null,null,null,null,null,"42020","馬込"]
[null,null,null,null,null,null,null,null,null,null,null,null,null,null,null,null,null,null,null,null,null,null,null,null,null,null,null,null,null,null,null,null,null,null,null,null,null,null,null,null,null,null,null,"42021","高島"]
[null,null,null,null,null,null,null,null,null,null,null,null,null,null,null,null,null,null,null,null,null,null,null,null,null,null,null,null,null,null,null,null,null,null,null,null,null,null,null,null,null,null,null,"42022","小長井"]
[null,null,null,null,null,null,null,null,null,null,null,null,null,null,null,null,null,null,null,null,null,null,null,null,null,null,null,null,null,null,null,null,null,null,null,null,null,null,null,null,null,null,null,"42024","勝本"]
[null,null,null,null,null,null,null,null,null,null,null,null,null,null,null,null,null,null,null,null,null,null,null,null,null,null,null,null,null,null,null,null,null,null,null,null,null,null,null,null,null,null,null,"42025","平戸"]
[null,null,null,null,null,null,null,null,null,null,null,null,null,null,null,null,null,null,null,null,null,null,null,null,null,null,null,null,null,null,null,null,null,null,null,null,null,null,null,null,null,null,null,"42026","印通寺"]
[null,null,null,null,null,null,null,null,null,null,null,null,null,null,null,null,null,null,null,null,null,null,null,null,null,null,null,null,null,null,null,null,null,null,null,null,null,null,null,null,null,null,null,"42029","大村"]
[null,null,null,null,null,null,null,null,null,null,null,null,null,null,null,null,null,null,null,null,null,null,null,null,null,null,null,null,null,null,null,null,null,null,null,null,null,null,null,null,null,null,null,"42030","岐宿"]
[null,null,null,null,null,null,null,null,null,null,null,null,null,null,null,null,null,null,null,null,null,null,null,null,null,null,null,null,null,null,null,null,null,null,null,null,null,null,null,null,null,null,null,"42031","若松"]
[null,null,null,null,null,null,null,null,null,null,null,null,null,null,null,null,null,null,null,null,null,null,null,null,null,null,null,null,null,null,null,null,null,null,null,null,null,null,null,null,null,null,null,"42033","池島"]
[null,null,null,null,null,null,null,null,null,null,null,null,null,null,null,null,null,null,null,null,null,null,null,null,null,null,null,null,null,null,null,null,null,null,null,null,null,null,null,null,null,null,null,"42036","調川"]
[null,null,null,null,null,null,null,null,null,null,null,null,null,null,null,null,null,null,null,null,null,null,null,null,null,null,null,null,null,null,null,null,null,null,null,null,null,null,null,null,null,null,null,"42038","青方"]
[null,null,null,null,null,null,null,null,null,null,null,null,null,null,null,null,null,null,null,null,null,null,null,null,null,null,null,null,null,null,null,null,null,null,null,null,null,null,null,null,null,null,null,"42040","松島(長崎)"]
[null,null,null,null,null,null,null,null,null,null,null,null,null,null,null,null,null,null,null,null,null,null,null,null,null,null,null,null,null,null,null,null,null,null,null,null,null,null,null,null,null,null,null,"42042","川棚"]
[null,null,null,null,null,null,null,null,null,null,null,null,null,null,null,null,null,null,null,null,null,null,null,null,null,null,null,null,null,null,null,null,null,null,null,null,null,null,null,null,null,null,null,"42044","多比良"]
[null,null,null,null,null,null,null,null,null,null,null,null,null,null,null,null,null,null,null,null,null,null,null,null,null,null,null,null,null,null,null,null,null,null,null,null,null,null,null,null,null,null,null,"42045","太田和"]
[null,null,null,null,null,null,null,null,null,null,null,null,null,null,null,null,null,null,null,null,null,null,null,null,null,null,null,null,null,null,null,null,null,null,null,null,null,null,null,null,null,null,null,"42048","奈留島"]
[null,null,null,null,null,null,null,null,null,null,null,null,null,null,null,null,null,null,null,null,null,null,null,null,null,null,null,null,null,null,null,null,null,null,null,null,null,null,null,null,null,null,null,"42051","相浦"]
[null,null,null,null,null,null,null,null,null,null,null,null,null,null,null,null,null,null,null,null,null,null,null,null,null,null,null,null,null,null,null,null,null,null,null,null,null,null,null,null,null,null,null,"42052","福島"]
[null,null,null,null,null,null,null,null,null,null,null,null,null,null,null,null,null,null,null,null,null,null,null,null,null,null,null,null,null,null,null,null,null,null,null,null,null,null,null,null,null,null,null,"42060","松浦"]
[null,null,null,null,null,null,null,null,null,null,null,null,null,null,null,null,null,null,null,null,null,null,null,null,null,null,null,null,null,null,null,null,null,null,null,null,null,null,null,null,null,null,null,"42063","大瀬戸柳"]
[null,null,null,null,null,null,null,null,null,null,null,null,null,null,null,null,null,null,null,null,null,null,null,null,null,null,null,null,null,null,null,null,null,null,null,null,null,null,null,null,null,null,null,"42080","床浪"]
[null,null,null,null,null,null,null,null,null,null,null,null,null,null,null,null,null,null,null,null,null,null,null,null,null,null,null,null,null,null,null,null,null,null,null,null,null,null,null,null,null,null,null,"42118","面高"]
[null,null,null,null,null,null,null,null,null,null,null,null,null,null,null,null,null,null,null,null,null,null,null,null,null,null,null,null,null,null,null,null,null,null,null,null,null,null,null,null,null,null,null,"42134","榎津"]
[null,null,null,null,null,null,null,null,null,null,null,null,null,null,null,null,null,null,null,null,null,null,null,null,null,null,null,null,null,null,null,null,null,null,null,null,null,null,null,null,null,null,null,"42135","郷ノ首"]
[null,null,null,null,null,null,null,null,null,null,null,null,null,null,null,null,null,null,null,null,null,null,null,null,null,null,null,null,null,null,null,null,null,null,null,null,null,null,null,null,null,null,null,"42137","神ノ浦"]
[null,null,null,null,null,null,null,null,null,null,null,null,null,null,null,null,null,null,null,null,null,null,null,null,null,null,null,null,null,null,null,null,null,null,null,null,null,null,null,null,null,null,null,"42205","小値賀"]
[null,null,null,null,null,null,null,null,null,null,null,null,null,null,null,null,null,null,null,null,null,null,null,null,null,null,null,null,null,null,null,null,null,null,null,null,null,null,null,null,null,null,null,"42206","生月島"]
[null,null,null,null,null,null,null,null,null,null,null,null,null,null,null,null,null,null,null,null,null,null,null,null,null,null,null,null,null,null,null,null,null,null,null,null,null,null,null,null,null,null,null,"42207","芦辺"]
[null,null,null,null,null,null,null,null,null,null,null,null,null,null,null,null,null,null,null,null,null,null,null,null,null,null,null,null,null,null,null,null,null,null,null,null,null,null,null,null,null,null,null,"42208","奈良尾"]
[null,null,null,null,null,null,null,null,null,null,null,null,null,null,null,null,null,null,null,null,null,null,null,null,null,null,null,null,null,null,null,null,null,null,null,null,null,null,null,null,null,null,null,"42210","宇久島"]
[null,null,null,null,null,null,null,null,null,null,null,null,null,null,null,null,null,null,null,null,null,null,null,null,null,null,null,null,null,null,null,null,null,null,null,null,null,null,null,null,null,null,null,"42998","長崎その他"]
[null,null,null,null,null,null,null,null,null,null,null,null,null,null,null,null,null,null,null,null,null,null,null,null,null,null,null,null,null,null,null,null,null,null,null,null,null,null,null,null,null,null,null,"43001","三角"]
[null,null,null,null,null,null,null,null,null,null,null,null,null,null,null,null,null,null,null,null,null,null,null,null,null,null,null,null,null,null,null,null,null,null,null,null,null,null,null,null,null,null,null,"43002","八代"]
[null,null,null,null,null,null,null,null,null,null,null,null,null,null,null,null,null,null,null,null,null,null,null,null,null,null,null,null,null,null,null,null,null,null,null,null,null,null,null,null,null,null,null,"43003","水俣"]
[null,null,null,null,null,null,null,null,null,null,null,null,null,null,null,null,null,null,null,null,null,null,null,null,null,null,null,null,null,null,null,null,null,null,null,null,null,null,null,null,null,null,null,"43004","佐敷"]
[null,null,null,null,null,null,null,null,null,null,null,null,null,null,null,null,null,null,null,null,null,null,null,null,null,null,null,null,null,null,null,null,null,null,null,null,null,null,null,null,null,null,null,"43006","長洲"]
[null,null,null,null,null,null,null,null,null,null,null,null,null,null,null,null,null,null,null,null,null,null,null,null,null,null,null,null,null,null,null,null,null,null,null,null,null,null,null,null,null,null,null,"43007","富岡(熊本)"]
[null,null,null,null,null,null,null,null,null,null,null,null,null,null,null,null,null,null,null,null,null,null,null,null,null,null,null,null,null,null,null,null,null,null,null,null,null,null,null,null,null,null,null,"43009","鬼池"]
[null,null,null,null,null,null,null,null,null,null,null,null,null,null,null,null,null,null,null,null,null,null,null,null,null,null,null,null,null,null,null,null,null,null,null,null,null,null,null,null,null,null,null,"43010","本渡"]
[null,null,null,null,null,null,null,null,null,null,null,null,null,null,null,null,null,null,null,null,null,null,null,null,null,null,null,null,null,null,null,null,null,null,null,null,null,null,null,null,null,null,null,"43020","赤崎"]
[null,null,null,null,null,null,null,null,null,null,null,null,null,null,null,null,null,null,null,null,null,null,null,null,null,null,null,null,null,null,null,null,null,null,null,null,null,null,null,null,null,null,null,"43028","中田"]
[null,null,null,null,null,null,null,null,null,null,null,null,null,null,null,null,null,null,null,null,null,null,null,null,null,null,null,null,null,null,null,null,null,null,null,null,null,null,null,null,null,null,null,"43034","大道"]
[null,null,null,null,null,null,null,null,null,null,null,null,null,null,null,null,null,null,null,null,null,null,null,null,null,null,null,null,null,null,null,null,null,null,null,null,null,null,null,null,null,null,null,"43041","牛深"]
[null,null,null,null,null,null,null,null,null,null,null,null,null,null,null,null,null,null,null,null,null,null,null,null,null,null,null,null,null,null,null,null,null,null,null,null,null,null,null,null,null,null,null,"43042","田浦"]
[null,null,null,null,null,null,null,null,null,null,null,null,null,null,null,null,null,null,null,null,null,null,null,null,null,null,null,null,null,null,null,null,null,null,null,null,null,null,null,null,null,null,null,"43054","熊本"]
[null,null,null,null,null,null,null,null,null,null,null,null,null,null,null,null,null,null,null,null,null,null,null,null,null,null,null,null,null,null,null,null,null,null,null,null,null,null,null,null,null,null,null,"43201","松島(熊本)"]
[null,null,null,null,null,null,null,null,null,null,null,null,null,null,null,null,null,null,null,null,null,null,null,null,null,null,null,null,null,null,null,null,null,null,null,null,null,null,null,null,null,null,null,"43998","熊本その他"]
[null,null,null,null,null,null,null,null,null,null,null,null,null,null,null,null,null,null,null,null,null,null,null,null,null,null,null,null,null,null,null,null,null,null,null,null,null,null,null,null,null,null,null,"44001","大分"]
[null,null,null,null,null,null,null,null,null,null,null,null,null,null,null,null,null,null,null,null,null,null,null,null,null,null,null,null,null,null,null,null,null,null,null,null,null,null,null,null,null,null,null,"44002","津久見"]
[null,null,null,null,null,null,null,null,null,null,null,null,null,null,null,null,null,null,null,null,null,null,null,null,null,null,null,null,null,null,null,null,null,null,null,null,null,null,null,null,null,null,null,"44003","別府(大分)"]
[null,null,null,null,null,null,null,null,null,null,null,null,null,null,null,null,null,null,null,null,null,null,null,null,null,null,null,null,null,null,null,null,null,null,null,null,null,null,null,null,null,null,null,"44004","臼杵"]
[null,null,null,null,null,null,null,null,null,null,null,null,null,null,null,null,null,null,null,null,null,null,null,null,null,null,null,null,null,null,null,null,null,null,null,null,null,null,null,null,null,null,null,"44006","姫島"]
[null,null,null,null,null,null,null,null,null,null,null,null,null,null,null,null,null,null,null,null,null,null,null,null,null,null,null,null,null,null,null,null,null,null,null,null,null,null,null,null,null,null,null,"44007","国東"]
[null,null,null,null,null,null,null,null,null,null,null,null,null,null,null,null,null,null,null,null,null,null,null,null,null,null,null,null,null,null,null,null,null,null,null,null,null,null,null,null,null,null,null,"44008","日出"]
[null,null,null,null,null,null,null,null,null,null,null,null,null,null,null,null,null,null,null,null,null,null,null,null,null,null,null,null,null,null,null,null,null,null,null,null,null,null,null,null,null,null,null,"44009","佐賀関"]
[null,null,null,null,null,null,null,null,null,null,null,null,null,null,null,null,null,null,null,null,null,null,null,null,null,null,null,null,null,null,null,null,null,null,null,null,null,null,null,null,null,null,null,"44010","佐伯"]
[null,null,null,null,null,null,null,null,null,null,null,null,null,null,null,null,null,null,null,null,null,null,null,null,null,null,null,null,null,null,null,null,null,null,null,null,null,null,null,null,null,null,null,"44011","中津"]
[null,null,null,null,null,null,null,null,null,null,null,null,null,null,null,null,null,null,null,null,null,null,null,null,null,null,null,null,null,null,null,null,null,null,null,null,null,null,null,null,null,null,null,"44012","伊美"]
[null,null,null,null,null,null,null,null,null,null,null,null,null,null,null,null,null,null,null,null,null,null,null,null,null,null,null,null,null,null,null,null,null,null,null,null,null,null,null,null,null,null,null,"44018","熊毛"]
[null,null,null,null,null,null,null,null,null,null,null,null,null,null,null,null,null,null,null,null,null,null,null,null,null,null,null,null,null,null,null,null,null,null,null,null,null,null,null,null,null,null,null,"44021","守江"]
[null,null,null,null,null,null,null,null,null,null,null,null,null,null,null,null,null,null,null,null,null,null,null,null,null,null,null,null,null,null,null,null,null,null,null,null,null,null,null,null,null,null,null,"44202","竹田津"]
[null,null,null,null,null,null,null,null,null,null,null,null,null,null,null,null,null,null,null,null,null,null,null,null,null,null,null,null,null,null,null,null,null,null,null,null,null,null,null,null,null,null,null,"44998","大分その他"]
[null,null,null,null,null,null,null,null,null,null,null,null,null,null,null,null,null,null,null,null,null,null,null,null,null,null,null,null,null,null,null,null,null,null,null,null,null,null,null,null,null,null,null,"45001","細島"]
[null,null,null,null,null,null,null,null,null,null,null,null,null,null,null,null,null,null,null,null,null,null,null,null,null,null,null,null,null,null,null,null,null,null,null,null,null,null,null,null,null,null,null,"45002","油津"]
[null,null,null,null,null,null,null,null,null,null,null,null,null,null,null,null,null,null,null,null,null,null,null,null,null,null,null,null,null,null,null,null,null,null,null,null,null,null,null,null,null,null,null,"45003","内海(宮崎)"]
[null,null,null,null,null,null,null,null,null,null,null,null,null,null,null,null,null,null,null,null,null,null,null,null,null,null,null,null,null,null,null,null,null,null,null,null,null,null,null,null,null,null,null,"45006","延岡"]
[null,null,null,null,null,null,null,null,null,null,null,null,null,null,null,null,null,null,null,null,null,null,null,null,null,null,null,null,null,null,null,null,null,null,null,null,null,null,null,null,null,null,null,"45015","延岡新"]
[null,null,null,null,null,null,null,null,null,null,null,null,null,null,null,null,null,null,null,null,null,null,null,null,null,null,null,null,null,null,null,null,null,null,null,null,null,null,null,null,null,null,null,"45017","宮崎"]
[null,null,null,null,null,null,null,null,null,null,null,null,null,null,null,null,null,null,null,null,null,null,null,null,null,null,null,null,null,null,null,null,null,null,null,null,null,null,null,null,null,null,null,"45018","土々呂"]
[null,null,null,null,null,null,null,null,null,null,null,null,null,null,null,null,null,null,null,null,null,null,null,null,null,null,null,null,null,null,null,null,null,null,null,null,null,null,null,null,null,null,null,"45998","宮崎その他"]
[null,null,null,null,null,null,null,null,null,null,null,null,null,null,null,null,null,null,null,null,null,null,null,null,null,null,null,null,null,null,null,null,null,null,null,null,null,null,null,null,null,null,null,"46001","鹿児島"]
[null,null,null,null,null,null,null,null,null,null,null,null,null,null,null,null,null,null,null,null,null,null,null,null,null,null,null,null,null,null,null,null,null,null,null,null,null,null,null,null,null,null,null,"46002","西之表"]
[null,null,null,null,null,null,null,null,null,null,null,null,null,null,null,null,null,null,null,null,null,null,null,null,null,null,null,null,null,null,null,null,null,null,null,null,null,null,null,null,null,null,null,"46003","名瀬"]
[null,null,null,null,null,null,null,null,null,null,null,null,null,null,null,null,null,null,null,null,null,null,null,null,null,null,null,null,null,null,null,null,null,null,null,null,null,null,null,null,null,null,null,"46005","米ノ津"]
[null,null,null,null,null,null,null,null,null,null,null,null,null,null,null,null,null,null,null,null,null,null,null,null,null,null,null,null,null,null,null,null,null,null,null,null,null,null,null,null,null,null,null,"46010","宮之浦"]
[null,null,null,null,null,null,null,null,null,null,null,null,null,null,null,null,null,null,null,null,null,null,null,null,null,null,null,null,null,null,null,null,null,null,null,null,null,null,null,null,null,null,null,"46011","川内"]
[null,null,null,null,null,null,null,null,null,null,null,null,null,null,null,null,null,null,null,null,null,null,null,null,null,null,null,null,null,null,null,null,null,null,null,null,null,null,null,null,null,null,null,"46013","指宿"]
[null,null,null,null,null,null,null,null,null,null,null,null,null,null,null,null,null,null,null,null,null,null,null,null,null,null,null,null,null,null,null,null,null,null,null,null,null,null,null,null,null,null,null,"46015","加治木"]
[null,null,null,null,null,null,null,null,null,null,null,null,null,null,null,null,null,null,null,null,null,null,null,null,null,null,null,null,null,null,null,null,null,null,null,null,null,null,null,null,null,null,null,"46018","垂水"]
[null,null,null,null,null,null,null,null,null,null,null,null,null,null,null,null,null,null,null,null,null,null,null,null,null,null,null,null,null,null,null,null,null,null,null,null,null,null,null,null,null,null,null,"46019","桜島"]
[null,null,null,null,null,null,null,null,null,null,null,null,null,null,null,null,null,null,null,null,null,null,null,null,null,null,null,null,null,null,null,null,null,null,null,null,null,null,null,null,null,null,null,"46020","鹿屋"]
[null,null,null,null,null,null,null,null,null,null,null,null,null,null,null,null,null,null,null,null,null,null,null,null,null,null,null,null,null,null,null,null,null,null,null,null,null,null,null,null,null,null,null,"46023","根占"]
[null,null,null,null,null,null,null,null,null,null,null,null,null,null,null,null,null,null,null,null,null,null,null,null,null,null,null,null,null,null,null,null,null,null,null,null,null,null,null,null,null,null,null,"46025","志布志"]
[null,null,null,null,null,null,null,null,null,null,null,null,null,null,null,null,null,null,null,null,null,null,null,null,null,null,null,null,null,null,null,null,null,null,null,null,null,null,null,null,null,null,null,"46027","島間"]
[null,null,null,null,null,null,null,null,null,null,null,null,null,null,null,null,null,null,null,null,null,null,null,null,null,null,null,null,null,null,null,null,null,null,null,null,null,null,null,null,null,null,null,"46031","平土野"]
[null,null,null,null,null,null,null,null,null,null,null,null,null,null,null,null,null,null,null,null,null,null,null,null,null,null,null,null,null,null,null,null,null,null,null,null,null,null,null,null,null,null,null,"46032","湾"]
[null,null,null,null,null,null,null,null,null,null,null,null,null,null,null,null,null,null,null,null,null,null,null,null,null,null,null,null,null,null,null,null,null,null,null,null,null,null,null,null,null,null,null,"46033","亀徳"]
[null,null,null,null,null,null,null,null,null,null,null,null,null,null,null,null,null,null,null,null,null,null,null,null,null,null,null,null,null,null,null,null,null,null,null,null,null,null,null,null,null,null,null,"46034","和泊"]
[null,null,null,null,null,null,null,null,null,null,null,null,null,null,null,null,null,null,null,null,null,null,null,null,null,null,null,null,null,null,null,null,null,null,null,null,null,null,null,null,null,null,null,"46035","与論"]
[null,null,null,null,null,null,null,null,null,null,null,null,null,null,null,null,null,null,null,null,null,null,null,null,null,null,null,null,null,null,null,null,null,null,null,null,null,null,null,null,null,null,null,"46037","古仁屋"]
[null,null,null,null,null,null,null,null,null,null,null,null,null,null,null,null,null,null,null,null,null,null,null,null,null,null,null,null,null,null,null,null,null,null,null,null,null,null,null,null,null,null,null,"46071","竹島"]
[null,null,null,null,null,null,null,null,null,null,null,null,null,null,null,null,null,null,null,null,null,null,null,null,null,null,null,null,null,null,null,null,null,null,null,null,null,null,null,null,null,null,null,"46112","岩屋泊"]
[null,null,null,null,null,null,null,null,null,null,null,null,null,null,null,null,null,null,null,null,null,null,null,null,null,null,null,null,null,null,null,null,null,null,null,null,null,null,null,null,null,null,null,"46146","長浜(鹿児島)"]
[null,null,null,null,null,null,null,null,null,null,null,null,null,null,null,null,null,null,null,null,null,null,null,null,null,null,null,null,null,null,null,null,null,null,null,null,null,null,null,null,null,null,null,"46147","片側"]
[null,null,null,null,null,null,null,null,null,null,null,null,null,null,null,null,null,null,null,null,null,null,null,null,null,null,null,null,null,null,null,null,null,null,null,null,null,null,null,null,null,null,null,"46150","里"]
[null,null,null,null,null,null,null,null,null,null,null,null,null,null,null,null,null,null,null,null,null,null,null,null,null,null,null,null,null,null,null,null,null,null,null,null,null,null,null,null,null,null,null,"46151","喜入"]
[null,null,null,null,null,null,null,null,null,null,null,null,null,null,null,null,null,null,null,null,null,null,null,null,null,null,null,null,null,null,null,null,null,null,null,null,null,null,null,null,null,null,null,"46154","諸浦"]
[null,null,null,null,null,null,null,null,null,null,null,null,null,null,null,null,null,null,null,null,null,null,null,null,null,null,null,null,null,null,null,null,null,null,null,null,null,null,null,null,null,null,null,"46164","串木野新"]
[null,null,null,null,null,null,null,null,null,null,null,null,null,null,null,null,null,null,null,null,null,null,null,null,null,null,null,null,null,null,null,null,null,null,null,null,null,null,null,null,null,null,null,"46201","知名"]
[null,null,null,null,null,null,null,null,null,null,null,null,null,null,null,null,null,null,null,null,null,null,null,null,null,null,null,null,null,null,null,null,null,null,null,null,null,null,null,null,null,null,null,"46202","阿久根"]
[null,null,null,null,null,null,null,null,null,null,null,null,null,null,null,null,null,null,null,null,null,null,null,null,null,null,null,null,null,null,null,null,null,null,null,null,null,null,null,null,null,null,null,"46203","山川"]
[null,null,null,null,null,null,null,null,null,null,null,null,null,null,null,null,null,null,null,null,null,null,null,null,null,null,null,null,null,null,null,null,null,null,null,null,null,null,null,null,null,null,null,"46204","蔵之元"]
[null,null,null,null,null,null,null,null,null,null,null,null,null,null,null,null,null,null,null,null,null,null,null,null,null,null,null,null,null,null,null,null,null,null,null,null,null,null,null,null,null,null,null,"46208","枕崎"]
[null,null,null,null,null,null,null,null,null,null,null,null,null,null,null,null,null,null,null,null,null,null,null,null,null,null,null,null,null,null,null,null,null,null,null,null,null,null,null,null,null,null,null,"46209","手打"]
[null,null,null,null,null,null,null,null,null,null,null,null,null,null,null,null,null,null,null,null,null,null,null,null,null,null,null,null,null,null,null,null,null,null,null,null,null,null,null,null,null,null,null,"46998","鹿児島その他"]
[null,null,null,null,null,null,null,null,null,null,null,null,null,null,null,null,null,null,null,null,null,null,null,null,null,null,null,null,null,null,null,null,null,null,null,null,null,null,null,null,null,null,null,"47001","那覇"]
[null,null,null,null,null,null,null,null,null,null,null,null,null,null,null,null,null,null,null,null,null,null,null,null,null,null,null,null,null,null,null,null,null,null,null,null,null,null,null,null,null,null,null,"47002","運天"]
[null,null,null,null,null,null,null,null,null,null,null,null,null,null,null,null,null,null,null,null,null,null,null,null,null,null,null,null,null,null,null,null,null,null,null,null,null,null,null,null,null,null,null,"47003","平良"]
[null,null,null,null,null,null,null,null,null,null,null,null,null,null,null,null,null,null,null,null,null,null,null,null,null,null,null,null,null,null,null,null,null,null,null,null,null,null,null,null,null,null,null,"47004","石垣"]
[null,null,null,null,null,null,null,null,null,null,null,null,null,null,null,null,null,null,null,null,null,null,null,null,null,null,null,null,null,null,null,null,null,null,null,null,null,null,null,null,null,null,null,"47005","渡久地"]
[null,null,null,null,null,null,null,null,null,null,null,null,null,null,null,null,null,null,null,null,null,null,null,null,null,null,null,null,null,null,null,null,null,null,null,null,null,null,null,null,null,null,null,"47008","伊江"]
[null,null,null,null,null,null,null,null,null,null,null,null,null,null,null,null,null,null,null,null,null,null,null,null,null,null,null,null,null,null,null,null,null,null,null,null,null,null,null,null,null,null,null,"47011","本部"]
[null,null,null,null,null,null,null,null,null,null,null,null,null,null,null,null,null,null,null,null,null,null,null,null,null,null,null,null,null,null,null,null,null,null,null,null,null,null,null,null,null,null,null,"47013","伊平屋島"]
[null,null,null,null,null,null,null,null,null,null,null,null,null,null,null,null,null,null,null,null,null,null,null,null,null,null,null,null,null,null,null,null,null,null,null,null,null,null,null,null,null,null,null,"47015","仲田"]
[null,null,null,null,null,null,null,null,null,null,null,null,null,null,null,null,null,null,null,null,null,null,null,null,null,null,null,null,null,null,null,null,null,null,null,null,null,null,null,null,null,null,null,"47017","北大東島"]
[null,null,null,null,null,null,null,null,null,null,null,null,null,null,null,null,null,null,null,null,null,null,null,null,null,null,null,null,null,null,null,null,null,null,null,null,null,null,null,null,null,null,null,"47020","南大東島"]
[null,null,null,null,null,null,null,null,null,null,null,null,null,null,null,null,null,null,null,null,null,null,null,null,null,null,null,null,null,null,null,null,null,null,null,null,null,null,null,null,null,null,null,"47022","粟国島"]
[null,null,null,null,null,null,null,null,null,null,null,null,null,null,null,null,null,null,null,null,null,null,null,null,null,null,null,null,null,null,null,null,null,null,null,null,null,null,null,null,null,null,null,"47023","兼城"]
[null,null,null,null,null,null,null,null,null,null,null,null,null,null,null,null,null,null,null,null,null,null,null,null,null,null,null,null,null,null,null,null,null,null,null,null,null,null,null,null,null,null,null,"47024","渡嘉敷島"]
[null,null,null,null,null,null,null,null,null,null,null,null,null,null,null,null,null,null,null,null,null,null,null,null,null,null,null,null,null,null,null,null,null,null,null,null,null,null,null,null,null,null,null,"47026","座間味島"]
[null,null,null,null,null,null,null,null,null,null,null,null,null,null,null,null,null,null,null,null,null,null,null,null,null,null,null,null,null,null,null,null,null,null,null,null,null,null,null,null,null,null,null,"47027","長山"]
[null,null,null,null,null,null,null,null,null,null,null,null,null,null,null,null,null,null,null,null,null,null,null,null,null,null,null,null,null,null,null,null,null,null,null,null,null,null,null,null,null,null,null,"47031","前泊"]
[null,null,null,null,null,null,null,null,null,null,null,null,null,null,null,null,null,null,null,null,null,null,null,null,null,null,null,null,null,null,null,null,null,null,null,null,null,null,null,null,null,null,null,"47033","小浜島"]
[null,null,null,null,null,null,null,null,null,null,null,null,null,null,null,null,null,null,null,null,null,null,null,null,null,null,null,null,null,null,null,null,null,null,null,null,null,null,null,null,null,null,null,"47034","黒島"]
[null,null,null,null,null,null,null,null,null,null,null,null,null,null,null,null,null,null,null,null,null,null,null,null,null,null,null,null,null,null,null,null,null,null,null,null,null,null,null,null,null,null,null,"47039","白浜"]
[null,null,null,null,null,null,null,null,null,null,null,null,null,null,null,null,null,null,null,null,null,null,null,null,null,null,null,null,null,null,null,null,null,null,null,null,null,null,null,null,null,null,null,"47041","船浦"]
[null,null,null,null,null,null,null,null,null,null,null,null,null,null,null,null,null,null,null,null,null,null,null,null,null,null,null,null,null,null,null,null,null,null,null,null,null,null,null,null,null,null,null,"47042","鳩間島"]
[null,null,null,null,null,null,null,null,null,null,null,null,null,null,null,null,null,null,null,null,null,null,null,null,null,null,null,null,null,null,null,null,null,null,null,null,null,null,null,null,null,null,null,"47043","祖納"]
[null,null,null,null,null,null,null,null,null,null,null,null,null,null,null,null,null,null,null,null,null,null,null,null,null,null,null,null,null,null,null,null,null,null,null,null,null,null,null,null,null,null,null,"47050","金武湾"]
[null,null,null,null,null,null,null,null,null,null,null,null,null,null,null,null,null,null,null,null,null,null,null,null,null,null,null,null,null,null,null,null,null,null,null,null,null,null,null,null,null,null,null,"47051","中城湾"]
[null,null,null,null,null,null,null,null,null,null,null,null,null,null,null,null,null,null,null,null,null,null,null,null,null,null,null,null,null,null,null,null,null,null,null,null,null,null,null,null,null,null,null,"47053","宜野湾"]
[null,null,null,null,null,null,null,null,null,null,null,null,null,null,null,null,null,null,null,null,null,null,null,null,null,null,null,null,null,null,null,null,null,null,null,null,null,null,null,null,null,null,null,"47998","沖縄その他"]
[null,null,null,null,null,null,null,null,null,null,null,null,null,null,null,null,null,null,null,null,null,null,null,null,null,null,null,null,null,null,null,null,null,null,null,null,null,null,null,null,null,null,null,"99990","港湾不明"]

{"sheet":"空港補助","index":7,"n_rows":93,"n_cols":42,"rows_kept":93,"cut":false,"hidden":true,"merged":[]}
["都道府県",null,"北海道","青森","岩手","宮城","秋田","山形","福島","茨城","千葉","東京","新潟","富山","石川","長野","静岡","愛知","大阪","兵庫","和歌山","鳥取","島根","岡山","広島","山口","徳島","香川","愛媛","高知","福岡","佐賀","長崎","熊本","大分","宮崎","鹿児島","沖縄","空港不明",null,"CODE","空港名"]
["北海道",null,"新千歳","青森","花巻(いわて花巻空港)","仙台","秋田","山形(おいしい山形空港)","福島","茨城(茨城空港、航空自衛隊百里基地)","成田国際(成田空港)","東京国際(羽田空港)","新潟","富山(富山きときと空港)","小松","松本(信州まつもと空港)","静岡(富士山静岡空港)","名古屋(小牧)","大阪国際(伊丹空港)","但馬(コウノトリ但馬空港)","南紀白浜(熊野白浜リゾート空港)","米子(美穂飛行場、米子鬼太郎空港)","隠岐","岡山","広島","山口宇部","徳島(徳島阿波おどり空港)","高松(高知龍馬空港)","松山","高知","北九州","佐賀(九州佐賀国際空港)","長崎","熊本(阿蘇くまもと空港)","大分","宮崎(宮崎ブーゲンビリア空港)","鹿児島","那覇","空港不明",null,"70101","新千歳"]
["青森",null,"札幌丘珠(札幌飛行場、丘珠空港)","三沢",null,null,"大館能代(あきた北空港)","庄内(おいしい庄内空港)",null,null,null,"大島(東京大島かめりあ空港)","佐渡",null,"能登(のと里山空港)",null,null,"中部国際(セントレア空港)","関西国際空港(関西空港)","神戸(マリンエア)",null,"鳥取(鳥取砂丘コナン空港)","出雲(出雲縁結び空港)",null,"広島西","岩国(岩国錦帯空港)",null,null,null,null,"福岡",null,"福江(五島つばき空港)","天草",null,null,"種子島(コスモポート種子島)","宮古",null,null,"70102","札幌丘珠(札幌飛行場、丘珠空港)"]
["岩手",null,"稚内",null,null,null,null,null,null,null,null,"新島",null,null,null,null,null,null,null,null,null,null,"石見(萩・石見空港)",null,null,null,null,null,null,null,null,null,"上五島",null,null,null,"屋久島","石垣",null,null,"70103","稚内"]
["宮城",null,"旭川(北海道のまん中空港)",null,null,null,null,null,null,null,null,"三宅島",null,null,null,null,null,null,null,null,null,null,null,null,null,null,null,null,null,null,null,null,"壱岐",null,null,null,"奄美(奄美大島空港)","久米島",null,null,"70104","旭川(北海道のまん中空港)"]
["秋田",null,"釧路(たんちょう釧路空港)",null,null,null,null,null,null,null,null,"八丈島",null,null,null,null,null,null,null,null,null,null,null,null,null,null,null,null,null,null,null,null,"対馬(対馬やまねこ空港)",null,null,null,"沖永良部(えらぶゆりの島空港)","南大東",null,null,"70105","釧路(たんちょう釧路空港)"]
["山形",null,"帯広(とかち帯広空港)",null,null,null,null,null,null,null,null,"調布",null,null,null,null,null,null,null,null,null,null,null,null,null,null,null,null,null,null,null,null,"小値賀",null,null,null,"喜界","与那国",null,null,"70106","帯広(とかち帯広空港)"]
["福島",null,"函館",null,null,null,null,null,null,null,null,"神津島",null,null,null,null,null,null,null,null,null,null,null,null,null,null,null,null,null,null,null,null,null,null,null,null,"徳之島(徳之島子宝空港)","多良間(かりゆす多良間空港)",null,null,"70107","函館"]
["茨城",null,"礼文",null,null,null,null,null,null,null,null,null,null,null,null,null,null,null,null,null,null,null,null,null,null,null,null,null,null,null,null,null,null,null,null,null,"与論","波照間",null,null,"70108","礼文"]
["千葉",null,"利尻",null,null,null,null,null,null,null,null,null,null,null,null,null,null,null,null,null,null,null,null,null,null,null,null,null,null,null,null,null,null,null,null,null,null,"粟国",null,null,"70109","利尻"]
["東京",null,"中標津(根室中標津空港)",null,null,null,null,null,null,null,null,null,null,null,null,null,null,null,null,null,null,null,null,null,null,null,null,null,null,null,null,null,null,null,null,null,null,"北大東",null,null,"70110","中標津(根室中標津空港)"]
["新潟",null,"紋別(オホーツク紋別空港)",null,null,null,null,null,null,null,null,null,null,null,null,null,null,null,null,null,null,null,null,null,null,null,null,null,null,null,null,null,null,null,null,null,null,"慶良間",null,null,"70111","紋別(オホーツク紋別空港)"]
["富山",null,"女満別",null,null,null,null,null,null,null,null,null,null,null,null,null,null,null,null,null,null,null,null,null,null,null,null,null,null,null,null,null,null,null,null,null,null,null,null,null,"70112","女満別"]
["石川",null,"奥尻",null,null,null,null,null,null,null,null,null,null,null,null,null,null,null,null,null,null,null,null,null,null,null,null,null,null,null,null,null,null,null,null,null,null,null,null,null,"70113","奥尻"]
["長野",null,null,null,null,null,null,null,null,null,null,null,null,null,null,null,null,null,null,null,null,null,null,null,null,null,null,null,null,null,null,null,null,null,null,null,null,null,null,null,"70201","青森"]
["静岡",null,null,null,null,null,null,null,null,null,null,null,null,null,null,null,null,null,null,null,null,null,null,null,null,null,null,null,null,null,null,null,null,null,null,null,null,null,null,null,"70202","三沢"]
["愛知",null,null,null,null,null,null,null,null,null,null,null,null,null,null,null,null,null,null,null,null,null,null,null,null,null,null,null,null,null,null,null,null,null,null,null,null,null,null,null,"70301","花巻(いわて花巻空港)"]
["大阪",null,null,null,null,null,null,null,null,null,null,null,null,null,null,null,null,null,null,null,null,null,null,null,null,null,null,null,null,null,null,null,null,null,null,null,null,null,null,null,"70401","仙台"]
["兵庫",null,null,null,null,null,null,null,null,null,null,null,null,null,null,null,null,null,null,null,null,null,null,null,null,null,null,null,null,null,null,null,null,null,null,null,null,null,null,null,"70501","秋田"]
["和歌山",null,null,null,null,null,null,null,null,null,null,null,null,null,null,null,null,null,null,null,null,null,null,null,null,null,null,null,null,null,null,null,null,null,null,null,null,null,null,null,"70502","大館能代(あきた北空港)"]
["鳥取",null,null,null,null,null,null,null,null,null,null,null,null,null,null,null,null,null,null,null,null,null,null,null,null,null,null,null,null,null,null,null,null,null,null,null,null,null,null,null,"70601","山形(おいしい山形空港)"]
["島根",null,null,null,null,null,null,null,null,null,null,null,null,null,null,null,null,null,null,null,null,null,null,null,null,null,null,null,null,null,null,null,null,null,null,null,null,null,null,null,"70602","庄内(おいしい庄内空港)"]
["岡山",null,null,null,null,null,null,null,null,null,null,null,null,null,null,null,null,null,null,null,null,null,null,null,null,null,null,null,null,null,null,null,null,null,null,null,null,null,null,null,"70701","福島"]
["広島",null,null,null,null,null,null,null,null,null,null,null,null,null,null,null,null,null,null,null,null,null,null,null,null,null,null,null,null,null,null,null,null,null,null,null,null,null,null,null,"70801","茨城(茨城空港、航空自衛隊百里基地)"]
["山口",null,null,null,null,null,null,null,null,null,null,null,null,null,null,null,null,null,null,null,null,null,null,null,null,null,null,null,null,null,null,null,null,null,null,null,null,null,null,null,"71201","成田国際(成田空港)"]
["徳島",null,null,null,null,null,null,null,null,null,null,null,null,null,null,null,null,null,null,null,null,null,null,null,null,null,null,null,null,null,null,null,null,null,null,null,null,null,null,null,"71301","東京国際(羽田空港)"]
["香川",null,null,null,null,null,null,null,null,null,null,null,null,null,null,null,null,null,null,null,null,null,null,null,null,null,null,null,null,null,null,null,null,null,null,null,null,null,null,null,"71302","大島(東京大島かめりあ空港)"]
["愛媛",null,null,null,null,null,null,null,null,null,null,null,null,null,null,null,null,null,null,null,null,null,null,null,null,null,null,null,null,null,null,null,null,null,null,null,null,null,null,null,"71303","新島"]
["高知",null,null,null,null,null,null,null,null,null,null,null,null,null,null,null,null,null,null,null,null,null,null,null,null,null,null,null,null,null,null,null,null,null,null,null,null,null,null,null,"71304","三宅島"]
["福岡",null,null,null,null,null,null,null,null,null,null,null,null,null,null,null,null,null,null,null,null,null,null,null,null,null,null,null,null,null,null,null,null,null,null,null,null,null,null,null,"71305","八丈島"]
["佐賀",null,null,null,null,null,null,null,null,null,null,null,null,null,null,null,null,null,null,null,null,null,null,null,null,null,null,null,null,null,null,null,null,null,null,null,null,null,null,null,"71306","調布"]
["長崎",null,null,null,null,null,null,null,null,null,null,null,null,null,null,null,null,null,null,null,null,null,null,null,null,null,null,null,null,null,null,null,null,null,null,null,null,null,null,null,"71307","神津島"]
["熊本",null,null,null,null,null,null,null,null,null,null,null,null,null,null,null,null,null,null,null,null,null,null,null,null,null,null,null,null,null,null,null,null,null,null,null,null,null,null,null,"71501","新潟"]
["大分",null,null,null,null,null,null,null,null,null,null,null,null,null,null,null,null,null,null,null,null,null,null,null,null,null,null,null,null,null,null,null,null,null,null,null,null,null,null,null,"71502","佐渡"]
["宮崎",null,null,null,null,null,null,null,null,null,null,null,null,null,null,null,null,null,null,null,null,null,null,null,null,null,null,null,null,null,null,null,null,null,null,null,null,null,null,null,"71601","富山(富山きときと空港)"]
["鹿児島",null,null,null,null,null,null,null,null,null,null,null,null,null,null,null,null,null,null,null,null,null,null,null,null,null,null,null,null,null,null,null,null,null,null,null,null,null,null,null,"71701","小松"]
["沖縄",null,null,null,null,null,null,null,null,null,null,null,null,null,null,null,null,null,null,null,null,null,null,null,null,null,null,null,null,null,null,null,null,null,null,null,null,null,null,null,"71702","能登(のと里山空港)"]
["空港不明",null,null,null,null,null,null,null,null,null,null,null,null,null,null,null,null,null,null,null,null,null,null,null,null,null,null,null,null,null,null,null,null,null,null,null,null,null,null,null,"72001","松本(信州まつもと空港)"]
[null,null,null,null,null,null,null,null,null,null,null,null,null,null,null,null,null,null,null,null,null,null,null,null,null,null,null,null,null,null,null,null,null,null,null,null,null,null,null,null,"72201","静岡(富士山静岡空港)"]
[null,null,null,null,null,null,null,null,null,null,null,null,null,null,null,null,null,null,null,null,null,null,null,null,null,null,null,null,null,null,null,null,null,null,null,null,null,null,null,null,"72301","名古屋(小牧)"]
[null,null,null,null,null,null,null,null,null,null,null,null,null,null,null,null,null,null,null,null,null,null,null,null,null,null,null,null,null,null,null,null,null,null,null,null,null,null,null,null,"72302","中部国際(セントレア空港)"]
[null,null,null,null,null,null,null,null,null,null,null,null,null,null,null,null,null,null,null,null,null,null,null,null,null,null,null,null,null,null,null,null,null,null,null,null,null,null,null,null,"72701","大阪国際(伊丹空港)"]
[null,null,null,null,null,null,null,null,null,null,null,null,null,null,null,null,null,null,null,null,null,null,null,null,null,null,null,null,null,null,null,null,null,null,null,null,null,null,null,null,"72703","関西国際空港(関西空港)"]
[null,null,null,null,null,null,null,null,null,null,null,null,null,null,null,null,null,null,null,null,null,null,null,null,null,null,null,null,null,null,null,null,null,null,null,null,null,null,null,null,"72801","但馬(コウノトリ但馬空港)"]
[null,null,null,null,null,null,null,null,null,null,null,null,null,null,null,null,null,null,null,null,null,null,null,null,null,null,null,null,null,null,null,null,null,null,null,null,null,null,null,null,"72802","神戸(マリンエア)"]
[null,null,null,null,null,null,null,null,null,null,null,null,null,null,null,null,null,null,null,null,null,null,null,null,null,null,null,null,null,null,null,null,null,null,null,null,null,null,null,null,"73001","南紀白浜(熊野白浜リゾート空港)"]
[null,null,null,null,null,null,null,null,null,null,null,null,null,null,null,null,null,null,null,null,null,null,null,null,null,null,null,null,null,null,null,null,null,null,null,null,null,null,null,null,"73101","米子(美穂飛行場、米子鬼太郎空港)"]
[null,null,null,null,null,null,null,null,null,null,null,null,null,null,null,null,null,null,null,null,null,null,null,null,null,null,null,null,null,null,null,null,null,null,null,null,null,null,null,null,"73102","鳥取(鳥取砂丘コナン空港)"]
[null,null,null,null,null,null,null,null,null,null,null,null,null,null,null,null,null,null,null,null,null,null,null,null,null,null,null,null,null,null,null,null,null,null,null,null,null,null,null,null,"73201","隠岐"]
[null,null,null,null,null,null,null,null,null,null,null,null,null,null,null,null,null,null,null,null,null,null,null,null,null,null,null,null,null,null,null,null,null,null,null,null,null,null,null,null,"73202","出雲(出雲縁結び空港)"]
[null,null,null,null,null,null,null,null,null,null,null,null,null,null,null,null,null,null,null,null,null,null,null,null,null,null,null,null,null,null,null,null,null,null,null,null,null,null,null,null,"73203","石見(萩・石見空港)"]
[null,null,null,null,null,null,null,null,null,null,null,null,null,null,null,null,null,null,null,null,null,null,null,null,null,null,null,null,null,null,null,null,null,null,null,null,null,null,null,null,"73301","岡山"]
[null,null,null,null,null,null,null,null,null,null,null,null,null,null,null,null,null,null,null,null,null,null,null,null,null,null,null,null,null,null,null,null,null,null,null,null,null,null,null,null,"73401","広島"]
[null,null,null,null,null,null,null,null,null,null,null,null,null,null,null,null,null,null,null,null,null,null,null,null,null,null,null,null,null,null,null,null,null,null,null,null,null,null,null,null,"73402","広島西"]
[null,null,null,null,null,null,null,null,null,null,null,null,null,null,null,null,null,null,null,null,null,null,null,null,null,null,null,null,null,null,null,null,null,null,null,null,null,null,null,null,"73501","山口宇部"]
[null,null,null,null,null,null,null,null,null,null,null,null,null,null,null,null,null,null,null,null,null,null,null,null,null,null,null,null,null,null,null,null,null,null,null,null,null,null,null,null,"73502","岩国(岩国錦帯空港)"]
[null,null,null,null,null,null,null,null,null,null,null,null,null,null,null,null,null,null,null,null,null,null,null,null,null,null,null,null,null,null,null,null,null,null,null,null,null,null,null,null,"73601","徳島(徳島阿波おどり空港)"]
[null,null,null,null,null,null,null,null,null,null,null,null,null,null,null,null,null,null,null,null,null,null,null,null,null,null,null,null,null,null,null,null,null,null,null,null,null,null,null,null,"73701","高松(高知龍馬空港)"]
[null,null,null,null,null,null,null,null,null,null,null,null,null,null,null,null,null,null,null,null,null,null,null,null,null,null,null,null,null,null,null,null,null,null,null,null,null,null,null,null,"73801","松山"]
[null,null,null,null,null,null,null,null,null,null,null,null,null,null,null,null,null,null,null,null,null,null,null,null,null,null,null,null,null,null,null,null,null,null,null,null,null,null,null,null,"73901","高知"]
[null,null,null,null,null,null,null,null,null,null,null,null,null,null,null,null,null,null,null,null,null,null,null,null,null,null,null,null,null,null,null,null,null,null,null,null,null,null,null,null,"74001","北九州"]
[null,null,null,null,null,null,null,null,null,null,null,null,null,null,null,null,null,null,null,null,null,null,null,null,null,null,null,null,null,null,null,null,null,null,null,null,null,null,null,null,"74002","福岡"]
[null,null,null,null,null,null,null,null,null,null,null,null,null,null,null,null,null,null,null,null,null,null,null,null,null,null,null,null,null,null,null,null,null,null,null,null,null,null,null,null,"74101","佐賀(九州佐賀国際空港)"]
[null,null,null,null,null,null,null,null,null,null,null,null,null,null,null,null,null,null,null,null,null,null,null,null,null,null,null,null,null,null,null,null,null,null,null,null,null,null,null,null,"74201","長崎"]
[null,null,null,null,null,null,null,null,null,null,null,null,null,null,null,null,null,null,null,null,null,null,null,null,null,null,null,null,null,null,null,null,null,null,null,null,null,null,null,null,"74202","福江(五島つばき空港)"]
[null,null,null,null,null,null,null,null,null,null,null,null,null,null,null,null,null,null,null,null,null,null,null,null,null,null,null,null,null,null,null,null,null,null,null,null,null,null,null,null,"74203","上五島"]
[null,null,null,null,null,null,null,null,null,null,null,null,null,null,null,null,null,null,null,null,null,null,null,null,null,null,null,null,null,null,null,null,null,null,null,null,null,null,null,null,"74204","壱岐"]
[null,null,null,null,null,null,null,null,null,null,null,null,null,null,null,null,null,null,null,null,null,null,null,null,null,null,null,null,null,null,null,null,null,null,null,null,null,null,null,null,"74205","対馬(対馬やまねこ空港)"]
[null,null,null,null,null,null,null,null,null,null,null,null,null,null,null,null,null,null,null,null,null,null,null,null,null,null,null,null,null,null,null,null,null,null,null,null,null,null,null,null,"74206","小値賀"]
[null,null,null,null,null,null,null,null,null,null,null,null,null,null,null,null,null,null,null,null,null,null,null,null,null,null,null,null,null,null,null,null,null,null,null,null,null,null,null,null,"74301","熊本(阿蘇くまもと空港)"]
[null,null,null,null,null,null,null,null,null,null,null,null,null,null,null,null,null,null,null,null,null,null,null,null,null,null,null,null,null,null,null,null,null,null,null,null,null,null,null,null,"74302","天草"]
[null,null,null,null,null,null,null,null,null,null,null,null,null,null,null,null,null,null,null,null,null,null,null,null,null,null,null,null,null,null,null,null,null,null,null,null,null,null,null,null,"74401","大分"]
[null,null,null,null,null,null,null,null,null,null,null,null,null,null,null,null,null,null,null,null,null,null,null,null,null,null,null,null,null,null,null,null,null,null,null,null,null,null,null,null,"74501","宮崎(宮崎ブーゲンビリア空港)"]
[null,null,null,null,null,null,null,null,null,null,null,null,null,null,null,null,null,null,null,null,null,null,null,null,null,null,null,null,null,null,null,null,null,null,null,null,null,null,null,null,"74601","鹿児島"]
[null,null,null,null,null,null,null,null,null,null,null,null,null,null,null,null,null,null,null,null,null,null,null,null,null,null,null,null,null,null,null,null,null,null,null,null,null,null,null,null,"74602","種子島(コスモポート種子島)"]
[null,null,null,null,null,null,null,null,null,null,null,null,null,null,null,null,null,null,null,null,null,null,null,null,null,null,null,null,null,null,null,null,null,null,null,null,null,null,null,null,"74603","屋久島"]
[null,null,null,null,null,null,null,null,null,null,null,null,null,null,null,null,null,null,null,null,null,null,null,null,null,null,null,null,null,null,null,null,null,null,null,null,null,null,null,null,"74604","奄美(奄美大島空港)"]
[null,null,null,null,null,null,null,null,null,null,null,null,null,null,null,null,null,null,null,null,null,null,null,null,null,null,null,null,null,null,null,null,null,null,null,null,null,null,null,null,"74605","沖永良部(えらぶゆりの島空港)"]
[null,null,null,null,null,null,null,null,null,null,null,null,null,null,null,null,null,null,null,null,null,null,null,null,null,null,null,null,null,null,null,null,null,null,null,null,null,null,null,null,"74606","喜界"]
[null,null,null,null,null,null,null,null,null,null,null,null,null,null,null,null,null,null,null,null,null,null,null,null,null,null,null,null,null,null,null,null,null,null,null,null,null,null,null,null,"74607","徳之島(徳之島子宝空港)"]
[null,null,null,null,null,null,null,null,null,null,null,null,null,null,null,null,null,null,null,null,null,null,null,null,null,null,null,null,null,null,null,null,null,null,null,null,null,null,null,null,"74608","与論"]
[null,null,null,null,null,null,null,null,null,null,null,null,null,null,null,null,null,null,null,null,null,null,null,null,null,null,null,null,null,null,null,null,null,null,null,null,null,null,null,null,"74701","那覇"]
[null,null,null,null,null,null,null,null,null,null,null,null,null,null,null,null,null,null,null,null,null,null,null,null,null,null,null,null,null,null,null,null,null,null,null,null,null,null,null,null,"74702","宮古"]
[null,null,null,null,null,null,null,null,null,null,null,null,null,null,null,null,null,null,null,null,null,null,null,null,null,null,null,null,null,null,null,null,null,null,null,null,null,null,null,null,"74703","石垣"]
[null,null,null,null,null,null,null,null,null,null,null,null,null,null,null,null,null,null,null,null,null,null,null,null,null,null,null,null,null,null,null,null,null,null,null,null,null,null,null,null,"74704","久米島"]
[null,null,null,null,null,null,null,null,null,null,null,null,null,null,null,null,null,null,null,null,null,null,null,null,null,null,null,null,null,null,null,null,null,null,null,null,null,null,null,null,"74705","南大東"]
[null,null,null,null,null,null,null,null,null,null,null,null,null,null,null,null,null,null,null,null,null,null,null,null,null,null,null,null,null,null,null,null,null,null,null,null,null,null,null,null,"74706","与那国"]
[null,null,null,null,null,null,null,null,null,null,null,null,null,null,null,null,null,null,null,null,null,null,null,null,null,null,null,null,null,null,null,null,null,null,null,null,null,null,null,null,"74707","多良間(かりゆす多良間空港)"]
[null,null,null,null,null,null,null,null,null,null,null,null,null,null,null,null,null,null,null,null,null,null,null,null,null,null,null,null,null,null,null,null,null,null,null,null,null,null,null,null,"74709","波照間"]
[null,null,null,null,null,null,null,null,null,null,null,null,null,null,null,null,null,null,null,null,null,null,null,null,null,null,null,null,null,null,null,null,null,null,null,null,null,null,null,null,"74710","粟国"]
[null,null,null,null,null,null,null,null,null,null,null,null,null,null,null,null,null,null,null,null,null,null,null,null,null,null,null,null,null,null,null,null,null,null,null,null,null,null,null,null,"74711","北大東"]
[null,null,null,null,null,null,null,null,null,null,null,null,null,null,null,null,null,null,null,null,null,null,null,null,null,null,null,null,null,null,null,null,null,null,null,null,null,null,null,null,"74713","慶良間"]
[null,null,null,null,null,null,null,null,null,null,null,null,null,null,null,null,null,null,null,null,null,null,null,null,null,null,null,null,null,null,null,null,null,null,null,null,null,null,null,null,"79990","空港不明"]

{"sheet":"IC補助","index":8,"n_rows":2441,"n_cols":9,"rows_kept":2441,"cut":false,"hidden":true,"merged":[]}
["都道府県",null,"CODE","ｲﾝﾀｰﾁｪﾝｼﾞ名","所在県","道路名",null,"名称不明","名称不明"]
["北海道",null,"80070","木古内","北海道","函館江差自動車道",null,"99000","99000"]
["青森",null,"80080","北斗茂辺地","北海道","函館江差自動車道"]
["岩手",null,"80085","北斗富川","北海道","函館江差自動車道"]
["宮城",null,"80090","北斗中央","北海道","函館江差自動車道"]
["秋田",null,"80095","北斗追分","北海道","函館江差自動車道"]
["山形",null,"80100","函館(北海道_函館江差自動車道)","北海道","函館江差自動車道"]
["福島",null,"80100","函館(北海道_函館新道)","北海道","函館新道"]
["茨城",null,"80100","函館(北海道_函館新外環状道路)","北海道","函館新外環状道路"]
["栃木",null,"80105","七飯大川","北海道","函館新道"]
["群馬",null,"80110","七飯本町","北海道","函館新道"]
["埼玉",null,"80115","七飯藤城","北海道","函館新道"]
["千葉",null,"80130","函館空港","北海道","函館新外環状道路"]
["東京",null,"80135","日吉","北海道","函館新外環状道路"]
["神奈川",null,"80140","赤川","北海道","函館新外環状道路"]
["新潟",null,"80150","大沼公園","北海道","道央自動車道"]
["富山",null,"80155","森","北海道","道央自動車道"]
["石川",null,"80160","落部","北海道","道央自動車道"]
["福井",null,"80165","八雲","北海道","道央自動車道"]
["山梨",null,"80170","国縫","北海道","道央自動車道"]
["長野",null,"80175","長万部","北海道","道央自動車道"]
["岐阜",null,"80180","豊浦","北海道","道央自動車道"]
["静岡",null,"80185","虻田洞爺湖","北海道","道央自動車道"]
["愛知",null,"80190","伊達","北海道","道央自動車道"]
["三重",null,"80195","室蘭","北海道","道央自動車道"]
["滋賀",null,"80200","登別室蘭","北海道","道央自動車道"]
["京都",null,"80205","登別東","北海道","道央自動車道"]
["大阪",null,"80210","白老","北海道","道央自動車道"]
["兵庫",null,"80215","苫小牧西","北海道","道央自動車道"]
["奈良",null,"80217","苫小牧中央","北海道","道央自動車道"]
["和歌山",null,"80220","苫小牧東(北海道_道央自動車道)","北海道","道央自動車道"]
["鳥取",null,"80220","苫小牧東(北海道_日高自動車道)","北海道","日高自動車道"]
["島根",null,"80225","新千歳空港","北海道","道央自動車道"]
["岡山",null,"80230","千歳","北海道","道央自動車道"]
["広島",null,"80235","恵庭","北海道","道央自動車道"]
["山口",null,"80240","輪厚","北海道","道央自動車道"]
["徳島",null,"80245","北広島","北海道","道央自動車道"]
["香川",null,"80250","札幌南","北海道","道央自動車道"]
["愛媛",null,"80255","大谷地","北海道","道央自動車道"]
["高知",null,"80260","北郷","北海道","道央自動車道"]
["福岡",null,"80265","札幌","北海道","道央自動車道"]
["佐賀",null,"80270","江別西","北海道","道央自動車道"]
["長崎",null,"80275","江別東","北海道","道央自動車道"]
["熊本",null,"80280","岩見沢","北海道","道央自動車道"]
["大分",null,"80285","三笠","北海道","道央自動車道"]
["宮崎",null,"80290","美唄","北海道","道央自動車道"]
["鹿児島",null,"80295","奈井江砂川","北海道","道央自動車道"]
["沖縄",null,"80300","砂川","北海道","道央自動車道"]
["名称不明",null,"80305","滝川","北海道","道央自動車道"]
[null,null,"80310","深川","北海道","道央自動車道"]
[null,null,"80315","旭川鷹栖","北海道","道央自動車道"]
[null,null,"80320","旭川北","北海道","道央自動車道"]
[null,null,"80325","和寒","北海道","道央自動車道"]
[null,null,"80330","士別剣淵","北海道","道央自動車道"]
[null,null,"80350","名寄","北海道","名寄美深道路"]
[null,null,"80355","名寄北","北海道","名寄美深道路"]
[null,null,"80360","智恵文南入口","北海道","名寄美深道路"]
[null,null,"80365","智恵文","北海道","名寄美深道路"]
[null,null,"80370","美深","北海道","名寄美深道路"]
[null,null,"80375","美深北","北海道","名寄美深道路"]
[null,null,"80450","幌延","北海道","幌富バイパス"]
[null,null,"80455","豊富サロベツ(北海道_幌富バイパス)","北海道","幌富バイパス"]
[null,null,"80455","豊富サロベツ(北海道_豊富バイパス)","北海道","豊富バイパス"]
[null,null,"80460","豊富幌加","北海道","豊富バイパス"]
[null,null,"80465","豊富北","北海道","豊富バイパス"]
[null,null,"80500","黒松内南","北海道","黒松内道路"]
[null,null,"80505","黒松内","北海道","黒松内道路"]
[null,null,"80530","二木","北海道","後志自動車道"]
[null,null,"80540","余市","北海道","後志自動車道"]
[null,null,"80545","小樽塩谷","北海道","後志自動車道"]
[null,null,"80550","小樽","北海道","札樽自動車道"]
[null,null,"80555","朝里","北海道","札樽自動車道"]
[null,null,"80560","銭函","北海道","札樽自動車道"]
[null,null,"80565","手稲","北海道","札樽自動車道"]
[null,null,"80570","札幌西","北海道","札樽自動車道"]
[null,null,"80575","新川","北海道","札樽自動車道"]
[null,null,"80580","札幌北","北海道","札樽自動車道"]
[null,null,"80585","伏古","北海道","札樽自動車道"]
[null,null,"80590","雁来","北海道","札樽自動車道"]
[null,null,"80600","沼ノ端西","北海道","日高自動車道"]
[null,null,"80605","沼ノ端東","北海道","日高自動車道"]
[null,null,"80610","苫東中央","北海道","日高自動車道"]
[null,null,"80615","厚真","北海道","日高自動車道"]
[null,null,"80620","鵡川","北海道","日高自動車道"]
[null,null,"80625","日高富川","北海道","日高自動車道"]
[null,null,"80630","日高門別","北海道","日高自動車道"]
[null,null,"80635","日高厚賀","北海道","日高自動車道"]
[null,null,"80700","千歳東","北海道","道東自動車道"]
[null,null,"80705","追分町","北海道","道東自動車道"]
[null,null,"80710","夕張","北海道","道東自動車道"]
[null,null,"80715","むかわ穂別","北海道","道東自動車道"]
[null,null,"80720","占冠","北海道","道東自動車道"]
[null,null,"80725","トマム","北海道","道東自動車道"]
[null,null,"80730","十勝清水","北海道","道東自動車道"]
[null,null,"80735","芽室","北海道","道東自動車道"]
[null,null,"80740","音更帯広","北海道","道東自動車道"]
[null,null,"80745","池田(北海道_道東自動車道)","北海道","道東自動車道"]
[null,null,"80750","本別","北海道","道東自動車道"]
[null,null,"80755","浦幌","北海道","道東自動車道"]
[null,null,"80760","白糠","北海道","道東自動車道"]
[null,null,"80765","庶路","北海道","道東自動車道"]
[null,null,"80770","阿寒","北海道","道東自動車道"]
[null,null,"80775","釧路空港","北海道","釧路外環状道路"]
[null,null,"80780","釧路西","北海道","釧路外環状道路"]
[null,null,"80785","釧路中央","北海道","釧路外環状道路"]
[null,null,"80790","釧路東","北海道","釧路外環状道路"]
[null,null,"80795","釧路別保","北海道","釧路外環状道路"]
[null,null,"80820","温根沼","北海道","根室道路"]
[null,null,"80825","根室","北海道","根室道路"]
[null,null,"80850","足寄","北海道","道東自動車道"]
[null,null,"80890","陸別小利別","北海道","十勝オホーツク自動車道"]
[null,null,"80895","訓子府","北海道","十勝オホーツク自動車道"]
[null,null,"80900","北見西","北海道","十勝オホーツク自動車道"]
[null,null,"80905","北見北上","北海道","十勝オホーツク自動車道"]
[null,null,"80910","北見中央","北海道","十勝オホーツク自動車道"]
[null,null,"80915","北見川東","北海道","十勝オホーツク自動車道"]
[null,null,"80920","北見東","北海道","十勝オホーツク自動車道"]
[null,null,"80950","美幌高野","北海道","美幌バイパス"]
[null,null,"80955","美幌","北海道","美幌バイパス"]
[null,null,"80960","女満別空港","北海道","美幌バイパス"]
[null,null,"81000","芽室帯広","北海道","帯広広尾自動車道"]
[null,null,"81005","帯広川西","北海道","帯広広尾自動車道"]
[null,null,"81010","幸福","北海道","帯広広尾自動車道"]
[null,null,"81015","中札内","北海道","帯広広尾自動車道"]
[null,null,"81020","更別","北海道","帯広広尾自動車道"]
[null,null,"81025","忠類","北海道","帯広広尾自動車道"]
[null,null,"81030","忠類大樹","北海道","帯広広尾自動車道"]
[null,null,"81100","深川西","北海道","深川留萌自動車道"]
[null,null,"81105","秩父別","北海道","深川留萌自動車道"]
[null,null,"81110","沼田(北海道_深川留萌自動車道)","北海道","深川留萌自動車道"]
[null,null,"81115","北竜ひまわり","北海道","深川留萌自動車道"]
[null,null,"81120","留萌幌糠","北海道","深川留萌自動車道"]
[null,null,"81125","留萌大和田","北海道","深川留萌自動車道"]
[null,null,"81130","留萌","北海道","深川留萌自動車道"]
[null,null,"81200","比布北","北海道","旭川紋別自動車道"]
[null,null,"81205","愛別","北海道","旭川紋別自動車道"]
[null,null,"81210","愛山上川","北海道","旭川紋別自動車道"]
[null,null,"81215","上川層雲峡","北海道","旭川紋別自動車道"]
[null,null,"81220","浮島(北海道_旭川紋別自動車道)","北海道","旭川紋別自動車道"]
[null,null,"81225","奥白滝","北海道","旭川紋別自動車道"]
[null,null,"81230","白滝","北海道","旭川紋別自動車道"]
[null,null,"81235","丸瀬布","北海道","旭川紋別自動車道"]
[null,null,"81240","遠軽瀬戸瀬","北海道","旭川紋別自動車道"]
[null,null,"81245","遠軽","北海道","旭川紋別自動車道"]
[null,null,"81400","浦和","埼玉","東北自動車道"]
[null,null,"81405","岩槻","埼玉","東北自動車道"]
[null,null,"81410","蓮田","埼玉","東北自動車道"]
[null,null,"81415","久喜","埼玉","東北自動車道"]
[null,null,"81420","加須","埼玉","東北自動車道"]
[null,null,"81425","羽生","埼玉","東北自動車道"]
[null,null,"81430","館林","群馬","東北自動車道"]
[null,null,"81435","佐野藤岡","栃木","東北自動車道"]
[null,null,"81440","佐野","栃木","東北自動車道"]
[null,null,"81445","栃木(栃木_東北自動車道)","栃木","東北自動車道"]
[null,null,"81445","栃木(栃木_北関東自動車道)","栃木","北関東自動車道"]
[null,null,"81447","都賀西方","栃木","東北自動車道"]
[null,null,"81450","鹿沼","栃木","東北自動車道"]
[null,null,"81455","宇都宮","栃木","東北自動車道"]
[null,null,"81460","上河内","栃木","東北自動車道"]
[null,null,"81465","矢板","栃木","東北自動車道"]
[null,null,"81467","矢板北","栃木","東北自動車道"]
[null,null,"81470","西那須野塩原","栃木","東北自動車道"]
[null,null,"81475","黒磯板室","栃木","東北自動車道"]
[null,null,"81480","那須","栃木","東北自動車道"]
[null,null,"81485","那須高原","栃木","東北自動車道"]
[null,null,"81490","白河","福島","東北自動車道"]
[null,null,"81495","白河中央","福島","東北自動車道"]
[null,null,"81500","矢吹","福島","東北自動車道"]
[null,null,"81505","鏡石","福島","東北自動車道"]
[null,null,"81510","須賀川","福島","東北自動車道"]
[null,null,"81515","郡山南(福島_東北自動車道)","福島","東北自動車道"]
[null,null,"81517","郡山中央","福島","東北自動車道"]
[null,null,"81520","郡山(福島_東北自動車道)","福島","東北自動車道"]
[null,null,"81525","本宮","福島","東北自動車道"]
[null,null,"81530","二本松","福島","東北自動車道"]
[null,null,"81535","福島松川","福島","東北自動車道"]
[null,null,"81540","福島西","福島","東北自動車道"]
[null,null,"81545","福島飯坂","福島","東北自動車道"]
[null,null,"81550","国見","福島","東北自動車道"]
[null,null,"81555","白石","宮城","東北自動車道"]
[null,null,"81560","村田","宮城","東北自動車道"]
[null,null,"81563","菅生","宮城","東北自動車道"]
[null,null,"81565","仙台南","宮城","東北自動車道"]
[null,null,"81570","仙台宮城","宮城","東北自動車道"]
[null,null,"81575","泉ＰＡ","宮城","東北自動車道"]
[null,null,"81580","泉","宮城","東北自動車道"]
[null,null,"81585","大和(宮城_東北自動車道)","宮城","東北自動車道"]
[null,null,"81590","大衡","宮城","東北自動車道"]
[null,null,"81595","三本木","宮城","東北自動車道"]
[null,null,"81600","古川","宮城","東北自動車道"]
[null,null,"81605","長者原","宮城","東北自動車道"]
[null,null,"81610","築館","宮城","東北自動車道"]
[null,null,"81615","若柳金成","宮城","東北自動車道"]
[null,null,"81620","一関","岩手","東北自動車道"]
[null,null,"81623","平泉","岩手","東北自動車道"]
[null,null,"81625","平泉前沢","岩手","東北自動車道"]
[null,null,"81627","奥州","岩手","東北自動車道"]
[null,null,"81630","水沢","岩手","東北自動車道"]
[null,null,"81635","北上金ヶ崎","岩手","東北自動車道"]
[null,null,"81640","北上江釣子","岩手","東北自動車道"]
[null,null,"81643","花巻PA","岩手","東北自動車道"]
[null,null,"81645","花巻南","岩手","東北自動車道"]
[null,null,"81650","花巻","岩手","東北自動車道"]
[null,null,"81655","紫波","岩手","東北自動車道"]
[null,null,"81657","矢巾","岩手","東北自動車道"]
[null,null,"81660","盛岡南","岩手","東北自動車道"]
[null,null,"81665","盛岡","岩手","東北自動車道"]
[null,null,"81667","滝沢中央","岩手","東北自動車道"]
[null,null,"81670","滝沢","岩手","東北自動車道"]
[null,null,"81675","西根","岩手","東北自動車道"]
[null,null,"81680","松尾八幡平","岩手","東北自動車道"]
[null,null,"81685","安代","岩手","東北自動車道"]
[null,null,"81690","鹿角八幡平","秋田","東北自動車道"]
[null,null,"81695","十和田","秋田","東北自動車道"]
[null,null,"81700","小坂","秋田","東北自動車道"]
[null,null,"81705","碇ヶ関","青森","東北自動車道"]
[null,null,"81710","大鰐弘前","青森","東北自動車道"]
[null,null,"81715","黒石","青森","東北自動車道"]
[null,null,"81720","浪岡","青森","東北自動車道"]
[null,null,"81725","青森","青森","東北自動車道"]
[null,null,"81740","徳才子","青森","津軽自動車道"]
[null,null,"81745","五所川原東","青森","津軽自動車道"]
[null,null,"81750","五所川原","青森","津軽自動車道"]
[null,null,"81755","五所川原北","青森","津軽自動車道"]
[null,null,"81760","つがる柏","青森","津軽自動車道"]
[null,null,"81775","南浮田","青森","津軽自動車道"]
[null,null,"81780","鰺ヶ沢","青森","津軽自動車道"]
[null,null,"81800","浄法寺","岩手","八戸自動車道"]
[null,null,"81805","一戸","岩手","八戸自動車道"]
[null,null,"81810","九戸","岩手","八戸自動車道"]
[null,null,"81815","軽米","岩手","八戸自動車道"]
[null,null,"81820","南郷(青森_八戸自動車道)","青森","八戸自動車道"]
[null,null,"81825","八戸","青森","八戸自動車道"]
[null,null,"81827","八戸西","青森","八戸自動車道"]
[null,null,"81830","八戸北(青森_八戸自動車道)","青森","八戸自動車道"]
[null,null,"81830","八戸北(青森_百石道路)","青森","百石道路"]
[null,null,"81835","下田百石(青森_百石道路)","青森","百石道路"]
[null,null,"81835","下田百石(青森_第二みちのく有料道路)","青森","第二みちのく有料道路"]
[null,null,"81840","三沢十和田下田","青森","第二みちのく有料道路"]
[null,null,"81842","六戸","青森","第二みちのく有料道路"]
[null,null,"81845","六戸三沢","青森","上北自動車道"]
[null,null,"81850","上北","青森","上北自動車道"]
[null,null,"81855","東北","青森","上北自動車道"]
[null,null,"81860","七戸","青森","上北自動車道"]
[null,null,"81863","七戸北","青森","上北自動車道"]
[null,null,"81900","天間林","青森","みちのく有料道路"]
[null,null,"81905","青森滝沢","青森","みちのく有料道路"]
[null,null,"81920","青森東","青森","青森自動車道"]
[null,null,"81925","青森中央","青森","青森自動車道"]
[null,null,"82000","花巻空港","岩手","釜石自動車道"]
[null,null,"82005","東和","岩手","釜石自動車道"]
[null,null,"82010","江刺田瀬","岩手","釜石自動車道"]
[null,null,"82015","宮守","岩手","釜石自動車道"]
[null,null,"82020","遠野","岩手","釜石自動車道"]
[null,null,"82030","遠野住田","岩手","釜石自動車道"]
[null,null,"82035","滝観洞","岩手","釜石自動車道"]
[null,null,"82040","釜石仙人峠","岩手","釜石自動車道"]
[null,null,"82100","北上西","岩手","秋田自動車道"]
[null,null,"82105","湯田","岩手","秋田自動車道"]
[null,null,"82110","横手(秋田_秋田自動車道)","秋田","秋田自動車道"]
[null,null,"82110","横手(秋田_東北中央自動車道)","秋田","東北中央自動車道"]
[null,null,"82112","横手北","秋田","秋田自動車道"]
[null,null,"82115","大曲","秋田","秋田自動車道"]
[null,null,"82120","西仙北","秋田","秋田自動車道"]
[null,null,"82125","協和","秋田","秋田自動車道"]
[null,null,"82130","秋田南","秋田","秋田自動車道"]
[null,null,"82135","秋田中央","秋田","秋田自動車道"]
[null,null,"82140","秋田北","秋田","秋田自動車道"]
[null,null,"82145","昭和男鹿半島","秋田","秋田自動車道"]
[null,null,"82150","五城目八郎潟","秋田","秋田自動車道"]
[null,null,"82155","琴丘森岳","秋田","秋田自動車道"]
[null,null,"82160","八竜","秋田","秋田自動車道"]
[null,null,"82165","能代南","秋田","秋田自動車道"]
[null,null,"82170","能代東","秋田","秋田自動車道"]
[null,null,"82175","二ツ井白神","秋田","秋田自動車道"]
[null,null,"82190","蟹沢","秋田","秋田自動車道"]
[null,null,"82192","伊勢堂岱","秋田","秋田自動車道"]
[null,null,"82195","大館能代空港","秋田","秋田自動車道"]
[null,null,"82197","鷹巣","秋田","秋田自動車道"]
[null,null,"82200","二井田真中","秋田","秋田自動車道"]
[null,null,"82205","大館南","秋田","秋田自動車道"]
[null,null,"82210","大館北","秋田","秋田自動車道"]
[null,null,"82215","小坂北","秋田","秋田自動車道"]
[null,null,"82300","宮城川崎","宮城","山形自動車道"]
[null,null,"82305","笹谷","宮城","山形自動車道"]
[null,null,"82310","関沢","山形","山形自動車道"]
[null,null,"82315","山形蔵王","山形","山形自動車道"]
[null,null,"82320","山形北","山形","山形自動車道"]
[null,null,"82325","寒河江","山形","山形自動車道"]
[null,null,"82330","寒河江ＳＡ","山形","山形自動車道"]
[null,null,"82335","西川","山形","山形自動車道"]
[null,null,"82340","月山","山形","山形自動車道"]
[null,null,"82345","湯殿山","山形","山形自動車道"]
[null,null,"82350","庄内あさひ","山形","山形自動車道"]
[null,null,"82355","鶴岡","山形","山形自動車道"]
[null,null,"82380","十文字","秋田","東北中央自動車道"]
[null,null,"82385","湯沢(秋田_東北中央自動車道)","秋田","東北中央自動車道"]
[null,null,"82390","三関","秋田","東北中央自動車道"]
[null,null,"82395","須川","秋田","東北中央自動車道"]
[null,null,"82400","雄勝こまち","秋田","東北中央自動車道"]
[null,null,"82410","下院内","秋田","東北中央自動車道"]
[null,null,"82415","上院内","秋田","東北中央自動車道"]
[null,null,"82420","及位","秋田","東北中央自動車道"]
[null,null,"82425","中田","秋田","東北中央自動車道"]
[null,null,"82430","金山北","秋田","東北中央自動車道"]
[null,null,"82435","野黒沢","山形","東北中央自動車道"]
[null,null,"82338","新庄真室川","山形","東北中央自動車道"]
[null,null,"82450","新庄鮎川","山形","東北中央自動車道"]
[null,null,"82455","新庄(山形_東北中央自動車道)","山形","東北中央自動車道"]
[null,null,"82460","舟形","山形","東北中央自動車道"]
[null,null,"82465","川原子","山形","東北中央自動車道"]
[null,null,"82470","尾花沢北","山形","東北中央自動車道"]
[null,null,"82475","尾花沢","山形","東北中央自動車道"]
[null,null,"82485","大石田村山","山形","東北中央自動車道"]
[null,null,"82490","村山本飯田","山形","東北中央自動車道"]
[null,null,"82495","村山名取","山形","東北中央自動車道"]
[null,null,"82500","村山","山形","東北中央自動車道"]
[null,null,"82505","東根北","山形","東北中央自動車道"]
[null,null,"82510","東根","山形","東北中央自動車道"]
[null,null,"82515","天童","山形","東北中央自動車道"]
[null,null,"82520","山形中央","山形","東北中央自動車道"]
[null,null,"82523","山形PA","山形","東北中央自動車道"]
[null,null,"82525","山形上山","山形","東北中央自動車道"]
[null,null,"82530","かみのやま温泉","山形","東北中央自動車道"]
[null,null,"82540","南陽高畠","山形","東北中央自動車道"]
[null,null,"82545","米沢北","山形","東北中央自動車道"]
[null,null,"82550","米沢中央","山形","東北中央自動車道"]
[null,null,"82555","米沢八幡原","山形","東北中央自動車道"]
[null,null,"82560","福島大笹生","福島","東北中央自動車道"]
[null,null,"82565","伊達桑折","福島","東北中央自動車道"]
[null,null,"82570","伊達中央","福島","東北中央自動車道"]
[null,null,"82575","霊山","福島","東北中央自動車道"]
[null,null,"82580","霊山飯舘","福島","東北中央自動車道"]
[null,null,"82585","相馬玉野","福島","東北中央自動車道"]
[null,null,"82590","相馬山上","福島","東北中央自動車道"]
[null,null,"82600","新潟亀田","新潟","日本海東北自動車道"]
[null,null,"82603","新潟東","新潟","日本海東北自動車道"]
[null,null,"82605","新潟空港","新潟","日本海東北自動車道"]
[null,null,"82610","豊栄","新潟","日本海東北自動車道"]
[null,null,"82615","豊栄新潟東港","新潟","日本海東北自動車道"]
[null,null,"82620","聖籠新発田","新潟","日本海東北自動車道"]
[null,null,"82625","中条","新潟","日本海東北自動車道"]
[null,null,"82628","胎内","新潟","日本海東北自動車道"]
[null,null,"82630","荒川胎内","新潟","日本海東北自動車道"]
[null,null,"82635","神林岩船港","新潟","日本海東北自動車道"]
[null,null,"82640","村上瀬波温泉","新潟","日本海東北自動車道"]
[null,null,"82645","村上山辺里","新潟","日本海東北自動車道"]
[null,null,"82650","朝日三面","新潟","日本海東北自動車道"]
[null,null,"82655","朝日まほろば","新潟","日本海東北自動車道"]
[null,null,"82690","あつみ温泉","山形","日本海東北自動車道"]
[null,null,"82695","いらがわ","山形","日本海東北自動車道"]
[null,null,"82700","三瀬","山形","日本海東北自動車道"]
[null,null,"82705","鶴岡西","山形","日本海東北自動車道"]
[null,null,"82710","庄内空港","山形","日本海東北自動車道"]
[null,null,"82715","酒田","山形","日本海東北自動車道"]
[null,null,"82720","酒田中央","山形","日本海東北自動車道"]
[null,null,"82725","酒田みなと","山形","日本海東北自動車道"]
[null,null,"82730","遊佐比子","山形","日本海東北自動車道"]
[null,null,"82735","遊佐菅里","山形","日本海東北自動車道"]
[null,null,"82740","遊佐鳥海","山形","日本海東北自動車道"]
[null,null,"82755","小砂川","山形","日本海東北自動車道"]
[null,null,"82760","象潟","秋田","日本海東北自動車道"]
[null,null,"82765","金浦","秋田","日本海東北自動車道"]
[null,null,"82770","仁賀保","秋田","日本海東北自動車道"]
[null,null,"82775","本荘","秋田","日本海東北自動車道"]
[null,null,"82780","松ヶ崎亀田","秋田","日本海東北自動車道"]
[null,null,"82785","岩城","秋田","日本海東北自動車道"]
[null,null,"82790","秋田空港","秋田","日本海東北自動車道"]
[null,null,"82800","三郷","埼玉","常磐自動車道"]
[null,null,"82805","三郷料金所","埼玉","常磐自動車道"]
[null,null,"82810","流山","千葉","常磐自動車道"]
[null,null,"82815","流山有料道路出入口","千葉","常磐自動車道"]
[null,null,"82820","柏","千葉","常磐自動車道"]
[null,null,"82825","谷和原","茨城","常磐自動車道"]
[null,null,"82830","谷田部","茨城","常磐自動車道"]
[null,null,"82835","桜土浦","茨城","常磐自動車道"]
[null,null,"82840","土浦北","茨城","常磐自動車道"]
[null,null,"82845","千代田石岡","茨城","常磐自動車道"]
[null,null,"82850","石岡小美玉","茨城","常磐自動車道"]
[null,null,"82855","岩間","茨城","常磐自動車道"]
[null,null,"82860","友部ＳＡ","茨城","常磐自動車道"]
[null,null,"82865","水戸","茨城","常磐自動車道"]
[null,null,"82870","水戸北","茨城","常磐自動車道"]
[null,null,"82875","那珂","茨城","常磐自動車道"]
[null,null,"82880","東海(茨城_常磐自動車道)","茨城","常磐自動車道"]
[null,null,"82885","日立南太田","茨城","常磐自動車道"]
[null,null,"82890","日立中央","茨城","常磐自動車道"]
[null,null,"82895","日立有料道路出入口","茨城","常磐自動車道"]
[null,null,"82900","日立北","茨城","常磐自動車道"]
[null,null,"82905","高萩","茨城","常磐自動車道"]
[null,null,"82910","北茨城","茨城","常磐自動車道"]
[null,null,"82915","いわき勿来","福島","常磐自動車道"]
[null,null,"82918","いわき小名浜","福島","常磐自動車道"]
[null,null,"82925","いわき湯本","福島","常磐自動車道"]
[null,null,"82930","いわき中央","福島","常磐自動車道"]
[null,null,"82935","いわき四倉","福島","常磐自動車道"]
[null,null,"82940","広野","福島","常磐自動車道"]
[null,null,"82942","ならは","福島","常磐自動車道"]
[null,null,"82945","常磐富岡","福島","常磐自動車道"]
[null,null,"82950","大熊","福島","常磐自動車道"]
[null,null,"82955","常磐双葉","福島","常磐自動車道"]
[null,null,"82960","浪江","福島","常磐自動車道"]
[null,null,"82965","南相馬","福島","常磐自動車道"]
[null,null,"82970","南相馬鹿島","福島","常磐自動車道"]
[null,null,"82975","相馬","福島","常磐自動車道"]
[null,null,"82980","新地","福島","常磐自動車道"]
[null,null,"82985","山元南","宮城","常磐自動車道"]
[null,null,"82990","山元","宮城","常磐自動車道"]
[null,null,"82992","鳥の海","宮城","常磐自動車道"]
[null,null,"82995","亘理","宮城","常磐自動車道"]
[null,null,"83000","岩沼","宮城","仙台東部道路"]
[null,null,"83005","仙台空港","宮城","仙台東部道路"]
[null,null,"83007","名取中央","宮城","仙台東部道路"]
[null,null,"83010","名取","宮城","仙台東部道路"]
[null,null,"83015","仙台東","宮城","仙台東部道路"]
[null,null,"83020","仙台港","宮城","仙台東部道路"]
[null,null,"83025","仙台港北","宮城","仙台東部道路"]
[null,null,"83040","山田(宮城_仙台南部道路)","宮城","仙台南部道路"]
[null,null,"83045","長町","宮城","仙台南部道路"]
[null,null,"83050","今泉","宮城","仙台南部道路"]
[null,null,"83070","利府しらかし台","宮城","仙台北部道路"]
[null,null,"83075","富谷","宮城","仙台北部道路"]
[null,null,"83095","多賀城","宮城","三陸自動車道"]
[null,null,"83100","利府塩釜","宮城","三陸自動車道"]
[null,null,"83105","利府中","宮城","三陸自動車道"]
[null,null,"83110","松島海岸","宮城","三陸自動車道"]
[null,null,"83115","松島大郷","宮城","三陸自動車道"]
[null,null,"83120","松島北","宮城","三陸自動車道"]
[null,null,"83125","鳴瀬奥松島","宮城","三陸自動車道"]
[null,null,"83130","矢本","宮城","三陸自動車道"]
[null,null,"83135","石巻港","宮城","三陸自動車道"]
[null,null,"83140","石巻河南","宮城","三陸自動車道"]
[null,null,"83145","石巻女川","宮城","三陸自動車道"]
[null,null,"83150","河北","宮城","三陸自動車道"]
[null,null,"83155","桃生豊里","宮城","三陸自動車道"]
[null,null,"83160","桃生津山","宮城","三陸自動車道"]
[null,null,"83165","登米","宮城","三陸自動車道"]
[null,null,"83170","登米東和","宮城","三陸自動車道"]
[null,null,"83172","三滝堂","宮城","三陸自動車道"]
[null,null,"83174","志津川","宮城","三陸自動車道"]
[null,null,"83176","南三陸海岸","宮城","三陸自動車道"]
[null,null,"83178","歌津","宮城","三陸自動車道"]
[null,null,"83180","歌津北","宮城","三陸自動車道"]
[null,null,"83182","小泉海岸","宮城","三陸自動車道"]
[null,null,"83184","本吉津谷","宮城","三陸自動車道"]
[null,null,"83186","大谷海岸","宮城","三陸自動車道"]
[null,null,"83188","岩井崎","宮城","三陸自動車道"]
[null,null,"83190","気仙沼中央","宮城","三陸自動車道"]
[null,null,"83192","気仙沼港","宮城","三陸自動車道"]
[null,null,"83194","浦島大橋","宮城","三陸自動車道"]
[null,null,"83196","気仙沼鹿折","宮城","三陸自動車道"]
[null,null,"83198","唐桑半島","宮城","三陸自動車道"]
[null,null,"83200","唐桑小原木","宮城","三陸自動車道"]
[null,null,"83202","陸前高田長部","岩手","三陸自動車道"]
[null,null,"83204","陸前高田","岩手","三陸自動車道"]
[null,null,"83206","通岡","岩手","三陸自動車道"]
[null,null,"83208","大船渡碁石海岸","岩手","三陸自動車道"]
[null,null,"83210","大船渡","岩手","三陸自動車道"]
[null,null,"83212","大船渡北","岩手","三陸自動車道"]
[null,null,"83214","三陸","岩手","三陸自動車道"]
[null,null,"83216","吉浜","岩手","三陸自動車道"]
[null,null,"83218","釜石南","岩手","三陸自動車道"]
[null,null,"83220","釜石唐丹","岩手","三陸自動車道"]
[null,null,"83222","釜石中央","岩手","三陸自動車道"]
[null,null,"83224","釜石両石","岩手","三陸自動車道"]
[null,null,"83226","釜石北","岩手","三陸自動車道"]
[null,null,"83228","大槌","岩手","三陸自動車道"]
[null,null,"83230","山田南","岩手","三陸自動車道"]
[null,null,"83232","山田(岩手_三陸自動車道)","岩手","三陸自動車道"]
[null,null,"83234","山田北","岩手","三陸自動車道"]
[null,null,"83236","宮古南","岩手","三陸自動車道"]
[null,null,"83238","宮古中央","岩手","三陸自動車道"]
[null,null,"83240","宮古港","岩手","三陸自動車道"]
[null,null,"83242","宮古田鎖","岩手","三陸自動車道"]
[null,null,"83244","宮古根市","岩手","三陸自動車道"]
[null,null,"83246","宮古北","岩手","三陸自動車道"]
[null,null,"83248","田老南","岩手","三陸自動車道"]
[null,null,"83250","田老真崎海岸","岩手","三陸自動車道"]
[null,null,"83252","田老北","岩手","三陸自動車道"]
[null,null,"83254","岩泉南","岩手","八戸久慈自動車道"]
[null,null,"83256","岩泉龍泉洞","岩手","八戸久慈自動車道"]
[null,null,"83258","鵜の巣断崖","岩手","八戸久慈自動車道"]
[null,null,"83260","田野畑南","岩手","八戸久慈自動車道"]
[null,null,"83262","田野畑中央","岩手","八戸久慈自動車道"]
[null,null,"83264","田野畑北","岩手","八戸久慈自動車道"]
[null,null,"83266","普代","岩手","八戸久慈自動車道"]
[null,null,"83268","普代北","岩手","八戸久慈自動車道"]
[null,null,"83270","野田(岩手_八戸久慈自動車道)","岩手","八戸久慈自動車道"]
[null,null,"83272","久慈宇部","岩手","八戸久慈自動車道"]
[null,null,"83274","久慈南","岩手","八戸久慈自動車道"]
[null,null,"83276","久慈","岩手","八戸久慈自動車道"]
[null,null,"83278","久慈北","岩手","八戸久慈自動車道"]
[null,null,"83280","侍浜南","岩手","八戸久慈自動車道"]
[null,null,"83282","侍浜","岩手","八戸久慈自動車道"]
[null,null,"83284","洋野有家","岩手","八戸久慈自動車道"]
[null,null,"83286","洋野宿戸","岩手","八戸久慈自動車道"]
[null,null,"83288","洋野種市","岩手","八戸久慈自動車道"]
[null,null,"83290","階上","青森","八戸久慈自動車道"]
[null,null,"83292","種差海岸階上岳","青森","八戸久慈自動車道"]
[null,null,"83294","八戸南","青森","八戸久慈自動車道"]
[null,null,"83296","八戸是川","青森","八戸久慈自動車道"]
[null,null,"83300","いわき三和","福島","磐越自動車道"]
[null,null,"83305","小野(福島_磐越自動車道)","福島","磐越自動車道"]
[null,null,"83307","田村","福島","磐越自動車道"]
[null,null,"83310","船引三春","福島","磐越自動車道"]
[null,null,"83315","郡山東","福島","磐越自動車道"]
[null,null,"83320","磐梯熱海","福島","磐越自動車道"]
[null,null,"83325","猪苗代磐梯高原","福島","磐越自動車道"]
[null,null,"83330","磐梯河東","福島","磐越自動車道"]
[null,null,"83335","会津若松","福島","磐越自動車道"]
[null,null,"83340","新鶴","福島","磐越自動車道"]
[null,null,"83345","会津坂下","福島","磐越自動車道"]
[null,null,"83350","西会津","福島","磐越自動車道"]
[null,null,"83355","津川","新潟","磐越自動車道"]
[null,null,"83360","三川","新潟","磐越自動車道"]
[null,null,"83365","安田","新潟","磐越自動車道"]
[null,null,"83370","新津","新潟","磐越自動車道"]
[null,null,"83375","新津西","新潟","磐越自動車道"]
[null,null,"83380","新潟中央","新潟","磐越自動車道"]
[null,null,"83400","矢吹中央","福島","あぶくま高原道路"]
[null,null,"83405","玉川(福島_あぶくま高原道路)","福島","あぶくま高原道路"]
[null,null,"83410","福島空港","福島","あぶくま高原道路"]
[null,null,"83415","石川母畑","福島","あぶくま高原道路"]
[null,null,"83420","平田西","福島","あぶくま高原道路"]
[null,null,"83425","平田(福島_あぶくま高原道路)","福島","あぶくま高原道路"]
[null,null,"83428","小野(福島_あぶくま高原道路)","福島","あぶくま高原道路"]
[null,null,"83430","徳次郎","栃木","日光宇都宮道路"]
[null,null,"83432","篠井","栃木","日光宇都宮道路"]
[null,null,"83435","大沢(栃木_日光宇都宮道路)","栃木","日光宇都宮道路"]
[null,null,"83440","土沢","栃木","日光宇都宮道路"]
[null,null,"83445","今市","栃木","日光宇都宮道路"]
[null,null,"83450","日光","栃木","日光宇都宮道路"]
[null,null,"83455","清滝","栃木","日光宇都宮道路"]
[null,null,"83500","前橋南","群馬","北関東自動車道"]
[null,null,"83505","駒形(群馬_北関東自動車道)","群馬","北関東自動車道"]
[null,null,"83510","波志江","群馬","北関東自動車道"]
[null,null,"83515","伊勢崎","群馬","北関東自動車道"]
[null,null,"83520","太田藪塚","群馬","北関東自動車道"]
[null,null,"83522","太田強戸","群馬","北関東自動車道"]
[null,null,"83525","太田桐生","群馬","北関東自動車道"]
[null,null,"83530","足利","栃木","北関東自動車道"]
[null,null,"83533","出流原PA","栃木","北関東自動車道"]
[null,null,"83535","佐野田沼","栃木","北関東自動車道"]
[null,null,"83540","都賀","栃木","北関東自動車道"]
[null,null,"83545","壬生","栃木","北関東自動車道"]
[null,null,"83550","宇都宮上三川","栃木","北関東自動車道"]
[null,null,"83555","真岡","栃木","北関東自動車道"]
[null,null,"83560","桜川筑西","茨城","北関東自動車道"]
[null,null,"83565","笠間西","茨城","北関東自動車道"]
[null,null,"83570","友部","茨城","北関東自動車道"]
[null,null,"83575","茨城町西","茨城","北関東自動車道"]
[null,null,"83580","茨城町東","茨城","北関東自動車道"]
[null,null,"83585","水戸南","茨城","北関東自動車道"]
[null,null,"83590","水戸大洗","茨城","東水戸道路"]
[null,null,"83595","ひたちなか","茨城","東水戸道路"]
[null,null,"83600","ひたち海浜公園","茨城","常陸那珂有料道路"]
[null,null,"83605","常陸那珂港","茨城","常陸那珂有料道路"]
[null,null,"83700","湾岸市川","千葉","東関東自動車道"]
[null,null,"83705","谷津船橋","千葉","東関東自動車道"]
[null,null,"83710","湾岸習志野","千葉","東関東自動車道"]
[null,null,"83715","湾岸千葉","千葉","東関東自動車道"]
[null,null,"83720","千葉北","千葉","東関東自動車道"]
[null,null,"83725","四街道","千葉","東関東自動車道"]
[null,null,"83730","佐倉","千葉","東関東自動車道"]
[null,null,"83735","酒々井","千葉","東関東自動車道"]
[null,null,"83740","富里","千葉","東関東自動車道"]
[null,null,"83745","成田","千葉","東関東自動車道"]
[null,null,"83750","成田スマート","千葉","東関東自動車道"]
[null,null,"83755","新空港","千葉","新空港自動車道"]
[null,null,"83760","大栄","千葉","東関東自動車道"]
[null,null,"83765","佐原香取","千葉","東関東自動車道"]
[null,null,"83770","潮来","茨城","東関東自動車道"]
[null,null,"83795","鉾田","茨城","東関東自動車道"]
[null,null,"83800","茨城空港北","茨城","東関東自動車道"]
[null,null,"84000","篠崎","東京","京葉道路"]
[null,null,"84005","市川","千葉","京葉道路"]
[null,null,"84010","原木","千葉","京葉道路"]
[null,null,"84015","船橋","千葉","京葉道路"]
[null,null,"84020","花輪","千葉","京葉道路"]
[null,null,"84025","幕張","千葉","京葉道路"]
[null,null,"84030","武石","千葉","京葉道路"]
[null,null,"84035","穴川","千葉","京葉道路"]
[null,null,"84040","貝塚(千葉_京葉道路)","千葉","京葉道路"]
[null,null,"84045","松ヶ丘","千葉","京葉道路"]
[null,null,"84050","蘇我","千葉","京葉道路"]
[null,null,"84055","市原","千葉","館山自動車道"]
[null,null,"84060","姉崎袖ヶ浦","千葉","館山自動車道"]
[null,null,"84065","木更津北","千葉","館山自動車道"]
[null,null,"84070","木更津南","千葉","館山自動車道"]
[null,null,"84075","君津","千葉","館山自動車道"]
[null,null,"84080","君津ＰＡ","千葉","館山自動車道"]
[null,null,"84085","富津中央","千葉","館山自動車道"]
[null,null,"84090","富津竹岡","千葉","館山自動車道"]
[null,null,"84095","富津金谷","千葉","富津館山道路"]
[null,null,"84100","鋸南保田","千葉","富津館山道路"]
[null,null,"84105","鋸南富山","千葉","富津館山道路"]
[null,null,"84110","富浦","千葉","富津館山道路"]
[null,null,"84150","千葉東","千葉","千葉東金道路"]
[null,null,"84155","大宮","千葉","千葉東金道路"]
[null,null,"84160","高田(千葉_千葉東金道路)","千葉","千葉東金道路"]
[null,null,"84165","中野(千葉_千葉東金道路)","千葉","千葉東金道路"]
[null,null,"84170","山田(千葉_千葉東金道路)","千葉","千葉東金道路"]
[null,null,"84185","浮島(神奈川_東京湾アクアライン)","神奈川","東京湾アクアライン"]
[null,null,"84190","木更津金田","千葉","東京湾アクアライン"]
[null,null,"84195","袖ヶ浦","千葉","東京湾アクアライン"]
[null,null,"84200","木更津東","千葉","首都圏中央連絡自動車道"]
[null,null,"84205","市原鶴舞","千葉","首都圏中央連絡自動車道"]
[null,null,"84210","茂原長南","千葉","首都圏中央連絡自動車道"]
[null,null,"84215","茂原長柄","千葉","首都圏中央連絡自動車道"]
[null,null,"84220","茂原北","千葉","首都圏中央連絡自動車道"]
[null,null,"84225","大網白里","千葉","首都圏中央連絡自動車道"]
[null,null,"84230","東金","千葉","首都圏中央連絡自動車道"]
[null,null,"84235","山武成東","千葉","首都圏中央連絡自動車道"]
[null,null,"84240","松尾横芝(千葉_首都圏中央連絡自動車道)","千葉","首都圏中央連絡自動車道"]
[null,null,"84240","松尾横芝(千葉_銚子連絡道路)","千葉","銚子連絡道路"]
[null,null,"84270","下総","千葉","首都圏中央連絡自動車道"]
[null,null,"84275","神崎","千葉","首都圏中央連絡自動車道"]
[null,null,"84280","横芝光","千葉","銚子連絡道路"]
[null,null,"84290","稲敷東","茨城","首都圏中央連絡自動車道"]
[null,null,"84295","稲敷","茨城","首都圏中央連絡自動車道"]
[null,null,"84300","阿見東","茨城","首都圏中央連絡自動車道"]
[null,null,"84305","牛久阿見","茨城","首都圏中央連絡自動車道"]
[null,null,"84310","つくば牛久","茨城","首都圏中央連絡自動車道"]
[null,null,"84315","つくば中央","茨城","首都圏中央連絡自動車道"]
[null,null,"84320","つくば西","茨城","首都圏中央連絡自動車道"]
[null,null,"84325","常総","茨城","首都圏中央連絡自動車道"]
[null,null,"84330","坂東","茨城","首都圏中央連絡自動車道"]
[null,null,"84335","境古河","茨城","首都圏中央連絡自動車道"]
[null,null,"84340","五霞","茨城","首都圏中央連絡自動車道"]
[null,null,"84345","幸手","埼玉","首都圏中央連絡自動車道"]
[null,null,"84350","白岡菖蒲","埼玉","首都圏中央連絡自動車道"]
[null,null,"84355","桶川加納","埼玉","首都圏中央連絡自動車道"]
[null,null,"84360","桶川北本","埼玉","首都圏中央連絡自動車道"]
[null,null,"84365","川島","埼玉","首都圏中央連絡自動車道"]
[null,null,"84370","坂戸","埼玉","首都圏中央連絡自動車道"]
[null,null,"84375","圏央鶴ヶ島","埼玉","首都圏中央連絡自動車道"]
[null,null,"84380","狭山日高","埼玉","首都圏中央連絡自動車道"]
[null,null,"84385","入間","埼玉","首都圏中央連絡自動車道"]
[null,null,"84390","青梅","東京","首都圏中央連絡自動車道"]
[null,null,"84395","日の出","東京","首都圏中央連絡自動車道"]
[null,null,"84400","あきる野","東京","首都圏中央連絡自動車道"]
[null,null,"84405","八王子西","東京","首都圏中央連絡自動車道"]
[null,null,"84410","高尾山","東京","首都圏中央連絡自動車道"]
[null,null,"84415","相模原","神奈川","首都圏中央連絡自動車道"]
[null,null,"84420","相模原愛川","神奈川","首都圏中央連絡自動車道"]
[null,null,"84422","厚木ＰＡ","神奈川","首都圏中央連絡自動車道"]
[null,null,"84425","圏央厚木","神奈川","首都圏中央連絡自動車道"]
[null,null,"84430","海老名","神奈川","首都圏中央連絡自動車道"]
[null,null,"84435","寒川北","神奈川","首都圏中央連絡自動車道"]
[null,null,"84440","寒川南","神奈川","首都圏中央連絡自動車道"]
[null,null,"84445","市川南","千葉","東京外環自動車道"]
[null,null,"84450","市川中央","千葉","東京外環自動車道"]
[null,null,"84455","市川北","千葉","東京外環自動車道"]
[null,null,"84465","松戸","千葉","東京外環自動車道"]
[null,null,"84470","三郷南","埼玉","東京外環自動車道"]
[null,null,"84475","三郷中央","埼玉","東京外環自動車道"]
[null,null,"84480","外環三郷西","埼玉","東京外環自動車道"]
[null,null,"84500","草加","埼玉","東京外環自動車道"]
[null,null,"84505","川口東","埼玉","東京外環自動車道"]
[null,null,"84510","川口中央","埼玉","東京外環自動車道"]
[null,null,"84515","川口西","埼玉","東京外環自動車道"]
[null,null,"84520","外環浦和","埼玉","東京外環自動車道"]
[null,null,"84525","戸田東","埼玉","東京外環自動車道"]
[null,null,"84530","戸田西","埼玉","東京外環自動車道"]
[null,null,"84535","和光北","埼玉","東京外環自動車道"]
[null,null,"84540","和光","埼玉","東京外環自動車道"]
[null,null,"84600","玉川(東京_第三京浜道路)","東京","第三京浜道路"]
[null,null,"84605","京浜川崎","神奈川","第三京浜道路"]
[null,null,"84610","都筑","神奈川","第三京浜道路"]
[null,null,"84615","港北","神奈川","第三京浜道路"]
[null,null,"84620","羽沢","神奈川","第三京浜道路"]
[null,null,"84625","保土ヶ谷","神奈川","第三京浜道路"]
[null,null,"84630","常盤台","神奈川","横浜新道"]
[null,null,"84635","峰岡","神奈川","横浜新道"]
[null,null,"84640","星川","神奈川","横浜新道"]
[null,null,"84645","藤塚","神奈川","横浜新道"]
[null,null,"84650","新保土ヶ谷","神奈川","横浜新道"]
[null,null,"84655","今井","神奈川","横浜新道"]
[null,null,"84660","川上","神奈川","横浜新道"]
[null,null,"84665","上矢部","神奈川","横浜新道"]
[null,null,"84670","戸塚","神奈川","横浜新道"]
[null,null,"84675","別所","神奈川","横浜横須賀道路"]
[null,null,"84680","日野","神奈川","横浜横須賀道路"]
[null,null,"84685","港南台","神奈川","横浜横須賀道路"]
[null,null,"84690","金沢自然公園","神奈川","横浜横須賀道路"]
[null,null,"84695","堀口能見台","神奈川","横浜横須賀道路"]
[null,null,"84700","並木","神奈川","横浜横須賀道路"]
[null,null,"84705","朝比奈","神奈川","横浜横須賀道路"]
[null,null,"84710","逗子","神奈川","横浜横須賀道路"]
[null,null,"84715","横須賀","神奈川","横浜横須賀道路"]
[null,null,"84720","衣笠","神奈川","横浜横須賀道路"]
[null,null,"84725","佐原","神奈川","横浜横須賀道路"]
[null,null,"84730","浦賀","神奈川","横浜横須賀道路"]
[null,null,"84735","馬堀海岸","神奈川","横浜横須賀道路"]
[null,null,"84740","林","神奈川","三浦縦貫道路"]
[null,null,"84770","藤沢","神奈川","新湘南バイパス"]
[null,null,"84775","茅ヶ崎中央","神奈川","新湘南バイパス"]
[null,null,"84780","茅ヶ崎西","神奈川","新湘南バイパス"]
[null,null,"84785","茅ヶ崎海岸","神奈川","新湘南バイパス"]
[null,null,"84810","厚木西","神奈川","小田原厚木道路"]
[null,null,"84815","伊勢原","神奈川","小田原厚木道路"]
[null,null,"84820","平塚","神奈川","小田原厚木道路"]
[null,null,"84825","大磯","神奈川","小田原厚木道路"]
[null,null,"84830","二宮(神奈川_小田原厚木道路)","神奈川","小田原厚木道路"]
[null,null,"84835","小田原東","神奈川","小田原厚木道路"]
[null,null,"84840","荻窪","神奈川","小田原厚木道路"]
[null,null,"84845","小田原西","神奈川","小田原厚木道路"]
[null,null,"84870","大磯東","神奈川","西湘バイパス"]
[null,null,"84875","大磯港","神奈川","西湘バイパス"]
[null,null,"84877","大磯東出口","神奈川","西湘バイパス"]
[null,null,"84880","大磯西","神奈川","西湘バイパス"]
[null,null,"84885","西湘二宮","神奈川","西湘バイパス"]
[null,null,"84890","橘","神奈川","西湘バイパス"]
[null,null,"84895","国府津","神奈川","西湘バイパス"]
[null,null,"84900","酒匂","神奈川","西湘バイパス"]
[null,null,"84905","小田原","神奈川","西湘バイパス"]
[null,null,"84910","石橋","神奈川","西湘バイパス"]
[null,null,"84915","早川","神奈川","西湘バイパス"]
[null,null,"84920","箱根ターンパイク口","神奈川","西湘バイパス"]
[null,null,"84925","箱根口","神奈川","小田原箱根道路"]
[null,null,"84930","山崎(神奈川_小田原箱根道路)","神奈川","小田原箱根道路"]
[null,null,"85000","練馬","東京","関越自動車道"]
[null,null,"85005","大泉(東京_関越自動車道)","東京","関越自動車道"]
[null,null,"85005","大泉(東京_東京外環自動車道)","東京","東京外環自動車道"]
[null,null,"85010","所沢","埼玉","関越自動車道"]
[null,null,"85015","三芳","埼玉","関越自動車道"]
[null,null,"85020","川越","埼玉","関越自動車道"]
[null,null,"85025","鶴ヶ島","埼玉","関越自動車道"]
[null,null,"85030","坂戸西","埼玉","関越自動車道"]
[null,null,"85035","東松山","埼玉","関越自動車道"]
[null,null,"85040","嵐山小川","埼玉","関越自動車道"]
[null,null,"85045","花園","埼玉","関越自動車道"]
[null,null,"85047","寄居","埼玉","関越自動車道"]
[null,null,"85050","本庄児玉","埼玉","関越自動車道"]
[null,null,"85052","上里","埼玉","関越自動車道"]
[null,null,"85055","高崎玉村","群馬","関越自動車道"]
[null,null,"85060","高崎","群馬","関越自動車道"]
[null,null,"85065","前橋","群馬","関越自動車道"]
[null,null,"85070","駒寄","群馬","関越自動車道"]
[null,null,"85075","渋川伊香保","群馬","関越自動車道"]
[null,null,"85080","赤城","群馬","関越自動車道"]
[null,null,"85085","昭和","群馬","関越自動車道"]
[null,null,"85090","沼田(群馬_関越自動車道)","群馬","関越自動車道"]
[null,null,"85095","月夜野","群馬","関越自動車道"]
[null,null,"85100","水上","群馬","関越自動車道"]
[null,null,"85105","湯沢(新潟_関越自動車道)","新潟","関越自動車道"]
[null,null,"85110","塩沢石打","新潟","関越自動車道"]
[null,null,"85115","六日町","新潟","関越自動車道"]
[null,null,"85120","大和(新潟_関越自動車道)","新潟","関越自動車道"]
[null,null,"85125","魚沼","新潟","関越自動車道"]
[null,null,"85130","堀之内","新潟","関越自動車道"]
[null,null,"85135","越後川口","新潟","関越自動車道"]
[null,null,"85140","小千谷","新潟","関越自動車道"]
[null,null,"85145","長岡南越路","新潟","関越自動車道"]
[null,null,"85150","長岡","新潟","関越自動車道"]
[null,null,"85170","藤岡","群馬","上信越自動車道"]
[null,null,"85175","吉井","群馬","上信越自動車道"]
[null,null,"85180","富岡","群馬","上信越自動車道"]
[null,null,"85185","下仁田","群馬","上信越自動車道"]
[null,null,"85190","松井田妙義","群馬","上信越自動車道"]
[null,null,"85195","碓氷軽井沢","長野","上信越自動車道"]
[null,null,"85200","佐久平","長野","上信越自動車道"]
[null,null,"85205","佐久","長野","上信越自動車道"]
[null,null,"85210","小諸","長野","上信越自動車道"]
[null,null,"85215","東部湯の丸","長野","上信越自動車道"]
[null,null,"85220","上田菅平","長野","上信越自動車道"]
[null,null,"85225","坂城","長野","上信越自動車道"]
[null,null,"85230","長野(長野_上信越自動車道)","長野","上信越自動車道"]
[null,null,"85235","須坂長野東","長野","上信越自動車道"]
[null,null,"85240","小布施","長野","上信越自動車道"]
[null,null,"85245","信州中野","長野","上信越自動車道"]
[null,null,"85250","豊田飯山","長野","上信越自動車道"]
[null,null,"85255","信濃町","長野","上信越自動車道"]
[null,null,"85260","妙高高原","新潟","上信越自動車道"]
[null,null,"85265","中郷","新潟","上信越自動車道"]
[null,null,"85270","新井","新潟","上信越自動車道"]
[null,null,"85275","上越高田","新潟","上信越自動車道"]
[null,null,"85290","佐久北","長野","中部横断自動車道"]
[null,null,"85295","佐久中佐都","長野","中部横断自動車道"]
[null,null,"85300","佐久南","長野","中部横断自動車道"]
[null,null,"85305","佐久臼田","長野","中部横断自動車道"]
[null,null,"85310","佐久穂","長野","中部横断自動車道"]
[null,null,"85315","八千穂高原","長野","中部横断自動車道"]
[null,null,"85400","高井戸","東京","中央自動車道"]
[null,null,"85405","調布","東京","中央自動車道"]
[null,null,"85410","稲城","東京","中央自動車道"]
[null,null,"85420","国立府中","東京","中央自動車道"]
[null,null,"85425","八王子","東京","中央自動車道"]
[null,null,"85430","相模湖東","神奈川","中央自動車道"]
[null,null,"85435","相模湖","神奈川","中央自動車道"]
[null,null,"85440","上野原","山梨","中央自動車道"]
[null,null,"85442","談合坂","山梨","中央自動車道"]
[null,null,"85445","大月","山梨","中央自動車道"]
[null,null,"85450","勝沼","山梨","中央自動車道"]
[null,null,"85455","一宮御坂","山梨","中央自動車道"]
[null,null,"85457","笛吹八代","山梨","中央自動車道"]
[null,null,"85460","甲府南","山梨","中央自動車道"]
[null,null,"85465","甲府昭和","山梨","中央自動車道"]
[null,null,"85470","双葉","山梨","中央自動車道"]
[null,null,"85475","韮崎","山梨","中央自動車道"]
[null,null,"85480","須玉","山梨","中央自動車道"]
[null,null,"85485","長坂(山梨_中央自動車道)","山梨","中央自動車道"]
[null,null,"85490","小淵沢","山梨","中央自動車道"]
[null,null,"85495","諏訪南","長野","中央自動車道"]
[null,null,"85500","諏訪","長野","中央自動車道"]
[null,null,"85503","諏訪湖","長野","中央自動車道"]
[null,null,"85505","伊北","長野","中央自動車道"]
[null,null,"85510","伊那","長野","中央自動車道"]
[null,null,"85512","小黒川","長野","中央自動車道"]
[null,null,"85515","駒ヶ根","長野","中央自動車道"]
[null,null,"85517","駒ヶ岳","長野","中央自動車道"]
[null,null,"85520","松川","長野","中央自動車道"]
[null,null,"85522","座光寺","長野","中央自動車道"]
[null,null,"85525","飯田","長野","中央自動車道"]
[null,null,"85530","飯田山本","長野","中央自動車道"]
[null,null,"85535","園原","長野","中央自動車道"]
[null,null,"85538","神坂","岐阜","中央自動車道"]
[null,null,"85540","中津川","岐阜","中央自動車道"]
[null,null,"85545","恵那","岐阜","中央自動車道"]
[null,null,"85550","瑞浪","岐阜","中央自動車道"]
[null,null,"85555","土岐","岐阜","中央自動車道"]
[null,null,"85560","多治見","岐阜","中央自動車道"]
[null,null,"85565","小牧東","愛知","中央自動車道"]
[null,null,"85570","都留","山梨","中央自動車道"]
[null,null,"85572","富士吉田西桂","山梨","中央自動車道"]
[null,null,"85575","河口湖","山梨","中央自動車道"]
[null,null,"85580","富士吉田","山梨","東富士五湖道路"]
[null,null,"85583","富士吉田忍野","山梨","東富士五湖道路"]
[null,null,"85585","山中湖","山梨","東富士五湖道路"]
[null,null,"85590","須走","山梨","東富士五湖道路"]
[null,null,"85700","白根","山梨","中部横断自動車道"]
[null,null,"85705","南アルプス","山梨","中部横断自動車道"]
[null,null,"85710","増穂","山梨","中部横断自動車道"]
[null,null,"85715","六郷","山梨","中部横断自動車道"]
[null,null,"85720","中富","山梨","中部横断自動車道"]
[null,null,"85725","下部温泉早川","山梨","中部横断自動車道"]
[null,null,"85730","身延山","山梨","中部横断自動車道"]
[null,null,"85735","南部","山梨","中部横断自動車道"]
[null,null,"85737","富沢","山梨","中部横断自動車道"]
[null,null,"85740","岡谷","長野","長野自動車道"]
[null,null,"85745","塩尻","長野","長野自動車道"]
[null,null,"85750","塩尻北","長野","長野自動車道"]
[null,null,"85755","松本","長野","長野自動車道"]
[null,null,"85760","梓川ＳＡ","長野","長野自動車道"]
[null,null,"85765","安曇野","長野","長野自動車道"]
[null,null,"85770","姨捨ＳＡ","長野","長野自動車道"]
[null,null,"85773","筑北","長野","長野自動車道"]
[null,null,"85775","麻績","長野","長野自動車道"]
[null,null,"85780","更埴","長野","長野自動車道"]
[null,null,"85800","天竜峡","長野","三遠南信自動車道"]
[null,null,"85805","千代(長野_三遠南信自動車道)","長野","三遠南信自動車道"]
[null,null,"85810","龍江","長野","三遠南信自動車道"]
[null,null,"85815","飯田上久堅・喬木富田","長野","三遠南信自動車道"]
[null,null,"85825","喬木","長野","三遠南信自動車道"]
[null,null,"85830","程野","長野","三遠南信自動車道"]
[null,null,"85855","佐久間川合","静岡","三遠南信自動車道"]
[null,null,"85860","浦川","静岡","三遠南信自動車道"]
[null,null,"85865","東栄","静岡","三遠南信自動車道"]
[null,null,"85880","鳳来峡","静岡","三遠南信自動車道"]
[null,null,"85885","渋川寺野","静岡","三遠南信自動車道"]
[null,null,"85890","浜松いなさ北","静岡","三遠南信自動車道"]
[null,null,"86000","新潟西","新潟","北陸自動車道"]
[null,null,"86005","黒埼","新潟","北陸自動車道"]
[null,null,"86010","巻潟東","新潟","北陸自動車道"]
[null,null,"86015","三条燕","新潟","北陸自動車道"]
[null,null,"86020","栄","新潟","北陸自動車道"]
[null,null,"86025","中之島見附","新潟","北陸自動車道"]
[null,null,"86027","長岡北(新潟_北陸自動車道)","新潟","北陸自動車道"]
[null,null,"86030","西山(新潟_北陸自動車道)","新潟","北陸自動車道"]
[null,null,"86035","柏崎","新潟","北陸自動車道"]
[null,null,"86040","米山","新潟","北陸自動車道"]
[null,null,"86045","柿崎","新潟","北陸自動車道"]
[null,null,"86050","大潟","新潟","北陸自動車道"]
[null,null,"86055","上越","新潟","北陸自動車道"]
[null,null,"86060","名立谷浜","新潟","北陸自動車道"]
[null,null,"86065","能生","新潟","北陸自動車道"]
[null,null,"86070","糸魚川","新潟","北陸自動車道"]
[null,null,"86075","親不知","新潟","北陸自動車道"]
[null,null,"86080","朝日","富山","北陸自動車道"]
[null,null,"86085","入善","富山","北陸自動車道"]
[null,null,"86090","黒部","富山","北陸自動車道"]
[null,null,"86095","魚津","富山","北陸自動車道"]
[null,null,"86100","滑川","富山","北陸自動車道"]
[null,null,"86102","上市","富山","北陸自動車道"]
[null,null,"86105","立山","富山","北陸自動車道"]
[null,null,"86110","流杉","富山","北陸自動車道"]
[null,null,"86115","富山","富山","北陸自動車道"]
[null,null,"86120","富山西","富山","北陸自動車道"]
[null,null,"86125","小杉","富山","北陸自動車道"]
[null,null,"86130","高岡砺波","富山","北陸自動車道"]
[null,null,"86135","砺波","富山","北陸自動車道"]
[null,null,"86140","小矢部","富山","北陸自動車道"]
[null,null,"86145","金沢森本","石川","北陸自動車道"]
[null,null,"86150","金沢東","石川","北陸自動車道"]
[null,null,"86155","金沢西","石川","北陸自動車道"]
[null,null,"86160","白山","石川","北陸自動車道"]
[null,null,"86165","徳光","石川","北陸自動車道"]
[null,null,"86170","美川","石川","北陸自動車道"]
[null,null,"86172","能美根上","石川","北陸自動車道"]
[null,null,"86175","小松","石川","北陸自動車道"]
[null,null,"86180","安宅","石川","北陸自動車道"]
[null,null,"86185","片山津","石川","北陸自動車道"]
[null,null,"86190","加賀(石川_北陸自動車道)","石川","北陸自動車道"]
[null,null,"86195","金津","福井","北陸自動車道"]
[null,null,"86200","丸岡","福井","北陸自動車道"]
[null,null,"86205","福井北","福井","北陸自動車道"]
[null,null,"86210","福井","福井","北陸自動車道"]
[null,null,"86215","鯖江","福井","北陸自動車道"]
[null,null,"86220","武生","福井","北陸自動車道"]
[null,null,"86225","南条","福井","北陸自動車道"]
[null,null,"86230","今庄","福井","北陸自動車道"]
[null,null,"86235","敦賀","福井","北陸自動車道"]
[null,null,"86240","木之本","滋賀","北陸自動車道"]
[null,null,"86242","小谷城","滋賀","北陸自動車道"]
[null,null,"86245","長浜","滋賀","北陸自動車道"]
[null,null,"86250","米原","滋賀","北陸自動車道"]
[null,null,"86500","東京","東京","東名高速道路"]
[null,null,"86505","東名川崎","神奈川","東名高速道路"]
[null,null,"86510","横浜青葉","神奈川","東名高速道路"]
[null,null,"86515","横浜町田","神奈川","東名高速道路"]
[null,null,"86517","綾瀬","神奈川","東名高速道路"]
[null,null,"86520","厚木","神奈川","東名高速道路"]
[null,null,"86525","秦野中井","神奈川","東名高速道路"]
[null,null,"86530","大井松田","神奈川","東名高速道路"]
[null,null,"86532","足柄","神奈川","東名高速道路"]
[null,null,"86535","御殿場","静岡","東名高速道路"]
[null,null,"86537","駒門","静岡","東名高速道路"]
[null,null,"86540","裾野","静岡","東名高速道路"]
[null,null,"86545","沼津","静岡","東名高速道路"]
[null,null,"86547","愛鷹","静岡","東名高速道路"]
[null,null,"86550","富士","静岡","東名高速道路"]
[null,null,"86555","富士川","静岡","東名高速道路"]
[null,null,"86560","清水","静岡","東名高速道路"]
[null,null,"86562","日本平久能山","静岡","東名高速道路"]
[null,null,"86565","静岡","静岡","東名高速道路"]
[null,null,"86570","焼津","静岡","東名高速道路"]
[null,null,"86572","大井川焼津藤枝","静岡","東名高速道路"]
[null,null,"86575","吉田","静岡","東名高速道路"]
[null,null,"86580","相良牧之原","静岡","東名高速道路"]
[null,null,"86585","菊川","静岡","東名高速道路"]
[null,null,"86590","掛川","静岡","東名高速道路"]
[null,null,"86595","袋井","静岡","東名高速道路"]
[null,null,"86600","磐田","静岡","東名高速道路"]
[null,null,"86605","遠州豊田","静岡","東名高速道路"]
[null,null,"86610","浜松","静岡","東名高速道路"]
[null,null,"86612","三方原","静岡","東名高速道路"]
[null,null,"86615","浜松西","静岡","東名高速道路"]
[null,null,"86617","舘山寺","静岡","東名高速道路"]
[null,null,"86620","三ヶ日","静岡","東名高速道路"]
[null,null,"86625","豊川","愛知","東名高速道路"]
[null,null,"86630","音羽蒲郡","愛知","東名高速道路"]
[null,null,"86635","岡崎","愛知","東名高速道路"]
[null,null,"86637","豊田上郷","愛知","東名高速道路"]
[null,null,"86640","豊田","愛知","東名高速道路"]
[null,null,"86645","東名三好","愛知","東名高速道路"]
[null,null,"86650","名古屋","愛知","東名高速道路"]
[null,null,"86652","守山","愛知","東名高速道路"]
[null,null,"86655","春日井","愛知","東名高速道路"]
[null,null,"86665","厚木南","神奈川","新東名高速道路"]
[null,null,"86670","伊勢原大山","神奈川","新東名高速道路"]
[null,null,"86695","新御殿場","静岡","新東名高速道路"]
[null,null,"86700","長泉沼津","静岡","新東名高速道路"]
[null,null,"86702","駿河湾沼津","静岡","新東名高速道路"]
[null,null,"86705","新富士","静岡","新東名高速道路"]
[null,null,"86710","新清水","静岡","新東名高速道路"]
[null,null,"86715","清水いはら","静岡","新東名高速道路"]
[null,null,"86720","新静岡","静岡","新東名高速道路"]
[null,null,"86725","静岡ＳＡ","静岡","新東名高速道路"]
[null,null,"86730","藤枝岡部","静岡","新東名高速道路"]
[null,null,"86735","島田金谷","静岡","新東名高速道路"]
[null,null,"86740","森掛川","静岡","新東名高速道路"]
[null,null,"86745","遠州森町","静岡","新東名高速道路"]
[null,null,"86747","新磐田","静岡","新東名高速道路"]
[null,null,"86750","浜松浜北","静岡","新東名高速道路"]
[null,null,"86755","浜松ＳＡ","静岡","新東名高速道路"]
[null,null,"86760","浜松いなさ","静岡","新東名高速道路"]
[null,null,"86765","新城","愛知","新東名高速道路"]
[null,null,"86770","岡崎東","愛知","新東名高速道路"]
[null,null,"86800","沼津岡宮","静岡","伊豆縦貫自動車道"]
[null,null,"86805","長泉","静岡","伊豆縦貫自動車道"]
[null,null,"86810","三島萩","静岡","伊豆縦貫自動車道"]
[null,null,"86815","三島加茂","静岡","伊豆縦貫自動車道"]
[null,null,"86820","三島塚原","静岡","伊豆縦貫自動車道"]
[null,null,"86825","三島玉沢","静岡","伊豆縦貫自動車道"]
[null,null,"86830","大場・函南","静岡","伊豆縦貫自動車道"]
[null,null,"86835","函南塚本","静岡","伊豆縦貫自動車道"]
[null,null,"86840","江間","静岡","伊豆縦貫自動車道"]
[null,null,"86845","長岡北(静岡_伊豆縦貫自動車道)","静岡","伊豆縦貫自動車道"]
[null,null,"86850","伊豆長岡","静岡","伊豆縦貫自動車道"]
[null,null,"86855","大仁中央","静岡","伊豆縦貫自動車道"]
[null,null,"86860","大仁南","静岡","伊豆縦貫自動車道"]
[null,null,"86865","熊坂","静岡","伊豆縦貫自動車道"]
[null,null,"86870","修善寺","静岡","伊豆縦貫自動車道"]
[null,null,"86875","大平","静岡","伊豆縦貫自動車道"]
[null,null,"86880","月ヶ瀬","静岡","伊豆縦貫自動車道"]
[null,null,"86920","長久手","愛知","名古屋瀬戸道路"]
[null,null,"86950","豊田松平","愛知","東海環状自動車道"]
[null,null,"86955","鞍ヶ池","愛知","東海環状自動車道"]
[null,null,"86960","豊田勘八","愛知","東海環状自動車道"]
[null,null,"86965","豊田藤岡","愛知","東海環状自動車道"]
[null,null,"86970","せと赤津","愛知","東海環状自動車道"]
[null,null,"86975","せと品野","愛知","東海環状自動車道"]
[null,null,"86980","土岐南多治見","岐阜","東海環状自動車道"]
[null,null,"86985","五斗蒔","岐阜","東海環状自動車道"]
[null,null,"86990","可児御嵩","岐阜","東海環状自動車道"]
[null,null,"86995","美濃加茂","岐阜","東海環状自動車道"]
[null,null,"87000","富加関","岐阜","東海環状自動車道"]
[null,null,"87005","関広見","岐阜","東海環状自動車道"]
[null,null,"87008","岐阜三輪","岐阜","東海環状自動車道"]
[null,null,"87010","山県","岐阜","東海環状自動車道"]
[null,null,"87035","大野神戸","岐阜","東海環状自動車道"]
[null,null,"87040","大垣西","岐阜","東海環状自動車道"]
[null,null,"87045","養老","岐阜","東海環状自動車道"]
[null,null,"87060","大安","三重","東海環状自動車道"]
[null,null,"87065","東員","三重","東海環状自動車道"]
[null,null,"87070","有松","愛知","名古屋第二環状自動車道"]
[null,null,"87075","鳴海","愛知","名古屋第二環状自動車道"]
[null,null,"87080","植田","愛知","名古屋第二環状自動車道"]
[null,null,"87085","上社南","愛知","名古屋第二環状自動車道"]
[null,null,"87090","本郷(愛知_名古屋第二環状自動車道)","愛知","名古屋第二環状自動車道"]
[null,null,"87095","上社","愛知","名古屋第二環状自動車道"]
[null,null,"87100","引山","愛知","名古屋第二環状自動車道"]
[null,null,"87105","大森","愛知","名古屋第二環状自動車道"]
[null,null,"87110","小幡","愛知","名古屋第二環状自動車道"]
[null,null,"87115","松河戸","愛知","名古屋第二環状自動車道"]
[null,null,"87120","勝川","愛知","名古屋第二環状自動車道"]
[null,null,"87125","楠(愛知_名古屋第二環状自動車道)","愛知","名古屋第二環状自動車道"]
[null,null,"87130","山田東","愛知","名古屋第二環状自動車道"]
[null,null,"87135","山田西","愛知","名古屋第二環状自動車道"]
[null,null,"87140","平田(愛知_名古屋第二環状自動車道)","愛知","名古屋第二環状自動車道"]
[null,null,"87145","清洲東","愛知","名古屋第二環状自動車道"]
[null,null,"87150","清洲西","愛知","名古屋第二環状自動車道"]
[null,null,"87155","甚目寺北","愛知","名古屋第二環状自動車道"]
[null,null,"87160","甚目寺南","愛知","名古屋第二環状自動車道"]
[null,null,"87165","大治北","愛知","名古屋第二環状自動車道"]
[null,null,"87170","大治南","愛知","名古屋第二環状自動車道"]
[null,null,"87175","千音寺南","愛知","名古屋第二環状自動車道"]
[null,null,"87180","富田","愛知","名古屋第二環状自動車道"]
[null,null,"87185","南陽","愛知","名古屋第二環状自動車道"]
[null,null,"87190","飛島北","愛知","名古屋第二環状自動車道"]
[null,null,"87210","大府西","愛知","知多半島道路"]
[null,null,"87215","大府東海","愛知","知多半島道路"]
[null,null,"87220","東浦知多","愛知","知多半島道路"]
[null,null,"87225","阿久比","愛知","知多半島道路"]
[null,null,"87230","半田中央","愛知","知多半島道路"]
[null,null,"87235","半田","愛知","知多半島道路"]
[null,null,"87240","常滑","愛知","知多横断道路"]
[null,null,"87245","りんくう(愛知_知多横断道路)","愛知","知多横断道路"]
[null,null,"87250","セントレア東","愛知","知多横断道路"]
[null,null,"87255","武豊","愛知","南知多道路"]
[null,null,"87260","美浜","愛知","南知多道路"]
[null,null,"87265","南知多","愛知","南知多道路"]
[null,null,"87270","古布","愛知","南知多道路"]
[null,null,"87275","豊丘","愛知","南知多道路"]
[null,null,"87300","豊田東","愛知","伊勢湾岸自動車道"]
[null,null,"87305","豊田南","愛知","伊勢湾岸自動車道"]
[null,null,"87310","豊明","愛知","伊勢湾岸自動車道"]
[null,null,"87315","名古屋南","愛知","伊勢湾岸自動車道"]
[null,null,"87320","大府","愛知","伊勢湾岸自動車道"]
[null,null,"87325","東海(愛知_伊勢湾岸自動車道)","愛知","伊勢湾岸自動車道"]
[null,null,"87330","名港潮見","愛知","伊勢湾岸自動車道"]
[null,null,"87335","名港中央","愛知","伊勢湾岸自動車道"]
[null,null,"87340","飛島","愛知","伊勢湾岸自動車道"]
[null,null,"87345","湾岸弥富","愛知","伊勢湾岸自動車道"]
[null,null,"87350","弥富木曽岬","愛知","伊勢湾岸自動車道"]
[null,null,"87355","湾岸長島","三重","伊勢湾岸自動車道"]
[null,null,"87360","湾岸桑名","三重","伊勢湾岸自動車道"]
[null,null,"87365","みえ川越","三重","伊勢湾岸自動車道"]
[null,null,"87370","みえ朝日","三重","伊勢湾岸自動車道"]
[null,null,"87395","一宮稲沢北","愛知","東海北陸自動車道"]
[null,null,"87400","一宮西","愛知","東海北陸自動車道"]
[null,null,"87405","尾西","愛知","東海北陸自動車道"]
[null,null,"87410","一宮木曽川","愛知","東海北陸自動車道"]
[null,null,"87415","岐阜各務原","岐阜","東海北陸自動車道"]
[null,null,"87420","関","岐阜","東海北陸自動車道"]
[null,null,"87425","美濃","岐阜","東海北陸自動車道"]
[null,null,"87430","美並","岐阜","東海北陸自動車道"]
[null,null,"87435","郡上八幡","岐阜","東海北陸自動車道"]
[null,null,"87440","ぎふ大和","岐阜","東海北陸自動車道"]
[null,null,"87445","白鳥","岐阜","東海北陸自動車道"]
[null,null,"87450","高鷲","岐阜","東海北陸自動車道"]
[null,null,"87455","ひるがの高原","岐阜","東海北陸自動車道"]
[null,null,"87460","荘川","岐阜","東海北陸自動車道"]
[null,null,"87465","飛騨清見","岐阜","東海北陸自動車道"]
[null,null,"87470","白川郷","富山","東海北陸自動車道"]
[null,null,"87475","五箇山","富山","東海北陸自動車道"]
[null,null,"87480","福光","富山","東海北陸自動車道"]
[null,null,"87485","南砺","富山","東海北陸自動車道"]
[null,null,"87490","小矢部東","富山","能越自動車道"]
[null,null,"87495","福岡(富山_能越自動車道)","富山","能越自動車道"]
[null,null,"87500","高岡","富山","能越自動車道"]
[null,null,"87505","高岡北","富山","能越自動車道"]
[null,null,"87507","氷見南","富山","能越自動車道"]
[null,null,"87510","氷見","富山","能越自動車道"]
[null,null,"87515","氷見北","富山","能越自動車道"]
[null,null,"87520","灘浦","富山","能越自動車道"]
[null,null,"87525","七尾大泊","石川","能越自動車道"]
[null,null,"87530","七尾城山","石川","能越自動車道"]
[null,null,"87535","七尾","石川","能越自動車道"]
[null,null,"87540","田鶴浜","石川","能越自動車道"]
[null,null,"87545","徳田大津","石川","のと里山海道"]
[null,null,"87550","横田","石川","のと里山海道"]
[null,null,"87555","越の原","石川","のと里山海道"]
[null,null,"87560","穴水","石川","のと里山海道"]
[null,null,"87565","のと里山空港","石川","のと里山海道"]
[null,null,"87570","のと三井","石川","のと里山海道"]
[null,null,"87580","松岡","福井","永平寺大野道路"]
[null,null,"87585","永平寺参道","福井","永平寺大野道路"]
[null,null,"87590","永平寺","福井","永平寺大野道路"]
[null,null,"87595","上志比","福井","永平寺大野道路"]
[null,null,"87600","勝山(福井_永平寺大野道路)","福井","永平寺大野道路"]
[null,null,"87605","大野(福井_永平寺大野道路)","福井","永平寺大野道路"]
[null,null,"87640","油坂峠出入口","岐阜","油坂峠道路"]
[null,null,"87645","白鳥西","岐阜","油坂峠道路"]
[null,null,"87650","高山西","岐阜","高山清見道路"]
[null,null,"87655","高山","岐阜","高山清見道路"]
[null,null,"87660","平湯","岐阜","安房峠道路"]
[null,null,"87665","中ノ湯","長野","安房峠道路"]
[null,null,"87700","内灘","石川","のと里山海道"]
[null,null,"87705","内灘白帆台","石川","のと里山海道"]
[null,null,"87710","白尾","石川","のと里山海道"]
[null,null,"87715","高松(石川_のと里山海道)","石川","のと里山海道"]
[null,null,"87720","県立看護大","石川","のと里山海道"]
[null,null,"87725","米出","石川","のと里山海道"]
[null,null,"87730","今浜","石川","のと里山海道"]
[null,null,"87735","千里浜","石川","のと里山海道"]
[null,null,"87740","柳田","石川","のと里山海道"]
[null,null,"87745","上棚矢駄","石川","のと里山海道"]
[null,null,"87750","西山(石川_のと里山海道)","石川","のと里山海道"]
[null,null,"88000","小牧","愛知","名神高速道路"]
[null,null,"88005","一宮","愛知","名神高速道路"]
[null,null,"88010","岐阜羽島","岐阜","名神高速道路"]
[null,null,"88012","安八","岐阜","名神高速道路"]
[null,null,"88015","大垣","岐阜","名神高速道路"]
[null,null,"88018","養老ＳＡ","岐阜","名神高速道路"]
[null,null,"88020","関ヶ原","岐阜","名神高速道路"]
[null,null,"88025","彦根","滋賀","名神高速道路"]
[null,null,"88028","多賀PA","滋賀","名神高速道路"]
[null,null,"88030","湖東三山","滋賀","名神高速道路"]
[null,null,"88035","八日市","滋賀","名神高速道路"]
[null,null,"88040","蒲生","滋賀","名神高速道路"]
[null,null,"88045","竜王","滋賀","名神高速道路"]
[null,null,"88047","栗東湖南","滋賀","名神高速道路"]
[null,null,"88050","栗東","滋賀","名神高速道路"]
[null,null,"88055","瀬田東","滋賀","名神高速道路"]
[null,null,"88060","大山崎","京都","名神高速道路"]
[null,null,"88065","瀬田西","滋賀","名神高速道路"]
[null,null,"88070","大津","滋賀","名神高速道路"]
[null,null,"88075","京都東","京都","名神高速道路"]
[null,null,"88080","京都南","京都","名神高速道路"]
[null,null,"88082","高槻(大阪_名神高速道路)","大阪","名神高速道路"]
[null,null,"88082","高槻(大阪_新名神高速道路)","大阪","新名神高速道路"]
[null,null,"88085","茨木","大阪","名神高速道路"]
[null,null,"88090","吹田","大阪","名神高速道路"]
[null,null,"88095","豊中","大阪","名神高速道路"]
[null,null,"88100","尼崎","兵庫","名神高速道路"]
[null,null,"88105","西宮(兵庫_名神高速道路)","兵庫","名神高速道路"]
[null,null,"88150","名古屋西","愛知","東名阪自動車道"]
[null,null,"88155","蟹江","愛知","東名阪自動車道"]
[null,null,"88160","弥富","愛知","東名阪自動車道"]
[null,null,"88165","長島","三重","東名阪自動車道"]
[null,null,"88170","桑名東","三重","東名阪自動車道"]
[null,null,"88175","桑名","三重","東名阪自動車道"]
[null,null,"88180","四日市東","三重","東名阪自動車道"]
[null,null,"88185","四日市","三重","東名阪自動車道"]
[null,null,"88190","鈴鹿","三重","東名阪自動車道"]
[null,null,"88195","亀山ＰＡ","三重","東名阪自動車道"]
[null,null,"88200","亀山","三重","東名阪自動車道"]
[null,null,"88205","伊勢関","三重","東名阪自動車道"]
[null,null,"88290","菰野","三重","新名神高速道路"]
[null,null,"88295","鈴鹿ＰＡ","三重","新名神高速道路"]
[null,null,"88300","甲賀土山","滋賀","新名神高速道路"]
[null,null,"88305","甲南","滋賀","新名神高速道路"]
[null,null,"88310","信楽","滋賀","新名神高速道路"]
[null,null,"88315","草津田上","滋賀","新名神高速道路"]
[null,null,"88335","城陽","京都","新名神高速道路"]
[null,null,"88340","八幡京田辺","京都","新名神高速道路"]
[null,null,"88350","茨木千提寺","大阪","新名神高速道路"]
[null,null,"88355","箕面とどろみ","大阪","新名神高速道路"]
[null,null,"88360","川西","兵庫","新名神高速道路"]
[null,null,"88365","宝塚北","兵庫","新名神高速道路"]
[null,null,"88400","芸濃","三重","伊勢自動車道"]
[null,null,"88405","津","三重","伊勢自動車道"]
[null,null,"88410","久居","三重","伊勢自動車道"]
[null,null,"88415","一志嬉野","三重","伊勢自動車道"]
[null,null,"88420","松阪","三重","伊勢自動車道"]
[null,null,"88422","多気ヴィソン","三重","伊勢自動車道"]
[null,null,"88425","玉城","三重","伊勢自動車道"]
[null,null,"88430","伊勢西","三重","伊勢自動車道"]
[null,null,"88435","伊勢","三重","伊勢自動車道"]
[null,null,"88450","勢和多気","三重","紀勢自動車道"]
[null,null,"88455","大宮大台","三重","紀勢自動車道"]
[null,null,"88460","紀勢大内山","三重","紀勢自動車道"]
[null,null,"88465","紀伊長島","三重","紀勢自動車道"]
[null,null,"88470","海山","三重","紀勢自動車道"]
[null,null,"88475","尾鷲北","三重","紀勢自動車道"]
[null,null,"88490","尾鷲南","三重","熊野尾鷲道路"]
[null,null,"88495","三木里","三重","熊野尾鷲道路"]
[null,null,"88500","賀田","三重","熊野尾鷲道路"]
[null,null,"88505","熊野新鹿","三重","熊野尾鷲道路"]
[null,null,"88510","熊野大泊","三重","熊野尾鷲道路"]
[null,null,"88530","三輪崎","和歌山","那智勝浦新宮道路"]
[null,null,"88535","新宮南","和歌山","那智勝浦新宮道路"]
[null,null,"88540","那智勝浦","和歌山","那智勝浦新宮道路"]
[null,null,"88545","市屋","和歌山","那智勝浦新宮道路"]
[null,null,"88580","すさみ南","和歌山","紀勢自動車道"]
[null,null,"88585","すさみ","和歌山","紀勢自動車道"]
[null,null,"88590","日置川","和歌山","紀勢自動車道"]
[null,null,"88595","南紀白浜","和歌山","紀勢自動車道"]
[null,null,"88600","上富田","和歌山","紀勢自動車道"]
[null,null,"88605","南紀田辺","和歌山","阪和自動車道"]
[null,null,"88610","みなべ","和歌山","阪和自動車道"]
[null,null,"88615","印南","和歌山","阪和自動車道"]
[null,null,"88620","御坊南","和歌山","阪和自動車道"]
[null,null,"88625","御坊","和歌山","湯浅御坊道路"]
[null,null,"88630","川辺","和歌山","湯浅御坊道路"]
[null,null,"88635","広川南","和歌山","湯浅御坊道路"]
[null,null,"88640","広川(和歌山_湯浅御坊道路)","和歌山","湯浅御坊道路"]
[null,null,"88645","湯浅","和歌山","湯浅御坊道路"]
[null,null,"88650","有田南","和歌山","湯浅御坊道路"]
[null,null,"88655","有田","和歌山","阪和自動車道"]
[null,null,"88660","下津","和歌山","阪和自動車道"]
[null,null,"88665","海南","和歌山","阪和自動車道"]
[null,null,"88670","海南東","和歌山","阪和自動車道"]
[null,null,"88672","和歌山南","和歌山","阪和自動車道"]
[null,null,"88675","和歌山","和歌山","阪和自動車道"]
[null,null,"88680","和歌山北","和歌山","阪和自動車道"]
[null,null,"88685","阪南","大阪","阪和自動車道"]
[null,null,"88690","泉南","大阪","阪和自動車道"]
[null,null,"88695","上之郷","大阪","関西空港自動車道"]
[null,null,"88700","泉佐野","大阪","関西空港自動車道"]
[null,null,"88705","りんくう(大阪_関西空港自動車道)","大阪","関西空港自動車道"]
[null,null,"88710","関西国際空港(大阪_関西空港自動車道)","大阪","関西空港自動車道"]
[null,null,"88715","貝塚(大阪_阪和自動車道)","大阪","阪和自動車道"]
[null,null,"88720","岸和田和泉","大阪","阪和自動車道"]
[null,null,"88725","堺(大阪_阪和自動車道)","大阪","阪和自動車道"]
[null,null,"88730","美原南","大阪","阪和自動車道"]
[null,null,"88735","美原北","大阪","阪和自動車道"]
[null,null,"88740","松原","大阪","阪和自動車道"]
[null,null,"88745","長原","大阪","近畿自動車道"]
[null,null,"88750","八尾","大阪","近畿自動車道"]
[null,null,"88755","東大阪南","大阪","近畿自動車道"]
[null,null,"88760","東大阪北","大阪","近畿自動車道"]
[null,null,"88765","大東鶴見","大阪","近畿自動車道"]
[null,null,"88770","門真","大阪","近畿自動車道"]
[null,null,"88775","摂津南","大阪","近畿自動車道"]
[null,null,"88780","摂津北","大阪","近畿自動車道"]
[null,null,"88800","久我","三重","名阪国道"]
[null,null,"88805","向井","三重","名阪国道"]
[null,null,"88810","板屋","三重","名阪国道"]
[null,null,"88815","南在家","三重","名阪国道"]
[null,null,"88820","伊賀","三重","名阪国道"]
[null,null,"88825","上柘植","三重","名阪国道"]
[null,null,"88830","下柘植","三重","名阪国道"]
[null,null,"88835","御代","三重","名阪国道"]
[null,null,"88840","壬生野","三重","名阪国道"]
[null,null,"88845","伊賀一之宮","三重","名阪国道"]
[null,null,"88850","中瀬","三重","名阪国道"]
[null,null,"88855","友生","三重","名阪国道"]
[null,null,"88860","上野東","三重","名阪国道"]
[null,null,"88865","上野(三重_名阪国道)","三重","名阪国道"]
[null,null,"88870","大内","三重","名阪国道"]
[null,null,"88875","白樫","三重","名阪国道"]
[null,null,"88880","治田","三重","名阪国道"]
[null,null,"88885","五月橋","奈良","名阪国道"]
[null,null,"88890","山添","奈良","名阪国道"]
[null,null,"88895","神野口","奈良","名阪国道"]
[null,null,"88900","小倉","奈良","名阪国道"]
[null,null,"88905","針","奈良","名阪国道"]
[null,null,"88910","一本松","奈良","名阪国道"]
[null,null,"88915","福住(奈良_名阪国道)","奈良","名阪国道"]
[null,null,"88920","五ヶ谷","奈良","名阪国道"]
[null,null,"88925","天理東","奈良","名阪国道"]
[null,null,"88930","天理","奈良","西名阪自動車道"]
[null,null,"88935","郡山(奈良_西名阪自動車道)","奈良","西名阪自動車道"]
[null,null,"88940","大和まほろば","奈良","西名阪自動車道"]
[null,null,"88945","法隆寺","奈良","西名阪自動車道"]
[null,null,"88950","香芝","奈良","西名阪自動車道"]
[null,null,"88955","柏原","大阪","西名阪自動車道"]
[null,null,"88960","藤井寺","大阪","西名阪自動車道"]
[null,null,"89000","田辺北","京都","京奈和自動車道"]
[null,null,"89005","田辺西","京都","京奈和自動車道"]
[null,null,"89010","精華下狛","京都","京奈和自動車道"]
[null,null,"89015","精華学研","京都","京奈和自動車道"]
[null,null,"89020","山田川","京都","京奈和自動車道"]
[null,null,"89025","木津","京都","京奈和自動車道"]
[null,null,"89050","郡山南(奈良_京奈和自動車道)","奈良","京奈和自動車道"]
[null,null,"89055","三宅(奈良_京奈和自動車道)","奈良","京奈和自動車道"]
[null,null,"89060","橿原北","奈良","京奈和自動車道"]
[null,null,"89065","橿原高田","奈良","京奈和自動車道"]
[null,null,"89070","御所","奈良","京奈和自動車道"]
[null,null,"89075","御所南","奈良","京奈和自動車道"]
[null,null,"89080","五條北","奈良","京奈和自動車道"]
[null,null,"89085","五條","奈良","京奈和自動車道"]
[null,null,"89090","五條西","奈良","京奈和自動車道"]
[null,null,"89095","橋本東","和歌山","京奈和自動車道"]
[null,null,"89100","橋本","和歌山","京奈和自動車道"]
[null,null,"89105","高野口","和歌山","京奈和自動車道"]
[null,null,"89110","紀北かつらぎ","和歌山","京奈和自動車道"]
[null,null,"89115","かつらぎ西","和歌山","京奈和自動車道"]
[null,null,"89120","紀の川東","和歌山","京奈和自動車道"]
[null,null,"89125","紀の川","和歌山","京奈和自動車道"]
[null,null,"89130","岩出根来","和歌山","京奈和自動車道"]
[null,null,"89150","石山","滋賀","京滋バイパス"]
[null,null,"89155","南郷(滋賀_京滋バイパス)","滋賀","京滋バイパス"]
[null,null,"89160","笠取","京都","京滋バイパス"]
[null,null,"89165","宇治東","京都","京滋バイパス"]
[null,null,"89170","宇治西","京都","京滋バイパス"]
[null,null,"89175","巨椋","京都","京滋バイパス"]
[null,null,"89180","久御山","京都","京滋バイパス"]
[null,null,"89185","久御山淀","京都","京滋バイパス"]
[null,null,"89190","巨椋池","京都","第二京阪道路"]
[null,null,"89195","久御山南","京都","第二京阪道路"]
[null,null,"89200","八幡東","京都","第二京阪道路"]
[null,null,"89205","京田辺松井","京都","第二京阪道路"]
[null,null,"89210","枚方東","大阪","第二京阪道路"]
[null,null,"89215","枚方学研","大阪","第二京阪道路"]
[null,null,"89220","交野北","大阪","第二京阪道路"]
[null,null,"89225","交野南","大阪","第二京阪道路"]
[null,null,"89230","寝屋川北","大阪","第二京阪道路"]
[null,null,"89235","寝屋川南","大阪","第二京阪道路"]
[null,null,"89240","第二京阪門真","大阪","第二京阪道路"]
[null,null,"89300","西石切(大阪_第二阪奈有料道路)","大阪","第二阪奈有料道路"]
[null,null,"89305","壱分","奈良","第二阪奈有料道路"]
[null,null,"89310","小瀬","奈良","第二阪奈有料道路"]
[null,null,"89315","中町","奈良","第二阪奈有料道路"]
[null,null,"89320","宝来","奈良","第二阪奈有料道路"]
[null,null,"89400","美原","大阪","南阪奈道路"]
[null,null,"89405","美原東","大阪","南阪奈道路"]
[null,null,"89410","羽曳野","大阪","南阪奈道路"]
[null,null,"89415","羽曳野東","大阪","南阪奈道路"]
[null,null,"89420","太子","大阪","南阪奈道路"]
[null,null,"89425","葛城","大阪","南阪奈道路"]
[null,null,"89430","新庄(大阪_南阪奈道路)","大阪","南阪奈道路"]
[null,null,"89480","平井","大阪","堺泉北有料道路"]
[null,null,"89485","太平寺","大阪","堺泉北有料道路"]
[null,null,"89490","菱木","大阪","堺泉北有料道路"]
[null,null,"89495","取石","大阪","堺泉北有料道路"]
[null,null,"89500","綾園","大阪","堺泉北有料道路"]
[null,null,"89600","長岡京","京都","京都縦貫自動車道"]
[null,null,"89605","大原野","京都","京都縦貫自動車道"]
[null,null,"89610","沓掛","京都","京都縦貫自動車道"]
[null,null,"89615","篠","京都","京都縦貫自動車道"]
[null,null,"89620","亀岡","京都","京都縦貫自動車道"]
[null,null,"89625","大井(京都_京都縦貫自動車道)","京都","京都縦貫自動車道"]
[null,null,"89630","千代川","京都","京都縦貫自動車道"]
[null,null,"89635","八木東","京都","京都縦貫自動車道"]
[null,null,"89640","八木中","京都","京都縦貫自動車道"]
[null,null,"89645","八木西","京都","京都縦貫自動車道"]
[null,null,"89650","園部","京都","京都縦貫自動車道"]
[null,null,"89655","丹波","京都","京都縦貫自動車道"]
[null,null,"89660","京丹波みずほ","京都","京都縦貫自動車道"]
[null,null,"89665","京丹波わち","京都","京都縦貫自動車道"]
[null,null,"89670","綾部安国寺","京都","京都縦貫自動車道"]
[null,null,"89675","舞鶴大江","京都","京都縦貫自動車道"]
[null,null,"89680","宮津天橋立(京都_京都縦貫自動車道)","京都","京都縦貫自動車道"]
[null,null,"89680","宮津天橋立(京都_山陰近畿自動車道)","京都","山陰近畿自動車道"]
[null,null,"89685","与謝天橋立","京都","山陰近畿自動車道"]
[null,null,"89690","京丹後大宮","京都","山陰近畿自動車道"]
[null,null,"89725","佐津","兵庫","山陰近畿自動車道"]
[null,null,"89730","香住","兵庫","山陰近畿自動車道"]
[null,null,"89735","余部","兵庫","山陰近畿自動車道"]
[null,null,"89740","久斗","兵庫","山陰近畿自動車道"]
[null,null,"89745","新温泉浜坂","兵庫","山陰近畿自動車道"]
[null,null,"89750","居組","兵庫","山陰近畿自動車道"]
[null,null,"89755","東浜(鳥取_山陰近畿自動車道)","鳥取","山陰近畿自動車道"]
[null,null,"89760","浦富","鳥取","山陰近畿自動車道"]
[null,null,"89765","岩美","鳥取","山陰近畿自動車道"]
[null,null,"89770","大谷","鳥取","山陰近畿自動車道"]
[null,null,"89775","福部","鳥取","山陰近畿自動車道"]
[null,null,"89795","敦賀南","福井","舞鶴若狭自動車道"]
[null,null,"89800","若狭美浜","福井","舞鶴若狭自動車道"]
[null,null,"89805","若狭三方","福井","舞鶴若狭自動車道"]
[null,null,"89807","三方五湖ＰＡ","福井","舞鶴若狭自動車道"]
[null,null,"89810","若狭上中","福井","舞鶴若狭自動車道"]
[null,null,"89815","小浜","福井","舞鶴若狭自動車道"]
[null,null,"89820","小浜西","福井","舞鶴若狭自動車道"]
[null,null,"89825","大飯高浜","福井","舞鶴若狭自動車道"]
[null,null,"89830","舞鶴東","京都","舞鶴若狭自動車道"]
[null,null,"89835","舞鶴西","京都","舞鶴若狭自動車道"]
[null,null,"89840","綾部","京都","舞鶴若狭自動車道"]
[null,null,"89845","福知山","京都","舞鶴若狭自動車道"]
[null,null,"89850","春日(兵庫_舞鶴若狭自動車道)","兵庫","舞鶴若狭自動車道"]
[null,null,"89855","丹南篠山口","兵庫","舞鶴若狭自動車道"]
[null,null,"89860","三田西","兵庫","舞鶴若狭自動車道"]
[null,null,"89900","氷上","兵庫","北近畿豊岡自動車道"]
[null,null,"89905","青垣","兵庫","北近畿豊岡自動車道"]
[null,null,"89910","遠阪トンネル料金所","兵庫","北近畿豊岡自動車道"]
[null,null,"89915","山東","兵庫","北近畿豊岡自動車道"]
[null,null,"89920","養父","兵庫","北近畿豊岡自動車道"]
[null,null,"89925","八鹿氷ノ山","兵庫","北近畿豊岡自動車道"]
[null,null,"89930","日高神鍋高原","兵庫","北近畿豊岡自動車道"]
[null,null,"89935","日高北","兵庫","北近畿豊岡自動車道"]
[null,null,"89940","但馬空港","兵庫","北近畿豊岡自動車道"]
[null,null,"89950","豊岡出石","兵庫","北近畿豊岡自動車道"]
[null,null,"89960","長尾ランプ","兵庫","六甲北有料道路"]
[null,null,"89965","大沢(兵庫_六甲北有料道路)","兵庫","六甲北有料道路"]
[null,null,"89970","吉尾ランプ","兵庫","六甲北有料道路"]
[null,null,"89975","柳谷ランプ","兵庫","六甲北有料道路"]
[null,null,"89980","唐櫃","兵庫","六甲北有料道路"]
[null,null,"89985","唐櫃南","兵庫","六甲有料道路"]
[null,null,"89990","六甲山トンネル南","兵庫","六甲有料道路"]
[null,null,"90000","須磨(兵庫_第二神明道路)","兵庫","第二神明道路"]
[null,null,"90005","名谷","兵庫","第二神明道路"]
[null,null,"90010","高丸(兵庫_第二神明道路)","兵庫","第二神明道路"]
[null,null,"90015","大蔵谷","兵庫","第二神明道路"]
[null,null,"90020","伊川谷","兵庫","第二神明道路"]
[null,null,"90025","玉津","兵庫","第二神明道路"]
[null,null,"90030","大久保","兵庫","第二神明道路"]
[null,null,"90035","明石西","兵庫","第二神明道路"]
[null,null,"90040","学園南","兵庫","第二神明道路"]
[null,null,"90045","長坂(兵庫_第二神明道路)","兵庫","第二神明道路"]
[null,null,"90100","中国吹田","大阪","中国自動車道"]
[null,null,"90105","中国豊中","大阪","中国自動車道"]
[null,null,"90110","中国池田","大阪","中国自動車道"]
[null,null,"90115","宝塚","大阪","中国自動車道"]
[null,null,"90120","西宮北","兵庫","中国自動車道"]
[null,null,"90125","神戸三田","兵庫","中国自動車道"]
[null,null,"90130","吉川","兵庫","中国自動車道"]
[null,null,"90135","ひょうご東条","兵庫","中国自動車道"]
[null,null,"90140","滝野社","兵庫","中国自動車道"]
[null,null,"90145","加西","兵庫","中国自動車道"]
[null,null,"90150","福崎","兵庫","中国自動車道"]
[null,null,"90155","夢前","兵庫","中国自動車道"]
[null,null,"90160","山崎(兵庫_中国自動車道)","兵庫","中国自動車道"]
[null,null,"90165","佐用","兵庫","中国自動車道"]
[null,null,"90170","作東","岡山","中国自動車道"]
[null,null,"90175","美作","岡山","中国自動車道"]
[null,null,"90180","津山","岡山","中国自動車道"]
[null,null,"90185","院庄","岡山","中国自動車道"]
[null,null,"90190","落合","岡山","中国自動車道"]
[null,null,"90195","北房","岡山","中国自動車道"]
[null,null,"90200","大佐","岡山","中国自動車道"]
[null,null,"90205","新見","岡山","中国自動車道"]
[null,null,"90210","東城","広島","中国自動車道"]
[null,null,"90215","庄原","広島","中国自動車道"]
[null,null,"90220","三次東","広島","中国自動車道"]
[null,null,"90225","三次","広島","中国自動車道"]
[null,null,"90230","高田(広島_中国自動車道)","広島","中国自動車道"]
[null,null,"90235","千代田","広島","中国自動車道"]
[null,null,"90240","加計","広島","中国自動車道"]
[null,null,"90245","戸河内","広島","中国自動車道"]
[null,null,"90250","吉和","広島","中国自動車道"]
[null,null,"90255","六日市","島根","中国自動車道"]
[null,null,"90260","鹿野","山口","中国自動車道"]
[null,null,"90265","徳地","山口","中国自動車道"]
[null,null,"90270","山口","山口","中国自動車道"]
[null,null,"90272","湯田温泉ＰＡ","山口","中国自動車道"]
[null,null,"90275","小郡(山口_中国自動車道)","山口","中国自動車道"]
[null,null,"90280","美祢","山口","中国自動車道"]
[null,null,"90285","美祢西","山口","中国自動車道"]
[null,null,"90290","小月","山口","中国自動車道"]
[null,null,"90295","下関(山口_中国自動車道)","山口","中国自動車道"]
[null,null,"90295","下関(山口_関門橋)","山口","関門橋"]
[null,null,"90305","神戸北","兵庫","山陽自動車道"]
[null,null,"90310","三木東","兵庫","山陽自動車道"]
[null,null,"90315","三木小野","兵庫","山陽自動車道"]
[null,null,"90320","加古川北","兵庫","山陽自動車道"]
[null,null,"90325","山陽姫路東","兵庫","山陽自動車道"]
[null,null,"90330","山陽姫路西","兵庫","山陽自動車道"]
[null,null,"90335","龍野","兵庫","山陽自動車道"]
[null,null,"90340","龍野西","兵庫","山陽自動車道"]
[null,null,"90345","赤穂","兵庫","山陽自動車道"]
[null,null,"90350","備前","岡山","山陽自動車道"]
[null,null,"90355","和気","岡山","山陽自動車道"]
[null,null,"90360","山陽","岡山","山陽自動車道"]
[null,null,"90365","岡山","岡山","山陽自動車道"]
[null,null,"90370","吉備","岡山","山陽自動車道"]
[null,null,"90375","倉敷","岡山","山陽自動車道"]
[null,null,"90380","玉島","岡山","山陽自動車道"]
[null,null,"90385","鴨方","岡山","山陽自動車道"]
[null,null,"90390","笠岡","岡山","山陽自動車道"]
[null,null,"90393","篠坂PA","岡山","山陽自動車道"]
[null,null,"90395","福山東","広島","山陽自動車道"]
[null,null,"90397","福山ＳＡ","広島","山陽自動車道"]
[null,null,"90400","福山西","広島","山陽自動車道"]
[null,null,"90405","尾道","広島","山陽自動車道"]
[null,null,"90410","三原久井","広島","山陽自動車道"]
[null,null,"90415","本郷(広島_山陽自動車道)","広島","山陽自動車道"]
[null,null,"90420","河内","広島","山陽自動車道"]
[null,null,"90425","高屋","広島","山陽自動車道"]
[null,null,"90430","西条","広島","山陽自動車道"]
[null,null,"90435","志和","広島","山陽自動車道"]
[null,null,"90440","広島東","広島","山陽自動車道"]
[null,null,"90445","広島","広島","山陽自動車道"]
[null,null,"90447","沼田ＰＡ","広島","山陽自動車道"]
[null,null,"90450","五日市","広島","山陽自動車道"]
[null,null,"90455","宮島ＳＡ","広島","山陽自動車道"]
[null,null,"90457","大野(広島_山陽自動車道)","広島","山陽自動車道"]
[null,null,"90458","大竹(広島_山陽自動車道)","広島","山陽自動車道"]
[null,null,"90459","大竹西","広島","山陽自動車道"]
[null,null,"90460","岩国","山口","山陽自動車道"]
[null,null,"90465","玖珂","山口","山陽自動車道"]
[null,null,"90470","熊毛","山口","山陽自動車道"]
[null,null,"90475","徳山東","山口","山陽自動車道"]
[null,null,"90480","徳山西","山口","山陽自動車道"]
[null,null,"90485","防府東","山口","山陽自動車道"]
[null,null,"90490","防府西","山口","山陽自動車道"]
[null,null,"90495","山口南","山口","山陽自動車道"]
[null,null,"90500","宇部","山口","山陽自動車道"]
[null,null,"90505","小野田","山口","山陽自動車道"]
[null,null,"90510","埴生","山口","山陽自動車道"]
[null,null,"90555","大塩別所ランプ","兵庫","播但連絡道路"]
[null,null,"90560","花田","兵庫","播但連絡道路"]
[null,null,"90565","豊富ランプ","兵庫","播但連絡道路"]
[null,null,"90570","砥堀ランプ","兵庫","播但連絡道路"]
[null,null,"90575","船津","兵庫","播但連絡道路"]
[null,null,"90580","福崎南ランプ","兵庫","播但連絡道路"]
[null,null,"90585","福崎北ランプ","兵庫","播但連絡道路"]
[null,null,"90590","市川南ランプ","兵庫","播但連絡道路"]
[null,null,"90595","市川北ランプ","兵庫","播但連絡道路"]
[null,null,"90600","神崎南ランプ","兵庫","播但連絡道路"]
[null,null,"90605","神崎北ランプ","兵庫","播但連絡道路"]
[null,null,"90610","生野ランプ","兵庫","播但連絡道路"]
[null,null,"90615","生野北第一ランプ","兵庫","播但連絡道路"]
[null,null,"90620","生野北第二ランプ","兵庫","播但連絡道路"]
[null,null,"90625","朝来","兵庫","播但連絡道路"]
[null,null,"90630","和田山","兵庫","播但連絡道路"]
[null,null,"90650","播磨新宮","兵庫","播磨自動車道"]
[null,null,"90670","佐用平福","兵庫","鳥取自動車道"]
[null,null,"90675","大原(岡山_鳥取自動車道)","岡山","鳥取自動車道"]
[null,null,"90680","西粟倉","岡山","鳥取自動車道"]
[null,null,"90685","坂根交差点","岡山","志戸坂峠道路"]
[null,null,"90690","駒帰交差点","鳥取","志戸坂峠道路"]
[null,null,"90695","智頭南","鳥取","鳥取自動車道"]
[null,null,"90700","智頭","鳥取","鳥取自動車道"]
[null,null,"90705","用瀬","鳥取","鳥取自動車道"]
[null,null,"90710","河原","鳥取","鳥取自動車道"]
[null,null,"90715","鳥取南","鳥取","鳥取自動車道"]
[null,null,"90720","鳥取","鳥取","山陰自動車道"]
[null,null,"90725","鳥取西","鳥取","山陰自動車道"]
[null,null,"90730","吉岡温泉","鳥取","山陰自動車道"]
[null,null,"90735","瑞穂宝木","鳥取","山陰自動車道"]
[null,null,"90740","浜村鹿野温泉","鳥取","山陰自動車道"]
[null,null,"90750","青谷","鳥取","山陰自動車道"]
[null,null,"90755","泊東郷","鳥取","山陰自動車道"]
[null,null,"90760","はわい","鳥取","山陰自動車道"]
[null,null,"90770","大栄東伯","鳥取","山陰自動車道"]
[null,null,"90775","琴浦東","鳥取","山陰自動車道"]
[null,null,"90777","琴の浦","鳥取","山陰自動車道"]
[null,null,"90780","琴浦船上山","鳥取","山陰自動車道"]
[null,null,"90785","赤碕中山","鳥取","山陰自動車道"]
[null,null,"90790","中山(鳥取_山陰自動車道)","鳥取","山陰自動車道"]
[null,null,"90795","名和","鳥取","山陰自動車道"]
[null,null,"90800","大山","鳥取","山陰自動車道"]
[null,null,"90805","淀江","鳥取","山陰自動車道"]
[null,null,"90810","米子東","鳥取","山陰自動車道"]
[null,null,"90815","日野川東","鳥取","山陰自動車道"]
[null,null,"90820","米子南","鳥取","山陰自動車道"]
[null,null,"90825","米子中","鳥取","山陰自動車道"]
[null,null,"90830","米子西","鳥取","山陰自動車道"]
[null,null,"90835","安来","島根","山陰自動車道"]
[null,null,"90840","東出雲","島根","山陰自動車道"]
[null,null,"90845","竹矢","島根","山陰自動車道"]
[null,null,"90850","矢田","島根","山陰自動車道"]
[null,null,"90855","松江東","島根","山陰自動車道"]
[null,null,"90860","松江中央","島根","山陰自動車道"]
[null,null,"90865","松江西","島根","山陰自動車道"]
[null,null,"90870","松江玉造","島根","山陰自動車道"]
[null,null,"90875","宍道","島根","山陰自動車道"]
[null,null,"90880","斐川","島根","山陰自動車道"]
[null,null,"90885","出雲","島根","山陰自動車道"]
[null,null,"90890","出雲湖陸","島根","山陰自動車道"]
[null,null,"90895","出雲多伎","島根","山陰自動車道"]
[null,null,"90900","大田朝山","島根","山陰自動車道"]
[null,null,"90905","大田中央･三瓶山","島根","山陰自動車道"]
[null,null,"90910","大田静間","島根","山陰自動車道"]
[null,null,"90920","仁摩・石見銀山","島根","山陰自動車道"]
[null,null,"90925","湯里","島根","山陰自動車道"]
[null,null,"90930","温泉津","島根","山陰自動車道"]
[null,null,"90935","石見福光","島根","山陰自動車道"]
[null,null,"90970","江津","島根","山陰自動車道"]
[null,null,"90975","江津西","島根","山陰自動車道"]
[null,null,"90980","浜田東","島根","山陰自動車道"]
[null,null,"90985","浜田","島根","山陰自動車道"]
[null,null,"90990","相生","島根","山陰自動車道"]
[null,null,"90995","竹迫","島根","山陰自動車道"]
[null,null,"91000","原井","島根","山陰自動車道"]
[null,null,"91005","浜田港","島根","山陰自動車道"]
[null,null,"91010","西村","島根","山陰自動車道"]
[null,null,"91015","石見三隅","島根","山陰自動車道"]
[null,null,"91030","遠田","島根","山陰自動車道"]
[null,null,"91035","久城","島根","山陰自動車道"]
[null,null,"91045","高津(島根_山陰自動車道)","島根","山陰自動車道"]
[null,null,"91050","萩・石見空港","島根","山陰自動車道"]
[null,null,"91055","須子","島根","山陰自動車道"]
[null,null,"91150","萩","山口","山陰自動車道"]
[null,null,"91155","三見","山口","山陰自動車道"]
[null,null,"91160","明石","山口","山陰自動車道"]
[null,null,"91165","三隅","山口","山陰自動車道"]
[null,null,"91170","長門湯本温泉","山口","山陰自動車道"]
[null,null,"91175","俵山北","山口","山陰自動車道"]
[null,null,"91200","久世","岡山","米子自動車道"]
[null,null,"91205","湯原","岡山","米子自動車道"]
[null,null,"91210","蒜山","岡山","米子自動車道"]
[null,null,"91215","江府","鳥取","米子自動車道"]
[null,null,"91220","溝口","鳥取","米子自動車道"]
[null,null,"91225","大山高原","鳥取","米子自動車道"]
[null,null,"91230","米子","鳥取","米子自動車道"]
[null,null,"91250","岡山総社","岡山","岡山自動車道"]
[null,null,"91255","賀陽","岡山","岡山自動車道"]
[null,null,"91260","有漢","岡山","岡山自動車道"]
[null,null,"91280","尾道北","広島","尾道自動車道"]
[null,null,"91285","世羅","広島","尾道自動車道"]
[null,null,"91290","甲奴","広島","尾道自動車道"]
[null,null,"91295","吉舎","広島","尾道自動車道"]
[null,null,"91300","三良坂","広島","尾道自動車道"]
[null,null,"91320","口和","広島","松江自動車道"]
[null,null,"91325","高野","広島","松江自動車道"]
[null,null,"91330","雲南吉田","島根","松江自動車道"]
[null,null,"91335","吉田掛合","島根","松江自動車道"]
[null,null,"91340","三刀屋木次","島根","松江自動車道"]
[null,null,"91350","雲南加茂","島根","松江自動車道"]
[null,null,"91360","上三永","広島","東広島呉自動車道"]
[null,null,"91365","下三永福本","広島","東広島呉自動車道"]
[null,null,"91370","馬木(広島_東広島呉自動車道)","広島","東広島呉自動車道"]
[null,null,"91375","大多田","広島","東広島呉自動車道"]
[null,null,"91380","黒瀬","広島","東広島呉自動車道"]
[null,null,"91385","郷原","広島","東広島呉自動車道"]
[null,null,"91390","阿賀","広島","東広島呉自動車道"]
[null,null,"91410","坂北","広島","広島呉道路"]
[null,null,"91415","坂南","広島","広島呉道路"]
[null,null,"91420","天応西","広島","広島呉道路"]
[null,null,"91425","天応東","広島","広島呉道路"]
[null,null,"91430","呉","広島","広島呉道路"]
[null,null,"91460","広島西風新都","広島","広島自動車道"]
[null,null,"91465","広島北","広島","広島自動車道"]
[null,null,"91500","大朝","広島","浜田自動車道"]
[null,null,"91505","瑞穂","島根","浜田自動車道"]
[null,null,"91510","旭","島根","浜田自動車道"]
[null,null,"91515","金城ＰＡ","島根","浜田自動車道"]
[null,null,"91560","廿日市","広島","広島岩国道路"]
[null,null,"91565","大野(広島_広島岩国道路)","広島","広島岩国道路"]
[null,null,"91570","大竹(広島_広島岩国道路)","広島","広島岩国道路"]
[null,null,"91600","陶","山口","小郡道路"]
[null,null,"91605","名田島","山口","小郡道路"]
[null,null,"91610","小郡(山口_小郡道路)","山口","小郡道路"]
[null,null,"91615","大原(山口_小郡道路)","山口","小郡道路"]
[null,null,"91620","岡屋","山口","小郡道路"]
[null,null,"91625","原条","山口","小郡道路"]
[null,null,"91627","長谷","山口","山口宇部道路"]
[null,null,"91630","嘉川(山口_小郡道路)","山口","小郡道路"]
[null,null,"91630","嘉川(山口_山口宇部道路)","山口","山口宇部道路"]
[null,null,"91635","由良","山口","山口宇部道路"]
[null,null,"91640","阿知須","山口","山口宇部道路"]
[null,null,"91645","宇部東","山口","山口宇部道路"]
[null,null,"91650","片倉","山口","山口宇部道路"]
[null,null,"91655","岡の辻","山口","山口宇部道路"]
[null,null,"91660","宇部南","山口","山口宇部道路"]
[null,null,"91800","神戸西","兵庫","神戸淡路鳴門自動車道"]
[null,null,"91805","布施畑","兵庫","神戸淡路鳴門自動車道"]
[null,null,"91810","垂水","兵庫","神戸淡路鳴門自動車道"]
[null,null,"91815","淡路","兵庫","神戸淡路鳴門自動車道"]
[null,null,"91817","淡路北","兵庫","神戸淡路鳴門自動車道"]
[null,null,"91820","東浦","兵庫","神戸淡路鳴門自動車道"]
[null,null,"91825","北淡","兵庫","神戸淡路鳴門自動車道"]
[null,null,"91830","津名一宮","兵庫","神戸淡路鳴門自動車道"]
[null,null,"91832","淡路島中央","兵庫","神戸淡路鳴門自動車道"]
[null,null,"91835","洲本","兵庫","神戸淡路鳴門自動車道"]
[null,null,"91840","西淡三原","兵庫","神戸淡路鳴門自動車道"]
[null,null,"91845","淡路島南","兵庫","神戸淡路鳴門自動車道"]
[null,null,"91850","鳴門北","徳島","神戸淡路鳴門自動車道"]
[null,null,"91855","鳴門(徳島_神戸淡路鳴門自動車道)","徳島","神戸淡路鳴門自動車道"]
[null,null,"91900","早島","岡山","瀬戸中央自動車道"]
[null,null,"91905","水島","岡山","瀬戸中央自動車道"]
[null,null,"91910","児島","岡山","瀬戸中央自動車道"]
[null,null,"91915","坂出北","香川","瀬戸中央自動車道"]
[null,null,"91920","坂出","香川","瀬戸中央自動車道"]
[null,null,"91922","神村ランプ","広島","松永道路"]
[null,null,"91923","羽原ランプ","広島","松永道路"]
[null,null,"91924","今津ランプ","広島","松永道路"]
[null,null,"91925","西藤","広島","松永道路"]
[null,null,"91927","高須","広島","松永道路"]
[null,null,"91930","西瀬戸尾道","広島","西瀬戸自動車道"]
[null,null,"91935","尾道大橋出入口","広島","西瀬戸自動車道"]
[null,null,"91940","向島(広島_西瀬戸自動車道)","広島","西瀬戸自動車道"]
[null,null,"91945","因島北","広島","西瀬戸自動車道"]
[null,null,"91950","因島南","広島","西瀬戸自動車道"]
[null,null,"91955","生口島北","広島","西瀬戸自動車道"]
[null,null,"91960","生口島南","広島","西瀬戸自動車道"]
[null,null,"91965","大三島","愛媛","西瀬戸自動車道"]
[null,null,"91970","伯方島","愛媛","西瀬戸自動車道"]
[null,null,"91975","大島北","愛媛","西瀬戸自動車道"]
[null,null,"91980","大島南","愛媛","西瀬戸自動車道"]
[null,null,"91985","今治北","愛媛","西瀬戸自動車道"]
[null,null,"91990","今治","愛媛","西瀬戸自動車道"]
[null,null,"92000","今治湯ノ浦","愛媛","今治小松自動車道"]
[null,null,"92005","東予丹原","愛媛","今治小松自動車道"]
[null,null,"92010","いよ小松北","愛媛","今治小松自動車道"]
[null,null,"92100","松茂","徳島","徳島自動車道"]
[null,null,"92105","徳島","徳島","徳島自動車道"]
[null,null,"92110","藍住","徳島","徳島自動車道"]
[null,null,"92115","土成","徳島","徳島自動車道"]
[null,null,"92116","阿波市場","徳島","徳島自動車道"]
[null,null,"92120","脇町","徳島","徳島自動車道"]
[null,null,"92125","美馬","徳島","徳島自動車道"]
[null,null,"92130","吉野川ＳＡ","徳島","徳島自動車道"]
[null,null,"92135","井川池田","徳島","徳島自動車道"]
[null,null,"92140","徳島沖洲","徳島","徳島南部自動車道"]
[null,null,"92142","徳島津田","徳島","徳島南部自動車道"]
[null,null,"92150","小松島","徳島","徳島南部自動車道"]
[null,null,"92156","小野(徳島_阿南安芸自動車道)","徳島","阿南安芸自動車道"]
[null,null,"92158","由岐","徳島","阿南安芸自動車道"]
[null,null,"92160","日和佐","徳島","阿南安芸自動車道"]
[null,null,"92174","柏木","高知","阿南安芸自動車道"]
[null,null,"92176","野友","高知","阿南安芸自動車道"]
[null,null,"92178","芝崎","高知","阿南安芸自動車道"]
[null,null,"92190","鳴門(高知_阿南安芸自動車道)","高知","阿南安芸自動車道"]
[null,null,"92200","板野","徳島","高松自動車道"]
[null,null,"92205","引田","香川","高松自動車道"]
[null,null,"92210","白鳥大内","香川","高松自動車道"]
[null,null,"92215","津田東","香川","高松自動車道"]
[null,null,"92220","津田寒川","香川","高松自動車道"]
[null,null,"92225","志度","香川","高松自動車道"]
[null,null,"92230","さぬき三木","香川","高松自動車道"]
[null,null,"92235","高松東","香川","高松自動車道"]
[null,null,"92240","高松中央","香川","高松自動車道"]
[null,null,"92245","高松檀紙","香川","高松自動車道"]
[null,null,"92250","高松西","香川","高松自動車道"]
[null,null,"92255","府中湖ＰＡ","香川","高松自動車道"]
[null,null,"92260","善通寺","香川","高松自動車道"]
[null,null,"92265","三豊鳥坂","香川","高松自動車道"]
[null,null,"92270","さぬき豊中","香川","高松自動車道"]
[null,null,"92275","大野原","香川","高松自動車道"]
[null,null,"92280","三島川之江","愛媛","松山自動車道"]
[null,null,"92285","土居","愛媛","松山自動車道"]
[null,null,"92290","新居浜","愛媛","松山自動車道"]
[null,null,"92295","いよ西条","愛媛","松山自動車道"]
[null,null,"92300","いよ小松","愛媛","松山自動車道"]
[null,null,"92305","川内","愛媛","松山自動車道"]
[null,null,"92308","東温","愛媛","松山自動車道"]
[null,null,"92310","松山","愛媛","松山自動車道"]
[null,null,"92315","伊予","愛媛","松山自動車道"]
[null,null,"92317","中山(愛媛_松山自動車道)","愛媛","松山自動車道"]
[null,null,"92320","内子五十崎","愛媛","松山自動車道"]
[null,null,"92325","大洲(愛媛_松山自動車道)","愛媛","松山自動車道"]
[null,null,"92330","大洲北","愛媛","大洲道路"]
[null,null,"92335","大洲冨士","愛媛","大洲道路"]
[null,null,"92340","大洲肱南","愛媛","大洲道路"]
[null,null,"92345","大洲南","愛媛","大洲道路"]
[null,null,"92350","大洲北只","愛媛","松山自動車道"]
[null,null,"92355","西予宇和","愛媛","松山自動車道"]
[null,null,"92360","三間","愛媛","松山自動車道"]
[null,null,"92365","宇和島北","愛媛","松山自動車道"]
[null,null,"92370","宇和島朝日","愛媛","宇和島道路"]
[null,null,"92375","宇和島坂下津","愛媛","宇和島道路"]
[null,null,"92380","宇和島別当","愛媛","宇和島道路"]
[null,null,"92385","宇和島南","愛媛","宇和島道路"]
[null,null,"92390","津島高田","愛媛","宇和島道路"]
[null,null,"92395","津島岩松","愛媛","宇和島道路"]
[null,null,"92500","新宮","愛媛","高知自動車道"]
[null,null,"92505","大豊","高知","高知自動車道"]
[null,null,"92510","南国","高知","高知自動車道"]
[null,null,"92515","高知(高知_高知自動車道)","高知","高知自動車道"]
[null,null,"92515","高知(高知_高知東部自動車道)","高知","高知東部自動車道"]
[null,null,"92520","伊野","高知","高知自動車道"]
[null,null,"92525","土佐","高知","高知自動車道"]
[null,null,"92530","土佐ＰＡ","高知","高知自動車道"]
[null,null,"92535","須崎東","高知","高知自動車道"]
[null,null,"92540","須崎中央","高知","高知自動車道"]
[null,null,"92545","須崎西","高知","高知自動車道"]
[null,null,"92550","中土佐","高知","高知自動車道"]
[null,null,"92555","四万十町東","高知","高知自動車道"]
[null,null,"92560","四万十町中央","高知","高知自動車道"]
[null,null,"92565","四万十町西","高知","高知自動車道"]
[null,null,"92570","黒潮拳ノ川","高知","高知自動車道"]
[null,null,"92600","四万十","高知","高知自動車道"]
[null,null,"92605","間","高知","高知自動車道"]
[null,null,"92610","平田(高知_高知自動車道)","高知","高知自動車道"]
[null,null,"92615","宿毛和田","高知","高知自動車道"]
[null,null,"92650","高知中央","高知","高知東部自動車道"]
[null,null,"92655","高知南","高知","高知東部自動車道"]
[null,null,"92660","なんこく南","高知","高知東部自動車道"]
[null,null,"92665","高知龍馬空港","高知","高知東部自動車道"]
[null,null,"92670","香南のいち","高知","高知東部自動車道"]
[null,null,"92675","香南かがみ","高知","高知東部自動車道"]
[null,null,"92680","香南やす","高知","高知東部自動車道"]
[null,null,"92685","芸西西","高知","高知東部自動車道"]
[null,null,"92700","門司港","福岡","関門橋"]
[null,null,"92705","門司(福岡_九州自動車道)","福岡","九州自動車道"]
[null,null,"92705","門司(福岡_関門橋)","福岡","関門橋"]
[null,null,"92710","新門司","福岡","九州自動車道"]
[null,null,"92715","小倉東","福岡","九州自動車道"]
[null,null,"92720","苅田北九州空港(福岡_九州自動車道)","福岡","九州自動車道"]
[null,null,"92725","小倉南","福岡","九州自動車道"]
[null,null,"92730","八幡","福岡","九州自動車道"]
[null,null,"92735","鞍手","福岡","九州自動車道"]
[null,null,"92740","宮田","福岡","九州自動車道"]
[null,null,"92745","若宮(福岡_九州自動車道)","福岡","九州自動車道"]
[null,null,"92750","古賀","福岡","九州自動車道"]
[null,null,"92755","福岡(福岡_九州自動車道)","福岡","九州自動車道"]
[null,null,"92760","須恵ＰＡ","福岡","九州自動車道"]
[null,null,"92765","太宰府","福岡","九州自動車道"]
[null,null,"92770","筑紫野","福岡","九州自動車道"]
[null,null,"92773","木郡鳥栖南","福岡","九州自動車道"]
[null,null,"92775","久留米","福岡","九州自動車道"]
[null,null,"92778","久留米南","福岡","九州自動車道"]
[null,null,"92780","広川(福岡_九州自動車道)","福岡","九州自動車道"]
[null,null,"92785","八女","福岡","九州自動車道"]
[null,null,"92790","みやま柳川","福岡","九州自動車道"]
[null,null,"92795","南関","熊本","九州自動車道"]
[null,null,"92800","菊水","熊本","九州自動車道"]
[null,null,"92805","植木","熊本","九州自動車道"]
[null,null,"92807","北熊本","熊本","九州自動車道"]
[null,null,"92810","熊本","熊本","九州自動車道"]
[null,null,"92815","益城熊本空港","熊本","九州自動車道"]
[null,null,"92820","御船","熊本","九州自動車道"]
[null,null,"92822","城南","熊本","九州自動車道"]
[null,null,"92825","松橋","熊本","九州自動車道"]
[null,null,"92830","宇城氷川","熊本","九州自動車道"]
[null,null,"92835","八代","熊本","九州自動車道"]
[null,null,"92840","人吉","熊本","九州自動車道"]
[null,null,"92842","人吉球磨","熊本","九州自動車道"]
[null,null,"92845","えびの","宮崎","九州自動車道"]
[null,null,"92850","栗野","鹿児島","九州自動車道"]
[null,null,"92855","横川","鹿児島","九州自動車道"]
[null,null,"92860","溝辺鹿児島空港","鹿児島","九州自動車道"]
[null,null,"92865","加治木","鹿児島","九州自動車道"]
[null,null,"92867","桜島ＳＡ","鹿児島","九州自動車道"]
[null,null,"92870","姶良","鹿児島","九州自動車道"]
[null,null,"92875","薩摩吉田","鹿児島","九州自動車道"]
[null,null,"92880","鹿児島北","鹿児島","九州自動車道"]
[null,null,"92885","鹿児島(鹿児島_九州自動車道)","鹿児島","九州自動車道"]
[null,null,"92885","鹿児島(鹿児島_南九州自動車道)","鹿児島","南九州自動車道"]
[null,null,"92930","鳥栖","佐賀","長崎自動車道"]
[null,null,"92935","東脊振","佐賀","長崎自動車道"]
[null,null,"92940","佐賀大和","佐賀","長崎自動車道"]
[null,null,"92942","小城ＰＡ","佐賀","長崎自動車道"]
[null,null,"92945","多久","佐賀","長崎自動車道"]
[null,null,"92950","武雄北方","佐賀","長崎自動車道"]
[null,null,"92955","嬉野","佐賀","長崎自動車道"]
[null,null,"92960","東そのぎ","長崎","長崎自動車道"]
[null,null,"92965","大村","長崎","長崎自動車道"]
[null,null,"92967","木場(長崎_長崎自動車道)","長崎","長崎自動車道"]
[null,null,"92970","諫早","長崎","長崎自動車道"]
[null,null,"92975","長崎多良見","長崎","長崎自動車道"]
[null,null,"92980","長崎芒塚","長崎","長崎自動車道"]
[null,null,"92985","長崎","長崎","長崎自動車道"]
[null,null,"92990","拾六町","福岡","西九州自動車道"]
[null,null,"92995","今宿","福岡","西九州自動車道"]
[null,null,"93000","周船寺","福岡","西九州自動車道"]
[null,null,"93005","前原","福岡","西九州自動車道"]
[null,null,"93010","前原東","福岡","西九州自動車道"]
[null,null,"93020","二丈鹿家","福岡","西九州自動車道"]
[null,null,"93025","浜玉","佐賀","西九州自動車道"]
[null,null,"93030","唐津","佐賀","西九州自動車道"]
[null,null,"93035","唐津千々賀山田","佐賀","西九州自動車道"]
[null,null,"93040","北波多","佐賀","西九州自動車道"]
[null,null,"93045","南波多谷口","佐賀","西九州自動車道"]
[null,null,"93050","伊万里東府招","佐賀","西九州自動車道"]
[null,null,"93070","山代久原","佐賀","西九州自動車道"]
[null,null,"93075","今福","長崎","西九州自動車道"]
[null,null,"93080","調川","長崎","西九州自動車道"]
[null,null,"93085","松浦","長崎","西九州自動車道"]
[null,null,"93090","江迎鹿町","長崎","西九州自動車道"]
[null,null,"93100","佐々","長崎","西九州自動車道"]
[null,null,"93105","相浦中里","長崎","西九州自動車道"]
[null,null,"93110","佐世保中央","長崎","西九州自動車道"]
[null,null,"93115","佐世保みなと","長崎","西九州自動車道"]
[null,null,"93120","佐世保大塔","長崎","西九州自動車道"]
[null,null,"93125","佐世保三川内","長崎","西九州自動車道"]
[null,null,"93130","波佐見有田","長崎","西九州自動車道"]
[null,null,"93135","武雄南","佐賀","西九州自動車道"]
[null,null,"93150","市布名","長崎","長崎バイパス"]
[null,null,"93155","古賀市布","長崎","長崎バイパス"]
[null,null,"93160","間ノ瀬","長崎","長崎バイパス"]
[null,null,"93165","川平","長崎","長崎バイパス"]
[null,null,"93170","昭和町","長崎","長崎バイパス"]
[null,null,"93175","西山(長崎_長崎バイパス)","長崎","長崎バイパス"]
[null,null,"93180","女の都ランプ","長崎","川平有料道路"]
[null,null,"93185","長与ランプ","長崎","川平有料道路"]
[null,null,"93190","時津ランプ","長崎","川平有料道路"]
[null,null,"93200","苅田北九州空港(福岡_東九州自動車道)","福岡","東九州自動車道"]
[null,null,"93300","行橋","福岡","東九州自動車道"]
[null,null,"93305","今川ＰＡ","福岡","東九州自動車道"]
[null,null,"93310","みやこ豊津","福岡","東九州自動車道"]
[null,null,"93315","築城","福岡","東九州自動車道"]
[null,null,"93320","椎田","福岡","東九州自動車道"]
[null,null,"93325","椎田南","福岡","東九州自動車道"]
[null,null,"93335","豊前","福岡","東九州自動車道"]
[null,null,"93340","上毛ＰＡ","大分","東九州自動車道"]
[null,null,"93345","中津","大分","東九州自動車道"]
[null,null,"93350","宇佐","大分","東九州自動車道"]
[null,null,"93355","院内","大分","東九州自動車道"]
[null,null,"93360","安心院","大分","東九州自動車道"]
[null,null,"93365","大分農業文化公園","大分","東九州自動車道"]
[null,null,"93370","速見(大分_東九州自動車道)","大分","東九州自動車道"]
[null,null,"93370","速見(大分_日出バイパス)","大分","日出バイパス"]
[null,null,"93375","日出(大分_日出バイパス)","大分","日出バイパス"]
[null,null,"93375","日出(大分_大分空港道路)","大分","大分空港道路"]
[null,null,"93380","杵築","大分","大分空港道路"]
[null,null,"93385","安岐","大分","大分空港道路"]
[null,null,"93400","筑後小郡","福岡","大分自動車道"]
[null,null,"93405","甘木","福岡","大分自動車道"]
[null,null,"93410","朝倉","福岡","大分自動車道"]
[null,null,"93415","杷木","福岡","大分自動車道"]
[null,null,"93420","日田","大分","大分自動車道"]
[null,null,"93425","天瀬高塚","大分","大分自動車道"]
[null,null,"93430","玖珠","大分","大分自動車道"]
[null,null,"93435","九重","大分","大分自動車道"]
[null,null,"93440","湯布院","大分","大分自動車道"]
[null,null,"93442","由布岳ＰＡ","大分","大分自動車道"]
[null,null,"93445","別府湾ＳＡ","大分","大分自動車道"]
[null,null,"93450","別府","大分","大分自動車道"]
[null,null,"93455","大分","大分","大分自動車道"]
[null,null,"93460","大分光吉","大分","大分自動車道"]
[null,null,"93465","大分米良","大分","大分自動車道"]
[null,null,"93470","大分宮河内","大分","大分自動車道"]
[null,null,"93475","臼杵","大分","大分自動車道"]
[null,null,"93480","津久見","大分","大分自動車道"]
[null,null,"93485","佐伯","大分","大分自動車道"]
[null,null,"93490","佐伯堅田","大分","東九州自動車道"]
[null,null,"93495","蒲江","大分","東九州自動車道"]
[null,null,"93500","蒲江波当津","大分","東九州自動車道"]
[null,null,"93505","北浦","宮崎","東九州自動車道"]
[null,null,"93510","須美江","宮崎","東九州自動車道"]
[null,null,"93515","北川","宮崎","東九州自動車道"]
[null,null,"93520","延岡(宮崎_東九州自動車道)","宮崎","東九州自動車道"]
[null,null,"93520","延岡(宮崎_九州中央自動車道)","宮崎","九州中央自動車道"]
[null,null,"93525","延岡南","宮崎","東九州自動車道"]
[null,null,"93530","門川","宮崎","東九州自動車道"]
[null,null,"93532","門川南","宮崎","東九州自動車道"]
[null,null,"93535","日向","宮崎","東九州自動車道"]
[null,null,"93540","都農","宮崎","東九州自動車道"]
[null,null,"93545","高鍋","宮崎","東九州自動車道"]
[null,null,"93547","国富","宮崎","東九州自動車道"]
[null,null,"93550","西都","宮崎","東九州自動車道"]
[null,null,"93555","宮崎西","宮崎","東九州自動車道"]
[null,null,"93560","清武","宮崎","東九州自動車道"]
[null,null,"93565","清武南","宮崎","東九州自動車道"]
[null,null,"93570","日南北郷","宮崎","東九州自動車道"]
[null,null,"93575","日南東郷","宮崎","東九州自動車道"]
[null,null,"93605","志布志","鹿児島","東九州自動車道"]
[null,null,"93610","志布志有明","鹿児島","東九州自動車道"]
[null,null,"93615","大崎","鹿児島","東九州自動車道"]
[null,null,"93620","鹿屋串良","鹿児島","東九州自動車道"]
[null,null,"93625","野方","鹿児島","東九州自動車道"]
[null,null,"93630","曽於弥五郎","鹿児島","東九州自動車道"]
[null,null,"93635","末吉財部","鹿児島","東九州自動車道"]
[null,null,"93640","国分","鹿児島","東九州自動車道"]
[null,null,"93645","隼人東","鹿児島","東九州自動車道"]
[null,null,"93650","隼人西","鹿児島","東九州自動車道"]
[null,null,"93670","小池高山","熊本","九州中央自動車道"]
[null,null,"93675","上野吉無田","熊本","九州中央自動車道"]
[null,null,"93680","山都中島西","熊本","九州中央自動車道"]
[null,null,"93685","山都中島東","熊本","九州中央自動車道"]
[null,null,"93690","山都通潤橋","熊本","九州中央自動車道"]
[null,null,"93710","雲海橋交差点","宮崎","九州中央自動車道"]
[null,null,"93715","日之影深角","宮崎","九州中央自動車道"]
[null,null,"93720","蔵田交差点","宮崎","九州中央自動車道"]
[null,null,"93725","北方(宮崎_九州中央自動車道)","宮崎","九州中央自動車道"]
[null,null,"93730","舞野","宮崎","九州中央自動車道"]
[null,null,"93750","小林","宮崎","宮崎自動車道"]
[null,null,"93755","高原","宮崎","宮崎自動車道"]
[null,null,"93760","都城","宮崎","宮崎自動車道"]
[null,null,"93762","山之口ＳＡ","宮崎","宮崎自動車道"]
[null,null,"93765","田野","宮崎","宮崎自動車道"]
[null,null,"93770","宮崎","宮崎","宮崎自動車道"]
[null,null,"93775","本郷北方ランプ","宮崎","一ツ葉有料道路"]
[null,null,"93780","田吉ランプ","宮崎","一ツ葉有料道路"]
[null,null,"93785","赤江","宮崎","一ツ葉有料道路"]
[null,null,"93786","マリーナ前交差点","宮崎","一ツ葉有料道路"]
[null,null,"93787","山崎シーガイア","宮崎","一ツ葉有料道路"]
[null,null,"93788","住吉","宮崎","一ツ葉有料道路"]
[null,null,"93789","佐土原","宮崎","一ツ葉有料道路"]
[null,null,"93800","八代南","熊本","南九州自動車道"]
[null,null,"93805","日奈久","熊本","南九州自動車道"]
[null,null,"93810","田浦","熊本","南九州自動車道"]
[null,null,"93815","芦北","熊本","南九州自動車道"]
[null,null,"93820","津奈木","熊本","南九州自動車道"]
[null,null,"93825","水俣","熊本","南九州自動車道"]
[null,null,"93840","出水","鹿児島","南九州自動車道"]
[null,null,"93845","高尾野北","鹿児島","南九州自動車道"]
[null,null,"93850","野田(鹿児島_南九州自動車道)","鹿児島","南九州自動車道"]
[null,null,"93860","阿久根北","鹿児島","南九州自動車道"]
[null,null,"93865","阿久根","鹿児島","南九州自動車道"]
[null,null,"93900","薩摩川内水引","鹿児島","南九州自動車道"]
[null,null,"93905","薩摩川内高江","鹿児島","南九州自動車道"]
[null,null,"93910","薩摩川内都","鹿児島","南九州自動車道"]
[null,null,"93915","串木野","鹿児島","南九州自動車道"]
[null,null,"93920","市来","鹿児島","南九州自動車道"]
[null,null,"93925","美山","鹿児島","南九州自動車道"]
[null,null,"93930","伊集院","鹿児島","南九州自動車道"]
[null,null,"93935","松元","鹿児島","南九州自動車道"]
[null,null,"93940","鹿児島西","鹿児島","南九州自動車道"]
[null,null,"93950","山田(鹿児島_南薩縦貫道)","鹿児島","南薩縦貫道"]
[null,null,"93955","中山(鹿児島_南薩縦貫道)","鹿児島","南薩縦貫道"]
[null,null,"93960","谷山","鹿児島","南薩縦貫道"]
[null,null,"93963","錫山","鹿児島","南薩縦貫道"]
[null,null,"93965","南九州川辺ダム","鹿児島","南薩縦貫道"]
[null,null,"93970","南九州神殿","鹿児島","南薩縦貫道"]
[null,null,"93975","南九州川辺","鹿児島","南薩縦貫道"]
[null,null,"93980","知覧金山水車","鹿児島","南薩縦貫道"]
[null,null,"93985","南九州知覧","鹿児島","南薩縦貫道"]
[null,null,"93990","頴娃","鹿児島","南薩縦貫道"]
[null,null,"94100","許田","沖縄","沖縄自動車道"]
[null,null,"94105","宜野座","沖縄","沖縄自動車道"]
[null,null,"94110","金武","沖縄","沖縄自動車道"]
[null,null,"94115","屋嘉","沖縄","沖縄自動車道"]
[null,null,"94120","石川","沖縄","沖縄自動車道"]
[null,null,"94125","沖縄北","沖縄","沖縄自動車道"]
[null,null,"94130","沖縄南","沖縄","沖縄自動車道"]
[null,null,"94135","喜舎場","沖縄","沖縄自動車道"]
[null,null,"94140","北中城","沖縄","沖縄自動車道"]
[null,null,"94145","西原","沖縄","沖縄自動車道"]
[null,null,"94150","那覇","沖縄","沖縄自動車道"]
[null,null,"94160","南風原北","沖縄","那覇空港自動車道"]
[null,null,"94165","南風原南","沖縄","那覇空港自動車道"]
[null,null,"94170","豊見城","沖縄","那覇空港自動車道"]
[null,null,"94175","豊見城・名嘉地","沖縄","那覇空港自動車道"]
[null,null,"95000","宝町","東京","首都高速道路"]
[null,null,"95005","京橋(東京_首都高速道路)","東京","首都高速道路"]
[null,null,"95010","新富町","東京","首都高速道路"]
[null,null,"95015","銀座","東京","首都高速道路"]
[null,null,"95020","汐留","東京","首都高速道路"]
[null,null,"95025","芝公園","東京","首都高速道路"]
[null,null,"95030","飯倉","東京","首都高速道路"]
[null,null,"95035","霞ヶ関","東京","首都高速道路"]
[null,null,"95040","代官町","東京","首都高速道路"]
[null,null,"95045","北の丸","東京","首都高速道路"]
[null,null,"95050","神田橋","東京","首都高速道路"]
[null,null,"95055","呉服橋","東京","首都高速道路"]
[null,null,"95060","江戸橋","東京","首都高速道路"]
[null,null,"95065","常盤橋","東京","首都高速道路"]
[null,null,"95070","八重洲","東京","首都高速道路"]
[null,null,"95075","丸の内(東京_首都高速道路)","東京","首都高速道路"]
[null,null,"95080","新橋","東京","首都高速道路"]
[null,null,"95085","土橋","東京","首都高速道路"]
[null,null,"95090","西銀座","東京","首都高速道路"]
[null,null,"95095","新京橋","東京","首都高速道路"]
[null,null,"95100","東銀座","東京","首都高速道路"]
[null,null,"95105","本町(東京_首都高速道路)","東京","首都高速道路"]
[null,null,"95110","上野(東京_首都高速道路)","東京","首都高速道路"]
[null,null,"95115","入谷","東京","首都高速道路"]
[null,null,"95120","天現寺","東京","首都高速道路"]
[null,null,"95125","目黒","東京","首都高速道路"]
[null,null,"95130","戸越","東京","首都高速道路"]
[null,null,"95135","荏原","東京","首都高速道路"]
[null,null,"95140","高樹町","東京","首都高速道路"]
[null,null,"95145","渋谷","東京","首都高速道路"]
[null,null,"95150","池尻","東京","首都高速道路"]
[null,null,"95155","三軒茶屋","東京","首都高速道路"]
[null,null,"95160","用賀","東京","首都高速道路"]
[null,null,"95165","外苑","東京","首都高速道路"]
[null,null,"95170","代々木","東京","首都高速道路"]
[null,null,"95175","新宿","東京","首都高速道路"]
[null,null,"95180","初台","東京","首都高速道路"]
[null,null,"95185","幡ヶ谷","東京","首都高速道路"]
[null,null,"95190","永福","東京","首都高速道路"]
[null,null,"95195","福住(東京_首都高速道路)","東京","首都高速道路"]
[null,null,"95200","木場(東京_首都高速道路)","東京","首都高速道路"]
[null,null,"95205","塩浜","東京","首都高速道路"]
[null,null,"95210","枝川","東京","首都高速道路"]
[null,null,"95215","台場","東京","首都高速道路"]
[null,null,"95217","晴海","東京","首都高速道路"]
[null,null,"95220","豊洲","東京","首都高速道路"]
[null,null,"95225","箱崎(東京_首都高速道路)","東京","首都高速道路"]
[null,null,"95230","浜町","東京","首都高速道路"]
[null,null,"95235","清洲橋","東京","首都高速道路"]
[null,null,"95240","駒形(東京_首都高速道路)","東京","首都高速道路"]
[null,null,"95245","向島(東京_首都高速道路)","東京","首都高速道路"]
[null,null,"95250","堤通","東京","首都高速道路"]
[null,null,"95255","錦糸町","東京","首都高速道路"]
[null,null,"95260","小松川","東京","首都高速道路"]
[null,null,"95265","一之江","東京","首都高速道路"]
[null,null,"95270","中環大井南","東京","首都高速道路"]
[null,null,"95275","五反田","東京","首都高速道路"]
[null,null,"95280","富ヶ谷","東京","首都高速道路"]
[null,null,"95285","初台南","東京","首都高速道路"]
[null,null,"95290","中野長者橋","東京","首都高速道路"]
[null,null,"95295","西池袋","東京","首都高速道路"]
[null,null,"95300","高松(東京_首都高速道路)","東京","首都高速道路"]
[null,null,"95305","新板橋","東京","首都高速道路"]
[null,null,"95310","滝野川","東京","首都高速道路"]
[null,null,"95315","王子南","東京","首都高速道路"]
[null,null,"95320","王子北","東京","首都高速道路"]
[null,null,"95325","扇大橋","東京","首都高速道路"]
[null,null,"95330","千住新橋","東京","首都高速道路"]
[null,null,"95335","小菅","東京","首都高速道路"]
[null,null,"95340","四つ木","東京","首都高速道路"]
[null,null,"95345","平井大橋","東京","首都高速道路"]
[null,null,"95347","中環小松川","東京","首都高速道路"]
[null,null,"95350","船堀橋","東京","首都高速道路"]
[null,null,"95355","清新町","東京","首都高速道路"]
[null,null,"95360","一ツ橋","東京","首都高速道路"]
[null,null,"95365","西神田","東京","首都高速道路"]
[null,null,"95370","飯田橋","東京","首都高速道路"]
[null,null,"95375","早稲田","東京","首都高速道路"]
[null,null,"95380","護国寺","東京","首都高速道路"]
[null,null,"95385","東池袋","東京","首都高速道路"]
[null,null,"95390","北池袋","東京","首都高速道路"]
[null,null,"95395","板橋本町","東京","首都高速道路"]
[null,null,"95400","中台","東京","首都高速道路"]
[null,null,"95405","高島平","東京","首都高速道路"]
[null,null,"95410","戸田南","埼玉","首都高速道路"]
[null,null,"95415","戸田","埼玉","首都高速道路"]
[null,null,"95420","浦和南","埼玉","首都高速道路"]
[null,null,"95425","浦和北","埼玉","首都高速道路"]
[null,null,"95430","与野","埼玉","首都高速道路"]
[null,null,"95435","新都心西","埼玉","首都高速道路"]
[null,null,"95440","新都心","埼玉","首都高速道路"]
[null,null,"95445","さいたま見沼","埼玉","首都高速道路"]
[null,null,"95450","鹿浜橋","東京","首都高速道路"]
[null,null,"95455","東領家","東京","首都高速道路"]
[null,null,"95460","加賀(東京_首都高速道路)","東京","首都高速道路"]
[null,null,"95465","足立入谷","東京","首都高速道路"]
[null,null,"95470","新郷","埼玉","首都高速道路"]
[null,null,"95475","安行","埼玉","首都高速道路"]
[null,null,"95480","新井宿","埼玉","首都高速道路"]
[null,null,"95485","加平","東京","首都高速道路"]
[null,null,"95490","八潮南","埼玉","首都高速道路"]
[null,null,"95495","八潮","埼玉","首都高速道路"]
[null,null,"95500","芝浦","東京","首都高速道路"]
[null,null,"95505","勝島","東京","首都高速道路"]
[null,null,"95510","鈴ヶ森","東京","首都高速道路"]
[null,null,"95515","平和島","東京","首都高速道路"]
[null,null,"95520","空港西","東京","首都高速道路"]
[null,null,"95525","羽田","東京","首都高速道路"]
[null,null,"95530","大師","神奈川","首都高速道路"]
[null,null,"95535","浜川崎","神奈川","首都高速道路"]
[null,null,"95540","浅田","神奈川","首都高速道路"]
[null,null,"95545","汐入","神奈川","首都高速道路"]
[null,null,"95550","生麦","神奈川","首都高速道路"]
[null,null,"95555","守屋町","神奈川","首都高速道路"]
[null,null,"95560","子安","神奈川","首都高速道路"]
[null,null,"95565","東神奈川","神奈川","首都高速道路"]
[null,null,"95570","横浜駅東口","神奈川","首都高速道路"]
[null,null,"95575","みなとみらい","神奈川","首都高速道路"]
[null,null,"95580","横浜公園","神奈川","首都高速道路"]
[null,null,"95585","千鳥町","千葉","首都高速道路"]
[null,null,"95590","浦安","千葉","首都高速道路"]
[null,null,"95595","舞浜","千葉","首都高速道路"]
[null,null,"95600","葛西","東京","首都高速道路"]
[null,null,"95605","新木場","東京","首都高速道路"]
[null,null,"95610","有明","東京","首都高速道路"]
[null,null,"95615","臨海副都心","東京","首都高速道路"]
[null,null,"95620","大井(東京_首都高速道路)","東京","首都高速道路"]
[null,null,"95625","大井南","東京","首都高速道路"]
[null,null,"95630","空港中央","東京","首都高速道路"]
[null,null,"95635","湾岸環八","東京","首都高速道路"]
[null,null,"95640","東扇島","神奈川","首都高速道路"]
[null,null,"95645","大黒ふ頭","神奈川","首都高速道路"]
[null,null,"95650","本牧ふ頭","神奈川","首都高速道路"]
[null,null,"95652","南本牧ふ頭","神奈川","首都高速道路"]
[null,null,"95655","三溪園","神奈川","首都高速道路"]
[null,null,"95660","磯子","神奈川","首都高速道路"]
[null,null,"95665","杉田","神奈川","首都高速道路"]
[null,null,"95670","幸浦","神奈川","首都高速道路"]
[null,null,"95675","殿町","神奈川","首都高速道路"]
[null,null,"95680","浮島(神奈川_首都高速道路)","神奈川","首都高速道路"]
[null,null,"95685","横浜駅西口","神奈川","首都高速道路"]
[null,null,"95690","三ツ沢","神奈川","首都高速道路"]
[null,null,"95695","新山下","神奈川","首都高速道路"]
[null,null,"95700","山下町","神奈川","首都高速道路"]
[null,null,"95705","石川町","神奈川","首都高速道路"]
[null,null,"95710","阪東橋","神奈川","首都高速道路"]
[null,null,"95715","花之木","神奈川","首都高速道路"]
[null,null,"95720","永田","神奈川","首都高速道路"]
[null,null,"95725","狩場","神奈川","首都高速道路"]
[null,null,"95730","岸谷生麦","神奈川","首都高速道路"]
[null,null,"95735","馬場","神奈川","首都高速道路"]
[null,null,"95740","新横浜","神奈川","首都高速道路"]
[null,null,"95745","横浜港北","神奈川","首都高速道路"]
[null,null,"96000","湊町","大阪","阪神高速道路"]
[null,null,"96005","四ツ橋","大阪","阪神高速道路"]
[null,null,"96010","信濃橋","大阪","阪神高速道路"]
[null,null,"96015","土佐堀","大阪","阪神高速道路"]
[null,null,"96020","堂島","大阪","阪神高速道路"]
[null,null,"96025","北浜","大阪","阪神高速道路"]
[null,null,"96030","高麗橋","大阪","阪神高速道路"]
[null,null,"96035","本町(大阪_阪神高速道路)","大阪","阪神高速道路"]
[null,null,"96040","長堀","大阪","阪神高速道路"]
[null,null,"96045","道頓堀","大阪","阪神高速道路"]
[null,null,"96050","夕陽丘","大阪","阪神高速道路"]
[null,null,"96055","えびす町","大阪","阪神高速道路"]
[null,null,"96060","なんば","大阪","阪神高速道路"]
[null,null,"96065","中之島","大阪","阪神高速道路"]
[null,null,"96070","出入橋","大阪","阪神高速道路"]
[null,null,"96075","梅田","大阪","阪神高速道路"]
[null,null,"96080","福島","大阪","阪神高速道路"]
[null,null,"96085","塚本","大阪","阪神高速道路"]
[null,null,"96090","加島","大阪","阪神高速道路"]
[null,null,"96095","豊中南","大阪","阪神高速道路"]
[null,null,"96100","豊中北","大阪","阪神高速道路"]
[null,null,"96105","大阪空港","大阪","阪神高速道路"]
[null,null,"96110","池田(大阪_阪神高速道路)","大阪","阪神高速道路"]
[null,null,"96115","神田","兵庫","阪神高速道路"]
[null,null,"96120","川西小花","兵庫","阪神高速道路"]
[null,null,"96125","池田木部第一出入口\n池田木部第二出入口","大阪","阪神高速道路"]
[null,null,"96130","南森町","大阪","阪神高速道路"]
[null,null,"96135","扇町","大阪","阪神高速道路"]
[null,null,"96140","長柄","大阪","阪神高速道路"]
[null,null,"96145","都島","大阪","阪神高速道路"]
[null,null,"96150","城北","大阪","阪神高速道路"]
[null,null,"96155","森小路","大阪","阪神高速道路"]
[null,null,"96160","守口","大阪","阪神高速道路"]
[null,null,"96165","法円坂","大阪","阪神高速道路"]
[null,null,"96170","森之宮","大阪","阪神高速道路"]
[null,null,"96175","高井田","大阪","阪神高速道路"]
[null,null,"96180","長田","大阪","阪神高速道路"]
[null,null,"96185","東大阪荒本","大阪","阪神高速道路"]
[null,null,"96190","中野(大阪_阪神高速道路)","大阪","阪神高速道路"]
[null,null,"96195","水走","大阪","阪神高速道路"]
[null,null,"96198","西石切(大阪_阪神高速道路)","大阪","阪神高速道路"]
[null,null,"96200","天王寺","大阪","阪神高速道路"]
[null,null,"96205","阿倍野","大阪","阪神高速道路"]
[null,null,"96210","文の里","大阪","阪神高速道路"]
[null,null,"96215","駒川","大阪","阪神高速道路"]
[null,null,"96220","平野","大阪","阪神高速道路"]
[null,null,"96225","喜連瓜破","大阪","阪神高速道路"]
[null,null,"96230","三宅(大阪_阪神高速道路)","大阪","阪神高速道路"]
[null,null,"96235","大堀","大阪","阪神高速道路"]
[null,null,"96240","三宅西","大阪","阪神高速道路"]
[null,null,"96245","阿波座","大阪","阪神高速道路"]
[null,null,"96250","西長堀","大阪","阪神高速道路"]
[null,null,"96255","九条","大阪","阪神高速道路"]
[null,null,"96260","本田","大阪","阪神高速道路"]
[null,null,"96265","波除","大阪","阪神高速道路"]
[null,null,"96270","北津守","大阪","阪神高速道路"]
[null,null,"96275","大正東","大阪","阪神高速道路"]
[null,null,"96280","大正西","大阪","阪神高速道路"]
[null,null,"96285","弁天町","大阪","阪神高速道路"]
[null,null,"96290","安治川","大阪","阪神高速道路"]
[null,null,"96295","高津(大阪_阪神高速道路)","大阪","阪神高速道路"]
[null,null,"96300","汐見橋","大阪","阪神高速道路"]
[null,null,"96305","芦原","大阪","阪神高速道路"]
[null,null,"96310","津守","大阪","阪神高速道路"]
[null,null,"96315","玉出","大阪","阪神高速道路"]
[null,null,"96320","住之江","大阪","阪神高速道路"]
[null,null,"96325","堺(大阪_阪神高速道路)","大阪","阪神高速道路"]
[null,null,"96330","大開","大阪","阪神高速道路"]
[null,null,"96335","正蓮寺川","大阪","阪神高速道路"]
[null,null,"96340","島屋","大阪","阪神高速道路"]
[null,null,"96345","ユニバーサルシティ","大阪","阪神高速道路"]
[null,null,"96350","淀川左岸舞洲","大阪","阪神高速道路"]
[null,null,"96353","関西国際空港(大阪_阪神高速道路)","大阪","阪神高速道路"]
[null,null,"96355","泉佐野南","大阪","阪神高速道路"]
[null,null,"96360","泉佐野北","大阪","阪神高速道路"]
[null,null,"96365","貝塚(大阪_阪神高速道路)","大阪","阪神高速道路"]
[null,null,"96370","岸和田南","大阪","阪神高速道路"]
[null,null,"96375","岸和田北","大阪","阪神高速道路"]
[null,null,"96380","泉大津","大阪","阪神高速道路"]
[null,null,"96385","助松","大阪","阪神高速道路"]
[null,null,"96390","高石","大阪","阪神高速道路"]
[null,null,"96395","浜寺","大阪","阪神高速道路"]
[null,null,"96400","石津","大阪","阪神高速道路"]
[null,null,"96405","出島(大阪_阪神高速道路)","大阪","阪神高速道路"]
[null,null,"96410","大浜","大阪","阪神高速道路"]
[null,null,"96415","三宝","大阪","阪神高速道路"]
[null,null,"96420","南港南","大阪","阪神高速道路"]
[null,null,"96425","南港中","大阪","阪神高速道路"]
[null,null,"96430","南港北","大阪","阪神高速道路"]
[null,null,"96435","天保山","大阪","阪神高速道路"]
[null,null,"96440","湾岸舞洲","大阪","阪神高速道路"]
[null,null,"96445","中島","大阪","阪神高速道路"]
[null,null,"96450","尼崎東海岸","兵庫","阪神高速道路"]
[null,null,"96455","尼崎末広","兵庫","阪神高速道路"]
[null,null,"96460","鳴尾浜","兵庫","阪神高速道路"]
[null,null,"96465","甲子園浜","兵庫","阪神高速道路"]
[null,null,"96470","西宮浜","兵庫","阪神高速道路"]
[null,null,"96475","南芦屋浜","兵庫","阪神高速道路"]
[null,null,"96480","深江浜","兵庫","阪神高速道路"]
[null,null,"96485","住吉浜","兵庫","阪神高速道路"]
[null,null,"96490","魚崎浜","兵庫","阪神高速道路"]
[null,null,"96495","六甲アイランド北","兵庫","阪神高速道路"]
[null,null,"96500","中之島西","大阪","阪神高速道路"]
[null,null,"96505","海老江","大阪","阪神高速道路"]
[null,null,"96510","姫島","大阪","阪神高速道路"]
[null,null,"96515","大和田","大阪","阪神高速道路"]
[null,null,"96520","尼崎東","兵庫","阪神高速道路"]
[null,null,"96525","尼崎西","兵庫","阪神高速道路"]
[null,null,"96530","武庫川","兵庫","阪神高速道路"]
[null,null,"96535","西宮(兵庫_阪神高速道路)","兵庫","阪神高速道路"]
[null,null,"96540","芦屋","兵庫","阪神高速道路"]
[null,null,"96545","深江","兵庫","阪神高速道路"]
[null,null,"96550","魚崎","兵庫","阪神高速道路"]
[null,null,"96555","摩耶","兵庫","阪神高速道路"]
[null,null,"96560","生田川","兵庫","阪神高速道路"]
[null,null,"96565","京橋(兵庫_阪神高速道路)","兵庫","阪神高速道路"]
[null,null,"96570","柳原","兵庫","阪神高速道路"]
[null,null,"96575","湊川","兵庫","阪神高速道路"]
[null,null,"96580","若宮(兵庫_阪神高速道路)","兵庫","阪神高速道路"]
[null,null,"96585","月見山","兵庫","阪神高速道路"]
[null,null,"96587","須磨(兵庫_阪神高速道路)","兵庫","阪神高速道路"]
[null,null,"96589","高丸(兵庫_阪神高速道路)","兵庫","阪神高速道路"]
[null,null,"96590","白川南","兵庫","阪神高速道路"]
[null,null,"96595","妙法寺","兵庫","阪神高速道路"]
[null,null,"96600","神戸長田","兵庫","阪神高速道路"]
[null,null,"96605","国道２号","兵庫","阪神高速道路"]
[null,null,"96610","二宮(兵庫_阪神高速道路)","兵庫","阪神高速道路"]
[null,null,"96615","神若","兵庫","阪神高速道路"]
[null,null,"96620","新神戸駅","兵庫","阪神高速道路"]
[null,null,"96625","永井谷","兵庫","阪神高速道路"]
[null,null,"96630","前開","兵庫","阪神高速道路"]
[null,null,"96635","布施畑西","兵庫","阪神高速道路"]
[null,null,"96640","布施畑東","兵庫","阪神高速道路"]
[null,null,"96645","しあわせの村","兵庫","阪神高速道路"]
[null,null,"96650","藍那","兵庫","阪神高速道路"]
[null,null,"96655","箕谷","兵庫","阪神高速道路"]
[null,null,"96660","からと西","兵庫","阪神高速道路"]
[null,null,"96665","からと東","兵庫","阪神高速道路"]
[null,null,"96670","五社","兵庫","阪神高速道路"]
[null,null,"96675","有馬口","兵庫","阪神高速道路"]
[null,null,"96680","西宮山口南","兵庫","阪神高速道路"]
[null,null,"96685","西宮山口東","兵庫","阪神高速道路"]
[null,null,"96690","伏見","京都","第二京阪道路"]
[null,null,"96695","城南宮南","京都","第二京阪道路"]
[null,null,"96700","城南宮北","京都","第二京阪道路"]
[null,null,"96705","上鳥羽","京都","第二京阪道路"]
[null,null,"96710","鴨川西","京都","第二京阪道路"]
[null,null,"96715","鴨川東","京都","第二京阪道路"]
[null,null,"96720","山科","京都","第二京阪道路"]
[null,null,"96725","鉄砲","大阪","阪神高速道路"]
[null,null,"96730","常磐","大阪","阪神高速道路"]
[null,null,"96735","天美","大阪","阪神高速道路"]
[null,null,"97000","千音寺","愛知","名古屋高速道路"]
[null,null,"97005","烏森","愛知","名古屋高速道路"]
[null,null,"97010","黄金","愛知","名古屋高速道路"]
[null,null,"97015","白川","愛知","名古屋高速道路"]
[null,null,"97020","吹上西","愛知","名古屋高速道路"]
[null,null,"97025","吹上東","愛知","名古屋高速道路"]
[null,null,"97030","春岡","愛知","名古屋高速道路"]
[null,null,"97035","四谷","愛知","名古屋高速道路"]
[null,null,"97040","高針","愛知","名古屋高速道路"]
[null,null,"97045","小牧北","愛知","名古屋高速道路"]
[null,null,"97050","堀の内","愛知","名古屋高速道路"]
[null,null,"97055","小牧南","愛知","名古屋高速道路"]
[null,null,"97060","豊山北","愛知","名古屋高速道路"]
[null,null,"97065","豊山南","愛知","名古屋高速道路"]
[null,null,"97070","楠(愛知_名古屋高速道路)","愛知","名古屋高速道路"]
[null,null,"97075","黒川","愛知","名古屋高速道路"]
[null,null,"97080","東片端","愛知","名古屋高速道路"]
[null,null,"97085","東新町","愛知","名古屋高速道路"]
[null,null,"97090","丸の内(愛知_名古屋高速道路)","愛知","名古屋高速道路"]
[null,null,"97095","高辻","愛知","名古屋高速道路"]
[null,null,"97100","堀田","愛知","名古屋高速道路"]
[null,null,"97105","呼続","愛知","名古屋高速道路"]
[null,null,"97110","笠寺","愛知","名古屋高速道路"]
[null,null,"97115","星崎","愛知","名古屋高速道路"]
[null,null,"97120","大高","愛知","名古屋高速道路"]
[null,null,"97125","春日(愛知_名古屋高速道路)","愛知","名古屋高速道路"]
[null,null,"97130","西春","愛知","名古屋高速道路"]
[null,null,"97135","一宮西春","愛知","名古屋高速道路"]
[null,null,"97140","一宮南","愛知","名古屋高速道路"]
[null,null,"97145","一宮東","愛知","名古屋高速道路"]
[null,null,"97150","一宮中","愛知","名古屋高速道路"]
[null,null,"97155","六番北","愛知","名古屋高速道路"]
[null,null,"97160","名駅","愛知","名古屋高速道路"]
[null,null,"97165","錦橋","愛知","名古屋高速道路"]
[null,null,"97170","東別院","愛知","名古屋高速道路"]
[null,null,"97175","明道町","愛知","名古屋高速道路"]
[null,null,"97180","庄内通","愛知","名古屋高速道路"]
[null,null,"97185","鳥見町","愛知","名古屋高速道路"]
[null,null,"97190","清須","愛知","名古屋高速道路"]
[null,null,"97195","山王","愛知","名古屋高速道路"]
[null,null,"97200","尾頭橋","愛知","名古屋高速道路"]
[null,null,"97205","六番南","愛知","名古屋高速道路"]
[null,null,"97210","港明","愛知","名古屋高速道路"]
[null,null,"97215","木場(愛知_名古屋高速道路)","愛知","名古屋高速道路"]
[null,null,"97220","船見","愛知","名古屋高速道路"]
[null,null,"97225","東海新宝","愛知","名古屋高速道路"]
[null,null,"97500","福田","広島","広島高速道路"]
[null,null,"97505","馬木(広島_広島高速道路)","広島","広島高速道路"]
[null,null,"97510","温品","広島","広島高速道路"]
[null,null,"97515","間所","広島","広島高速道路"]
[null,null,"97520","矢賀","広島","広島高速道路"]
[null,null,"97525","府中","広島","広島高速道路"]
[null,null,"97530","大洲(広島_広島高速道路)","広島","広島高速道路"]
[null,null,"97535","東雲","広島","広島高速道路"]
[null,null,"97540","仁保","広島","広島高速道路"]
[null,null,"97545","商工センター","広島","広島高速道路"]
[null,null,"97550","観音","広島","広島高速道路"]
[null,null,"97555","吉島","広島","広島高速道路"]
[null,null,"97560","出島(広島_広島高速道路)","広島","広島高速道路"]
[null,null,"97565","宇品","広島","広島高速道路"]
[null,null,"97570","海田大橋","広島","広島高速道路"]
[null,null,"97575","中広","広島","広島高速道路"]
[null,null,"97580","沼田(広島_広島高速道路)","広島","広島高速道路"]
[null,null,"97700","築港","福岡","福岡都市高速道路"]
[null,null,"97705","天神北","福岡","福岡都市高速道路"]
[null,null,"97710","西公園","福岡","福岡都市高速道路"]
[null,null,"97715","百道","福岡","福岡都市高速道路"]
[null,null,"97720","愛宕","福岡","福岡都市高速道路"]
[null,null,"97725","姪浜","福岡","福岡都市高速道路"]
[null,null,"97730","石丸","福岡","福岡都市高速道路"]
[null,null,"97735","福重","福岡","福岡都市高速道路"]
[null,null,"97740","野芥","福岡","福岡都市高速道路"]
[null,null,"97745","堤","福岡","福岡都市高速道路"]
[null,null,"97750","野多目","福岡","福岡都市高速道路"]
[null,null,"97755","板付","福岡","福岡都市高速道路"]
[null,null,"97760","西月隈","福岡","福岡都市高速道路"]
[null,null,"97765","月隈","福岡","福岡都市高速道路"]
[null,null,"97770","半道橋","福岡","福岡都市高速道路"]
[null,null,"97775","榎田","福岡","福岡都市高速道路"]
[null,null,"97780","空港通","福岡","福岡都市高速道路"]
[null,null,"97785","博多駅東","福岡","福岡都市高速道路"]
[null,null,"97790","千代(福岡_福岡都市高速道路)","福岡","福岡都市高速道路"]
[null,null,"97795","呉服町","福岡","福岡都市高速道路"]
[null,null,"97800","東浜(福岡_福岡都市高速道路)","福岡","福岡都市高速道路"]
[null,null,"97805","箱崎(福岡_福岡都市高速道路)","福岡","福岡都市高速道路"]
[null,null,"97810","名島","福岡","福岡都市高速道路"]
[null,null,"97815","香椎浜","福岡","福岡都市高速道路"]
[null,null,"97817","アイランドシティ","福岡","福岡都市高速道路"]
[null,null,"97820","香椎","福岡","福岡都市高速道路"]
[null,null,"97825","香椎東","福岡","福岡都市高速道路"]
[null,null,"97830","金の隈","福岡","福岡都市高速道路"]
[null,null,"97835","大野城","福岡","福岡都市高速道路"]
[null,null,"97840","水城","福岡","福岡都市高速道路"]
[null,null,"97845","貝塚(福岡_福岡都市高速道路)","福岡","福岡都市高速道路"]
[null,null,"97850","松島","福岡","福岡都市高速道路"]
[null,null,"97855","多の津","福岡","福岡都市高速道路"]
[null,null,"97860","粕屋","福岡","福岡都市高速道路"]
[null,null,"98000","長野(福岡_北九州都市高速道路)","福岡","北九州都市高速道路"]
[null,null,"98005","横代","福岡","北九州都市高速道路"]
[null,null,"98010","若園","福岡","北九州都市高速道路"]
[null,null,"98015","北方(福岡_北九州都市高速道路)","福岡","北九州都市高速道路"]
[null,null,"98020","篠崎南","福岡","北九州都市高速道路"]
[null,null,"98025","篠崎北","福岡","北九州都市高速道路"]
[null,null,"98030","大手町","福岡","北九州都市高速道路"]
[null,null,"98035","勝山(福岡_北九州都市高速道路)","福岡","北九州都市高速道路"]
[null,null,"98040","下到津","福岡","北九州都市高速道路"]
[null,null,"98045","小倉駅北","福岡","北九州都市高速道路"]
[null,null,"98050","日明","福岡","北九州都市高速道路"]
[null,null,"98055","西港","福岡","北九州都市高速道路"]
[null,null,"98060","戸畑","福岡","北九州都市高速道路"]
[null,null,"98065","若戸","福岡","北九州都市高速道路"]
[null,null,"98070","春日(福岡_北九州都市高速道路)","福岡","北九州都市高速道路"]
[null,null,"98075","大里出入口","福岡","北九州都市高速道路"]
[null,null,"98080","富野出入口","福岡","北九州都市高速道路"]
[null,null,"98085","足立出入口","福岡","北九州都市高速道路"]
[null,null,"98090","紫川出入口","福岡","北九州都市高速道路"]
[null,null,"98095","山路出入口","福岡","北九州都市高速道路"]
[null,null,"98100","大谷出入口","福岡","北九州都市高速道路"]
[null,null,"98105","枝光","福岡","北九州都市高速道路"]
[null,null,"98108","牧山出口","福岡","北九州都市高速道路"]
[null,null,"98110","東田","福岡","北九州都市高速道路"]
[null,null,"98115","黒崎","福岡","北九州都市高速道路"]
[null,null,"98120","小嶺","福岡","北九州都市高速道路"]
[null,null,"98125","馬場山","福岡","北九州都市高速道路"]
[null,null,"98130","金剛","福岡","北九州都市高速道路"]
[null,null,"99000","名称不明","名称不明","名称不明"]